Workbook

Sheet 01.03.2026г
B1: Согласовано Начальник МКУ "Управление образования" Муслюмовского района РТ ________________ /Л.Я. Хабибуллина/ | H1: Согласовано Директор ОУ ____________________________________________________________________________ | AA1: Утверждаю Индивидуальный предприниматель Ибрагимова Э.И. ______________ /Э.И. Ибрагимова/ | CD1: =IF(#REF!<>"",#REF!,"") -> 
A2: ЦИКЛИЧНОЕ ВЕСЕННИЙ (ЛЕТНИЙ) ДВУХНЕДЕЛЬНОЕ МЕНЮ ДЛЯ ОРГАНИЗАЦИИ ПИТАНИЯ ДЕТЕЙ В ВОЗРАСТЕ ДО 3-х ЛЕТ, ПОСЕЩАЮЩИХ ДОШКОЛЬНЫЕ ОБРАЗОВАТЕЛЬНЫЕ УЧРЕЖДЕНИЯ И ДОШКОЛЬНЫЕ ГРУППЫ ОБРАЗОВАТЕЛЬНЫХ УЧРЕЖДЕНИЙ МУСЛЮМОВСКОГО МУНИЦИПАЛЬНОГО РАЙОНА РТ НА 2026 г.
AF4: с 01.03.2026г.
A5: Но-мер рец. | B5: Прием пищи, наименование изделий (блюд) | C5: Вы-ход, г | D5: Белки, г | F5: Жиры, г | H5: Угле-воды, г | I5: ЭЦ, ккал | J5: НЖК | K5: ПНЖК | L5: МЖК | M5: Холестерин | N5: МД | O5: Крахмал | P5: ПВ | Q5: РПВ | R5: НПВ | S5: Органические кислоты | T5: Зола | U5: Na | V5: K | W5: Минеральные элементы, мг | AA5: Витамины, мг | AI5: Вита-мин С, мг | AJ5: Алкоголь, г | AK5: Валин | AL5: изолейцин | AM5: лейцин | AN5: лизин | AO5: метионин | AP5: треонин | AQ5: триптофан | AR5: фенилаланин | AS5: аланин | AT5: аргинин | AU5: аспарагиновая | AV5: гистидин | AW5: глицин | AX5: глутаминовая | AY5: оксипролин | AZ5: пролин | BA5: серин | BB5: тирозин | BC5: цистин | BD5: масляная | BE5: капроновая | BF5: каприловая | BG5: каприновая | BH5: лауриновая | BI5: миристиновая | BJ5: пентадекановая | BK5: пальмитиновая | BL5: маргариновая | BM5: стеариновая | BN5: арахиновая | BO5: бегеновая | BP5: лигноцериновая | BQ5: миристолеиновая | BR5: пальмитолеиновая | BS5: олеиновая | BT5: гадолеиновая | BU5: эруковая | BV5: линолевая | BW5: линоленовая | BX5: арахидоновая | BY5: Аденин | BZ5: Гуанин | CA5: Ph | CC5: Цена, руб | CD5: Доля, % | CG5: I (макс.), мкг | CH5: I (мин.), мкг | CI5: I (сред.), мкг | CJ5: Zn (макс.), мкг | CK5: Zn (мин.), мкг | CL5: Zn (сред.), мкг | CM5: Se (макс.), мкг | CN5: Se (мин.), мкг | CO5: Se (сред.), мкг | CP5: Вложен-ный сахар, г | CQ5: Вложен-ная соль, г
D6: всего | E6: в т.ч. жив. | F6: всего | G6: в т.ч. раст. | W6: Ca | X6: Mg | Y6: P | Z6: Fe | AA6: А | AB6: B | AC6: РЭ,мкг | AD6: ТЭ,мг | AE6: В1 | AF6: В2 | AG6: РР | AH6: НЭ
B7: 1 НЕДЕЛЯ
B8: 1 ДЕНЬ
B9: Завтрак
A10: ="-" -> - | B10: Батон | C10: 30 | D10: 2.3 | E10: 0.0 | F10: 1.5 | G10: 0.9 | H10: 11.2 | I10: 66 | J10: 0.2 | K10: 0.0 | L10: 0.0 | M10: 0.0 | N10: 1.0 | O10: 9.2 | P10: 1.0 | Q10: 0.0 | R10: 0.0 | S10: 0.1 | T10: 0.5 | U10: 128.7 | V10: 39.3 | W10: 6.6 | X10: 9.9 | Y10: 25.5 | Z10: 0.6 | AA10: 0.0 | AB10: 0.0 | AC10: 0.0 | AD10: 0.5 | AE10: 0.1 | AF10: 0.0 | AG10: 0.5 | AH10: 0.9 | AI10: 0.0 | AJ10: 0 | AK10: 111.6 | AL10: 115.8 | AM10: 177.3 | AN10: 59.7 | AO10: 35.1 | AP10: 70.2 | AQ10: 26.4 | AR10: 126 | AS10: 78.3 | AT10: 108.9 | AU10: 90.3 | AV10: 48.3 | AW10: 84 | AX10: 697.5 | AY10: 0 | AZ10: 227.1 | BA10: 99.3 | BB10: 66.6 | BC10: 51.9 | BD10: 0 | BE10: 0 | BF10: 0 | BG10: 0 | BH10: 0 | BI10: 0.01 | BJ10: 0 | BK10: 0.1 | BL10: 0 | BM10: 0.05 | BN10: 0 | BO10: 0 | BP10: 0 | BQ10: 0 | BR10: 0 | BS10: 0.35 | BT10: 0 | BU10: 0 | BV10: 0.26 | BW10: 0.01 | BX10: 0 | BY10: 0 | BZ10: 0 | CA10: 0 | CB10: 10.23 | CE10: 0 | CG10: 0 | CH10: 0 | CI10: 0 | CJ10: 570 | CK10: 219.6 | CL10: 394.8 | CM10: 4.56 | CN10: 4.56 | CO10: 4.56 | CP10: 0 | CQ10: 0
A11: ="4/13" -> 4/13 | B11: Сыр (порциями) | C11: 10 | D11: 1.5 | E11: 2.6 | F11: 2.7 | G11: 0.0 | H11: 0.0 | I11: 31 | J11: 1.5 | K11: 0.0 | L11: 0.0 | M11: 0.0 | N11: 0.0 | O11: 0.0 | P11: 0.0 | Q11: 0.0 | R11: 0.0 | S11: 0.2 | T11: 0.4 | U11: 110.0 | V11: 10.0 | W11: 100.0 | X11: 5.5 | Y11: 60.0 | Z11: 0.1 | AA11: 21.0 | AB11: 17.0 | AC11: 23.8 | AD11: 0.0 | AE11: 0.0 | AF11: 0.0 | AG11: 0.0 | AH11: 0.7 | AI11: 0.1 | AJ11: 0 | AK11: 157 | AL11: 117 | AM11: 230 | AN11: 158 | AO11: 56 | AP11: 95 | AQ11: 70 | AR11: 134 | AS11: 76 | AT11: 87 | AU11: 156 | AV11: 70 | AW11: 51 | AX11: 517 | AY11: 0 | AZ11: 273 | BA11: 129 | BB11: 139 | BC11: 21.5 | BD11: 0 | BE11: 0.01 | BF11: 0.04 | BG11: 0.11 | BH11: 0.13 | BI11: 0.33 | BJ11: 0.04 | BK11: 0.7 | BL11: 0.01 | BM11: 0.16 | BN11: 0.01 | BO11: 0 | BP11: 0 | BQ11: 0.05 | BR11: 0.07 | BS11: 0.52 | BT11: 0 | BU11: 0 | BV11: 0.07 | BW11: 0 | BX11: 0 | BY11: 0 | BZ11: 0 | CA11: 0 | CB11: 4.08 | CE11: 23.83 | CG11: 0 | CH11: 0 | CI11: 0 | CJ11: 500 | CK11: 370 | CL11: 435 | CM11: 1.53 | CN11: 0.97 | CO11: 1.25 | CP11: 0 | CQ11: 0
A12: ="31/10" -> 31/10 | B12: Чай с молоком (вариант 3) | C12: 150 | D12: 1.2 | E12: 1.1 | F12: 1.0 | G12: 0.0 | H12: 5.5 | I12: 34 | J12: 0.6 | K12: 0.0 | L12: 0.0 | M12: 0.0 | N12: 5.5 | O12: 0.0 | P12: 0.1 | Q12: 0.0 | R12: 0.0 | S12: 0.0 | T12: 0.3 | U12: 18.6 | V12: 54.3 | W12: 43.8 | X12: 5.0 | Y12: 31.4 | Z12: 0.1 | AA12: 7.5 | AB12: 3.4 | AC12: 8.3 | AD12: 0.0 | AE12: 0.0 | AF12: 0.1 | AG12: 0.0 | AH12: 0.3 | AI12: 0.2 | AJ12: 0 | AK12: 0 | AL12: 0 | AM12: 0 | AN12: 0 | AO12: 0 | AP12: 0 | AQ12: 0 | AR12: 0 | AS12: 0 | AT12: 0 | AU12: 0 | AV12: 0 | AW12: 0 | AX12: 0 | AY12: 0 | AZ12: 0 | BA12: 0 | BB12: 0 | BC12: 0 | BD12: 0 | BE12: 0 | BF12: 0 | BG12: 0 | BH12: 0 | BI12: 0 | BJ12: 0 | BK12: 0 | BL12: 0 | BM12: 0 | BN12: 0 | BO12: 0 | BP12: 0 | BQ12: 0 | BR12: 0 | BS12: 0 | BT12: 0 | BU12: 0 | BV12: 0 | BW12: 0 | BX12: 0 | BY12: 0 | BZ12: 0 | CA12: 0 | CB12: 145.94 | CE12: 8.06 | CG12: 6.84 | CH12: 3.69 | CI12: 5.26 | CJ12: 567 | CK12: 214.2 | CL12: 390.6 | CM12: 35.65 | CN12: 19 | CO12: 27.32 | CP12: 3.75 | CQ12: 0
A13: ="15/4" -> 15/4 | B13: Каша ячневая молочная с маслом сливочным | C13: 150 | D13: 4.5 | E13: 1.8 | F13: 3.6 | G13: 0.4 | H13: 25.3 | I13: 148 | J13: 2.6 | K13: 0.1 | L13: 0.0 | M13: 0.0 | N13: 5.7 | O13: 17.4 | P13: 2.2 | Q13: 0.0 | R13: 0.0 | S13: 0.1 | T13: 1.2 | U13: 180.1 | V13: 132.1 | W13: 86.4 | X13: 20.4 | Y13: 137.5 | Z13: 0.5 | AA13: 14.4 | AB13: 12.0 | AC13: 26.7 | AD13: 0.5 | AE13: 0.1 | AF13: 0.1 | AG13: 0.7 | AH13: 1.9 | AI13: 0.3 | AJ13: 0 | AK13: 136.54 | AL13: 132.29 | AM13: 145.96 | AN13: 99.97 | AO13: 45.6 | AP13: 71.83 | AQ13: 35.05 | AR13: 147.82 | AS13: 115.23 | AT13: 138.91 | AU13: 180.68 | AV13: 65.85 | AW13: 116.3 | AX13: 679.39 | AY13: 0 | AZ13: 370.77 | BA13: 111.5 | BB13: 85.78 | BC13: 56.68 | BD13: 0.07 | BE13: 0.03 | BF13: 0.02 | BG13: 0.04 | BH13: 0.05 | BI13: 0.21 | BJ13: 0 | BK13: 0.58 | BL13: 0 | BM13: 0.18 | BN13: 0 | BO13: 0 | BP13: 0 | BQ13: 0.04 | BR13: 0.06 | BS13: 0.48 | BT13: 0 | BU13: 0 | BV13: 0.03 | BW13: 0 | BX13: 0 | BY13: 0 | BZ13: 0 | CA13: 0 | CB13: 133.35 | CE13: 16.4 | CG13: 34.24 | CH13: 14.52 | CI13: 24.38 | CJ13: 2147.67 | CK13: 982.95 | CL13: 1565.31 | CM13: 45.21 | CN13: 23.88 | CO13: 34.54 | CP13: 3 | CQ13: 0.38
B14: Итого за 'Завтрак' | C14: =SUM(C10:C13) -> 340 | D14: =SUM(D10:D13) -> 9.4 | E14: 5.5 | F14: 8.7 | G14: 1.3 | H14: 42.0 | I14: 279 | J14: 4.9 | K14: 0.1 | L14: 0.0 | M14: 0.0 | N14: 12.1 | O14: 26.7 | P14: 3.3 | Q14: 0.0 | R14: 0.0 | S14: 0.4 | T14: 2.4 | U14: 437.4 | V14: 235.7 | W14: 236.8 | X14: 40.8 | Y14: 254.4 | Z14: 1.3 | AA14: 42.9 | AB14: 32.4 | AC14: 58.8 | AD14: 1.0 | AE14: 0.1 | AF14: 0.2 | AG14: 1.2 | AH14: 3.8 | AI14: 0.6 | AJ14: 0 | AK14: 405.14 | AL14: 365.09 | AM14: 553.26 | AN14: 317.67 | AO14: 136.7 | AP14: 237.03 | AQ14: 131.45 | AR14: 407.82 | AS14: 269.53 | AT14: 334.81 | AU14: 426.98 | AV14: 184.15 | AW14: 251.3 | AX14: 1893.89 | AY14: 0 | AZ14: 870.87 | BA14: 339.8 | BB14: 291.38 | BC14: 130.08 | BD14: 0.07 | BE14: 0.04 | BF14: 0.06 | BG14: 0.15 | BH14: 0.18 | BI14: 0.55 | BJ14: 0.04 | BK14: 1.38 | BL14: 0.01 | BM14: 0.38 | BN14: 0.01 | BO14: 0 | BP14: 0 | BQ14: 0.09 | BR14: 0.13 | BS14: 1.35 | BT14: 0 | BU14: 0 | BV14: 0.36 | BW14: 0.01 | BX14: 0 | BY14: 0 | BZ14: 0 | CA14: 0 | CB14: 293.61 | CD14: =$I$14/#REF!*100 ->  | CE14: 48.3 | CG14: 41.07 | CH14: 18.2 | CI14: 29.64 | CJ14: 3784.67 | CK14: 1786.75 | CL14: 2785.71 | CM14: 86.95 | CN14: 48.41 | CO14: 67.68 | CP14: 6.75 | CQ14: 0.38
B15: Второй завтрак
A16: ="-" -> - | B16: Яблоки | C16: 100 | D16: 0.4 | E16: 0.0 | F16: 0.4 | G16: 0.4 | H16: 11.6 | I16: 50 | J16: 0.1 | K16: 0.0 | L16: 0.0 | M16: 0.0 | N16: 10.0 | O16: 0.8 | P16: 0.8 | Q16: 0.0 | R16: 0.0 | S16: 0.8 | T16: 0.5 | U16: 26.0 | V16: 278.0 | W16: 16.0 | X16: 9.0 | Y16: 11.0 | Z16: 2.2 | AA16: 0.0 | AB16: 30.0 | AC16: 5.0 | AD16: 0.2 | AE16: 0.0 | AF16: 0.0 | AG16: 0.3 | AH16: 0.4 | AI16: 10.0 | AJ16: 0 | AK16: 12 | AL16: 13 | AM16: 19 | AN16: 18 | AO16: 3 | AP16: 11 | AQ16: 3 | AR16: 9 | AS16: 17 | AT16: 10 | AU16: 78 | AV16: 7 | AW16: 14 | AX16: 42 | AY16: 0 | AZ16: 13 | BA16: 16 | BB16: 6 | BC16: 5 | BD16: 0 | BE16: 0 | BF16: 0 | BG16: 0 | BH16: 0 | BI16: 0 | BJ16: 0 | BK16: 0 | BL16: 0 | BM16: 0 | BN16: 0 | BO16: 0 | BP16: 0 | BQ16: 0 | BR16: 0 | BS16: 0 | BT16: 0 | BU16: 0 | BV16: 0 | BW16: 0 | BX16: 0 | BY16: 0 | BZ16: 0 | CA16: 0 | CB16: 86.3 | CE16: 5 | CG16: 2 | CH16: 2 | CI16: 2 | CJ16: 150 | CK16: 150 | CL16: 150 | CM16: 0 | CN16: 0 | CO16: 0 | CP16: 0 | CQ16: 0
B17: Итого за 'Второй завтрак' | C17: =SUM(C16) -> 100 | D17: =SUM(D16) -> 0.4 | E17: 0.0 | F17: 0.4 | G17: 0.4 | H17: 11.6 | I17: 50 | J17: 0.1 | K17: 0.0 | L17: 0.0 | M17: 0.0 | N17: 10.0 | O17: 0.8 | P17: 0.8 | Q17: 0.0 | R17: 0.0 | S17: 0.8 | T17: 0.5 | U17: 26.0 | V17: 278.0 | W17: 16.0 | X17: 9.0 | Y17: 11.0 | Z17: 2.2 | AA17: 0.0 | AB17: 30.0 | AC17: 5.0 | AD17: 0.2 | AE17: 0.0 | AF17: 0.0 | AG17: 0.3 | AH17: 0.4 | AI17: 10.0 | AJ17: 0 | AK17: 12 | AL17: 13 | AM17: 19 | AN17: 18 | AO17: 3 | AP17: 11 | AQ17: 3 | AR17: 9 | AS17: 17 | AT17: 10 | AU17: 78 | AV17: 7 | AW17: 14 | AX17: 42 | AY17: 0 | AZ17: 13 | BA17: 16 | BB17: 6 | BC17: 5 | BD17: 0 | BE17: 0 | BF17: 0 | BG17: 0 | BH17: 0 | BI17: 0 | BJ17: 0 | BK17: 0 | BL17: 0 | BM17: 0 | BN17: 0 | BO17: 0 | BP17: 0 | BQ17: 0 | BR17: 0 | BS17: 0 | BT17: 0 | BU17: 0 | BV17: 0 | BW17: 0 | BX17: 0 | BY17: 0 | BZ17: 0 | CA17: 0 | CB17: 86.3 | CD17: =$I$17/#REF!*100 ->  | CE17: 5 | CG17: 2 | CH17: 2 | CI17: 2 | CJ17: 150 | CK17: 150 | CL17: 150 | CM17: 0 | CN17: 0 | CO17: 0 | CP17: 0 | CQ17: 0
B18: Обед
A19: ="-" -> - | B19: Хлеб пшеничный | C19: 20 | D19: 1.2 | E19: 0.0 | F19: 0.1 | G19: 0.1 | H19: 7.4 | I19: 36 | J19: 0.0 | K19: 0.0 | L19: 0.0 | M19: 0.0 | N19: 0.2 | O19: 7.1 | P19: 0.0 | Q19: 0.0 | R19: 0.0 | S19: 0.0 | T19: 0.4 | U19: 0.0 | V19: 0.0 | W19: 0.0 | X19: 0.0 | Y19: 0.0 | Z19: 0.0 | AA19: 0.0 | AB19: 0.0 | AC19: 0.0 | AD19: 0.0 | AE19: 0.0 | AF19: 0.0 | AG19: 0.0 | AH19: 0.0 | AI19: 0.0 | AJ19: 0 | AK19: 63.86 | AL19: 66.47 | AM19: 101.79 | AN19: 33.76 | AO19: 20.01 | AP19: 40.02 | AQ19: 15.14 | AR19: 72.38 | AS19: 44.89 | AT19: 62.64 | AU19: 51.68 | AV19: 27.14 | AW19: 48.02 | AX19: 401.59 | AY19: 0 | AZ19: 130.85 | BA19: 56.9 | BB19: 37.76 | BC19: 29.93 | BD19: 0 | BE19: 0 | BF19: 0 | BG19: 0 | CE19: 0 | CP19: 0 | CQ19: 0
A20: ="-" -> - | B20: Хлеб ржаной | C20: 20 | D20: 1.2 | E20: 0.0 | F20: 0.2 | G20: 0.2 | H20: 8.3 | I20: 38 | J20: 0.0 | K20: 0.0 | L20: 0.0 | M20: 0.0 | N20: 0.2 | O20: 6.4 | P20: 1.7 | Q20: 0.0 | R20: 0.0 | S20: 0.2 | T20: 0.5 | U20: 122.0 | V20: 49.0 | W20: 7.0 | X20: 9.4 | Y20: 31.6 | Z20: 0.8 | AA20: 0.0 | AB20: 1.0 | AC20: 0.2 | AD20: 0.3 | AE20: 0.0 | AF20: 0.0 | AG20: 0.1 | AH20: 0.4 | AI20: 0.0 | AJ20: 0 | AK20: 64.4 | AL20: 49.6 | AM20: 85.4 | AN20: 44.6 | AO20: 18.6 | AP20: 39.6 | AQ20: 16 | AR20: 74.2 | AS20: 59.4 | AT20: 58.2 | AU20: 92.8 | AV20: 24.8 | AW20: 62 | AX20: 311.8 | AY20: 0 | AZ20: 105.2 | BA20: 58.2 | BB20: 36 | BC20: 26 | BD20: 0 | BE20: 0 | BF20: 0 | BG20: 0 | BH20: 0 | BI20: 0 | BJ20: 0 | BK20: 0.03 | BL20: 0 | BM20: 0 | BN20: 0 | BO20: 0 | BP20: 0 | BQ20: 0 | BR20: 0 | BS20: 0.02 | BT20: 0 | BU20: 0 | BV20: 0.1 | BW20: 0.02 | BX20: 0 | BY20: 0 | BZ20: 0 | CA20: 0 | CB20: 9.4 | CE20: 0.17 | CG20: 3 | CH20: 3 | CI20: 3 | CJ20: 570 | CK20: 219.6 | CL20: 394.8 | CM20: 5.7 | CN20: 4.74 | CO20: 5.22 | CP20: 0 | CQ20: 0
A21: ="6/10" -> 6/10 | B21: Компот из сухофруктов | C21: 150 | D21: 0.8 | E21: 0.0 | F21: 0.0 | G21: 0.0 | H21: 17.4 | I21: 66 | J21: 0.0 | K21: 0.0 | L21: 0.0 | M21: 0.0 | N21: 14.4 | O21: 0.4 | P21: 2.6 | Q21: 0.0 | R21: 0.0 | S21: 0.2 | T21: 0.6 | U21: 2.6 | V21: 255.2 | W21: 23.5 | X21: 15.0 | Y21: 20.4 | Z21: 0.5 | AA21: 0.0 | AB21: 472.5 | AC21: 87.5 | AD21: 0.8 | AE21: 0.0 | AF21: 0.0 | AG21: 0.4 | AH21: 0.6 | AI21: 0.4 | AJ21: 0 | AK21: 0.01 | AL21: 0.01 | AM21: 0.01 | AN21: 0.01 | AO21: 0 | AP21: 0.01 | AQ21: 0 | AR21: 0.01 | AS21: 0.01 | AT21: 0.01 | AU21: 0.04 | AV21: 0 | AW21: 0.01 | AX21: 0.02 | AY21: 0 | AZ21: 0.01 | BA21: 0.01 | BB21: 0 | BC21: 0 | BD21: 0 | BE21: 0 | BF21: 0 | BG21: 0 | BH21: 0 | BI21: 0 | BJ21: 0 | BK21: 0 | BL21: 0 | BM21: 0 | BN21: 0 | BO21: 0 | BP21: 0 | BQ21: 0 | BR21: 0 | BS21: 0.01 | BT21: 0 | BU21: 0 | BV21: 0 | BW21: 0 | BX21: 0 | BY21: 0 | BZ21: 0 | CA21: 0 | CB21: 160.51 | CE21: 78.75 | CG21: 3.95 | CH21: 3.95 | CI21: 3.95 | CJ21: 454.5 | CK21: 172.98 | CL21: 313.74 | CM21: 41.94 | CN21: 24.93 | CO21: 33.44 | CP21: 7.5 | CQ21: 0
A22: ="6/1" -> 6/1 | B22: Салат из белокочанной капусты с морковью и растительным маслом | C22: 30 | D22: 0.5 | E22: 0.0 | F22: 1.8 | G22: 1.8 | H22: 2.8 | I22: 28 | J22: 0.2 | K22: 1.2 | L22: 0.0 | M22: 0.0 | N22: 2.2 | O22: 0.0 | P22: 0.6 | Q22: 0.0 | R22: 0.0 | S22: 0.1 | T22: 0.4 | U22: 60.8 | V22: 75.6 | W22: 12.4 | X22: 5.4 | Y22: 9.6 | Z22: 0.2 | AA22: 0.0 | AB22: 568.9 | AC22: 96.7 | AD22: 0.8 | AE22: 0.0 | AF22: 0.0 | AG22: 0.2 | AH22: 0.3 | AI22: 10.2 | AJ22: 0 | AK22: 14.81 | AL22: 12.67 | AM22: 16.18 | AN22: 15.24 | AO22: 5.27 | AP22: 11.43 | AQ22: 2.58 | AR22: 13.81 | AS22: 17.91 | AT22: 20.67 | AU22: 44.28 | AV22: 6.83 | AW22: 11.73 | AX22: 71.69 | AY22: 0 | AZ22: 14.42 | BA22: 14.56 | BB22: 11.87 | BC22: 4.97 | BD22: 0 | BE22: 0 | BF22: 0 | BG22: 0 | BH22: 0 | BI22: 0 | BJ22: 0 | BK22: 0.11 | BL22: 0 | BM22: 0.07 | BN22: 0.01 | BO22: 0.01 | BP22: 0 | BQ22: 0 | BR22: 0 | BS22: 0.42 | BT22: 0 | BU22: 0 | BV22: 1.04 | BW22: 0 | BX22: 0 | BY22: 0 | BZ22: 0 | CA22: 0 | CB22: 24.57 | CE22: 94.82 | CG22: 13.55 | CH22: 6.21 | CI22: 9.88 | CJ22: 406.33 | CK22: 97.29 | CL22: 251.81 | CM22: 6.53 | CN22: 6.16 | CO22: 6.34 | CP22: 0.9 | CQ22: 0.15
A23: ="18/2" -> 18/2 | B23: Суп картофельный с макаронными изделиями на говяжьем бульоне | C23: 150 | D23: 2.4 | E23: 4.8 | F23: 5.3 | G23: 1.4 | H23: 12.2 | I23: 105 | J23: 1.3 | K23: 0.8 | L23: 0.0 | M23: 0.0 | N23: 1.5 | O23: 9.7 | P23: 1.0 | Q23: 0.0 | R23: 0.0 | S23: 0.1 | T23: 1.5 | U23: 348.8 | V23: 265.0 | W23: 11.5 | X23: 13.4 | Y23: 33.8 | Z23: 0.6 | AA23: 0.0 | AB23: 785.2 | AC23: 145.3 | AD23: 0.7 | AE23: 0.1 | AF23: 0.1 | AG23: 0.6 | AH23: 1.0 | AI23: 3.7 | AJ23: 0 | AK23: 40.75 | AL23: 44 | AM23: 70.65 | AN23: 41.96 | AO23: 13.68 | AP23: 36.82 | AQ23: 14.62 | AR23: 48.22 | AS23: 46.51 | AT23: 92.04 | AU23: 58.16 | AV23: 18.4 | AW23: 39.32 | AX23: 286.58 | AY23: 0 | AZ23: 71 | BA23: 42.6 | BB23: 28.2 | BC23: 17.84 | BD23: 0 | BE23: 0 | BF23: 0 | BG23: 0 | BH23: 0 | BI23: 0 | BJ23: 0 | BK23: 0.11 | BL23: 0 | BM23: 0.06 | BN23: 0 | BO23: 0.01 | BP23: 0 | BQ23: 0 | BR23: 0 | BS23: 0.35 | BT23: 0 | BU23: 0 | BV23: 0.75 | BW23: 0 | BX23: 0 | BY23: 0 | BZ23: 0 | CA23: 0 | CB23: 156.24 | CE23: 130.86 | CG23: 49.17 | CH23: 27.53 | CI23: 38.35 | CJ23: 625.17 | CK23: 375.25 | CL23: 500.21 | CM23: 38.79 | CN23: 19.02 | CO23: 28.9 | CP23: 0 | CQ23: 0.9
A24: ="4/9" -> 4/9 | B24: Плов из мяса цыплят-бройлеров | C24: 150 | D24: 13.5 | E24: 11.1 | F24: 14.7 | G24: 5.3 | H24: 28.2 | I24: 298 | J24: 3.9 | K24: 4.4 | L24: 0.0 | M24: 0.0 | N24: 1.3 | O24: 25.4 | P24: 1.4 | Q24: 0.0 | R24: 0.0 | S24: 0.0 | T24: 1.2 | U24: 101.9 | V24: 107.1 | W24: 15.2 | X24: 25.3 | Y24: 121.0 | Z24: 1.2 | AA24: 23.7 | AB24: 996.8 | AC24: 213.8 | AD24: 3.5 | AE24: 0.1 | AF24: 0.1 | AG24: 4.7 | AH24: 9.8 | AI24: 0.7 | AJ24: 0 | AK24: 669.88 | AL24: 528.83 | AM24: 1059.06 | AN24: 1048.98 | AO24: 338.19 | AP24: 599.27 | AQ24: 210.7 | AR24: 572.18 | AS24: 829.88 | AT24: 910.28 | AU24: 1174.39 | AV24: 350.85 | AW24: 940.79 | AX24: 1968.23 | AY24: 92.14 | AZ24: 640.73 | BA24: 629.97 | BB24: 483.3 | BC24: 180.49 | BD24: 0 | BE24: 0 | BF24: 0 | BG24: 0 | BH24: 0 | BI24: 0 | BJ24: 0 | BK24: 0.36 | BL24: 0 | BM24: 0.22 | BN24: 0.02 | BO24: 0.04 | BP24: 0 | BQ24: 0 | BR24: 0 | BS24: 1.28 | BT24: 0 | BU24: 0 | BV24: 3.04 | BW24: 0 | BX24: 0 | BY24: 0 | BZ24: 0 | CA24: 0 | CB24: 132.39 | CE24: 189.86 | CG24: 21.96 | CH24: 11.1 | CI24: 16.53 | CJ24: 4297.8 | CK24: 2473.03 | CL24: 3385.41 | CM24: 22.31 | CN24: 14.18 | CO24: 18.24 | CP24: 0 | CQ24: 0.6
B25: Итого за 'Обед' | C25: =SUM(C19:C24) -> 520 | D25: =SUM(D19:D24) -> 19.5 | E25: 15.9 | F25: 22.2 | G25: 9.0 | H25: 76.3 | I25: 571 | J25: 5.6 | K25: 6.3 | L25: 0.0 | M25: 0.0 | N25: 19.9 | O25: 49.1 | P25: 7.3 | Q25: 0.0 | R25: 0.0 | S25: 0.7 | T25: 4.6 | U25: 636.1 | V25: 751.9 | W25: 69.7 | X25: 68.4 | Y25: 216.3 | Z25: 3.2 | AA25: 23.7 | AB25: 2824.3 | AC25: 543.4 | AD25: 6.1 | AE25: 0.2 | AF25: 0.2 | AG25: 6.0 | AH25: 12.0 | AI25: 14.9 | AJ25: 0 | AK25: 853.71 | AL25: 701.57 | AM25: 1333.09 | AN25: 1184.55 | AO25: 395.75 | AP25: 727.14 | AQ25: 259.04 | AR25: 780.8 | AS25: 998.61 | AT25: 1143.83 | AU25: 1421.35 | AV25: 428.03 | AW25: 1101.88 | AX25: 3039.91 | AY25: 92.14 | AZ25: 962.21 | BA25: 802.24 | BB25: 597.14 | BC25: 259.23 | BD25: 0 | BE25: 0 | BF25: 0 | BG25: 0 | BH25: 0 | BI25: 0 | BJ25: 0 | BK25: 0.63 | BL25: 0 | BM25: 0.35 | BN25: 0.03 | BO25: 0.06 | BP25: 0 | BQ25: 0 | BR25: 0.01 | BS25: 2.09 | BT25: 0 | BU25: 0 | BV25: 4.99 | BW25: 0.02 | BX25: 0 | BY25: 0 | BZ25: 0 | CA25: 0 | CB25: 490.92 | CD25: =$I$25/#REF!*100 ->  | CE25: 494.45 | CG25: 91.62 | CH25: 51.78 | CI25: 71.7 | CJ25: 6733.8 | CK25: 3484.56 | CL25: 5109.18 | CM25: 118.3 | CN25: 72.06 | CO25: 95.18 | CP25: 8.4 | CQ25: 1.65
B26: Уплотненный полдник
A27: ="-" -> - | B27: Хлеб ржаной | C27: 10 | D27: 0.6 | E27: 0.0 | F27: 0.1 | G27: 0.2 | H27: 4.2 | I27: 19 | J27: 0.0 | K27: 0.0 | L27: 0.0 | M27: 0.0 | N27: 0.2 | O27: 6.4 | P27: 1.7 | Q27: 0.0 | R27: 0.0 | S27: 0.2 | T27: 0.5 | U27: 122.0 | V27: 49.0 | W27: 3.5 | X27: 4.7 | Y27: 15.8 | Z27: 0.4 | AA27: 0.0 | AB27: 1.0 | AC27: 0.2 | AD27: 0.3 | AE27: 0.0 | AF27: 0.0 | AG27: 0.1 | AH27: 0.4 | AI27: 0.0 | AJ27: 0 | AK27: 64.4 | AL27: 49.6 | AM27: 85.4 | AN27: 44.6 | AO27: 18.6 | AP27: 39.6 | AQ27: 16 | AR27: 74.2 | AS27: 59.4 | AT27: 58.2 | AU27: 92.8 | AV27: 24.8 | AW27: 62 | AX27: 311.8 | AY27: 0 | AZ27: 105.2 | BA27: 58.2 | BB27: 36 | BC27: 26 | BD27: 0 | BE27: 0 | BF27: 0 | BG27: 0 | BH27: 0 | BI27: 0 | BJ27: 0 | BK27: 0.03 | BL27: 0 | BM27: 0 | BN27: 0 | BO27: 0 | BP27: 0 | BQ27: 0 | BR27: 0 | BS27: 0.02 | BT27: 0 | BU27: 0 | BV27: 0.1 | BW27: 0.02 | BX27: 0 | BY27: 0 | BZ27: 0 | CA27: 0 | CB27: 9.4 | CE27: 0.17 | CG27: 3 | CH27: 3 | CI27: 3 | CJ27: 570 | CK27: 219.6 | CL27: 394.8 | CM27: 5.7 | CN27: 4.74 | CO27: 5.22 | CP27: 0 | CQ27: 0
A28: ="27/12" -> 27/12 | B28: Оладьи | C28: 70 | D28: 3.8 | E28: 0.4 | F28: 4.3 | G28: 4.6 | H28: 23.3 | I28: 147 | J28: 0.7 | K28: 2.7 | L28: 0.0 | M28: 0.0 | N28: 1.4 | O28: 20.8 | P28: 1.1 | Q28: 0.0 | R28: 0.0 | S28: 0.0 | T28: 0.8 | U28: 247.8 | V28: 41.2 | W28: 8.4 | X28: 5.2 | Y28: 30.2 | Z28: 0.4 | AA28: 2.7 | AB28: 0.8 | AC28: 4.7 | AD28: 2.4 | AE28: 0.0 | AF28: 0.0 | AG28: 0.4 | AH28: 1.2 | AI28: 0.0 | AJ28: 0 | AK28: 172.68 | AL28: 154.06 | AM28: 287.43 | AN28: 108.79 | AO28: 59.86 | AP28: 115.98 | AQ28: 36.97 | AR28: 175.94 | AS28: 126.28 | AT28: 149 | AU28: 144.56 | AV28: 75.28 | AW28: 126.43 | AX28: 1033.3 | AY28: 3.45 | AZ28: 321.17 | BA28: 181.03 | BB28: 93.08 | BC28: 70.65 | BD28: 0 | BE28: 0 | BF28: 0 | BG28: 0 | BH28: 0 | BI28: 0 | BJ28: 0 | BK28: 0.27 | BL28: 0 | BM28: 0.15 | BN28: 0.01 | BO28: 0.03 | BP28: 0 | BQ28: 0 | BR28: 0 | BS28: 0.91 | BT28: 0 | BU28: 0 | BV28: 2.64 | BW28: 0.01 | BX28: 0 | BY28: 0 | BZ28: 0 | CA28: 0 | CB28: 40.34 | CE28: 2.83 | CG28: 26.12 | CH28: 13.46 | CI28: 19.79 | CJ28: 687.55 | CK28: 249.84 | CL28: 468.7 | CM28: 3.8 | CN28: 2.14 | CO28: 3.31 | CP28: 1.19 | CQ28: 0.63
A29: ="27/10" -> 27/10 | B29: Чай полусладкий | C29: 150 | D29: 0.2 | E29: 0.0 | F29: 0.0 | G29: 0.0 | H29: 3.8 | I29: 15 | J29: 0.0 | K29: 0.0 | L29: 0.0 | M29: 0.0 | N29: 3.7 | O29: 0.0 | P29: 0.1 | Q29: 0.0 | R29: 0.0 | S29: 0.0 | T29: 0.1 | U29: 0.0 | V29: 0.1 | W29: 0.1 | X29: 0.0 | Y29: 0.0 | Z29: 0.0 | AA29: 0.0 | AB29: 0.0 | AC29: 0.0 | AD29: 0.0 | AE29: 0.0 | AF29: 0.0 | AG29: 0.0 | AH29: 0.0 | AI29: 0.0 | AJ29: 0 | AK29: 0 | AL29: 0 | AM29: 0 | AN29: 0 | AO29: 0 | AP29: 0 | AQ29: 0 | AR29: 0 | AS29: 0 | AT29: 0 | AU29: 0 | AV29: 0 | AW29: 0 | AX29: 0 | AY29: 0 | AZ29: 0 | BA29: 0 | BB29: 0 | BC29: 0 | BD29: 0 | BE29: 0 | BF29: 0 | BG29: 0 | BH29: 0 | BI29: 0 | BJ29: 0 | BK29: 0 | BL29: 0 | BM29: 0 | BN29: 0 | BO29: 0 | BP29: 0 | BQ29: 0 | BR29: 0 | BS29: 0 | BT29: 0 | BU29: 0 | BV29: 0 | BW29: 0 | BX29: 0 | BY29: 0 | BZ29: 0 | CA29: 0 | CB29: 150.07 | CE29: 0 | CG29: 3.69 | CH29: 3.69 | CI29: 3.69 | CJ29: 398.25 | CK29: 156.6 | CL29: 277.43 | CM29: 39.61 | CN29: 23.41 | CO29: 31.51 | CP29: 3.75 | CQ29: 0
A30: ="2/4" -> 2/4 | B30: Каша гречневая молочная с маслом сливочным | C30: 150 | D30: 5.9 | E30: 2.2 | F30: 5.5 | G30: 1.0 | H30: 25.9 | I30: 170 | J30: 3.2 | K30: 0.1 | L30: 0.0 | M30: 0.0 | N30: 6.9 | O30: 15.8 | P30: 3.2 | Q30: 0.0 | R30: 0.0 | S30: 0.1 | T30: 1.5 | U30: 182.3 | V30: 222.5 | W30: 95.4 | X30: 67.1 | Y30: 147.2 | Z30: 2.1 | AA30: 30.0 | AB30: 19.6 | AC30: 34.0 | AD30: 0.3 | AE30: 0.1 | AF30: 0.2 | AG30: 1.1 | AH30: 2.8 | AI30: 0.4 | AJ30: 0 | AK30: 175 | AL30: 136.75 | AM30: 221.82 | AN30: 157.47 | AO30: 94.7 | AP30: 119.33 | AQ30: 54.5 | AR30: 175.59 | AS30: 171.84 | AT30: 330.24 | AU30: 326.08 | AV30: 89.49 | AW30: 212.56 | AX30: 669.66 | AY30: 0 | AZ30: 148.76 | BA30: 180.15 | BB30: 127.96 | BC30: 97.39 | BD30: 0.1 | BE30: 0.05 | BF30: 0.02 | BG30: 0.06 | BH30: 0.06 | BI30: 0.29 | BJ30: 0 | BK30: 0.97 | BL30: 0 | BM30: 0.26 | BN30: 0 | BO30: 0 | BP30: 0 | BQ30: 0.06 | BR30: 0.09 | BS30: 0.98 | BT30: 0.01 | BU30: 0 | BV30: 0.34 | BW30: 0.03 | BX30: 0 | BY30: 0 | BZ30: 0 | CA30: 0 | CB30: 124.39 | CE30: 33.26 | CG30: 24 | CH30: 11.13 | CI30: 17.57 | CJ30: 1653.5 | CK30: 750.87 | CL30: 1202.19 | CM30: 29.4 | CN30: 15.18 | CO30: 22.29 | CP30: 3 | CQ30: 0.38
B31: Итого за 'Уплотненный полдник' | C31: =SUM(C27:C30) -> 380 | D31: =SUM(D27:D30) -> 10.5 | E31: 2.6 | F31: 9.9 | G31: 5.9 | H31: 57.1 | I31: 351 | J31: 3.9 | K31: 2.8 | L31: 0.0 | M31: 0.0 | N31: 12.2 | O31: 43.0 | P31: 6.0 | Q31: 0.0 | R31: 0.0 | S31: 0.3 | T31: 2.8 | U31: 552.2 | V31: 312.8 | W31: 107.4 | X31: 77.0 | Y31: 193.2 | Z31: 2.9 | AA31: 32.7 | AB31: 21.4 | AC31: 38.8 | AD31: 2.9 | AE31: 0.2 | AF31: 0.2 | AG31: 1.6 | AH31: 4.3 | AI31: 0.4 | AJ31: 0 | AK31: 239.4 | AL31: 186.35 | AM31: 307.22 | AN31: 202.07 | AO31: 113.3 | AP31: 158.93 | AQ31: 70.5 | AR31: 249.79 | AS31: 231.24 | AT31: 388.44 | AU31: 418.88 | AV31: 114.29 | AW31: 274.56 | AX31: 981.46 | AY31: 0 | AZ31: 253.96 | BA31: 238.35 | BB31: 163.96 | BC31: 123.39 | BD31: 0.1 | BE31: 0.05 | BF31: 0.02 | BG31: 0.06 | BH31: 0.06 | BI31: 0.29 | BJ31: 0 | BK31: 1 | BL31: 0 | BM31: 0.26 | BN31: 0.01 | BO31: 0 | BP31: 0 | BQ31: 0.06 | BR31: 0.09 | BS31: 1 | BT31: 0.01 | BU31: 0 | BV31: 0.44 | BW31: 0.05 | BX31: 0 | BY31: 0 | BZ31: 0 | CA31: 0 | CB31: 283.86 | CD31: =$I$31/#REF!*100 ->  | CE31: 33.43 | CG31: 27.78 | CH31: 14.92 | CI31: 21.35 | CJ31: 2070.75 | CK31: 914.79 | CL31: 1492.77 | CM31: 69.2 | CN31: 38.75 | CO31: 53.98 | CP31: 6.75 | CQ31: 0.38
B32: Итого за день | C32: =C14+C17+C25+C31 -> 1340 | D32: 39.8 | E32: 23.9 | F32: 41.2 | G32: 16.6 | H32: 187.0 | I32: 1252 | J32: 14.4 | K32: 9.2 | L32: 0.0 | M32: 0.0 | N32: 54.2 | O32: 119.6 | P32: 17.4 | Q32: 0.0 | R32: 0.0 | S32: 2.1 | T32: 10.3 | U32: 1651.7 | V32: 1578.4 | W32: 429.9 | X32: 195.2 | Y32: 675.0 | Z32: 9.6 | AA32: 99.3 | AB32: 2908.1 | AC32: 646.0 | AD32: 10.3 | AE32: 0.6 | AF32: 0.6 | AG32: 9.2 | AH32: 20.5 | AI32: 25.9 | AJ32: 0 | AK32: 1510.26 | AL32: 1266.01 | AM32: 2212.57 | AN32: 1722.29 | AO32: 648.76 | AP32: 1134.09 | AQ32: 464 | AR32: 1447.41 | AS32: 1516.38 | AT32: 1877.08 | AU32: 2345.21 | AV32: 733.46 | AW32: 1641.73 | AX32: 5957.26 | AY32: 92.14 | AZ32: 2100.04 | BA32: 1396.39 | BB32: 1058.48 | BC32: 517.7 | BD32: 0.17 | BE32: 0.09 | BF32: 0.08 | BG32: 0.2 | BH32: 0.24 | BI32: 0.85 | BJ32: 0.04 | BK32: 3 | BL32: 0.01 | BM32: 1 | BN32: 0.05 | BO32: 0.06 | BP32: 0 | BQ32: 0.15 | BR32: 0.23 | BS32: 4.44 | BT32: 0.01 | BU32: 0 | BV32: 5.79 | BW32: 0.08 | BX32: 0 | BY32: 0 | BZ32: 0 | CA32: 0 | CB32: 1154.69 | CE32: 581.18 | CG32: 162.48 | CH32: 86.9 | CI32: 124.69 | CJ32: 12739.22 | CK32: 6336.1 | CL32: 9537.66 | CM32: 274.45 | CN32: 159.22 | CO32: 216.84 | CP32: 21.9 | CQ32: 2.4
B34: 2 ДЕНЬ
B35: Завтрак
A36: ="-" -> - | B36: Хлеб пшеничный | C36: 30 | D36: 1.8 | E36: 0.0 | F36: 0.2 | G36: 0.2 | H36: 11.1 | I36: 54 | J36: 0.0 | K36: 0.0 | L36: 0.0 | M36: 0.0 | N36: 0.3 | O36: 10.7 | P36: 0.1 | Q36: 0.0 | R36: 0.0 | S36: 0.0 | T36: 0.5 | U36: 0.0 | V36: 0.0 | W36: 0.0 | X36: 0.0 | Y36: 0.0 | Z36: 0.0 | AA36: 0.0 | AB36: 0.0 | AC36: 0.0 | AD36: 0.0 | AE36: 0.0 | AF36: 0.0 | AG36: 0.0 | AH36: 0.0 | AI36: 0.0 | AJ36: 0 | AK36: 95.79 | AL36: 99.7 | AM36: 152.69 | AN36: 50.63 | AO36: 30.02 | AP36: 60.03 | AQ36: 22.71 | AR36: 108.58 | AS36: 67.34 | AT36: 93.96 | AU36: 77.52 | AV36: 40.72 | AW36: 72.04 | AX36: 602.39 | AY36: 0 | AZ36: 196.27 | BA36: 85.35 | BB36: 56.64 | BC36: 44.89 | BD36: 0 | BE36: 0 | BF36: 0 | BG36: 0 | BH36: 0 | BI36: 0 | BJ36: 0 | BK36: 0.02 | BL36: 0 | BM36: 0 | BN36: 0 | BO36: 0 | BP36: 0 | BQ36: 0 | BR36: 0 | BS36: 0.02 | BT36: 0 | BU36: 0 | BV36: 0.08 | BW36: 0 | BX36: 0 | BY36: 0 | BZ36: 0 | CA36: 0 | CB36: 11.73 | CE36: 0 | CG36: 0 | CH36: 0 | CI36: 0 | CJ36: 570 | CK36: 219.6 | CL36: 394.8 | CM36: 4.56 | CN36: 4.56 | CO36: 4.56 | CP36: 0 | CQ36: 0
A37: ="-" -> - | B37: Масло сливочное | C37: 5 | D37: 0.0 | E37: 0.0 | F37: 3.6 | G37: 0.0 | H37: 0.1 | I37: 33 | J37: 2.4 | K37: 0.1 | L37: 0.0 | M37: 0.0 | N37: 0.1 | O37: 0.0 | P37: 0.0 | Q37: 0.0 | R37: 0.0 | S37: 0.0 | T37: 0.1 | U37: 0.8 | V37: 1.5 | W37: 1.2 | X37: 0.0 | Y37: 1.5 | Z37: 0.0 | AA37: 20.0 | AB37: 15.0 | AC37: 22.5 | AD37: 0.1 | AE37: 0.0 | AF37: 0.0 | AG37: 0.0 | AH37: 0.0 | AI37: 0.0 | AJ37: 0 | AK37: 2.1 | AL37: 2.05 | AM37: 3.8 | AN37: 2.25 | AO37: 0.85 | AP37: 2.35 | AQ37: 2.15 | AR37: 2.1 | AS37: 1.8 | AT37: 1.3 | AU37: 2.85 | AV37: 1.75 | AW37: 1.2 | AX37: 7.1 | AY37: 0 | AZ37: 2.4 | BA37: 2.7 | BB37: 2.1 | BC37: 0.5 | BD37: 0.13 | BE37: 0.06 | BF37: 0.03 | BG37: 0.08 | BH37: 0.09 | BI37: 0.4 | BJ37: 0 | BK37: 1.1 | BL37: 0 | BM37: 0.34 | BN37: 0 | BO37: 0 | BP37: 0 | BQ37: 0.08 | BR37: 0.12 | BS37: 0.9 | BT37: 0 | BU37: 0 | BV37: 0.05 | BW37: 0 | BX37: 0 | BY37: 0 | BZ37: 0 | CA37: 0 | CB37: 1.25 | CE37: 22.5 | CG37: 0.2 | CH37: 0.05 | CI37: 0.13 | CJ37: 10 | CK37: 4.1 | CL37: 7.05 | CM37: 0.86 | CN37: 0.44 | CO37: 0.65 | CP37: 0 | CQ37: 0
A38: ="29/10" -> 29/10 | B38: Чай с лимоном | C38: 150 | D38: 0.2 | E38: 0.0 | F38: 0.0 | G38: 0.0 | H38: 7.4 | I38: 30 | J38: 0.0 | K38: 0.0 | L38: 0.0 | M38: 0.0 | N38: 7.3 | O38: 0.0 | P38: 0.2 | Q38: 0.0 | R38: 0.0 | S38: 0.2 | T38: 0.1 | U38: 0.5 | V38: 6.1 | W38: 1.6 | X38: 0.4 | Y38: 0.8 | Z38: 0.0 | AA38: 0.0 | AB38: 0.3 | AC38: 0.1 | AD38: 0.0 | AE38: 0.0 | AF38: 0.0 | AG38: 0.0 | AH38: 0.0 | AI38: 0.6 | AJ38: 0 | AK38: 0.5 | AL38: 0.57 | AM38: 0.47 | AN38: 0.86 | AO38: 0.22 | AP38: 0.9 | AQ38: 0 | AR38: 1.15 | AS38: 0 | AT38: 0 | AU38: 0 | AV38: 0.65 | AW38: 0 | AX38: 0 | AY38: 0 | AZ38: 0 | BA38: 0 | BB38: 0 | BC38: 0 | BD38: 0 | BE38: 0 | BF38: 0 | BG38: 0 | BH38: 0 | BI38: 0 | BJ38: 0 | BK38: 0 | BL38: 0 | BM38: 0 | BN38: 0 | BO38: 0 | BP38: 0 | BQ38: 0 | BR38: 0 | BS38: 0 | BT38: 0 | BU38: 0 | BV38: 0 | BW38: 0 | BX38: 0 | BY38: 0 | BZ38: 0 | CA38: 0 | CB38: 149.62 | CE38: 0.05 | CG38: 3.85 | CH38: 3.72 | CI38: 3.79 | CJ38: 434.63 | CK38: 165.16 | CL38: 299.9 | CM38: 39.92 | CN38: 23.87 | CO38: 31.9 | CP38: 7.32 | CQ38: 0
A39: ="11/4" -> 11/4 | B39: Каша пшенная молочная с маслом сливочным | C39: 150 | D39: 4.9 | E39: 1.8 | F39: 4.6 | G39: 1.0 | H39: 24.5 | I39: 158 | J39: 2.9 | K39: 0.1 | L39: 0.0 | M39: 0.0 | N39: 5.9 | O39: 17.6 | P39: 1.0 | Q39: 0.0 | R39: 0.0 | S39: 0.1 | T39: 1.2 | U39: 178.8 | V39: 133.9 | W39: 72.6 | X39: 29.0 | Y39: 109.0 | Z39: 0.8 | AA39: 16.2 | AB39: 18.6 | AC39: 31.0 | AD39: 0.1 | AE39: 0.1 | AF39: 0.1 | AG39: 0.4 | AH39: 1.9 | AI39: 0.3 | AJ39: 0 | AK39: 134.02 | AL39: 122.71 | AM39: 435.27 | AN39: 82.8 | AO39: 84.07 | AP39: 114.46 | AQ39: 52.28 | AR39: 165.04 | AS39: 304.42 | AT39: 120.77 | AU39: 185.31 | AV39: 74.55 | AW39: 85.45 | AX39: 631.05 | AY39: 0 | AZ39: 230.11 | BA39: 199.3 | BB39: 117.1 | BC39: 51.11 | BD39: 0.09 | BE39: 0.04 | BF39: 0.02 | BG39: 0.05 | BH39: 0.06 | BI39: 0.26 | BJ39: 0 | BK39: 0.79 | BL39: 0 | BM39: 0.24 | BN39: 0.01 | BO39: 0 | BP39: 0 | BQ39: 0.05 | BR39: 0.08 | BS39: 0.73 | BT39: 0 | BU39: 0 | BV39: 0.58 | BW39: 0.01 | BX39: 0 | BY39: 0 | BZ39: 0 | CA39: 0 | CB39: 124.54 | CE39: 19.3 | CG39: 31.04 | CH39: 15.29 | CI39: 23.16 | CJ39: 2125.67 | CK39: 973.93 | CL39: 1549.8 | CM39: 36.73 | CN39: 18.95 | CO39: 27.84 | CP39: 3 | CQ39: 0.38
B40: Итого за 'Завтрак' | C40: =SUM(C36:C39) -> 335 | D40: =SUM(D36:D39) -> 7.0 | E40: 1.8 | F40: 8.4 | G40: 1.2 | H40: 43.1 | I40: 274 | J40: 5.2 | K40: 0.2 | L40: 0.0 | M40: 0.0 | N40: 13.5 | O40: 28.3 | P40: 1.2 | Q40: 0.0 | R40: 0.0 | S40: 0.3 | T40: 1.9 | U40: 180.0 | V40: 141.5 | W40: 75.4 | X40: 29.5 | Y40: 111.3 | Z40: 0.8 | AA40: 36.2 | AB40: 33.9 | AC40: 53.6 | AD40: 0.2 | AE40: 0.1 | AF40: 0.1 | AG40: 0.5 | AH40: 1.9 | AI40: 0.9 | AJ40: 0 | AK40: 232.41 | AL40: 225.03 | AM40: 592.22 | AN40: 136.55 | AO40: 115.15 | AP40: 177.73 | AQ40: 77.13 | AR40: 276.86 | AS40: 373.56 | AT40: 216.03 | AU40: 265.68 | AV40: 117.67 | AW40: 158.68 | AX40: 1240.53 | AY40: 0 | AZ40: 428.78 | BA40: 287.35 | BB40: 175.84 | BC40: 96.5 | BD40: 0.22 | BE40: 0.1 | BF40: 0.05 | BG40: 0.13 | BH40: 0.14 | BI40: 0.66 | BJ40: 0 | BK40: 1.92 | BL40: 0 | BM40: 0.58 | BN40: 0.01 | BO40: 0 | BP40: 0 | BQ40: 0.13 | BR40: 0.2 | BS40: 1.65 | BT40: 0 | BU40: 0 | BV40: 0.71 | BW40: 0.02 | BX40: 0 | BY40: 0 | BZ40: 0 | CA40: 0 | CB40: 287.14 | CD40: =$I$40/#REF!*100 ->  | CE40: 41.85 | CG40: 35.09 | CH40: 19.06 | CI40: 27.07 | CJ40: 3140.3 | CK40: 1362.79 | CL40: 2251.54 | CM40: 82.06 | CN40: 47.81 | CO40: 64.94 | CP40: 10.32 | CQ40: 0.38
B41: Второй завтрак
A42: ="-" -> - | B42: Ряженка | C42: 100 | D42: 3.0 | E42: 0.0 | F42: 2.5 | G42: 0.3 | H42: 4.2 | I42: 51 | J42: 0.1 | K42: 0.0 | L42: 0.0 | M42: 0.0 | N42: 4.2 | O42: 0.0 | P42: 0.0 | Q42: 0.0 | R42: 0.0 | S42: 0.1 | T42: 0.4 | U42: 2.0 | V42: 238.0 | W42: 15.0 | X42: 9.0 | Y42: 12.0 | Z42: 0.4 | AA42: 0.0 | AB42: 30.0 | AC42: 5.0 | AD42: 0.1 | AE42: 0.0 | AF42: 0.0 | AG42: 0.6 | AH42: 0.7 | AI42: 15.0 | AJ42: 0 | AK42: 0 | AL42: 0 | AM42: 450 | AN42: 387 | AO42: 115 | AP42: 216 | AQ42: 72 | AR42: 225 | AS42: 160 | AT42: 174 | AU42: 344 | AV42: 156 | AW42: 93 | AX42: 897 | AY42: 0 | AZ42: 518 | BA42: 278 | BB42: 242 | BC42: 50 | BD42: 0.1 | BE42: 0.07 | BF42: 0.04 | BG42: 0.08 | BH42: 0.09 | BI42: 0.45 | BJ42: 0.03 | BK42: 0.56 | BL42: 0.02 | BM42: 0.31 | BN42: 0.04 | BO42: 0 | BP42: 0 | BQ42: 0.04 | BR42: 0.08 | BS42: 0.69 | BT42: 0.01 | BU42: 0 | BV42: 0.02 | BW42: 0.03 | BX42: 0.08 | BY42: 0 | BZ42: 0 | CA42: 0 | CB42: 93 | CE42: 5 | CG42: 0 | CH42: 0 | CI42: 0 | CJ42: 0 | CK42: 0 | CL42: 0 | CM42: 0 | CN42: 0 | CO42: 0 | CP42: 0 | CQ42: 0
A43: ="-" -> - | B43: Печенье | C43: 20 | D43: 0.4 | E43: 0.0 | F43: 2.6 | G43: 0.0 | H43: 11.5 | I43: 70 | J43: 0.4 | K43: 0.0 | L43: 0.0 | M43: 0.0 | N43: 5.0 | O43: 6.0 | P43: 0.5 | Q43: 0.0 | R43: 0.0 | S43: 0.1 | T43: 0.2 | U43: 66.0 | V43: 22.0 | W43: 5.8 | X43: 4.0 | Y43: 18.0 | Z43: 0.4 | AA43: 2.0 | AB43: 1.6 | AC43: 2.2 | AD43: 0.7 | AE43: 0.0 | AF43: 0.0 | AG43: 0.1 | AH43: 0.4 | AI43: 0.0 | AJ43: 0 | AK43: 0 | AL43: 0 | AM43: 0 | AN43: 0 | AO43: 0 | AP43: 0 | AQ43: 0 | AR43: 0 | AS43: 0 | AT43: 0 | AU43: 0 | AV43: 0 | AW43: 0 | AX43: 0 | AY43: 0 | AZ43: 0 | BA43: 0 | BB43: 0 | BC43: 0 | BD43: 0 | BE43: 0 | BF43: 0 | BG43: 0 | BH43: 0 | BI43: 0 | BJ43: 0 | BK43: 0 | BL43: 0 | BM43: 0 | BN43: 0 | BO43: 0 | BP43: 0 | BQ43: 0 | BR43: 0 | BS43: 0 | BT43: 0 | BU43: 0 | BV43: 0 | BW43: 0 | BX43: 0 | BY43: 0 | BZ43: 0 | CA43: 0 | CB43: 0.9 | CE43: 2.27 | CG43: 0 | CH43: 0 | CI43: 0 | CJ43: 0 | CK43: 0 | CL43: 0 | CM43: 0 | CN43: 0 | CO43: 0 | CP43: 0 | CQ43: 0
B44: Итого за 'Второй завтрак' | C44: =SUM(C42:C43) -> 120 | D44: =SUM(D42:D43) -> 3.4 | E44: 0.0 | F44: 5.1 | G44: 0.3 | H44: 15.7 | I44: 121 | J44: 0.5 | K44: 0.0 | L44: 0.0 | M44: 0.0 | N44: 9.2 | O44: 6.0 | P44: 0.5 | Q44: 0.0 | R44: 0.0 | S44: 0.2 | T44: 0.6 | U44: 68.0 | V44: 260.0 | W44: 20.8 | X44: 13.0 | Y44: 30.0 | Z44: 0.8 | AA44: 2.0 | AB44: 31.6 | AC44: 7.2 | AD44: 0.8 | AE44: 0.1 | AF44: 0.0 | AG44: 0.7 | AH44: 1.1 | AI44: 15.0 | AJ44: 0 | AK44: 0 | AL44: 0 | AM44: 450 | AN44: 387 | AO44: 115 | AP44: 216 | AQ44: 72 | AR44: 225 | AS44: 160 | AT44: 174 | AU44: 344 | AV44: 156 | AW44: 93 | AX44: 897 | AY44: 0 | AZ44: 518 | BA44: 278 | BB44: 242 | BC44: 50 | BD44: 0.1 | BE44: 0.07 | BF44: 0.04 | BG44: 0.08 | BH44: 0.09 | BI44: 0.45 | BJ44: 0.03 | BK44: 0.56 | BL44: 0.02 | BM44: 0.31 | BN44: 0.04 | BO44: 0 | BP44: 0 | BQ44: 0.04 | BR44: 0.08 | BS44: 0.69 | BT44: 0.01 | BU44: 0 | BV44: 0.02 | BW44: 0.03 | BX44: 0.08 | BY44: 0 | BZ44: 0 | CA44: 0 | CB44: 93.9 | CD44: =$I$44/#REF!*100 ->  | CE44: 7.27 | CG44: 0 | CH44: 0 | CI44: 0 | CJ44: 0 | CK44: 0 | CL44: 0 | CM44: 0 | CN44: 0 | CO44: 0 | CP44: 0 | CQ44: 0
B45: Обед
A46: ="-" -> - | B46: Хлеб пшеничный | C46: 20 | D46: 1.2 | E46: 0.0 | F46: 0.1 | G46: 0.1 | H46: 7.4 | I46: 36 | J46: 0.0 | K46: 0.0 | L46: 0.0 | M46: 0.0 | N46: 0.2 | O46: 7.1 | P46: 0.0 | Q46: 0.0 | R46: 0.0 | S46: 0.0 | T46: 0.4 | U46: 0.0 | V46: 0.0 | W46: 0.0 | X46: 0.0 | Y46: 0.0 | Z46: 0.0 | AA46: 0.0 | AB46: 0.0 | AC46: 0.0 | AD46: 0.0 | AE46: 0.0 | AF46: 0.0 | AG46: 0.0 | AH46: 0.0 | AI46: 0.0 | AJ46: 0 | AK46: 63.86 | AL46: 66.47 | AM46: 101.79 | AN46: 33.76 | AO46: 20.01 | AP46: 40.02 | AQ46: 15.14 | AR46: 72.38 | AS46: 44.89 | AT46: 62.64 | AU46: 51.68 | AV46: 27.14 | AW46: 48.02 | AX46: 401.59 | AY46: 0 | AZ46: 130.85 | BA46: 56.9 | BB46: 37.76 | BC46: 29.93 | BD46: 0 | BE46: 0 | BF46: 0 | BG46: 0 | BH46: 0 | BI46: 0 | BJ46: 0 | BK46: 0.02 | BL46: 0 | BM46: 0 | BN46: 0 | BO46: 0 | BP46: 0 | BQ46: 0 | BR46: 0 | BS46: 0.01 | BT46: 0 | BU46: 0 | BV46: 0.06 | BW46: 0 | BX46: 0 | BY46: 0 | BZ46: 0 | CA46: 0 | CB46: 7.82 | CE46: 0 | CG46: 0 | CH46: 0 | CI46: 0 | CJ46: 380 | CK46: 146.4 | CL46: 263.2 | CM46: 3.04 | CN46: 3.04 | CO46: 3.04 | CP46: 0 | CQ46: 0
A47: ="-" -> - | B47: Хлеб ржаной | C47: 20 | D47: 1.2 | E47: 0.0 | F47: 0.2 | G47: 0.2 | H47: 8.3 | I47: 38 | J47: 0.0 | K47: 0.0 | L47: 0.0 | M47: 0.0 | N47: 0.2 | O47: 6.4 | P47: 1.7 | Q47: 0.0 | R47: 0.0 | S47: 0.2 | T47: 0.5 | U47: 122.0 | V47: 49.0 | W47: 7.0 | X47: 9.4 | Y47: 31.6 | Z47: 0.8 | AA47: 0.0 | AB47: 1.0 | AC47: 0.2 | AD47: 0.3 | AE47: 0.0 | AF47: 0.0 | AG47: 0.1 | AH47: 0.4 | AI47: 0.0 | AJ47: 0 | AK47: 64.4 | AL47: 49.6 | AM47: 85.4 | AN47: 44.6 | AO47: 18.6 | AP47: 39.6 | AQ47: 16 | AR47: 74.2 | AS47: 59.4 | AT47: 58.2 | AU47: 92.8 | AV47: 24.8 | AW47: 62 | AX47: 311.8 | AY47: 0 | AZ47: 105.2 | BA47: 58.2 | BB47: 36 | BC47: 26 | BD47: 0 | BE47: 0 | BF47: 0 | BG47: 0 | BH47: 0 | BI47: 0 | BJ47: 0 | BK47: 0.03 | BL47: 0 | BM47: 0 | BN47: 0 | BO47: 0 | BP47: 0 | BQ47: 0 | BR47: 0 | BS47: 0.02 | BT47: 0 | BU47: 0 | BV47: 0.1 | BW47: 0.02 | BX47: 0 | BY47: 0 | BZ47: 0 | CA47: 0 | CB47: 9.4 | CE47: 0.17 | CG47: 4 | CH47: 4 | CI47: 4 | CJ47: 760 | CK47: 292.8 | CL47: 526.4 | CM47: 7.6 | CN47: 6.32 | CO47: 6.96 | CP47: 0 | CQ47: 0
A48: ="3/10" -> 3/10 | B48: Компот из яблок | C48: 150 | D48: 0.1 | E48: 0.0 | F48: 0.1 | G48: 0.1 | H48: 14.4 | I48: 56 | J48: 0.0 | K48: 0.0 | L48: 0.0 | M48: 0.0 | N48: 13.7 | O48: 0.2 | P48: 0.5 | Q48: 0.0 | R48: 0.0 | S48: 0.2 | T48: 0.2 | U48: 7.8 | V48: 82.9 | W48: 5.0 | X48: 2.6 | Y48: 3.1 | Z48: 0.7 | AA48: 0.0 | AB48: 8.1 | AC48: 1.5 | AD48: 0.1 | AE48: 0.0 | AF48: 0.0 | AG48: 0.1 | AH48: 0.1 | AI48: 1.2 | AJ48: 0 | AK48: 3.53 | AL48: 3.82 | AM48: 5.59 | AN48: 5.29 | AO48: 0.88 | AP48: 3.23 | AQ48: 0.88 | AR48: 2.65 | AS48: 5 | AT48: 2.94 | AU48: 22.93 | AV48: 2.06 | AW48: 4.12 | AX48: 12.35 | AY48: 0 | AZ48: 3.82 | BA48: 4.7 | BB48: 1.76 | BC48: 1.47 | BD48: 0 | BE48: 0 | BF48: 0 | BG48: 0 | BH48: 0 | BI48: 0 | BJ48: 0 | BK48: 0 | BL48: 0 | BM48: 0 | BN48: 0 | BO48: 0 | BP48: 0 | BQ48: 0 | BR48: 0 | BS48: 0 | BT48: 0 | BU48: 0 | BV48: 0 | BW48: 0 | BX48: 0 | BY48: 0 | BZ48: 0 | CA48: 0 | CB48: 183.4 | CE48: 1.35 | CG48: 4.5 | CH48: 4.5 | CI48: 4.5 | CJ48: 432 | CK48: 208.98 | CL48: 320.49 | CM48: 41.2 | CN48: 24.19 | CO48: 32.7 | CP48: 11.25 | CQ48: 0
A49: ="32/1" -> 32/1 | B49: Салат из отварной свеклы с растительным маслом | C49: 30 | D49: 0.4 | E49: 0.0 | F49: 1.8 | G49: 1.8 | H49: 2.7 | I49: 27 | J49: 0.2 | K49: 1.2 | L49: 0.0 | M49: 0.0 | N49: 2.0 | O49: 0.0 | P49: 0.7 | Q49: 0.0 | R49: 0.0 | S49: 0.0 | T49: 0.4 | U49: 66.9 | V49: 67.0 | W49: 10.2 | X49: 5.8 | Y49: 11.4 | Z49: 0.4 | AA49: 0.0 | AB49: 2.5 | AC49: 0.6 | AD49: 0.8 | AE49: 0.0 | AF49: 0.0 | AG49: 0.0 | AH49: 0.1 | AI49: 0.6 | AJ49: 0 | AK49: 14.64 | AL49: 16.57 | AM49: 18.51 | AN49: 25.41 | AO49: 5.52 | AP49: 14.64 | AQ49: 3.59 | AR49: 12.43 | AS49: 11.05 | AT49: 20.16 | AU49: 90.6 | AV49: 3.87 | AW49: 10.5 | AX49: 75.69 | AY49: 0 | AZ49: 12.98 | BA49: 17.4 | BB49: 13.81 | BC49: 4.14 | BD49: 0 | BE49: 0 | BF49: 0 | BG49: 0 | BH49: 0 | BI49: 0 | BJ49: 0 | BK49: 0.11 | BL49: 0 | BM49: 0.07 | BN49: 0.01 | BO49: 0.01 | BP49: 0 | BQ49: 0 | BR49: 0 | BS49: 0.42 | BT49: 0 | BU49: 0 | BV49: 1.04 | BW49: 0 | BX49: 0 | BY49: 0 | BZ49: 0 | CA49: 0 | CB49: 25.52 | CE49: 0.41 | CG49: 8.15 | CH49: 5.09 | CI49: 6.62 | CJ49: 256.29 | CK49: 61.32 | CL49: 158.81 | CM49: 1.23 | CN49: 0.78 | CO49: 1 | CP49: 0 | CQ49: 0.15
A50: ="11/2" -> 11/2 | B50: Рассольник с крупой на говяжьем бульоне | C50: 150 | D50: 2.0 | E50: 4.9 | F50: 6.3 | G50: 3.2 | H50: 10.3 | I50: 105 | J50: 1.6 | K50: 2.0 | L50: 0.0 | M50: 0.0 | N50: 1.3 | O50: 8.0 | P50: 1.1 | Q50: 0.0 | R50: 0.0 | S50: 0.2 | T50: 1.9 | U50: 452.3 | V50: 255.9 | W50: 11.9 | X50: 13.7 | Y50: 38.0 | Z50: 0.5 | AA50: 0.0 | AB50: 585.4 | AC50: 121.8 | AD50: 1.4 | AE50: 0.1 | AF50: 0.1 | AG50: 0.6 | AH50: 1.0 | AI50: 4.0 | AJ50: 0 | AK50: 25.72 | AL50: 29.98 | AM50: 39.99 | AN50: 38.18 | AO50: 8.63 | AP50: 26.42 | AQ50: 12.15 | AR50: 33.5 | AS50: 36.27 | AT50: 77.89 | AU50: 53.86 | AV50: 10.95 | AW50: 27.16 | AX50: 196.64 | AY50: 0 | AZ50: 41.46 | BA50: 24.85 | BB50: 19.91 | BC50: 10.97 | BD50: 0 | BE50: 0 | BF50: 0 | BG50: 0 | BH50: 0 | BI50: 0 | BJ50: 0 | BK50: 0.2 | BL50: 0 | BM50: 0.12 | BN50: 0.01 | BO50: 0.02 | BP50: 0 | BQ50: 0 | BR50: 0 | BS50: 0.69 | BT50: 0 | BU50: 0 | BV50: 1.82 | BW50: 0 | BX50: 0 | BY50: 0 | BZ50: 0 | CA50: 0 | CB50: 164.43 | CE50: 97.56 | CG50: 41.64 | CH50: 23.25 | CI50: 32.45 | CJ50: 657.3 | CK50: 349.71 | CL50: 503.5 | CM50: 33.78 | CN50: 16.55 | CO50: 25.17 | CP50: 0 | CQ50: 0.9
A51: ="3/3" -> 3/3 | B51: Картофельное пюре с маслом сливочным | C51: 120 | D51: 2.5 | E51: 0.4 | F51: 2.8 | G51: 0.4 | H51: 17.7 | I51: 105 | J51: 1.8 | K51: 0.1 | L51: 0.0 | M51: 0.0 | N51: 1.7 | O51: 14.6 | P51: 1.4 | Q51: 0.0 | R51: 0.0 | S51: 0.2 | T51: 1.5 | U51: 62.3 | V51: 509.0 | W51: 27.2 | X51: 24.3 | Y51: 69.5 | Z51: 0.9 | AA51: 15.0 | AB51: 27.3 | AC51: 20.0 | AD51: 0.1 | AE51: 0.1 | AF51: 0.1 | AG51: 1.1 | AH51: 2.1 | AI51: 4.4 | AJ51: 0 | AK51: 26.85 | AL51: 42.21 | AM51: 53.47 | AN51: 62.84 | AO51: 10.74 | AP51: 42.38 | AQ51: 21.75 | AR51: 43.26 | AS51: 60.53 | AT51: 164.9 | AU51: 73.44 | AV51: 15.36 | AW51: 42.75 | AX51: 229.77 | AY51: 0 | AZ51: 32.15 | BA51: 29.24 | BB51: 31.98 | BC51: 13.62 | BD51: 0.08 | BE51: 0.04 | BF51: 0.02 | BG51: 0.04 | BH51: 0.05 | BI51: 0.23 | BJ51: 0 | BK51: 0.7 | BL51: 0 | BM51: 0.21 | BN51: 0 | BO51: 0 | BP51: 0 | BQ51: 0.04 | BR51: 0.07 | BS51: 0.68 | BT51: 0 | BU51: 0 | BV51: 0.11 | BW51: 0 | BX51: 0 | BY51: 0 | BZ51: 0 | CA51: 0 | CB51: 98.99 | CE51: 19.55 | CG51: 14.07 | CH51: 9.33 | CI51: 11.7 | CJ51: 481.65 | CK51: 423.36 | CL51: 452.5 | CM51: 19.53 | CN51: 2.87 | CO51: 11.2 | CP51: 0 | CQ51: 0.18
A52: ="36/8" -> 36/8 | B52: Тефтели из мяса говядины с рисом | C52: 50 | D52: 5.3 | E52: 5.4 | F52: 5.4 | G52: 96 | H52: 7.2 | I52: 96.0 | J52: 0.0 | K52: 0.0 | L52: 1.3 | M52: 4.6 | N52: 1.3 | O52: 0.0 | P52: 0.0 | Q52: 0.0 | R52: 0.8 | S52: 111.2 | T52: 104.6 | U52: 9.4 | V52: 11.5 | W52: 9.4 | X52: 11.5 | Y52: 75.1 | Z52: 1.1 | AA52: 0.0 | AB52: 1.3 | AC52: 0.0 | AD52: 0.1 | AE52: 1.6 | AF52: 3.0 | AG52: 1.5 | AH52: 0 | AI52: 1.5 | AJ52: 264.34 | AK52: 499.24 | AL52: 815.64 | AM52: 147.35 | AN52: 264.57 | AO52: 71.14 | AP52: 271.45 | AQ52: 358.57 | AR52: 351.82 | AS52: 576.61 | AT52: 230.58 | AU52: 310.06 | AV52: 1063.33 | AW52: 89.54 | AX52: 245.53 | AY52: 265.14 | AZ52: 220.64 | BA52: 89.9 | BB52: 0 | BC52: 0 | BD52: 0 | BE52: 0 | BF52: 0 | BG52: 0 | BH52: 0 | BI52: 0.15 | BJ52: 0 | BK52: 0.1 | BL52: 0.01 | BM52: 0.02 | BN52: 0 | BO52: 0 | BP52: 0 | BQ52: 0.56 | BR52: 0 | BS52: 0 | BT52: 1.38 | BU52: 0 | BV52: 0 | BW52: 0 | BX52: 0 | BY52: 0 | BZ52: 45.63 | CC52: 0 | CE52: 18.33 | CF52: 11.33 | CG52: 14.83 | CH52: 1989.1 | CI52: 1140.64 | CJ52: 1564.87 | CK52: 17.74 | CL52: 10.21 | CM52: 13.98 | CN52: 0 | CO52: 0.25
B53: Итого за 'Обед' | C53: =SUM(C46:C52) -> 540 | D53: =SUM(D46:D52) -> 12.8 | E53: 10.7 | F53: 16.8 | G53: 102.0 | H53: 68.0 | I53: 464 | J53: 3.6 | K53: 3.2 | L53: 1.3 | M53: 4.6 | N53: 20.4 | O53: 36.4 | P53: 5.3 | Q53: 0.0 | R53: 0.8 | S53: 112.1 | T53: 109.4 | U53: 720.7 | V53: 975.3 | W53: 70.7 | X53: 67.2 | Y53: 228.7 | Z53: 4.4 | AA53: 15.0 | AB53: 625.5 | AC53: 144.2 | AD53: 2.8 | AE53: 1.8 | AF53: 3.1 | AG53: 3.4 | AH53: 3.7 | AI53: 11.7 | AJ53: 0 | AK53: 449.41 | AL53: 400.29 | AM53: 656.62 | AN53: 785.57 | AO53: 170.48 | AP53: 358.11 | AQ53: 120.15 | AR53: 435.97 | AS53: 481.83 | AT53: 650.48 | AU53: 833.03 | AV53: 248.61 | AW53: 417.67 | AX53: 2004.41 | AY53: 61.34 | AZ53: 500.59 | BA53: 385.52 | BB53: 305.48 | BC53: 151.55 | BD53: 0.08 | BE53: 0.04 | BF53: 0.02 | BG53: 0.04 | BH53: 0.05 | BI53: 0.23 | BJ53: 0 | BK53: 1.09 | BL53: 0 | BM53: 0.42 | BN53: 0.02 | BO53: 0.03 | BP53: 0 | BQ53: 0.04 | BR53: 0.08 | BS53: 1.96 | BT53: 0 | BU53: 0 | BV53: 3.5 | BW53: 0.02 | BX53: 0 | BY53: 0 | BZ53: 0 | CA53: 0 | CB53: 546.59 | CD53: =$I$53/#REF!*100 ->  | CE53: 119.89 | CG53: 77.39 | CH53: 48.93 | CI53: 63.16 | CJ53: 4223.18 | CK53: 2137.21 | CL53: 3180.19 | CM53: 119.26 | CN53: 63.54 | CO53: 91.4 | CP53: 11.25 | CQ53: 1.23
B54: Уплотненный полдник
A55: ="-" -> - | B55: Батон | C55: 20 | D55: 1.5 | E55: 0.0 | F55: 1.0 | G55: 0.6 | H55: 7.5 | I55: 44 | J55: 0.1 | K55: 0.0 | L55: 0.0 | M55: 0.0 | N55: 0.7 | O55: 6.2 | P55: 0.6 | Q55: 0.0 | R55: 0.0 | S55: 0.1 | T55: 0.3 | U55: 85.8 | V55: 26.2 | W55: 4.4 | X55: 6.6 | Y55: 17.0 | Z55: 0.4 | AA55: 0.0 | AB55: 0.0 | AC55: 0.0 | AD55: 0.3 | AE55: 0.0 | AF55: 0.0 | AG55: 0.3 | AH55: 0.6 | AI55: 0.0 | AJ55: 0 | AK55: 74.4 | AL55: 77.2 | AM55: 118.2 | AN55: 39.8 | AO55: 23.4 | AP55: 46.8 | AQ55: 17.6 | AR55: 84 | AS55: 52.2 | AT55: 72.6 | AU55: 60.2 | AV55: 32.2 | AW55: 56 | AX55: 465 | AY55: 0 | AZ55: 151.4 | BA55: 66.2 | BB55: 44.4 | BC55: 34.6 | BD55: 0 | BE55: 0 | BF55: 0 | BG55: 0 | BH55: 0 | BI55: 0 | BJ55: 0 | BK55: 0.07 | BL55: 0 | BM55: 0.03 | BN55: 0 | BO55: 0 | BP55: 0 | BQ55: 0 | BR55: 0 | BS55: 0.23 | BT55: 0 | BU55: 0 | BV55: 0.18 | BW55: 0 | BX55: 0 | BY55: 0 | BZ55: 0 | CA55: 0 | CB55: 6.82 | CE55: 0 | CG55: 0 | CH55: 0 | CI55: 0 | CJ55: 1330 | CK55: 512.4 | CL55: 921.2 | CM55: 10.64 | CN55: 10.64 | CO55: 10.64 | CP55: 0 | CQ55: 0
A56: ="-" -> - | B56: Сок в ассортименте | C56: 150 | D56: 0.8 | E56: 0.0 | F56: 0.2 | G56: 0.0 | H56: 15.5 | I56: 65 | J56: 0.0 | K56: 0.0 | L56: 0.0 | M56: 0.0 | N56: 14.9 | O56: 0.3 | P56: 0.3 | Q56: 0.0 | R56: 0.0 | S56: 0.8 | T56: 0.5 | U56: 9.0 | V56: 180.0 | W56: 10.5 | X56: 6.0 | Y56: 10.5 | Z56: 2.1 | AA56: 0.0 | AB56: 0.0 | AC56: 0.0 | AD56: 0.2 | AE56: 0.0 | AF56: 0.0 | AG56: 0.2 | AH56: 0.3 | AI56: 3.0 | AJ56: 0.3 | AK56: 12 | AL56: 15 | AM56: 21 | AN56: 21 | AO56: 3 | AP56: 12 | AQ56: 3 | AR56: 10.5 | AS56: 19.5 | AT56: 12 | AU56: 87 | AV56: 7.5 | AW56: 16.5 | AX56: 48 | AY56: 0 | AZ56: 15 | BA56: 18 | BB56: 7.5 | BC56: 6 | BD56: 0 | BE56: 0 | BF56: 0 | BG56: 0 | BH56: 0 | BI56: 0 | BJ56: 0 | BK56: 0 | BL56: 0 | BM56: 0 | BN56: 0 | BO56: 0 | BP56: 0 | BQ56: 0 | BR56: 0 | BS56: 0 | BT56: 0 | BU56: 0 | BV56: 0 | BW56: 0 | BX56: 0 | BY56: 0 | BZ56: 0 | CA56: 0 | CB56: 132.15 | CE56: 0 | CG56: 3.6 | CH56: 3.6 | CI56: 3.6 | CJ56: 360 | CK56: 163.8 | CL56: 261.9 | CM56: 0.54 | CN56: 0.54 | CO56: 0.54 | CP56: 0 | CQ56: 0
A57: ="8/5" -> 8/5 | B57: Запеканка (сырники) из творога | C57: 110 | D57: 18.6 | E57: 17.8 | F57: 10.6 | G57: 1.1 | H57: 14.8 | I57: 230 | J57: 5.7 | K57: 0.7 | L57: 0.0 | M57: 0.0 | N57: 9.9 | O57: 4.7 | P57: 0.2 | Q57: 0.0 | R57: 0.0 | S57: 1.2 | T57: 1.1 | U57: 43.7 | V57: 118.4 | W57: 154.8 | X57: 22.8 | Y57: 202.8 | Z57: 0.6 | AA57: 60.6 | AB57: 30.5 | AC57: 69.5 | AD57: 0.8 | AE57: 0.0 | AF57: 0.3 | AG57: 0.5 | AH57: 4.3 | AI57: 0.3 | AJ57: 0 | AK57: 892.84 | AL57: 735.23 | AM57: 1367.35 | AN57: 1059.1 | AO57: 408.19 | AP57: 688.8 | AQ57: 224.58 | AR57: 813.3 | AS57: 76.87 | AT57: 87.46 | AU57: 116.98 | AV57: 473.23 | AW57: 62.79 | AX57: 360.65 | AY57: 0.59 | AZ57: 105.15 | BA57: 93.22 | BB57: 894.07 | BC57: 98.75 | BD57: 0 | BE57: 0 | BF57: 0 | BG57: 0 | BH57: 0 | BI57: 0 | BJ57: 0 | BK57: 0.07 | BL57: 0 | BM57: 0.04 | BN57: 0 | BO57: 0.01 | BP57: 0 | BQ57: 0 | BR57: 0 | BS57: 0.25 | BT57: 0 | BU57: 0 | BV57: 0.62 | BW57: 0 | BX57: 0 | BY57: 0 | BZ57: 0 | CA57: 0 | CB57: 81.19 | CE57: 65.69 | CG57: 10.63 | CH57: 9.56 | CI57: 10.1 | CJ57: 1004.09 | CK57: 721.58 | CL57: 862.84 | CM57: 22.06 | CN57: 16.19 | CO57: 19.12 | CP57: 4.4 | CQ57: 0
B58: Итого за 'Уплотненный полдник' | C58: =SUM(C55:C57) -> 280 | D58: =SUM(D55:D57) -> 20.8 | E58: 17.8 | F58: 11.7 | G58: 1.7 | H58: 37.7 | I58: 339 | J58: 5.8 | K58: 0.7 | L58: 0.0 | M58: 0.0 | N58: 25.4 | O58: 11.1 | P58: 1.2 | Q58: 0.0 | R58: 0.0 | S58: 2.0 | T58: 1.9 | U58: 138.5 | V58: 324.6 | W58: 169.7 | X58: 35.4 | Y58: 230.3 | Z58: 3.1 | AA58: 60.6 | AB58: 30.5 | AC58: 69.5 | AD58: 1.3 | AE58: 0.1 | AF58: 0.3 | AG58: 0.9 | AH58: 5.2 | AI58: 3.3 | AJ58: 0.3 | AK58: 223.77 | AL58: 200.43 | AM58: 342.5 | AN58: 146.54 | AO58: 78.77 | AP58: 138.14 | AQ58: 54.52 | AR58: 215.7 | AS58: 199.15 | AT58: 250.49 | AU58: 323.93 | AV58: 95.96 | AW58: 176.87 | AX58: 906.3 | AY58: 0 | AZ58: 274.89 | BA58: 192.91 | BB58: 147.23 | BC58: 85.27 | BD58: 0.1 | BE58: 0.05 | BF58: 0.02 | BG58: 0.06 | BH58: 0.07 | BI58: 0.3 | BJ58: 0 | BK58: 0.94 | BL58: 0 | BM58: 0.29 | BN58: 0 | BO58: 0 | BP58: 0 | BQ58: 0.06 | BR58: 0.09 | BS58: 1 | BT58: 0 | BU58: 0 | BV58: 0.27 | BW58: 0.01 | BX58: 0 | BY58: 0 | BZ58: 0 | CA58: 0 | CB58: 250.84 | CD58: =$I$58/#REF!*100 ->  | CE58: 28.78 | CG58: 30.2 | CH58: 16.34 | CI58: 23.27 | CJ58: 3691.43 | CK58: 1600.29 | CL58: 2645.86 | CM58: 39.21 | CN58: 23.4 | CO58: 31.31 | CP58: 3.75 | CQ58: 0.38
B59: Итого за день | C59: =C40+C44+C53+C58 -> 1275 | D59: 44.0 | E59: 30.4 | F59: 42.1 | G59: 105.3 | H59: 164.4 | I59: 1198 | J59: 15.2 | K59: 4.1 | L59: 1.3 | M59: 4.6 | N59: 68.6 | O59: 81.8 | P59: 8.1 | Q59: 0.0 | R59: 0.8 | S59: 114.6 | T59: 113.8 | U59: 1107.2 | V59: 1701.4 | W59: 336.6 | X59: 145.0 | Y59: 600.2 | Z59: 9.1 | AA59: 113.8 | AB59: 721.6 | AC59: 274.4 | AD59: 5.1 | AE59: 2.0 | AF59: 3.5 | AG59: 5.5 | AH59: 11.9 | AI59: 30.8 | AJ59: 0.3 | AK59: 905.59 | AL59: 825.75 | AM59: 2041.33 | AN59: 1455.66 | AO59: 479.4 | AP59: 889.99 | AQ59: 323.81 | AR59: 1153.54 | AS59: 1214.54 | AT59: 1290.99 | AU59: 1766.64 | AV59: 618.24 | AW59: 846.22 | AX59: 5048.24 | AY59: 61.34 | AZ59: 1722.26 | BA59: 1143.78 | BB59: 870.55 | BC59: 383.33 | BD59: 0.5 | BE59: 0.25 | BF59: 0.14 | BG59: 0.3 | BH59: 0.35 | BI59: 1.64 | BJ59: 0.03 | BK59: 4.51 | BL59: 0.02 | BM59: 1.61 | BN59: 0.07 | BO59: 0.03 | BP59: 0 | BQ59: 0.27 | BR59: 0.44 | BS59: 5.3 | BT59: 0.01 | BU59: 0 | BV59: 4.5 | BW59: 0.08 | BX59: 0.08 | BY59: 0 | BZ59: 0 | CA59: 0 | CB59: 1178.48 | CE59: 197.79 | CG59: 142.68 | CH59: 84.33 | CI59: 113.51 | CJ59: 11054.91 | CK59: 5100.28 | CL59: 8077.6 | CM59: 240.53 | CN59: 134.75 | CO59: 187.64 | CP59: 25.32 | CQ59: 1.98
B62: 3 ДЕНЬ
B63: Завтрак
A64: ="-" -> - | B64: Батон | C64: 30 | D64: 2.3 | E64: 0.0 | F64: 1.5 | G64: 0.9 | H64: 11.2 | I64: 66 | J64: 0.2 | K64: 0.0 | L64: 0.0 | M64: 0.0 | N64: 1.0 | O64: 9.2 | P64: 1.0 | Q64: 0.0 | R64: 0.0 | S64: 0.1 | T64: 0.5 | U64: 128.7 | V64: 39.3 | W64: 6.6 | X64: 9.9 | Y64: 25.5 | Z64: 0.6 | AA64: 0.0 | AB64: 0.0 | AC64: 0.0 | AD64: 0.5 | AE64: 0.1 | AF64: 0.0 | AG64: 0.5 | AH64: 0.9 | AI64: 0.0 | AJ64: 0 | AK64: 111.6 | AL64: 115.8 | AM64: 177.3 | AN64: 59.7 | AO64: 35.1 | AP64: 70.2 | AQ64: 26.4 | AR64: 126 | AS64: 78.3 | AT64: 108.9 | AU64: 90.3 | AV64: 48.3 | AW64: 84 | AX64: 697.5 | AY64: 0 | AZ64: 227.1 | BA64: 99.3 | BB64: 66.6 | BC64: 51.9 | BD64: 0 | BE64: 0 | BF64: 0 | BG64: 0 | BH64: 0 | BI64: 0.01 | BJ64: 0 | BK64: 0.1 | BL64: 0 | BM64: 0.05 | BN64: 0 | BO64: 0 | BP64: 0 | BQ64: 0 | BR64: 0 | BS64: 0.35 | BT64: 0 | BU64: 0 | BV64: 0.26 | BW64: 0.01 | BX64: 0 | BY64: 0 | BZ64: 0 | CA64: 0 | CB64: 10.23 | CE64: 0 | CG64: 0 | CH64: 0 | CI64: 0 | CJ64: 570 | CK64: 219.6 | CL64: 394.8 | CM64: 4.56 | CN64: 4.56 | CO64: 4.56 | CP64: 0 | CQ64: 0
A65: ="-" -> - | B65: Масло сливочное | C65: 5 | D65: 0.0 | E65: 0.0 | F65: 3.6 | G65: 0.0 | H65: 0.1 | I65: 33 | J65: 2.4 | K65: 0.1 | L65: 0.0 | M65: 0.0 | N65: 0.1 | O65: 0.0 | P65: 0.0 | Q65: 0.0 | R65: 0.0 | S65: 0.0 | T65: 0.1 | U65: 0.8 | V65: 1.5 | W65: 1.2 | X65: 0.0 | Y65: 1.5 | Z65: 0.0 | AA65: 20.0 | AB65: 15.0 | AC65: 22.5 | AD65: 0.1 | AE65: 0.0 | AF65: 0.0 | AG65: 0.0 | AH65: 0.0 | AI65: 0.0 | AJ65: 0 | AK65: 2.1 | AL65: 2.05 | AM65: 3.8 | AN65: 2.25 | AO65: 0.85 | AP65: 2.35 | AQ65: 2.15 | AR65: 2.1 | AS65: 1.8 | AT65: 1.3 | AU65: 2.85 | AV65: 1.75 | AW65: 1.2 | AX65: 7.1 | AY65: 0 | AZ65: 2.4 | BA65: 2.7 | BB65: 2.1 | BC65: 0.5 | BD65: 0.13 | BE65: 0.06 | BF65: 0.03 | BG65: 0.08 | BH65: 0.09 | BI65: 0.4 | BJ65: 0 | BK65: 1.1 | BL65: 0 | BM65: 0.34 | BN65: 0 | BO65: 0 | BP65: 0 | BQ65: 0.08 | BR65: 0.12 | BS65: 0.9 | BT65: 0 | BU65: 0 | BV65: 0.05 | BW65: 0 | BX65: 0 | BY65: 0 | BZ65: 0 | CA65: 0 | CB65: 1.25 | CE65: 22.5 | CG65: 0.2 | CH65: 0.05 | CI65: 0.13 | CJ65: 10 | CK65: 4.1 | CL65: 7.05 | CM65: 0.86 | CN65: 0.44 | CO65: 0.65 | CP65: 0 | CQ65: 0
A66: ="31/10" -> 31/10 | B66: Чай с молоком (вариант 3) | C66: 150 | D66: 1.2 | E66: 1.1 | F66: 1.0 | G66: 0.0 | H66: 5.5 | I66: 34 | J66: 0.6 | K66: 0.0 | L66: 0.0 | M66: 0.0 | N66: 5.5 | O66: 0.0 | P66: 0.1 | Q66: 0.0 | R66: 0.0 | S66: 0.0 | T66: 0.3 | U66: 18.6 | V66: 54.3 | W66: 43.8 | X66: 5.0 | Y66: 31.4 | Z66: 0.1 | AA66: 7.5 | AB66: 3.4 | AC66: 8.3 | AD66: 0.0 | AE66: 0.0 | AF66: 0.1 | AG66: 0.0 | AH66: 0.3 | AI66: 0.2 | AJ66: 0 | AK66: 0 | AL66: 0 | AM66: 0 | AN66: 0 | AO66: 0 | AP66: 0 | AQ66: 0 | AR66: 0 | AS66: 0 | AT66: 0 | AU66: 0 | AV66: 0 | AW66: 0 | AX66: 0 | AY66: 0 | AZ66: 0 | BA66: 0 | BB66: 0 | BC66: 0 | BD66: 0 | BE66: 0 | BF66: 0 | BG66: 0 | BH66: 0 | BI66: 0 | BJ66: 0 | BK66: 0 | BL66: 0 | BM66: 0 | BN66: 0 | BO66: 0 | BP66: 0 | BQ66: 0 | BR66: 0 | BS66: 0 | BT66: 0 | BU66: 0 | BV66: 0 | BW66: 0 | BX66: 0 | BY66: 0 | BZ66: 0 | CA66: 0 | CB66: 145.94 | CE66: 8.06 | CG66: 6.84 | CH66: 3.69 | CI66: 5.26 | CJ66: 567 | CK66: 214.2 | CL66: 390.6 | CM66: 35.65 | CN66: 19 | CO66: 27.32 | CP66: 3.75 | CQ66: 0
A67: ="5/4" -> 5/4 | B67: Каша манная молочная с маслом сливочным | C67: 150 | D67: 4.0 | E67: 1.8 | F67: 3.5 | G67: 0.2 | H67: 22.2 | I67: 134 | J67: 2.5 | K67: 0.1 | L67: 0.0 | M67: 0.0 | N67: 6.4 | O67: 15.0 | P67: 0.8 | Q67: 0.0 | R67: 0.0 | S67: 0.1 | T67: 1.0 | U67: 176.4 | V67: 105.5 | W67: 69.5 | X67: 11.1 | Y67: 65.8 | Z67: 0.3 | AA67: 14.4 | AB67: 12.0 | AC67: 26.7 | AD67: 0.4 | AE67: 0.0 | AF67: 0.1 | AG67: 0.3 | AH67: 1.2 | AI67: 0.3 | AJ67: 0 | AK67: 111.73 | AL67: 102.68 | AM67: 184.88 | AN67: 58.8 | AO67: 35.45 | AP67: 72.39 | AQ67: 26.03 | AR67: 123.01 | AS67: 77.72 | AT67: 106.77 | AU67: 87.34 | AV67: 48.36 | AW67: 83.02 | AX67: 725.92 | AY67: 0 | AZ67: 235.98 | BA67: 121.09 | BB67: 62.1 | BC67: 49.91 | BD67: 0.07 | BE67: 0.03 | BF67: 0.02 | BG67: 0.04 | BH67: 0.05 | BI67: 0.21 | BJ67: 0 | BK67: 0.58 | BL67: 0 | BM67: 0.18 | BN67: 0 | BO67: 0 | BP67: 0 | BQ67: 0.04 | BR67: 0.06 | BS67: 0.48 | BT67: 0 | BU67: 0 | BV67: 0.03 | BW67: 0 | BX67: 0 | BY67: 0 | BZ67: 0 | CA67: 0 | CB67: 135.51 | CE67: 16.4 | CG67: 33.38 | CH67: 14.46 | CI67: 23.92 | CJ67: 1875.37 | CK67: 844.23 | CL67: 1359.8 | CM67: 43.77 | CN67: 22.87 | CO67: 33.32 | CP67: 3.75 | CQ67: 0.38
B68: Итого за 'Завтрак' | C68: =SUM(C64:C67) -> 335 | D68: =SUM(D64:D67) -> 7.5 | E68: 2.9 | F68: 9.5 | G68: 1.2 | H68: 39.0 | I68: 268 | J68: 5.6 | K68: 0.2 | L68: 0.0 | M68: 0.0 | N68: 12.9 | O68: 24.2 | P68: 1.8 | Q68: 0.0 | R68: 0.0 | S68: 0.2 | T68: 1.8 | U68: 324.4 | V68: 200.6 | W68: 121.1 | X68: 26.0 | Y68: 124.2 | Z68: 1.0 | AA68: 41.9 | AB68: 30.4 | AC68: 57.5 | AD68: 1.0 | AE68: 0.1 | AF68: 0.2 | AG68: 0.8 | AH68: 2.4 | AI68: 0.5 | AJ68: 0 | AK68: 225.43 | AL68: 220.53 | AM68: 365.98 | AN68: 120.75 | AO68: 71.4 | AP68: 144.94 | AQ68: 54.58 | AR68: 251.11 | AS68: 157.82 | AT68: 216.97 | AU68: 180.49 | AV68: 98.41 | AW68: 168.22 | AX68: 1430.52 | AY68: 0 | AZ68: 465.48 | BA68: 223.09 | BB68: 130.8 | BC68: 102.31 | BD68: 0.21 | BE68: 0.09 | BF68: 0.05 | BG68: 0.12 | BH68: 0.13 | BI68: 0.61 | BJ68: 0 | BK68: 1.79 | BL68: 0 | BM68: 0.57 | BN68: 0 | BO68: 0 | BP68: 0 | BQ68: 0.12 | BR68: 0.18 | BS68: 1.73 | BT68: 0 | BU68: 0 | BV68: 0.34 | BW68: 0.01 | BX68: 0 | BY68: 0 | BZ68: 0 | CA68: 0 | CB68: 292.94 | CD68: =$I$68/#REF!*100 ->  | CE68: 46.96 | CG68: 40.41 | CH68: 18.19 | CI68: 29.3 | CJ68: 3022.37 | CK68: 1282.13 | CL68: 2152.25 | CM68: 84.83 | CN68: 46.86 | CO68: 65.85 | CP68: 7.5 | CQ68: 0.38
B69: Второй завтрак
A70: ="-" -> - | B70: Яблоки | C70: 100 | D70: 0.4 | E70: 0.0 | F70: 0.4 | G70: 0.4 | H70: 11.6 | I70: 50 | J70: 0.1 | K70: 0.0 | L70: 0.0 | M70: 0.0 | N70: 10.0 | O70: 0.8 | P70: 0.8 | Q70: 0.0 | R70: 0.0 | S70: 0.8 | T70: 0.5 | U70: 26.0 | V70: 278.0 | W70: 16.0 | X70: 9.0 | Y70: 11.0 | Z70: 2.2 | AA70: 0.0 | AB70: 30.0 | AC70: 5.0 | AD70: 0.2 | AE70: 0.0 | AF70: 0.0 | AG70: 0.3 | AH70: 0.4 | AI70: 10.0 | AJ70: 0 | AK70: 12 | AL70: 13 | AM70: 19 | AN70: 18 | AO70: 3 | AP70: 11 | AQ70: 3 | AR70: 9 | AS70: 17 | AT70: 10 | AU70: 78 | AV70: 7 | AW70: 14 | AX70: 42 | AY70: 0 | AZ70: 13 | BA70: 16 | BB70: 6 | BC70: 5 | BD70: 0 | BE70: 0 | BF70: 0 | BG70: 0 | BH70: 0 | BI70: 0 | BJ70: 0 | BK70: 0 | BL70: 0 | BM70: 0 | BN70: 0 | BO70: 0 | BP70: 0 | BQ70: 0 | BR70: 0 | BS70: 0 | BT70: 0 | BU70: 0 | BV70: 0 | BW70: 0 | BX70: 0 | BY70: 0 | BZ70: 0 | CA70: 0 | CB70: 86.3 | CE70: 5 | CG70: 2 | CH70: 2 | CI70: 2 | CJ70: 150 | CK70: 150 | CL70: 150 | CM70: 0 | CN70: 0 | CO70: 0 | CP70: 0 | CQ70: 0
B71: Итого за 'Второй завтрак' | C71: =SUM(C70) -> 100 | D71: =SUM(D70) -> 0.4 | E71: 0.0 | F71: 0.4 | G71: 0.4 | H71: 11.6 | I71: 50 | J71: 0.1 | K71: 0.0 | L71: 0.0 | M71: 0.0 | N71: 10.0 | O71: 0.8 | P71: 0.8 | Q71: 0.0 | R71: 0.0 | S71: 0.8 | T71: 0.5 | U71: 26.0 | V71: 278.0 | W71: 16.0 | X71: 9.0 | Y71: 11.0 | Z71: 2.2 | AA71: 0.0 | AB71: 30.0 | AC71: 5.0 | AD71: 0.2 | AE71: 0.0 | AF71: 0.0 | AG71: 0.3 | AH71: 0.4 | AI71: 10.0 | AJ71: 0 | AK71: 12 | AL71: 13 | AM71: 19 | AN71: 18 | AO71: 3 | AP71: 11 | AQ71: 3 | AR71: 9 | AS71: 17 | AT71: 10 | AU71: 78 | AV71: 7 | AW71: 14 | AX71: 42 | AY71: 0 | AZ71: 13 | BA71: 16 | BB71: 6 | BC71: 5 | BD71: 0 | BE71: 0 | BF71: 0 | BG71: 0 | BH71: 0 | BI71: 0 | BJ71: 0 | BK71: 0 | BL71: 0 | BM71: 0 | BN71: 0 | BO71: 0 | BP71: 0 | BQ71: 0 | BR71: 0 | BS71: 0 | BT71: 0 | BU71: 0 | BV71: 0 | BW71: 0 | BX71: 0 | BY71: 0 | BZ71: 0 | CA71: 0 | CB71: 86.3 | CD71: =$I$71/#REF!*100 ->  | CE71: 5 | CG71: 2 | CH71: 2 | CI71: 2 | CJ71: 150 | CK71: 150 | CL71: 150 | CM71: 0 | CN71: 0 | CO71: 0 | CP71: 0 | CQ71: 0
B72: Обед
A73: ="-" -> - | B73: Хлеб пшеничный | C73: 20 | D73: 1.2 | E73: 0.0 | F73: 0.1 | G73: 0.1 | H73: 7.4 | I73: 36 | J73: 0.0 | K73: 0.0 | L73: 0.0 | M73: 0.0 | N73: 0.2 | O73: 7.1 | P73: 0.0 | Q73: 0.0 | R73: 0.0 | S73: 0.0 | T73: 0.4 | U73: 0.0 | V73: 0.0 | W73: 0.0 | X73: 0.0 | Y73: 0.0 | Z73: 0.0 | AA73: 0.0 | AB73: 0.0 | AC73: 0.0 | AD73: 0.0 | AE73: 0.0 | AF73: 0.0 | AG73: 0.0 | AH73: 0.0 | AI73: 0.0 | AJ73: 0 | AK73: 63.86 | AL73: 66.47 | AM73: 101.79 | AN73: 33.76 | AO73: 20.01 | AP73: 40.02 | AQ73: 15.14 | AR73: 72.38 | AS73: 44.89 | AT73: 62.64 | AU73: 51.68 | AV73: 27.14 | AW73: 48.02 | AX73: 401.59 | AY73: 0 | AZ73: 130.85 | BA73: 56.9 | BB73: 37.76 | BC73: 29.93 | BD73: 0 | BE73: 0 | BF73: 0 | BG73: 0 | BH73: 0 | BI73: 0 | BJ73: 0 | BK73: 0.02 | BL73: 0 | BM73: 0 | BN73: 0 | BO73: 0 | BP73: 0 | BQ73: 0 | BR73: 0 | BS73: 0.01 | BT73: 0 | BU73: 0 | BV73: 0.06 | BW73: 0 | BX73: 0 | BY73: 0 | BZ73: 0 | CA73: 0 | CB73: 7.82 | CE73: 0 | CG73: 0 | CH73: 0 | CI73: 0 | CJ73: 380 | CK73: 146.4 | CL73: 263.2 | CM73: 3.04 | CN73: 3.04 | CO73: 3.04 | CP73: 0 | CQ73: 0
A74: ="-" -> - | B74: Хлеб ржаной | C74: 20 | D74: 1.2 | E74: 0.0 | F74: 0.2 | G74: 0.2 | H74: 8.3 | I74: 38 | J74: 0.0 | K74: 0.0 | L74: 0.0 | M74: 0.0 | N74: 0.2 | O74: 6.4 | P74: 1.7 | Q74: 0.0 | R74: 0.0 | S74: 0.2 | T74: 0.5 | U74: 122.0 | V74: 49.0 | W74: 7.0 | X74: 9.4 | Y74: 31.6 | Z74: 0.8 | AA74: 0.0 | AB74: 1.0 | AC74: 0.2 | AD74: 0.3 | AE74: 0.0 | AF74: 0.0 | AG74: 0.1 | AH74: 0.4 | AI74: 0.0 | AJ74: 0 | AK74: 64.4 | AL74: 49.6 | AM74: 85.4 | AN74: 44.6 | AO74: 18.6 | AP74: 39.6 | AQ74: 16 | AR74: 74.2 | AS74: 59.4 | AT74: 58.2 | AU74: 92.8 | AV74: 24.8 | AW74: 62 | AX74: 311.8 | AY74: 0 | AZ74: 105.2 | BA74: 58.2 | BB74: 36 | BC74: 26 | BD74: 0 | BE74: 0 | BF74: 0 | BG74: 0 | BH74: 0 | BI74: 0 | BJ74: 0 | BK74: 0.03 | BL74: 0 | BM74: 0 | BN74: 0 | BO74: 0 | BP74: 0 | BQ74: 0 | BR74: 0 | BS74: 0.02 | BT74: 0 | BU74: 0 | BV74: 0.1 | BW74: 0.02 | BX74: 0 | BY74: 0 | BZ74: 0 | CA74: 0 | CB74: 9.4 | CE74: 0.17 | CG74: 4 | CH74: 4 | CI74: 4 | CJ74: 760 | CK74: 292.8 | CL74: 526.4 | CM74: 7.6 | CN74: 6.32 | CO74: 6.96 | CP74: 0 | CQ74: 0
A75: ="6/10" -> 6/10 | B75: Компот из сухофруктов | C75: 150 | D75: 0.8 | E75: 0.0 | F75: 0.0 | G75: 0.0 | H75: 17.4 | I75: 66 | J75: 0.0 | K75: 0.0 | L75: 0.0 | M75: 0.0 | N75: 14.4 | O75: 0.4 | P75: 2.6 | Q75: 0.0 | R75: 0.0 | S75: 0.2 | T75: 0.6 | U75: 2.6 | V75: 255.2 | W75: 23.5 | X75: 15.0 | Y75: 20.4 | Z75: 0.5 | AA75: 0.0 | AB75: 472.5 | AC75: 87.5 | AD75: 0.8 | AE75: 0.0 | AF75: 0.0 | AG75: 0.4 | AH75: 0.6 | AI75: 0.4 | AJ75: 0 | AK75: 0.01 | AL75: 0.01 | AM75: 0.01 | AN75: 0.01 | AO75: 0 | AP75: 0.01 | AQ75: 0 | AR75: 0.01 | AS75: 0.01 | AT75: 0.01 | AU75: 0.04 | AV75: 0 | AW75: 0.01 | AX75: 0.02 | AY75: 0 | AZ75: 0.01 | BA75: 0.01 | BB75: 0 | BC75: 0 | BD75: 0 | BE75: 0 | BF75: 0 | BG75: 0 | BH75: 0 | BI75: 0 | BJ75: 0 | BK75: 0 | BL75: 0 | BM75: 0 | BN75: 0 | BO75: 0 | BP75: 0 | BQ75: 0 | BR75: 0 | BS75: 0.01 | BT75: 0 | BU75: 0 | BV75: 0 | BW75: 0 | BX75: 0 | BY75: 0 | BZ75: 0 | CA75: 0 | CB75: 160.51 | CE75: 78.75 | CG75: 3.95 | CH75: 3.95 | CI75: 3.95 | CJ75: 454.5 | CK75: 172.98 | CL75: 313.74 | CM75: 41.94 | CN75: 24.93 | CO75: 33.44 | CP75: 7.5 | CQ75: 0
A76: ="16/2" -> 16/2 | B76: Суп картофельный с бобовыми на говяжьем бульоне | C76: 150 | D76: 2.7 | E76: 4.8 | F76: 5.7 | G76: 1.8 | H76: 13.8 | I76: 114 | J76: 1.4 | K76: 1.0 | L76: 0.0 | M76: 0.0 | N76: 2.4 | O76: 9.4 | P76: 2.0 | Q76: 0.0 | R76: 0.0 | S76: 0.1 | T76: 1.7 | U76: 351.8 | V76: 294.8 | W76: 22.9 | X76: 21.9 | Y76: 59.9 | Z76: 1.2 | AA76: 0.0 | AB76: 654.5 | AC76: 121.1 | AD76: 0.8 | AE76: 0.1 | AF76: 0.1 | AG76: 0.6 | AH76: 1.4 | AI76: 2.8 | AJ76: 0 | AK76: 128.66 | AL76: 142 | AM76: 211.33 | AN76: 202.16 | AO76: 27.58 | AP76: 112.43 | AQ76: 36.93 | AR76: 132.65 | AS76: 126.89 | AT76: 239.5 | AU76: 290.42 | AV76: 59.05 | AW76: 125.48 | AX76: 451.65 | AY76: 0 | AZ76: 88.2 | BA76: 108.31 | BB76: 91.02 | BC76: 33.93 | BD76: 0 | BE76: 0 | BF76: 0 | BG76: 0 | BH76: 0 | BI76: 0 | BJ76: 0 | BK76: 0.14 | BL76: 0 | BM76: 0.07 | BN76: 0.01 | BO76: 0.01 | BP76: 0 | BQ76: 0 | BR76: 0 | BS76: 0.44 | BT76: 0 | BU76: 0 | BV76: 1 | BW76: 0.01 | BX76: 0 | BY76: 0 | BZ76: 0 | CA76: 0 | CB76: 137.7 | CE76: 109.08 | CG76: 48.76 | CH76: 27.16 | CI76: 37.96 | CJ76: 500.4 | CK76: 262.36 | CL76: 381.38 | CM76: 36.16 | CN76: 19.04 | CO76: 27.6 | CP76: 0 | CQ76: 0.9
A77: ="3/4" -> 3/4 | B77: Каша гречневая вязкая | C77: 120 | D77: 3.7 | E77: 0.0 | F77: 3.1 | G77: 1.0 | H77: 19.1 | I77: 114 | J77: 1.6 | K77: 0.1 | L77: 0.0 | M77: 0.0 | N77: 0.4 | O77: 15.5 | P77: 3.2 | Q77: 0.0 | R77: 0.0 | S77: 0.0 | T77: 0.8 | U77: 116.3 | V77: 111.5 | W77: 7.5 | X77: 55.9 | Y77: 82.5 | Z77: 1.9 | AA77: 12.0 | AB77: 10.8 | AC77: 14.1 | AD77: 0.3 | AE77: 0.1 | AF77: 0.1 | AG77: 1.1 | AH77: 2.1 | AI77: 0.0 | AJ77: 0 | AK77: 171.23 | AL77: 133.74 | AM77: 216.88 | AN77: 154.03 | AO77: 92.7 | AP77: 116.63 | AQ77: 53.13 | AR77: 171.8 | AS77: 168.17 | AT77: 323.46 | AU77: 319.18 | AV77: 87.47 | AW77: 208.15 | AX77: 655.33 | AY77: 0 | AZ77: 145.47 | BA77: 176.19 | BB77: 125.13 | BC77: 95.37 | BD77: 0.08 | BE77: 0.04 | BF77: 0.02 | BG77: 0.04 | BH77: 0.05 | BI77: 0.24 | BJ77: 0 | BK77: 0.8 | BL77: 0 | BM77: 0.21 | BN77: 0 | BO77: 0 | BP77: 0 | BQ77: 0.05 | BR77: 0.07 | BS77: 0.84 | BT77: 0.01 | BU77: 0 | BV77: 0.33 | BW77: 0.03 | BX77: 0 | BY77: 0 | BZ77: 0 | CA77: 0 | CB77: 100.87 | CE77: 13.79 | CG77: 18.76 | CH77: 11.15 | CI77: 14.96 | CJ77: 1575.42 | CK77: 764.22 | CL77: 1169.82 | CM77: 35.77 | CN77: 22.6 | CO77: 29.18 | CP77: 0 | CQ77: 0.3
A78: ="2/9" -> 2/9 | B78: Мясо птицы отварное в соусе | C78: 50 | D78: 5.8 | E78: 5.7 | F78: 5.6 | G78: 0.0 | H78: 1.2 | I78: 78 | J78: 2.2 | K78: 0.0 | L78: 0.0 | M78: 0.0 | N78: 0.1 | O78: 1.0 | P78: 0.1 | Q78: 0.0 | R78: 0.0 | S78: 0.0 | T78: 0.6 | U78: 72.7 | V78: 39.0 | W78: 5.9 | X78: 5.0 | Y78: 41.6 | Z78: 0.5 | AA78: 15.1 | AB78: 8.0 | AC78: 31.6 | AD78: 0.2 | AE78: 0.0 | AF78: 0.0 | AG78: 2.1 | AH78: 4.4 | AI78: 0.2 | AJ78: 0 | AK78: 279.23 | AL78: 221.54 | AM78: 450.33 | AN78: 494.88 | AO78: 148.54 | AP78: 270.31 | AQ78: 92.91 | AR78: 238.33 | AS78: 363.26 | AT78: 386.11 | AU78: 511.79 | AV78: 154.08 | AW78: 431.68 | AX78: 844.9 | AY78: 46.89 | AZ78: 286.05 | BA78: 274.2 | BB78: 202.97 | BC78: 72.39 | BD78: 0.03 | BE78: 0.01 | BF78: 0.01 | BG78: 0.02 | BH78: 0.02 | BI78: 0.09 | BJ78: 0 | BK78: 0.25 | BL78: 0 | BM78: 0.08 | BN78: 0 | BO78: 0 | BP78: 0 | BQ78: 0.02 | BR78: 0.03 | BS78: 0.2 | BT78: 0 | BU78: 0 | BV78: 0.02 | BW78: 0 | BX78: 0 | BY78: 0 | BZ78: 0 | CA78: 0 | CB78: 50.54 | CE78: 16.4 | CG78: 18.41 | CH78: 9.17 | CI78: 13.79 | CJ78: 1701.19 | CK78: 1051.77 | CL78: 1376.48 | CM78: 19.31 | CN78: 12.75 | CO78: 16.05 | CP78: 0 | CQ78: 0.25
B79: Итого за 'Обед' | C79: =SUM(C73:C78) -> 510 | D79: =SUM(D73:D78) -> 15.3 | E79: 10.5 | F79: 14.8 | G79: 3.2 | H79: 67.2 | I79: 446 | J79: 5.3 | K79: 1.1 | L79: 0.0 | M79: 0.0 | N79: 17.8 | O79: 39.9 | P79: 9.5 | Q79: 0.0 | R79: 0.0 | S79: 0.5 | T79: 4.6 | U79: 665.4 | V79: 749.5 | W79: 66.8 | X79: 107.2 | Y79: 236.0 | Z79: 4.8 | AA79: 27.1 | AB79: 1146.7 | AC79: 254.5 | AD79: 2.4 | AE79: 0.3 | AF79: 0.2 | AG79: 4.3 | AH79: 8.9 | AI79: 3.3 | AJ79: 0 | AK79: 889.08 | AL79: 767.76 | AM79: 1415.42 | AN79: 1418.56 | AO79: 400.84 | AP79: 813.78 | AQ79: 283.54 | AR79: 824 | AS79: 1073.39 | AT79: 1300.37 | AU79: 1634.53 | AV79: 459.19 | AW79: 1218.17 | AX79: 3121.72 | AY79: 105.07 | AZ79: 955.94 | BA79: 841.79 | BB79: 629.56 | BC79: 254.79 | BD79: 0 | BE79: 0 | BF79: 0 | BG79: 0 | BH79: 0 | BI79: 0 | BJ79: 0 | BK79: 0.58 | BL79: 0 | BM79: 0.32 | BN79: 0.03 | BO79: 0.05 | BP79: 0 | BQ79: 0 | BR79: 0.01 | BS79: 1.96 | BT79: 0 | BU79: 0 | BV79: 4.67 | BW79: 0.03 | BX79: 0 | BY79: 0 | BZ79: 0 | CA79: 0 | CB79: 434.1 | CD79: =$I$79/#REF!*100 ->  | CE79: 667.76 | CG79: 66.43 | CH79: 40.43 | CI79: 53.43 | CJ79: 3024.25 | CK79: 1449 | CL79: 2236.63 | CM79: 97.31 | CN79: 57.81 | CO79: 77.56 | CP79: 7.5 | CQ79: 1.4
B80: Уплотненный полдник
A81: ="-" -> - | B81: Хлеб ржаной | C81: 20 | D81: 1.2 | E81: 0.0 | F81: 0.2 | G81: 0.2 | H81: 8.3 | I81: 38 | J81: 0.0 | K81: 0.0 | L81: 0.0 | M81: 0.0 | N81: 0.2 | O81: 6.4 | P81: 1.7 | Q81: 0.0 | R81: 0.0 | S81: 0.2 | T81: 0.5 | U81: 122.0 | V81: 49.0 | W81: 7.0 | X81: 9.4 | Y81: 31.6 | Z81: 0.8 | AA81: 0.0 | AB81: 1.0 | AC81: 0.2 | AD81: 0.3 | AE81: 0.0 | AF81: 0.0 | AG81: 0.1 | AH81: 0.4 | AI81: 0.0 | AJ81: 0 | AK81: 64.4 | AL81: 49.6 | AM81: 85.4 | AN81: 44.6 | AO81: 18.6 | AP81: 39.6 | AQ81: 16 | AR81: 74.2 | AS81: 59.4 | AT81: 58.2 | AU81: 92.8 | AV81: 24.8 | AW81: 62 | AX81: 311.8 | AY81: 0 | AZ81: 105.2 | BA81: 58.2 | BB81: 36 | BC81: 26 | BD81: 0 | BE81: 0 | BF81: 0 | BG81: 0 | BH81: 0 | BI81: 0 | BJ81: 0 | BK81: 0.03 | BL81: 0 | BM81: 0 | BN81: 0 | BO81: 0 | BP81: 0 | BQ81: 0 | BR81: 0 | BS81: 0.02 | BT81: 0 | BU81: 0 | BV81: 0.1 | BW81: 0.02 | BX81: 0 | BY81: 0 | BZ81: 0 | CA81: 0 | CB81: 9.4 | CE81: 0.17 | CG81: 2 | CH81: 2 | CI81: 2 | CJ81: 380 | CK81: 146.4 | CL81: 263.2 | CM81: 3.8 | CN81: 3.16 | CO81: 3.48 | CP81: 0 | CQ81: 0
A82: ="27/10" -> 27/10 | B82: Чай полусладкий | C82: 150 | D82: 0.2 | E82: 0.0 | F82: 0.0 | G82: 0.0 | H82: 3.8 | I82: 15 | J82: 0.0 | K82: 0.0 | L82: 0.0 | M82: 0.0 | N82: 3.7 | O82: 0.0 | P82: 0.1 | Q82: 0.0 | R82: 0.0 | S82: 0.0 | T82: 0.1 | U82: 0.0 | V82: 0.1 | W82: 0.1 | X82: 0.0 | Y82: 0.0 | Z82: 0.0 | AA82: 0.0 | AB82: 0.0 | AC82: 0.0 | AD82: 0.0 | AE82: 0.0 | AF82: 0.0 | AG82: 0.0 | AH82: 0.0 | AI82: 0.0 | AJ82: 0 | AK82: 0 | AL82: 0 | AM82: 0 | AN82: 0 | AO82: 0 | AP82: 0 | AQ82: 0 | AR82: 0 | AS82: 0 | AT82: 0 | AU82: 0 | AV82: 0 | AW82: 0 | AX82: 0 | AY82: 0 | AZ82: 0 | BA82: 0 | BB82: 0 | BC82: 0 | BD82: 0 | BE82: 0 | BF82: 0 | BG82: 0 | BH82: 0 | BI82: 0 | BJ82: 0 | BK82: 0 | BL82: 0 | BM82: 0 | BN82: 0 | BO82: 0 | BP82: 0 | BQ82: 0 | BR82: 0 | BS82: 0 | BT82: 0 | BU82: 0 | BV82: 0 | BW82: 0 | BX82: 0 | BY82: 0 | BZ82: 0 | CA82: 0 | CB82: 150.07 | CE82: 0 | CG82: 3.69 | CH82: 3.69 | CI82: 3.69 | CJ82: 398.25 | CK82: 156.6 | CL82: 277.43 | CM82: 39.61 | CN82: 23.41 | CO82: 31.51 | CP82: 3.75 | CQ82: 0
A83: ="24/2" -> 24/2 | B83: Суп молочный с вермишелью | C83: 150 | D83: 4.4 | E83: 3.0 | F83: 3.9 | G83: 0.2 | H83: 14.1 | I83: 108 | J83: 2.6 | K83: 0.0 | L83: 0.0 | M83: 0.0 | N83: 6.0 | O83: 7.7 | P83: 0.4 | Q83: 0.0 | R83: 0.0 | S83: 0.1 | T83: 1.1 | U83: 167.4 | V83: 166.7 | W83: 125.7 | X83: 15.9 | Y83: 98.1 | Z83: 0.3 | AA83: 29.9 | AB83: 14.6 | AC83: 32.9 | AD83: 0.2 | AE83: 0.1 | AF83: 0.2 | AG83: 0.2 | AH83: 1.2 | AI83: 0.6 | AJ83: 0 | AK83: 56.36 | AL83: 51.52 | AM83: 96.53 | AN83: 30.16 | AO83: 18.39 | AP83: 37.37 | AQ83: 12.27 | AR83: 59.89 | AS83: 39.6 | AT83: 47.75 | AU83: 40.98 | AV83: 24.08 | AW83: 41.85 | AX83: 367.51 | AY83: 0 | AZ83: 115.81 | BA83: 60.01 | BB83: 30.14 | BC83: 23.84 | BD83: 0.05 | BE83: 0.01 | BF83: 0.01 | BG83: 0.03 | BH83: 0.04 | BI83: 0.12 | BJ83: 0 | BK83: 0.38 | BL83: 0 | BM83: 0.11 | BN83: 0 | BO83: 0 | BP83: 0 | BQ83: 0.01 | BR83: 0.04 | BS83: 0.34 | BT83: 0 | BU83: 0 | BV83: 0.06 | BW83: 0 | BX83: 0 | BY83: 0 | BZ83: 0 | CA83: 0 | CB83: 125.55 | CE83: 32.28 | CG83: 1.44 | CH83: 0.55 | CI83: 1 | CJ83: 46.49 | CK83: 20.55 | CL83: 33.52 | CM83: 0.91 | CN83: 0.21 | CO83: 0.56 | CP83: 0.9 | CQ83: 0.3
B84: Итого за 'Уплотненный полдник' | C84: =SUM(C81:C83) -> 320 | D84: =SUM(D81:D83) -> 5.7 | E84: 3.0 | F84: 4.2 | G84: 0.4 | H84: 26.2 | I84: 162 | J84: 2.7 | K84: 0.0 | L84: 0.0 | M84: 0.0 | N84: 9.9 | O84: 14.2 | P84: 2.2 | Q84: 0.0 | R84: 0.0 | S84: 0.3 | T84: 1.7 | U84: 289.5 | V84: 215.8 | W84: 132.8 | X84: 25.3 | Y84: 129.7 | Z84: 1.1 | AA84: 29.9 | AB84: 15.6 | AC84: 33.1 | AD84: 0.5 | AE84: 0.1 | AF84: 0.2 | AG84: 0.4 | AH84: 1.6 | AI84: 0.6 | AJ84: 0 | AK84: 957.24 | AL84: 784.83 | AM84: 1452.75 | AN84: 1103.7 | AO84: 426.79 | AP84: 728.4 | AQ84: 240.58 | AR84: 887.5 | AS84: 136.27 | AT84: 145.66 | AU84: 209.78 | AV84: 498.03 | AW84: 124.79 | AX84: 672.45 | AY84: 0.59 | AZ84: 210.35 | BA84: 151.42 | BB84: 930.07 | BC84: 124.75 | BD84: 0 | BE84: 0 | BF84: 0 | BG84: 0 | BH84: 0 | BI84: 0 | BJ84: 0 | BK84: 0.09 | BL84: 0 | BM84: 0.04 | BN84: 0.01 | BO84: 0.01 | BP84: 0 | BQ84: 0 | BR84: 0 | BS84: 0.27 | BT84: 0 | BU84: 0 | BV84: 0.71 | BW84: 0.02 | BX84: 0 | BY84: 0 | BZ84: 0 | CA84: 0 | CB84: 240.66 | CD84: =$I$84/#REF!*100 ->  | CE84: 65.86 | CG84: 16.32 | CH84: 15.25 | CI84: 15.78 | CJ84: 1782.34 | CK84: 1024.58 | CL84: 1403.46 | CM84: 65.47 | CN84: 42.75 | CO84: 54.11 | CP84: 8.15 | CQ84: 0
B85: Итого за день | C85: =C68+C71+C79+C84 -> 1265 | D85: 29.0 | E85: 16.3 | F85: 28.9 | G85: 5.2 | H85: 144.0 | I85: 927 | J85: 13.6 | K85: 1.3 | L85: 0.0 | M85: 0.0 | N85: 50.7 | O85: 79.1 | P85: 14.3 | Q85: 0.0 | R85: 0.0 | S85: 1.8 | T85: 8.5 | U85: 1305.3 | V85: 1443.9 | W85: 336.7 | X85: 167.5 | Y85: 500.8 | Z85: 9.1 | AA85: 98.8 | AB85: 1222.6 | AC85: 350.0 | AD85: 4.0 | AE85: 0.6 | AF85: 0.6 | AG85: 5.8 | AH85: 13.3 | AI85: 14.4 | AJ85: 0 | AK85: 2083.75 | AL85: 1786.12 | AM85: 3253.15 | AN85: 2661.01 | AO85: 902.03 | AP85: 1698.11 | AQ85: 581.7 | AR85: 1971.61 | AS85: 1384.48 | AT85: 1672.99 | AU85: 2102.79 | AV85: 1062.63 | AW85: 1525.18 | AX85: 5266.69 | AY85: 105.65 | AZ85: 1644.77 | BA85: 1232.3 | BB85: 1696.42 | BC85: 486.86 | BD85: 0.21 | BE85: 0.09 | BF85: 0.05 | BG85: 0.12 | BH85: 0.13 | BI85: 0.61 | BJ85: 0 | BK85: 2.46 | BL85: 0 | BM85: 0.93 | BN85: 0.04 | BO85: 0.06 | BP85: 0 | BQ85: 0.12 | BR85: 0.19 | BS85: 3.96 | BT85: 0 | BU85: 0 | BV85: 5.72 | BW85: 0.06 | BX85: 0 | BY85: 0 | BZ85: 0 | CA85: 0 | CB85: 1054 | CE85: 785.58 | CG85: 125.16 | CH85: 75.87 | CI85: 100.51 | CJ85: 7978.96 | CK85: 3905.7 | CL85: 5942.33 | CM85: 247.62 | CN85: 147.42 | CO85: 197.52 | CP85: 23.15 | CQ85: 1.78
B86: 4 ДЕНЬ
B87: Завтрак
A88: ="-" -> - | B88: Хлеб пшеничный | C88: 25 | D88: 1.5 | E88: 0.0 | F88: 0.2 | G88: 0.2 | H88: 9.2 | I88: 45 | J88: 0.0 | K88: 0.0 | L88: 0.0 | M88: 0.0 | N88: 0.3 | O88: 8.9 | P88: 0.1 | Q88: 0.0 | R88: 0.0 | S88: 0.0 | T88: 0.5 | U88: 0.0 | V88: 0.0 | W88: 0.0 | X88: 0.0 | Y88: 0.0 | Z88: 0.0 | AA88: 0.0 | AB88: 0.0 | AC88: 0.0 | AD88: 0.0 | AE88: 0.0 | AF88: 0.0 | AG88: 0.0 | AH88: 0.0 | AI88: 0.0 | AJ88: 0 | AK88: 79.82 | AL88: 83.09 | AM88: 127.24 | AN88: 42.2 | AO88: 25.01 | AP88: 50.03 | AQ88: 18.92 | AR88: 90.48 | AS88: 56.12 | AT88: 78.3 | AU88: 64.6 | AV88: 33.93 | AW88: 60.03 | AX88: 501.99 | AY88: 0 | AZ88: 163.56 | BA88: 71.12 | BB88: 47.2 | BC88: 37.41 | BD88: 0 | BE88: 0 | BF88: 0 | BG88: 0 | BH88: 0 | BI88: 0 | BJ88: 0 | BK88: 0.02 | BL88: 0 | BM88: 0 | BN88: 0 | BO88: 0 | BP88: 0 | BQ88: 0 | BR88: 0 | BS88: 0.02 | BT88: 0 | BU88: 0 | BV88: 0.07 | BW88: 0 | BX88: 0 | BY88: 0 | BZ88: 0 | CA88: 0 | CB88: 9.78 | CE88: 0 | CG88: 0 | CH88: 0 | CI88: 0 | CJ88: 570 | CK88: 219.6 | CL88: 394.8 | CM88: 4.56 | CN88: 4.56 | CO88: 4.56 | CP88: 0 | CQ88: 0
A89: ="4/13" -> 4/13 | B89: Сыр (порциями) | C89: 10 | D89: 1.5 | E89: 2.6 | F89: 2.7 | G89: 0.0 | H89: 0.0 | I89: 31 | J89: 1.5 | K89: 0.0 | L89: 0.0 | M89: 0.0 | N89: 0.0 | O89: 0.0 | P89: 0.0 | Q89: 0.0 | R89: 0.0 | S89: 0.2 | T89: 0.4 | U89: 110.0 | V89: 10.0 | W89: 100.0 | X89: 5.5 | Y89: 60.0 | Z89: 0.1 | AA89: 21.0 | AB89: 17.0 | AC89: 23.8 | AD89: 0.0 | AE89: 0.0 | AF89: 0.0 | AG89: 0.0 | AH89: 0.7 | AI89: 0.1 | AJ89: 0 | AK89: 157 | AL89: 117 | AM89: 230 | AN89: 158 | AO89: 56 | AP89: 95 | AQ89: 70 | AR89: 134 | AS89: 76 | AT89: 87 | AU89: 156 | AV89: 70 | AW89: 51 | AX89: 517 | AY89: 0 | AZ89: 273 | BA89: 129 | BB89: 139 | BC89: 21.5 | BD89: 0 | BE89: 0.01 | BF89: 0.04 | BG89: 0.11 | BH89: 0.13 | BI89: 0.33 | BJ89: 0.04 | BK89: 0.7 | BL89: 0.01 | BM89: 0.16 | BN89: 0.01 | BO89: 0 | BP89: 0 | BQ89: 0.05 | BR89: 0.07 | BS89: 0.52 | BT89: 0 | BU89: 0 | BV89: 0.07 | BW89: 0 | BX89: 0 | BY89: 0 | BZ89: 0 | CA89: 0 | CB89: 4.08 | CE89: 23.83 | CG89: 0 | CH89: 0 | CI89: 0 | CJ89: 500 | CK89: 370 | CL89: 435 | CM89: 1.53 | CN89: 0.97 | CO89: 1.25 | CP89: 0 | CQ89: 0
A90: ="32/10" -> 32/10 | B90: Кофейный напиток с молоком | C90: 150 | D90: 3.0 | E90: 2.1 | F90: 2.6 | G90: 0.1 | H90: 10.8 | I90: 76 | J90: 1.3 | K90: 0.0 | L90: 0.0 | M90: 0.0 | N90: 10.8 | O90: 0.0 | P90: 0.0 | Q90: 0.0 | R90: 0.0 | S90: 0.1 | T90: 0.5 | U90: 37.2 | V90: 108.6 | W90: 87.5 | X90: 10.0 | Y90: 62.8 | Z90: 0.1 | AA90: 15.0 | AB90: 6.8 | AC90: 16.5 | AD90: 0.0 | AE90: 0.0 | AF90: 0.1 | AG90: 0.1 | AH90: 0.6 | AI90: 0.4 | AJ90: 0 | AK90: 0 | AL90: 0 | AM90: 0 | AN90: 0 | AO90: 0 | AP90: 0 | AQ90: 0 | AR90: 0 | AS90: 0 | AT90: 0 | AU90: 0 | AV90: 0 | AW90: 0 | AX90: 0 | AY90: 0 | AZ90: 0 | BA90: 0 | BB90: 0 | BC90: 0 | BD90: 0 | BE90: 0 | BF90: 0 | BG90: 0 | BH90: 0 | BI90: 0 | BJ90: 0 | BK90: 0 | BL90: 0 | BM90: 0 | BN90: 0 | BO90: 0 | BP90: 0 | BQ90: 0 | BR90: 0 | BS90: 0 | BT90: 0 | BU90: 0 | BV90: 0 | BW90: 0 | BX90: 0 | BY90: 0 | BZ90: 0 | CA90: 0 | CB90: 149.52 | CE90: 16.13 | CG90: 10.25 | CH90: 3.95 | CI90: 7.1 | CJ90: 792 | CK90: 288.18 | CL90: 540.09 | CM90: 34.02 | CN90: 16.11 | CO90: 25.07 | CP90: 7.5 | CQ90: 0
A91: ="16/4" -> 16/4 | B91: Каша пшеничная молочная с маслом сливочным | C91: 150 | D91: 4.9 | E91: 1.8 | F91: 4.1 | G91: 1.0 | H91: 24.5 | I91: 153 | J91: 2.5 | K91: 0.1 | L91: 0.0 | M91: 0.0 | N91: 5.8 | O91: 17.6 | P91: 1.0 | Q91: 0.0 | R91: 0.0 | S91: 0.1 | T91: 1.2 | U91: 178.6 | V91: 133.7 | W91: 72.4 | X91: 29.0 | Y91: 108.8 | Z91: 0.8 | AA91: 14.4 | AB91: 16.8 | AC91: 27.6 | AD91: 0.1 | AE91: 0.1 | AF91: 0.1 | AG91: 0.4 | AH91: 1.9 | AI91: 0.3 | AJ91: 0 | AK91: 133.72 | AL91: 122.42 | AM91: 434.73 | AN91: 82.49 | AO91: 83.95 | AP91: 114.13 | AQ91: 51.97 | AR91: 164.74 | AS91: 304.17 | AT91: 120.58 | AU91: 184.91 | AV91: 74.31 | AW91: 85.28 | AX91: 630.04 | AY91: 0 | AZ91: 229.77 | BA91: 198.92 | BB91: 116.8 | BC91: 51.04 | BD91: 0.07 | BE91: 0.03 | BF91: 0.02 | BG91: 0.04 | BH91: 0.05 | BI91: 0.21 | BJ91: 0 | BK91: 0.65 | BL91: 0 | BM91: 0.19 | BN91: 0.01 | BO91: 0 | BP91: 0 | BQ91: 0.04 | BR91: 0.06 | BS91: 0.61 | BT91: 0 | BU91: 0 | BV91: 0.58 | BW91: 0.01 | BX91: 0 | BY91: 0 | BZ91: 0 | CA91: 0 | CB91: 124.35 | CE91: 17.2 | CG91: 31 | CH91: 15.28 | CI91: 23.14 | CJ91: 2123.67 | CK91: 973.11 | CL91: 1548.39 | CM91: 36.56 | CN91: 18.86 | CO91: 27.71 | CP91: 3 | CQ91: 0.38
B92: Итого за 'Завтрак' | C92: =SUM(C88:C91) -> 335 | D92: =SUM(D88:D91) -> 10.9 | E92: 6.5 | F92: 9.5 | G92: 1.3 | H92: 44.5 | I92: 305 | J92: 5.3 | K92: 0.1 | L92: 0.0 | M92: 0.0 | N92: 16.9 | O92: 26.5 | P92: 1.0 | Q92: 0.0 | R92: 0.0 | S92: 0.3 | T92: 2.6 | U92: 325.8 | V92: 252.3 | W92: 259.9 | X92: 44.5 | Y92: 231.6 | Z92: 0.9 | AA92: 50.4 | AB92: 40.6 | AC92: 67.9 | AD92: 0.2 | AE92: 0.1 | AF92: 0.2 | AG92: 0.5 | AH92: 3.2 | AI92: 0.8 | AJ92: 0 | AK92: 370.55 | AL92: 322.5 | AM92: 791.97 | AN92: 282.68 | AO92: 164.96 | AP92: 259.15 | AQ92: 140.9 | AR92: 389.22 | AS92: 436.28 | AT92: 285.88 | AU92: 405.5 | AV92: 178.24 | AW92: 196.31 | AX92: 1649.03 | AY92: 0 | AZ92: 666.33 | BA92: 399.05 | BB92: 303 | BC92: 109.95 | BD92: 0.07 | BE92: 0.04 | BF92: 0.06 | BG92: 0.15 | BH92: 0.17 | BI92: 0.55 | BJ92: 0.04 | BK92: 1.36 | BL92: 0.01 | BM92: 0.35 | BN92: 0.02 | BO92: 0 | BP92: 0 | BQ92: 0.09 | BR92: 0.13 | BS92: 1.15 | BT92: 0 | BU92: 0 | BV92: 0.71 | BW92: 0.01 | BX92: 0 | BY92: 0 | BZ92: 0 | CA92: 0 | CB92: 287.73 | CD92: =$I$92/#REF!*100 ->  | CE92: 57.16 | CG92: 41.25 | CH92: 19.23 | CI92: 30.24 | CJ92: 3985.67 | CK92: 1850.89 | CL92: 2918.28 | CM92: 76.67 | CN92: 40.5 | CO92: 58.58 | CP92: 10.5 | CQ92: 0.38
B93: Второй завтрак
A94: ="-" -> - | B94: Йогурт | C94: 100 | D94: 4.8 | E94: 4.1 | F94: 2.5 | G94: 0.0 | H94: 11.0 | I94: 87 | J94: 0.9 | K94: 0.0 | L94: 0.0 | M94: 0.0 | N94: 11.0 | O94: 0.0 | P94: 0.0 | Q94: 0.0 | R94: 0.0 | S94: 1.1 | T94: 0.9 | U94: 50.0 | V94: 152.0 | W94: 124.0 | X94: 15.0 | Y94: 95.0 | Z94: 0.1 | AA94: 10.0 | AB94: 0.0 | AC94: 10.0 | AD94: 0.0 | AE94: 0.0 | AF94: 0.2 | AG94: 0.2 | AH94: 1.2 | AI94: 0.6 | AJ94: 0 | AK94: 323 | AL94: 300 | AM94: 450 | AN94: 387 | AO94: 115 | AP94: 216 | AQ94: 72 | AR94: 225 | AS94: 160 | AT94: 174 | AU94: 344 | AV94: 156 | AW94: 93 | AX94: 897 | AY94: 0 | AZ94: 518 | BA94: 278 | BB94: 242 | BC94: 50 | BD94: 0.1 | BE94: 0.07 | BF94: 0.04 | BG94: 0.08 | BH94: 0.09 | BI94: 0.45 | BJ94: 0.03 | BK94: 0.56 | BL94: 0.02 | BM94: 0.31 | BN94: 0.04 | BO94: 0 | BP94: 0 | BQ94: 0.04 | BR94: 0.08 | BS94: 0.69 | BT94: 0.01 | BU94: 0 | BV94: 0.02 | BW94: 0.03 | BX94: 0.08 | BY94: 0 | BZ94: 0 | CA94: 0 | CB94: 86.5 | CE94: 10 | CG94: 9 | CH94: 9 | CI94: 9 | CJ94: 0 | CK94: 0 | CL94: 0 | CM94: 2 | CN94: 2 | CO94: 2 | CP94: 0 | CQ94: 0
B95: Итого за 'Второй завтрак' | C95: =SUM(C94) -> 100 | D95: =SUM(D94) -> 4.8 | E95: 4.1 | F95: 2.5 | G95: 0.0 | H95: 11.0 | I95: 87 | J95: 0.9 | K95: 0.0 | L95: 0.0 | M95: 0.0 | N95: 11.0 | O95: 0.0 | P95: 0.0 | Q95: 0.0 | R95: 0.0 | S95: 1.1 | T95: 0.9 | U95: 50.0 | V95: 152.0 | W95: 124.0 | X95: 15.0 | Y95: 95.0 | Z95: 0.1 | AA95: 10.0 | AB95: 0.0 | AC95: 10.0 | AD95: 0.0 | AE95: 0.0 | AF95: 0.2 | AG95: 0.2 | AH95: 1.2 | AI95: 0.6 | AJ95: 0 | AK95: 323 | AL95: 300 | AM95: 450 | AN95: 387 | AO95: 115 | AP95: 216 | AQ95: 72 | AR95: 225 | AS95: 160 | AT95: 174 | AU95: 344 | AV95: 156 | AW95: 93 | AX95: 897 | AY95: 0 | AZ95: 518 | BA95: 278 | BB95: 242 | BC95: 50 | BD95: 0.1 | BE95: 0.07 | BF95: 0.04 | BG95: 0.08 | BH95: 0.09 | BI95: 0.45 | BJ95: 0.03 | BK95: 0.56 | BL95: 0.02 | BM95: 0.31 | BN95: 0.04 | BO95: 0 | BP95: 0 | BQ95: 0.04 | BR95: 0.08 | BS95: 0.69 | BT95: 0.01 | BU95: 0 | BV95: 0.02 | BW95: 0.03 | BX95: 0.08 | BY95: 0 | BZ95: 0 | CA95: 0 | CB95: 86.5 | CD95: =$I$95/#REF!*100 ->  | CE95: 10 | CG95: 9 | CH95: 9 | CI95: 9 | CJ95: 0 | CK95: 0 | CL95: 0 | CM95: 2 | CN95: 2 | CO95: 2 | CP95: 0 | CQ95: 0
B96: Обед
A97: ="-" -> - | B97: Хлеб пшеничный | C97: 20 | D97: 1.2 | E97: 0.0 | F97: 0.1 | G97: 0.1 | H97: 7.4 | I97: 36 | J97: 0.0 | K97: 0.0 | L97: 0.0 | M97: 0.0 | N97: 0.2 | O97: 7.1 | P97: 0.0 | Q97: 0.0 | R97: 0.0 | S97: 0.0 | T97: 0.4 | U97: 0.0 | V97: 0.0 | W97: 0.0 | X97: 0.0 | Y97: 0.0 | Z97: 0.0 | AA97: 0.0 | AB97: 0.0 | AC97: 0.0 | AD97: 0.0 | AE97: 0.0 | AF97: 0.0 | AG97: 0.0 | AH97: 0.0 | AI97: 0.0 | AJ97: 0 | AK97: 63.86 | AL97: 66.47 | AM97: 101.79 | AN97: 33.76 | AO97: 20.01 | AP97: 40.02 | AQ97: 15.14 | AR97: 72.38 | AS97: 44.89 | AT97: 62.64 | AU97: 51.68 | AV97: 27.14 | AW97: 48.02 | AX97: 401.59 | AY97: 0 | AZ97: 130.85 | BA97: 56.9 | BB97: 37.76 | BC97: 29.93 | BD97: 0 | BE97: 0 | BF97: 0 | BG97: 0 | BH97: 0 | BI97: 0 | BJ97: 0 | BK97: 0.02 | BL97: 0 | BM97: 0 | BN97: 0 | BO97: 0 | BP97: 0 | BQ97: 0 | BR97: 0 | BS97: 0.01 | BT97: 0 | BU97: 0 | BV97: 0.06 | BW97: 0 | BX97: 0 | BY97: 0 | BZ97: 0 | CA97: 0 | CB97: 7.82 | CE97: 0 | CG97: 0 | CH97: 0 | CI97: 0 | CJ97: 380 | CK97: 146.4 | CL97: 263.2 | CM97: 3.04 | CN97: 3.04 | CO97: 3.04 | CP97: 0 | CQ97: 0
A98: ="-" -> - | B98: Хлеб ржаной | C98: 20 | D98: 1.2 | E98: 0.0 | F98: 0.2 | G98: 0.2 | H98: 8.3 | I98: 38 | J98: 0.0 | K98: 0.0 | L98: 0.0 | M98: 0.0 | N98: 0.2 | O98: 6.4 | P98: 1.7 | Q98: 0.0 | R98: 0.0 | S98: 0.2 | T98: 0.5 | U98: 122.0 | V98: 49.0 | W98: 7.0 | X98: 9.4 | Y98: 31.6 | Z98: 0.8 | AA98: 0.0 | AB98: 1.0 | AC98: 0.2 | AD98: 0.3 | AE98: 0.0 | AF98: 0.0 | AG98: 0.1 | AH98: 0.4 | AI98: 0.0 | AJ98: 0 | AK98: 64.4 | AL98: 49.6 | AM98: 85.4 | AN98: 44.6 | AO98: 18.6 | AP98: 39.6 | AQ98: 16 | AR98: 74.2 | AS98: 59.4 | AT98: 58.2 | AU98: 92.8 | AV98: 24.8 | AW98: 62 | AX98: 311.8 | AY98: 0 | AZ98: 105.2 | BA98: 58.2 | BB98: 36 | BC98: 26 | BD98: 0 | BE98: 0 | BF98: 0 | BG98: 0 | BH98: 0 | BI98: 0 | BJ98: 0 | BK98: 0.03 | BL98: 0 | BM98: 0 | BN98: 0 | BO98: 0 | BP98: 0 | BQ98: 0 | BR98: 0 | BS98: 0.02 | BT98: 0 | BU98: 0 | BV98: 0.1 | BW98: 0.02 | BX98: 0 | BY98: 0 | BZ98: 0 | CA98: 0 | CB98: 9.4 | CE98: 0.17 | CG98: 3 | CH98: 3 | CI98: 3 | CJ98: 570 | CK98: 219.6 | CL98: 394.8 | CM98: 5.7 | CN98: 4.74 | CO98: 5.22 | CP98: 0 | CQ98: 0
A99: ="3/10" -> 3/10 | B99: Компот из яблок | C99: 150 | D99: 0.1 | E99: 0.0 | F99: 0.1 | G99: 0.1 | H99: 14.4 | I99: 56 | J99: 0.0 | K99: 0.0 | L99: 0.0 | M99: 0.0 | N99: 13.7 | O99: 0.2 | P99: 0.5 | Q99: 0.0 | R99: 0.0 | S99: 0.2 | T99: 0.2 | U99: 7.8 | V99: 82.9 | W99: 5.0 | X99: 2.6 | Y99: 3.1 | Z99: 0.7 | AA99: 0.0 | AB99: 8.1 | AC99: 1.5 | AD99: 0.1 | AE99: 0.0 | AF99: 0.0 | AG99: 0.1 | AH99: 0.1 | AI99: 1.2 | AJ99: 0 | AK99: 3.53 | AL99: 3.82 | AM99: 5.59 | AN99: 5.29 | AO99: 0.88 | AP99: 3.23 | AQ99: 0.88 | AR99: 2.65 | AS99: 5 | AT99: 2.94 | AU99: 22.93 | AV99: 2.06 | AW99: 4.12 | AX99: 12.35 | AY99: 0 | AZ99: 3.82 | BA99: 4.7 | BB99: 1.76 | BC99: 1.47 | BD99: 0 | BE99: 0 | BF99: 0 | BG99: 0 | BH99: 0 | BI99: 0 | BJ99: 0 | BK99: 0 | BL99: 0 | BM99: 0 | BN99: 0 | BO99: 0 | BP99: 0 | BQ99: 0 | BR99: 0 | BS99: 0 | BT99: 0 | BU99: 0 | BV99: 0 | BW99: 0 | BX99: 0 | BY99: 0 | BZ99: 0 | CA99: 0 | CB99: 183.4 | CE99: 1.35 | CG99: 4.5 | CH99: 4.5 | CI99: 4.5 | CJ99: 432 | CK99: 208.98 | CL99: 320.49 | CM99: 41.2 | CN99: 24.19 | CO99: 32.7 | CP99: 11.25 | CQ99: 0
A100: ="49/1" -> 49/1 | B100: Салат "Винегрет" с растительным маслом | C100: 30 | D100: 0.4 | E100: 0.0 | F100: 1.8 | G100: 1.8 | H100: 3.2 | I100: 30 | J100: 0.2 | K100: 1.2 | L100: 0.0 | M100: 0.0 | N100: 1.1 | O100: 1.6 | P100: 0.5 | Q100: 0.0 | R100: 0.0 | S100: 0.1 | T100: 0.6 | U100: 105.8 | V100: 84.6 | W100: 6.4 | X100: 5.7 | Y100: 13.1 | Z100: 0.3 | AA100: 0.0 | AB100: 276.7 | AC100: 55.3 | AD100: 0.8 | AE100: 0.0 | AF100: 0.0 | AG100: 0.2 | AH100: 0.3 | AI100: 1.2 | AJ100: 0 | AK100: 8.21 | AL100: 9.87 | AM100: 12.01 | AN100: 14.32 | AO100: 2.81 | AP100: 9.37 | AQ100: 3.44 | AR100: 8.81 | AS100: 10.15 | AT100: 23.42 | AU100: 31.08 | AV100: 2.78 | AW100: 7.63 | AX100: 47.21 | AY100: 0 | AZ100: 6.97 | BA100: 7.67 | BB100: 6.84 | BC100: 2.67 | BD100: 0 | BE100: 0 | BF100: 0 | BG100: 0 | BH100: 0 | BI100: 0 | BJ100: 0 | BK100: 0.12 | BL100: 0 | BM100: 0.07 | BN100: 0.01 | BO100: 0.01 | BP100: 0 | BQ100: 0 | BR100: 0 | BS100: 0.44 | BT100: 0 | BU100: 0 | BV100: 1.05 | BW100: 0 | BX100: 0 | BY100: 0 | BZ100: 0 | CA100: 0 | CB100: 24.42 | CE100: 46.11 | CG100: 7.5 | CH100: 4.45 | CI100: 5.97 | CJ100: 192.1 | CK100: 79.41 | CL100: 135.76 | CM100: 3.13 | CN100: 0.91 | CO100: 2.02 | CP100: 0 | CQ100: 0.15
A101: ="14/2" -> 14/2 | B101: Суп картофельный с пшенной крупой на говяжьем бульоне | C101: 150 | D101: 2.0 | E101: 4.9 | F101: 6.4 | G101: 3.3 | H101: 10.1 | I101: 105 | J101: 1.6 | K101: 2.0 | L101: 0.0 | M101: 0.0 | N101: 1.3 | O101: 7.9 | P101: 0.9 | Q101: 0.0 | R101: 0.0 | S101: 0.1 | T101: 1.5 | U101: 352.4 | V101: 248.1 | W101: 10.2 | X101: 13.9 | Y101: 34.6 | Z101: 0.5 | AA101: 0.0 | AB101: 583.7 | AC101: 121.4 | AD101: 1.4 | AE101: 0.1 | AF101: 0.1 | AG101: 0.6 | AH101: 1.0 | AI101: 3.9 | AJ101: 0 | AK101: 26.26 | AL101: 31.02 | AM101: 66.89 | AN101: 35.65 | AO101: 13.09 | AP101: 30.01 | AQ101: 13.99 | AR101: 35.45 | AS101: 57.56 | AT101: 81.98 | AU101: 55.56 | AV101: 14.05 | AW101: 27.44 | AX101: 168.93 | AY101: 0 | AZ101: 37.23 | BA101: 33.02 | BB101: 25.27 | BC101: 11.25 | BD101: 0 | BE101: 0 | BF101: 0 | BG101: 0 | BH101: 0 | BI101: 0 | BJ101: 0 | BK101: 0.2 | BL101: 0 | BM101: 0.12 | BN101: 0.01 | BO101: 0.02 | BP101: 0 | BQ101: 0 | BR101: 0 | BS101: 0.7 | BT101: 0 | BU101: 0 | BV101: 1.86 | BW101: 0 | BX101: 0 | BY101: 0 | BZ101: 0 | CA101: 0 | CB101: 149.94 | CE101: 97.28 | CG101: 49.25 | CH101: 27.54 | CI101: 38.39 | CJ101: 694.26 | CK101: 394.27 | CL101: 544.26 | CM101: 38.31 | CN101: 18.54 | CO101: 28.42 | CP101: 0 | CQ101: 0.9
A102: ="292/17" -> 292/17 | B102: Жаркое из мясо бройлер-цыплят с овощами | C102: 150 | D102: 14.4 | E102: 12.7 | F102: 18.9 | G102: 6.1 | H102: 26.5 | I102: 277 | J102: 3.9 | K102: 3.9 | L102: 0.0 | M102: 0.0 | N102: 4.1 | O102: 7.2 | P102: 1.6 | Q102: 0.0 | R102: 0.0 | S102: 0.3 | T102: 2.1 | U102: 249.3 | V102: 528.9 | W102: 28.6 | X102: 35.6 | Y102: 158.3 | Z102: 1.9 | AA102: 49.7 | AB102: 2580.4 | AC102: 527.6 | AD102: 3.2 | AE102: 0.1 | AF102: 0.2 | AG102: 5.5 | AH102: 10.2 | AI102: 6.4 | AJ102: 0 | AK102: 632.16 | AL102: 509.68 | AM102: 1016.89 | AN102: 1138.03 | AO102: 334.65 | AP102: 621.73 | AQ102: 215.47 | AR102: 544.76 | AS102: 842.2 | AT102: 940.02 | AU102: 1199.59 | AV102: 348.2 | AW102: 982.66 | AX102: 1956.65 | AY102: 105.07 | AZ102: 631.68 | BA102: 618.36 | BB102: 464.77 | BC102: 164.94 | BD102: 0 | BE102: 0 | BF102: 0 | BG102: 0 | BH102: 0 | BI102: 0 | BJ102: 0 | BK102: 0.4 | BL102: 0 | BM102: 0.25 | BN102: 0.02 | BO102: 0.04 | BP102: 0 | BQ102: 0 | BR102: 0 | BS102: 1.47 | BT102: 0 | BU102: 0 | BV102: 3.52 | BW102: 0 | BX102: 0 | BY102: 0 | BZ102: 0 | CA102: 0 | CB102: 118.67 | CE102: 479.77 | CG102: 9.72 | CH102: 5.32 | CI102: 7.52 | CJ102: 929.36 | CK102: 574.46 | CL102: 751.91 | CM102: 8.57 | CN102: 4.48 | CO102: 6.53 | CP102: 0 | CQ102: 0.5
B103: Итого за 'Обед' | C103: =SUM(C97:C102) -> 520 | D103: 19.4 | E103: 17.5 | F103: 27.6 | G103: 11.7 | H103: 69.9 | I103: 542 | J103: 5.8 | K103: 7.0 | L103: 0.0 | M103: 0.0 | N103: 20.5 | O103: 30.6 | P103: 5.2 | Q103: 0.0 | R103: 0.0 | S103: 1.0 | T103: 5.2 | U103: 837.4 | V103: 993.5 | W103: 57.2 | X103: 67.1 | Y103: 240.7 | Z103: 4.1 | AA103: 49.7 | AB103: 3449.8 | AC103: 706.1 | AD103: 5.8 | AE103: 0.3 | AF103: 0.2 | AG103: 6.4 | AH103: 12.1 | AI103: 12.7 | AJ103: 0 | AK103: 616.71 | AL103: 516.05 | AM103: 938.9 | AN103: 782.53 | AO103: 296.62 | AP103: 509.17 | AQ103: 195.48 | AR103: 603.62 | AS103: 708.42 | AT103: 938.75 | AU103: 1085.02 | AV103: 312.37 | AW103: 789.04 | AX103: 2442.1 | AY103: 46.89 | AZ103: 715.59 | BA103: 610.88 | BB103: 435.73 | BC103: 239.08 | BD103: 0.11 | BE103: 0.05 | BF103: 0.03 | BG103: 0.06 | BH103: 0.07 | BI103: 0.33 | BJ103: 0 | BK103: 1.41 | BL103: 0 | BM103: 0.48 | BN103: 0.02 | BO103: 0.03 | BP103: 0 | BQ103: 0.06 | BR103: 0.11 | BS103: 2.22 | BT103: 0.01 | BU103: 0 | BV103: 3.41 | BW103: 0.05 | BX103: 0 | BY103: 0 | BZ103: 0 | CA103: 0 | CB103: 526.39 | CD103: =$I$103/#REF!*100 ->  | CE103: 175.1 | CG103: 101.41 | CH103: 59.8 | CI103: 80.61 | CJ103: 5544.97 | CK103: 2864.65 | CL103: 4204.81 | CM103: 146.47 | CN103: 86.76 | CO103: 116.63 | CP103: 11.25 | CQ103: 1.6
B104: Уплотненный полдник
A105: ="14/12" -> 14/12 | B105: Булочка дорожная | C105: 70 | D105: 5.4 | E105: 0.9 | F105: 7.7 | G105: 0.6 | H105: 38.7 | I105: 244 | J105: 5.4 | K105: 0.2 | L105: 0.0 | M105: 0.0 | N105: 9.1 | O105: 28.1 | P105: 1.5 | Q105: 0.0 | R105: 0.0 | S105: 0.0 | T105: 1.0 | U105: 176.8 | V105: 81.5 | W105: 33.8 | X105: 9.2 | Y105: 55.1 | Z105: 0.6 | AA105: 27.9 | AB105: 26.9 | AC105: 52.2 | AD105: 0.8 | AE105: 0.1 | AF105: 0.1 | AG105: 0.5 | AH105: 1.6 | AI105: 0.1 | AJ105: 0 | AK105: 213.74 | AL105: 194.06 | AM105: 363.13 | AN105: 122.37 | AO105: 70.5 | AP105: 143.31 | AQ105: 48.51 | AR105: 223.28 | AS105: 152.28 | AT105: 180.77 | AU105: 163.57 | AV105: 93.72 | AW105: 158.55 | AX105: 1353.11 | AY105: 2.3 | AZ105: 425.26 | BA105: 224.98 | BB105: 115.67 | BC105: 88.47 | BD105: 0.25 | BE105: 0.11 | BF105: 0.06 | BG105: 0.14 | BH105: 0.16 | BI105: 0.73 | BJ105: 0 | BK105: 2.09 | BL105: 0 | BM105: 0.63 | BN105: 0 | BO105: 0 | BP105: 0 | BQ105: 0.14 | BR105: 0.22 | BS105: 1.7 | BT105: 0 | BU105: 0 | BV105: 0.31 | BW105: 0.02 | BX105: 0 | BY105: 0 | BZ105: 0 | CA105: 0 | CB105: 28.57 | CE105: 32.38 | CG105: 20.02 | CH105: 9.8 | CI105: 14.91 | CJ105: 1135.57 | CK105: 398.9 | CL105: 767.24 | CM105: 10.2 | CN105: 4.99 | CO105: 8.05 | CP105: 4.2 | CQ105: 0.42
A106: ="-" -> - | B106: Сок в ассортименте | C106: 150 | D106: 0.8 | E106: 0.0 | F106: 0.2 | G106: 0.0 | H106: 15.5 | I106: 65 | J106: 0.0 | K106: 0.0 | L106: 0.0 | M106: 0.0 | N106: 14.9 | O106: 0.3 | P106: 0.3 | Q106: 0.0 | R106: 0.0 | S106: 0.8 | T106: 0.5 | U106: 9.0 | V106: 180.0 | W106: 10.5 | X106: 6.0 | Y106: 10.5 | Z106: 2.1 | AA106: 0.0 | AB106: 0.0 | AC106: 0.0 | AD106: 0.2 | AE106: 0.0 | AF106: 0.0 | AG106: 0.2 | AH106: 0.3 | AI106: 3.0 | AJ106: 0.3 | AK106: 12 | AL106: 15 | AM106: 21 | AN106: 21 | AO106: 3 | AP106: 12 | AQ106: 3 | AR106: 10.5 | AS106: 19.5 | AT106: 12 | AU106: 87 | AV106: 7.5 | AW106: 16.5 | AX106: 48 | AY106: 0 | AZ106: 15 | BA106: 18 | BB106: 7.5 | BC106: 6 | BD106: 0 | BE106: 0 | BF106: 0 | BG106: 0 | BH106: 0 | BI106: 0 | BJ106: 0 | BK106: 0 | BL106: 0 | BM106: 0 | BN106: 0 | BO106: 0 | BP106: 0 | BQ106: 0 | BR106: 0 | BS106: 0 | BT106: 0 | BU106: 0 | BV106: 0 | BW106: 0 | BX106: 0 | BY106: 0 | BZ106: 0 | CA106: 0 | CB106: 132.15 | CE106: 0 | CG106: 3.6 | CH106: 3.6 | CI106: 3.6 | CJ106: 360 | CK106: 163.8 | CL106: 261.9 | CM106: 0.54 | CN106: 0.54 | CO106: 0.54 | CP106: 0 | CQ106: 0
A107: ="2/6" -> 2/6 | B107: Омлет запеченный или паровой | C107: 120 | D107: 12.6 | E107: 13.3 | F107: 17.1 | G107: 0.0 | H107: 2.3 | I107: 213 | J107: 8.4 | K107: 0.2 | L107: 0.0 | M107: 0.0 | N107: 2.3 | O107: 0.0 | P107: 0.0 | Q107: 0.0 | R107: 0.0 | S107: 0.0 | T107: 2.0 | U107: 380.5 | V107: 167.3 | W107: 88.6 | X107: 14.5 | Y107: 191.6 | Z107: 2.2 | AA107: 173.1 | AB107: 73.7 | AC107: 304.0 | AD107: 0.7 | AE107: 0.1 | AF107: 0.4 | AG107: 0.2 | AH107: 3.8 | AI107: 0.2 | AJ107: 0 | AK107: 700.73 | AL107: 542.71 | AM107: 982.87 | AN107: 819.23 | AO107: 384.27 | AP107: 555.02 | AQ107: 188.26 | AR107: 592.44 | AS107: 644.2 | AT107: 712.71 | AU107: 1114.58 | AV107: 310.21 | AW107: 377.73 | AX107: 1613.73 | AY107: 12.63 | AZ107: 362.01 | BA107: 842.67 | BB107: 433.62 | BC107: 265.37 | BD107: 0.24 | BE107: 0.11 | BF107: 0.06 | BG107: 0.14 | BH107: 0.16 | BI107: 0.72 | BJ107: 0 | BK107: 2.01 | BL107: 0 | BM107: 0.62 | BN107: 0 | BO107: 0 | BP107: 0 | BQ107: 0.14 | BR107: 0.21 | BS107: 1.64 | BT107: 0 | BU107: 0 | BV107: 0.09 | BW107: 0.01 | BX107: 0 | BY107: 0 | BZ107: 0 | CA107: 0 | CB107: 105.76 | CE107: 185.38 | CG107: 48.94 | CH107: 30.96 | CI107: 39.95 | CJ107: 209 | CK107: 77.6 | CL107: 143.3 | CM107: 14.28 | CN107: 7.8 | CO107: 11.04 | CP107: 0 | CQ107: 0.6
B108: Итого за 'Уплотненный полдник' | C108: =SUM(C105:C107) -> 340 | D108: =SUM(D105:D107) -> 18.8 | E108: 14.2 | F108: 25.0 | G108: 0.6 | H108: 56.4 | I108: 522 | J108: 13.8 | K108: 0.5 | L108: 0.0 | M108: 0.0 | N108: 26.2 | O108: 28.4 | P108: 1.8 | Q108: 0.0 | R108: 0.0 | S108: 0.8 | T108: 3.4 | U108: 566.3 | V108: 428.8 | W108: 132.9 | X108: 29.7 | Y108: 257.2 | Z108: 4.8 | AA108: 201.0 | AB108: 100.6 | AC108: 356.1 | AD108: 1.6 | AE108: 0.1 | AF108: 0.5 | AG108: 0.8 | AH108: 5.7 | AI108: 3.3 | AJ108: 0.3 | AK108: 926.47 | AL108: 751.77 | AM108: 1367 | AN108: 962.6 | AO108: 457.77 | AP108: 710.33 | AQ108: 239.78 | AR108: 826.22 | AS108: 815.98 | AT108: 905.48 | AU108: 1365.15 | AV108: 411.43 | AW108: 552.78 | AX108: 3014.84 | AY108: 14.94 | AZ108: 802.27 | BA108: 1085.65 | BB108: 556.79 | BC108: 359.85 | BD108: 0.49 | BE108: 0.23 | BF108: 0.12 | BG108: 0.28 | BH108: 0.32 | BI108: 1.45 | BJ108: 0 | BK108: 4.1 | BL108: 0 | BM108: 1.25 | BN108: 0 | BO108: 0 | BP108: 0 | BQ108: 0.28 | BR108: 0.43 | BS108: 3.34 | BT108: 0 | BU108: 0 | BV108: 0.41 | BW108: 0.03 | BX108: 0 | BY108: 0 | BZ108: 0 | CA108: 0 | CB108: 266.48 | CD108: =$I$108/#REF!*100 ->  | CE108: 217.76 | CG108: 72.55 | CH108: 44.36 | CI108: 58.46 | CJ108: 1704.57 | CK108: 640.3 | CL108: 1172.44 | CM108: 25.02 | CN108: 13.33 | CO108: 19.63 | CP108: 4.2 | CQ108: 1.02
B109: Итого за день | C109: =C92+C95+C103+C108 -> 1295 | D109: 53.8 | E109: 42.3 | F109: 64.6 | G109: 13.6 | H109: 181.8 | I109: 1456 | J109: 25.8 | K109: 7.6 | L109: 0.0 | M109: 0.0 | N109: 74.6 | O109: 85.5 | P109: 8.0 | Q109: 0.0 | R109: 0.0 | S109: 3.2 | T109: 12.1 | U109: 1779.5 | V109: 1826.6 | W109: 574.0 | X109: 156.4 | Y109: 824.5 | Z109: 10.0 | AA109: 311.1 | AB109: 3591.0 | AC109: 1140.1 | AD109: 7.6 | AE109: 0.6 | AF109: 1.1 | AG109: 8.0 | AH109: 22.1 | AI109: 17.4 | AJ109: 0.3 | AK109: 2236.73 | AL109: 1890.32 | AM109: 3547.86 | AN109: 2414.81 | AO109: 1034.36 | AP109: 1694.65 | AQ109: 648.15 | AR109: 2044.06 | AS109: 2120.68 | AT109: 2304.12 | AU109: 3199.67 | AV109: 1058.04 | AW109: 1631.13 | AX109: 8002.98 | AY109: 61.82 | AZ109: 2702.19 | BA109: 2373.58 | BB109: 1537.52 | BC109: 758.88 | BD109: 0.77 | BE109: 0.39 | BF109: 0.24 | BG109: 0.57 | BH109: 0.65 | BI109: 2.78 | BJ109: 0.07 | BK109: 7.43 | BL109: 0.03 | BM109: 2.4 | BN109: 0.08 | BO109: 0.03 | BP109: 0 | BQ109: 0.47 | BR109: 0.75 | BS109: 7.4 | BT109: 0.02 | BU109: 0 | BV109: 4.56 | BW109: 0.12 | BX109: 0.08 | BY109: 0 | BZ109: 0 | CA109: 0 | CB109: 1167.1 | CE109: 460.02 | CG109: 224.22 | CH109: 132.39 | CI109: 178.31 | CJ109: 11235.2 | CK109: 5355.83 | CL109: 8295.52 | CM109: 250.15 | CN109: 142.59 | CO109: 196.85 | CP109: 25.95 | CQ109: 3
B111: 5 ДЕНЬ
B112: Завтрак
A113: ="-" -> - | B113: Батон | C113: 30 | D113: 2.3 | E113: 0.0 | F113: 1.5 | G113: 0.9 | H113: 11.2 | I113: 66 | J113: 0.2 | K113: 0.0 | L113: 0.0 | M113: 0.0 | N113: 1.0 | O113: 9.2 | P113: 1.0 | Q113: 0.0 | R113: 0.0 | S113: 0.1 | T113: 0.5 | U113: 128.7 | V113: 39.3 | W113: 6.6 | X113: 9.9 | Y113: 25.5 | Z113: 0.6 | AA113: 0.0 | AB113: 0.0 | AC113: 0.0 | AD113: 0.5 | AE113: 0.1 | AF113: 0.0 | AG113: 0.5 | AH113: 0.9 | AI113: 0.0 | AJ113: 0 | AK113: 111.6 | AL113: 115.8 | AM113: 177.3 | AN113: 59.7 | AO113: 35.1 | AP113: 70.2 | AQ113: 26.4 | AR113: 126 | AS113: 78.3 | AT113: 108.9 | AU113: 90.3 | AV113: 48.3 | AW113: 84 | AX113: 697.5 | AY113: 0 | AZ113: 227.1 | BA113: 99.3 | BB113: 66.6 | BC113: 51.9 | BD113: 0 | BE113: 0 | BF113: 0 | BG113: 0 | BH113: 0 | BI113: 0.01 | BJ113: 0 | BK113: 0.1 | BL113: 0 | BM113: 0.05 | BN113: 0 | BO113: 0 | BP113: 0 | BQ113: 0 | BR113: 0 | BS113: 0.35 | BT113: 0 | BU113: 0 | BV113: 0.26 | BW113: 0.01 | BX113: 0 | BY113: 0 | BZ113: 0 | CA113: 0 | CB113: 10.23 | CE113: 0 | CG113: 0 | CH113: 0 | CI113: 0 | CJ113: 570 | CK113: 219.6 | CL113: 394.8 | CM113: 4.56 | CN113: 4.56 | CO113: 4.56 | CP113: 0 | CQ113: 0
A114: ="-" -> - | B114: Масло сливочное | C114: 5 | D114: 0.0 | E114: 0.0 | F114: 3.6 | G114: 0.0 | H114: 0.1 | I114: 33 | J114: 2.4 | K114: 0.1 | L114: 0.0 | M114: 0.0 | N114: 0.1 | O114: 0.0 | P114: 0.0 | Q114: 0.0 | R114: 0.0 | S114: 0.0 | T114: 0.1 | U114: 0.8 | V114: 1.5 | W114: 1.2 | X114: 0.0 | Y114: 1.5 | Z114: 0.0 | AA114: 20.0 | AB114: 15.0 | AC114: 22.5 | AD114: 0.1 | AE114: 0.0 | AF114: 0.0 | AG114: 0.0 | AH114: 0.0 | AI114: 0.0 | AJ114: 0 | AK114: 2.1 | AL114: 2.05 | AM114: 3.8 | AN114: 2.25 | AO114: 0.85 | AP114: 2.35 | AQ114: 2.15 | AR114: 2.1 | AS114: 1.8 | AT114: 1.3 | AU114: 2.85 | AV114: 1.75 | AW114: 1.2 | AX114: 7.1 | AY114: 0 | AZ114: 2.4 | BA114: 2.7 | BB114: 2.1 | BC114: 0.5 | BD114: 0.13 | BE114: 0.06 | BF114: 0.03 | BG114: 0.08 | BH114: 0.09 | BI114: 0.4 | BJ114: 0 | BK114: 1.1 | BL114: 0 | BM114: 0.34 | BN114: 0 | BO114: 0 | BP114: 0 | BQ114: 0.08 | BR114: 0.12 | BS114: 0.9 | BT114: 0 | BU114: 0 | BV114: 0.05 | BW114: 0 | BX114: 0 | BY114: 0 | BZ114: 0 | CA114: 0 | CB114: 1.25 | CE114: 22.5 | CG114: 0.2 | CH114: 0.05 | CI114: 0.13 | CJ114: 10 | CK114: 4.1 | CL114: 7.05 | CM114: 0.86 | CN114: 0.44 | CO114: 0.65 | CP114: 0 | CQ114: 0
A115: ="29/10" -> 29/10 | B115: Чай с лимоном | C115: 150 | D115: 0.2 | E115: 0.0 | F115: 0.0 | G115: 0.0 | H115: 7.4 | I115: 30 | J115: 0.0 | K115: 0.0 | L115: 0.0 | M115: 0.0 | N115: 7.3 | O115: 0.0 | P115: 0.2 | Q115: 0.0 | R115: 0.0 | S115: 0.2 | T115: 0.1 | U115: 0.5 | V115: 6.1 | W115: 1.6 | X115: 0.4 | Y115: 0.8 | Z115: 0.0 | AA115: 0.0 | AB115: 0.3 | AC115: 0.1 | AD115: 0.0 | AE115: 0.0 | AF115: 0.0 | AG115: 0.0 | AH115: 0.0 | AI115: 0.6 | AJ115: 0 | AK115: 0.5 | AL115: 0.57 | AM115: 0.47 | AN115: 0.86 | AO115: 0.22 | AP115: 0.9 | AQ115: 0 | AR115: 1.15 | AS115: 0 | AT115: 0 | AU115: 0 | AV115: 0.65 | AW115: 0 | AX115: 0 | AY115: 0 | AZ115: 0 | BA115: 0 | BB115: 0 | BC115: 0 | BD115: 0 | BE115: 0 | BF115: 0 | BG115: 0 | BH115: 0 | BI115: 0 | BJ115: 0 | BK115: 0 | BL115: 0 | BM115: 0 | BN115: 0 | BO115: 0 | BP115: 0 | BQ115: 0 | BR115: 0 | BS115: 0 | BT115: 0 | BU115: 0 | BV115: 0 | BW115: 0 | BX115: 0 | BY115: 0 | BZ115: 0 | CA115: 0 | CB115: 149.62 | CE115: 0.05 | CG115: 3.85 | CH115: 3.72 | CI115: 3.79 | CJ115: 434.63 | CK115: 165.16 | CL115: 299.9 | CM115: 39.92 | CN115: 23.87 | CO115: 31.9 | CP115: 7.32 | CQ115: 0
A116: ="15/4" -> 15/4 | B116: Каша ячневая молочная с маслом сливочным | C116: 150 | D116: 4.5 | E116: 1.8 | F116: 3.6 | G116: 0.4 | H116: 25.3 | I116: 148 | J116: 2.6 | K116: 0.1 | L116: 0.0 | M116: 0.0 | N116: 5.7 | O116: 17.4 | P116: 2.2 | Q116: 0.0 | R116: 0.0 | S116: 0.1 | T116: 1.2 | U116: 180.1 | V116: 132.1 | W116: 86.4 | X116: 20.4 | Y116: 137.5 | Z116: 0.5 | AA116: 14.4 | AB116: 12.0 | AC116: 26.7 | AD116: 0.5 | AE116: 0.1 | AF116: 0.1 | AG116: 0.7 | AH116: 1.9 | AI116: 0.3 | AJ116: 0 | AK116: 136.54 | AL116: 132.29 | AM116: 145.96 | AN116: 99.97 | AO116: 45.6 | AP116: 71.83 | AQ116: 35.05 | AR116: 147.82 | AS116: 115.23 | AT116: 138.91 | AU116: 180.68 | AV116: 65.85 | AW116: 116.3 | AX116: 679.39 | AY116: 0 | AZ116: 370.77 | BA116: 111.5 | BB116: 85.78 | BC116: 56.68 | BD116: 0.07 | BE116: 0.03 | BF116: 0.02 | BG116: 0.04 | BH116: 0.05 | BI116: 0.21 | BJ116: 0 | BK116: 0.58 | BL116: 0 | BM116: 0.18 | BN116: 0 | BO116: 0 | BP116: 0 | BQ116: 0.04 | BR116: 0.06 | BS116: 0.48 | BT116: 0 | BU116: 0 | BV116: 0.03 | BW116: 0 | BX116: 0 | BY116: 0 | BZ116: 0 | CA116: 0 | CB116: 133.35 | CE116: 16.4 | CG116: 34.24 | CH116: 14.52 | CI116: 24.38 | CJ116: 2147.67 | CK116: 982.95 | CL116: 1565.31 | CM116: 45.21 | CN116: 23.88 | CO116: 34.54 | CP116: 3 | CQ116: 0.38
B117: Итого за 'Завтрак' | C117: =SUM(C113:C116) -> 335 | D117: =SUM(D113:D116) -> 7.0 | E117: 1.8 | F117: 8.8 | G117: 1.3 | H117: 44.0 | I117: 277 | J117: 5.1 | K117: 0.2 | L117: 0.0 | M117: 0.0 | N117: 14.0 | O117: 26.7 | P117: 3.3 | Q117: 0.0 | R117: 0.0 | S117: 0.4 | T117: 1.8 | U117: 310.1 | V117: 179.0 | W117: 95.8 | X117: 30.8 | Y117: 165.3 | Z117: 1.2 | AA117: 34.4 | AB117: 27.3 | AC117: 49.3 | AD117: 1.1 | AE117: 0.1 | AF117: 0.1 | AG117: 1.2 | AH117: 2.8 | AI117: 0.9 | AJ117: 0 | AK117: 250.75 | AL117: 250.71 | AM117: 327.53 | AN117: 162.78 | AO117: 81.76 | AP117: 145.27 | AQ117: 63.6 | AR117: 277.07 | AS117: 195.33 | AT117: 249.11 | AU117: 273.83 | AV117: 116.54 | AW117: 201.5 | AX117: 1383.99 | AY117: 0 | AZ117: 600.27 | BA117: 213.5 | BB117: 154.48 | BC117: 109.08 | BD117: 0.21 | BE117: 0.09 | BF117: 0.05 | BG117: 0.12 | BH117: 0.13 | BI117: 0.61 | BJ117: 0 | BK117: 1.79 | BL117: 0 | BM117: 0.57 | BN117: 0 | BO117: 0 | BP117: 0 | BQ117: 0.12 | BR117: 0.18 | BS117: 1.73 | BT117: 0 | BU117: 0 | BV117: 0.34 | BW117: 0.01 | BX117: 0 | BY117: 0 | BZ117: 0 | CA117: 0 | CB117: 294.46 | CD117: =$I$117/#REF!*100 ->  | CE117: 38.95 | CG117: 38.29 | CH117: 18.29 | CI117: 28.29 | CJ117: 3162.3 | CK117: 1371.81 | CL117: 2267.05 | CM117: 90.55 | CN117: 52.74 | CO117: 71.64 | CP117: 10.32 | CQ117: 0.38
B118: Второй завтрак
A119: ="-" -> - | B119: Бананы | C119: 100 | D119: 2.0 | E119: 0.0 | F119: 1.0 | G119: 0.5 | H119: 15.0 | I119: 72 | J119: 0.0 | K119: 0.0 | L119: 0.0 | M119: 0.0 | N119: 11.0 | O119: 2.0 | P119: 2.0 | Q119: 0.0 | R119: 0.0 | S119: 0.4 | T119: 0.9 | U119: 31.0 | V119: 348.0 | W119: 8.0 | X119: 42.0 | Y119: 28.0 | Z119: 0.6 | AA119: 0.0 | AB119: 120.0 | AC119: 20.0 | AD119: 0.4 | AE119: 0.0 | AF119: 0.1 | AG119: 0.6 | AH119: 0.9 | AI119: 10.0 | AJ119: 0 | AK119: 0 | AL119: 0 | AM119: 0 | AN119: 0 | AO119: 0 | AP119: 0 | AQ119: 0 | AR119: 0 | AS119: 0 | AT119: 0 | AU119: 0 | AV119: 0 | AW119: 0 | AX119: 0 | AY119: 0 | AZ119: 0 | BA119: 0 | BB119: 0 | BC119: 0 | BD119: 0 | BE119: 0 | BF119: 0 | BG119: 0 | BH119: 0 | BI119: 0 | BJ119: 0 | BK119: 0 | BL119: 0 | BM119: 0 | BN119: 0 | BO119: 0 | BP119: 0 | BQ119: 0 | BR119: 0 | BS119: 0 | BT119: 0 | BU119: 0 | BV119: 0 | BW119: 0 | BX119: 0 | BY119: 0 | BZ119: 0 | CA119: 0 | CB119: 74 | CE119: 20 | CG119: 4 | CH119: 1 | CI119: 2.5 | CJ119: 200 | CK119: 82 | CL119: 141 | CM119: 0 | CN119: 0 | CO119: 0 | CP119: 0 | CQ119: 0
B120: Итого за 'Второй завтрак' | C120: =SUM(C119) -> 100 | D120: =SUM(D119) -> 2.0 | E120: 0.0 | F120: 1.0 | G120: 0.5 | H120: 15.0 | I120: 72 | J120: 0.0 | K120: 0.0 | L120: 0.0 | M120: 0.0 | N120: 11.0 | O120: 2.0 | P120: 2.0 | Q120: 0.0 | R120: 0.0 | S120: 0.4 | T120: 0.9 | U120: 31.0 | V120: 348.0 | W120: 8.0 | X120: 42.0 | Y120: 28.0 | Z120: 0.6 | AA120: 0.0 | AB120: 120.0 | AC120: 20.0 | AD120: 0.4 | AE120: 0.0 | AF120: 0.1 | AG120: 0.6 | AH120: 0.9 | AI120: 10.0 | AJ120: 0 | AK120: 0 | AL120: 0 | AM120: 0 | AN120: 0 | AO120: 0 | AP120: 0 | AQ120: 0 | AR120: 0 | AS120: 0 | AT120: 0 | AU120: 0 | AV120: 0 | AW120: 0 | AX120: 0 | AY120: 0 | AZ120: 0 | BA120: 0 | BB120: 0 | BC120: 0 | BD120: 0 | BE120: 0 | BF120: 0 | BG120: 0 | BH120: 0 | BI120: 0 | BJ120: 0 | BK120: 0 | BL120: 0 | BM120: 0 | BN120: 0 | BO120: 0 | BP120: 0 | BQ120: 0 | BR120: 0 | BS120: 0 | BT120: 0 | BU120: 0 | BV120: 0 | BW120: 0 | BX120: 0 | BY120: 0 | BZ120: 0 | CA120: 0 | CB120: 74 | CD120: =$I$120/#REF!*100 ->  | CE120: 20 | CG120: 4 | CH120: 1 | CI120: 2.5 | CJ120: 200 | CK120: 82 | CL120: 141 | CM120: 0 | CN120: 0 | CO120: 0 | CP120: 0 | CQ120: 0
B121: Обед
A122: ="-" -> - | B122: Хлеб пшеничный | C122: 20 | D122: 1.2 | E122: 0.0 | F122: 0.1 | G122: 0.1 | H122: 7.4 | I122: 36 | J122: 0.0 | K122: 0.0 | L122: 0.0 | M122: 0.0 | N122: 0.2 | O122: 7.1 | P122: 0.0 | Q122: 0.0 | R122: 0.0 | S122: 0.0 | T122: 0.4 | U122: 0.0 | V122: 0.0 | W122: 0.0 | X122: 0.0 | Y122: 0.0 | Z122: 0.0 | AA122: 0.0 | AB122: 0.0 | AC122: 0.0 | AD122: 0.0 | AE122: 0.0 | AF122: 0.0 | AG122: 0.0 | AH122: 0.0 | AI122: 0.0 | AJ122: 0 | AK122: 63.86 | AL122: 66.47 | AM122: 101.79 | AN122: 33.76 | AO122: 20.01 | AP122: 40.02 | AQ122: 15.14 | AR122: 72.38 | AS122: 44.89 | AT122: 62.64 | AU122: 51.68 | AV122: 27.14 | AW122: 48.02 | AX122: 401.59 | AY122: 0 | AZ122: 130.85 | BA122: 56.9 | BB122: 37.76 | BC122: 29.93 | BD122: 0 | BE122: 0 | BF122: 0 | BG122: 0 | BH122: 0 | BI122: 0 | BJ122: 0 | BK122: 0.02 | BL122: 0 | BM122: 0 | BN122: 0 | BO122: 0 | BP122: 0 | BQ122: 0 | BR122: 0 | BS122: 0.01 | BT122: 0 | BU122: 0 | BV122: 0.06 | BW122: 0 | BX122: 0 | BY122: 0 | BZ122: 0 | CA122: 0 | CB122: 7.82 | CE122: 0 | CG122: 0 | CH122: 0 | CI122: 0 | CJ122: 380 | CK122: 146.4 | CL122: 263.2 | CM122: 3.04 | CN122: 3.04 | CO122: 3.04 | CP122: 0 | CQ122: 0
A123: ="-" -> - | B123: Хлеб ржаной | C123: 20 | D123: 1.2 | E123: 0.0 | F123: 0.2 | G123: 0.2 | H123: 8.3 | I123: 38 | J123: 0.0 | K123: 0.0 | L123: 0.0 | M123: 0.0 | N123: 0.2 | O123: 6.4 | P123: 1.7 | Q123: 0.0 | R123: 0.0 | S123: 0.2 | T123: 0.5 | U123: 122.0 | V123: 49.0 | W123: 7.0 | X123: 9.4 | Y123: 31.6 | Z123: 0.8 | AA123: 0.0 | AB123: 1.0 | AC123: 0.2 | AD123: 0.3 | AE123: 0.0 | AF123: 0.0 | AG123: 0.1 | AH123: 0.4 | AI123: 0.0 | AJ123: 0 | AK123: 64.4 | AL123: 49.6 | AM123: 85.4 | AN123: 44.6 | AO123: 18.6 | AP123: 39.6 | AQ123: 16 | AR123: 74.2 | AS123: 59.4 | AT123: 58.2 | AU123: 92.8 | AV123: 24.8 | AW123: 62 | AX123: 311.8 | AY123: 0 | AZ123: 105.2 | BA123: 58.2 | BB123: 36 | BC123: 26 | BD123: 0 | BE123: 0 | BF123: 0 | BG123: 0 | BH123: 0 | BI123: 0 | BJ123: 0 | BK123: 0.03 | BL123: 0 | BM123: 0 | BN123: 0 | BO123: 0 | BP123: 0 | BQ123: 0 | BR123: 0 | BS123: 0.02 | BT123: 0 | BU123: 0 | BV123: 0.1 | BW123: 0.02 | BX123: 0 | BY123: 0 | BZ123: 0 | CA123: 0 | CB123: 9.4 | CE123: 0.17 | CG123: 4 | CH123: 4 | CI123: 4 | CJ123: 760 | CK123: 292.8 | CL123: 526.4 | CM123: 7.6 | CN123: 6.32 | CO123: 6.96 | CP123: 0 | CQ123: 0
A124: ="6/10" -> 6/10 | B124: Компот из сухофруктов | C124: 150 | D124: 0.8 | E124: 0.0 | F124: 0.0 | G124: 0.0 | H124: 17.4 | I124: 66 | J124: 0.0 | K124: 0.0 | L124: 0.0 | M124: 0.0 | N124: 14.4 | O124: 0.4 | P124: 2.6 | Q124: 0.0 | R124: 0.0 | S124: 0.2 | T124: 0.6 | U124: 2.6 | V124: 255.2 | W124: 23.5 | X124: 15.0 | Y124: 20.4 | Z124: 0.5 | AA124: 0.0 | AB124: 472.5 | AC124: 87.5 | AD124: 0.8 | AE124: 0.0 | AF124: 0.0 | AG124: 0.4 | AH124: 0.6 | AI124: 0.4 | AJ124: 0 | AK124: 0.01 | AL124: 0.01 | AM124: 0.01 | AN124: 0.01 | AO124: 0 | AP124: 0.01 | AQ124: 0 | AR124: 0.01 | AS124: 0.01 | AT124: 0.01 | AU124: 0.04 | AV124: 0 | AW124: 0.01 | AX124: 0.02 | AY124: 0 | AZ124: 0.01 | BA124: 0.01 | BB124: 0 | BC124: 0 | BD124: 0 | BE124: 0 | BF124: 0 | BG124: 0 | BH124: 0 | BI124: 0 | BJ124: 0 | BK124: 0 | BL124: 0 | BM124: 0 | BN124: 0 | BO124: 0 | BP124: 0 | BQ124: 0 | BR124: 0 | BS124: 0.01 | BT124: 0 | BU124: 0 | BV124: 0 | BW124: 0 | BX124: 0 | BY124: 0 | BZ124: 0 | CA124: 0 | CB124: 160.51 | CE124: 78.75 | CG124: 3.95 | CH124: 3.95 | CI124: 3.95 | CJ124: 454.5 | CK124: 172.98 | CL124: 313.74 | CM124: 41.94 | CN124: 24.93 | CO124: 33.44 | CP124: 7.5 | CQ124: 0
A125: ="4/2" -> 4/2 | B125: Борщ с картофелем на говяжьем бульоне | C125: 150 | D125: 1.7 | E125: 4.9 | F125: 5.1 | G125: 1.9 | H125: 7.9 | I125: 82 | J125: 1.4 | K125: 1.2 | L125: 0.0 | M125: 0.0 | N125: 5.0 | O125: 1.7 | P125: 1.2 | Q125: 0.0 | R125: 0.0 | S125: 0.2 | T125: 1.5 | U125: 363.4 | V125: 186.3 | W125: 20.3 | X125: 12.3 | Y125: 25.9 | Z125: 0.6 | AA125: 0.0 | AB125: 607.7 | AC125: 126.6 | AD125: 0.9 | AE125: 0.0 | AF125: 0.1 | AG125: 0.3 | AH125: 0.6 | AI125: 4.8 | AJ125: 0 | AK125: 23.75 | AL125: 25.66 | AM125: 30.46 | AN125: 36.55 | AO125: 8.63 | AP125: 23.35 | AQ125: 6.77 | AR125: 22.84 | AS125: 26.28 | AT125: 46.43 | AU125: 108.91 | AV125: 8.7 | AW125: 20.14 | AX125: 130.91 | AY125: 0 | AZ125: 22.34 | BA125: 25.78 | BB125: 21.32 | BC125: 7.78 | BD125: 0 | BE125: 0 | BF125: 0 | BG125: 0 | BH125: 0 | BI125: 0 | BJ125: 0 | BK125: 0.11 | BL125: 0 | BM125: 0.07 | BN125: 0 | BO125: 0.01 | BP125: 0 | BQ125: 0 | BR125: 0 | BS125: 0.39 | BT125: 0 | BU125: 0 | BV125: 1.08 | BW125: 0 | BX125: 0 | BY125: 0 | BZ125: 0 | CA125: 0 | CB125: 172.63 | CE125: 101.28 | CG125: 39.72 | CH125: 21 | CI125: 30.36 | CJ125: 454.2 | CK125: 142.2 | CL125: 298.2 | CM125: 5.66 | CN125: 3.18 | CO125: 4.42 | CP125: 1.5 | CQ125: 0.9
A126: ="17/4" -> 17/4 | B126: Каша молочная ассорти (рис, пшено) с маслом сливочным | C126: 120 | D126: 3.5 | E126: 1.8 | F126: 3.7 | G126: 0.5 | H126: 19.0 | I126: 122 | J126: 2.5 | K126: 0.1 | L126: 0.0 | M126: 0.0 | N126: 5.7 | O126: 12.7 | P126: 0.6 | Q126: 0.0 | R126: 0.0 | S126: 0.1 | T126: 1.0 | U126: 149.4 | V126: 108.6 | W126: 69.7 | X126: 19.7 | Y126: 83.8 | Z126: 0.4 | AA126: 14.5 | AB126: 13.9 | AC126: 27.3 | AD126: 0.1 | AE126: 0.1 | AF126: 0.1 | AG126: 0.3 | AH126: 1.3 | AI126: 0.3 | AJ126: 0 | AK126: 87.08 | AL126: 75.15 | AM126: 218.98 | AN126: 54.13 | AO126: 45.73 | AP126: 64.49 | AQ126: 28.96 | AR126: 94.64 | AS126: 149.21 | AT126: 89.42 | AU126: 116.95 | AV126: 43.23 | AW126: 59.9 | AX126: 343.42 | AY126: 0 | AZ126: 116.07 | BA126: 104.45 | BB126: 69.65 | BC126: 31.16 | BD126: 0.07 | BE126: 0.03 | BF126: 0.02 | BG126: 0.04 | BH126: 0.05 | BI126: 0.21 | BJ126: 0 | BK126: 0.62 | BL126: 0 | BM126: 0.19 | BN126: 0 | BO126: 0 | BP126: 0 | BQ126: 0.04 | BR126: 0.06 | BS126: 0.55 | BT126: 0 | BU126: 0 | BV126: 0.25 | BW126: 0 | BX126: 0 | BY126: 0 | BZ126: 0 | CA126: 0 | CB126: 100.08 | CE126: 16.86 | CG126: 24.06 | CH126: 11.09 | CI126: 17.57 | CJ126: 1506.05 | CK126: 674.52 | CL126: 1090.29 | CM126: 25.43 | CN126: 11.48 | CO126: 18.46 | CP126: 3 | CQ126: 0.3
A127: ="7" -> 7 | B127: Биточки (котлеты) из мяса бройлер-цыплят | C127: 50 | D127: 7.6 | E127: 6.4 | F127: 7.1 | G127: 2.0 | H127: 6.6 | I127: 120 | J127: 2.0 | K127: 1.6 | L127: 0.0 | M127: 0.0 | N127: 0.3 | O127: 5.8 | P127: 0.5 | Q127: 0.0 | R127: 0.0 | S127: 0.1 | T127: 0.8 | U127: 127.4 | V127: 75.1 | W127: 8.3 | X127: 10.6 | Y127: 67.2 | Z127: 1.0 | AA127: 20.7 | AB127: 4.0 | AC127: 26.7 | AD127: 1.5 | AE127: 0.0 | AF127: 0.1 | AG127: 2.8 | AH127: 5.0 | AI127: 0.1 | AJ127: 0 | AK127: 336.16 | AL127: 272.62 | AM127: 540.78 | AN127: 570.47 | AO127: 174.3 | AP127: 318.01 | AQ127: 109.6 | AR127: 293.13 | AS127: 425.24 | AT127: 457.95 | AU127: 595.87 | AV127: 182.69 | AW127: 503.94 | AX127: 1082.63 | AY127: 53.08 | AZ127: 365.42 | BA127: 326.79 | BB127: 241.8 | BC127: 91.81 | BD127: 0 | BE127: 0 | BF127: 0 | BG127: 0 | BH127: 0 | BI127: 0 | BJ127: 0 | BK127: 0.12 | BL127: 0 | BM127: 0.08 | BN127: 0.01 | BO127: 0.01 | BP127: 0 | BQ127: 0 | BR127: 0 | BS127: 0.45 | BT127: 0 | BU127: 0 | BV127: 1.13 | BW127: 0 | BX127: 0 | BY127: 0 | BZ127: 0 | CA127: 0 | CB127: 38.84 | CE127: 21.38 | CG127: 17.73 | CH127: 8.4 | CI127: 13.06 | CJ127: 1892.29 | CK127: 1155.41 | CL127: 1523.85 | CM127: 12.53 | CN127: 9.63 | CO127: 11.08 | CP127: 0 | CQ127: 0.25
B128: Итого за 'Обед' | C128: =SUM(C122:C127) -> 510 | D128: =SUM(D122:D127) -> 16.0 | E128: 13.1 | F128: 16.3 | G128: 4.8 | H128: 66.6 | I128: 464 | J128: 5.9 | K128: 2.9 | L128: 0.0 | M128: 0.0 | N128: 25.8 | O128: 34.2 | P128: 6.6 | Q128: 0.0 | R128: 0.0 | S128: 0.7 | T128: 4.8 | U128: 764.8 | V128: 674.1 | W128: 128.7 | X128: 67.0 | Y128: 228.8 | Z128: 3.2 | AA128: 35.3 | AB128: 1099.1 | AC128: 268.3 | AD128: 3.6 | AE128: 0.2 | AF128: 0.3 | AG128: 4.0 | AH128: 7.9 | AI128: 5.6 | AJ128: 0 | AK128: 575.25 | AL128: 489.51 | AM128: 977.42 | AN128: 739.51 | AO128: 267.27 | AP128: 485.48 | AQ128: 176.47 | AR128: 557.21 | AS128: 705.03 | AT128: 714.64 | AU128: 966.25 | AV128: 286.56 | AW128: 694 | AX128: 2270.38 | AY128: 53.08 | AZ128: 739.88 | BA128: 572.13 | BB128: 406.54 | BC128: 186.68 | BD128: 0.07 | BE128: 0.03 | BF128: 0.02 | BG128: 0.04 | BH128: 0.05 | BI128: 0.21 | BJ128: 0 | BK128: 0.9 | BL128: 0 | BM128: 0.34 | BN128: 0.02 | BO128: 0.02 | BP128: 0 | BQ128: 0.04 | BR128: 0.07 | BS128: 1.44 | BT128: 0 | BU128: 0 | BV128: 2.61 | BW128: 0.03 | BX128: 0 | BY128: 0 | BZ128: 0 | CA128: 0 | CB128: 489.27 | CD128: =$I$128/#REF!*100 ->  | CE128: 218.44 | CG128: 89.46 | CH128: 48.44 | CI128: 68.95 | CJ128: 5447.03 | CK128: 2584.31 | CL128: 4015.67 | CM128: 96.2 | CN128: 58.58 | CO128: 77.39 | CP128: 12 | CQ128: 1.45
B129: Уплотненный полдник
A130: ="-" -> - | B130: Хлеб ржаной | C130: 20 | D130: 1.2 | E130: 0.0 | F130: 0.2 | G130: 0.2 | H130: 8.3 | I130: 38 | J130: 0.0 | K130: 0.0 | L130: 0.0 | M130: 0.0 | N130: 0.2 | O130: 6.4 | P130: 1.7 | Q130: 0.0 | R130: 0.0 | S130: 0.2 | T130: 0.5 | U130: 122.0 | V130: 49.0 | W130: 7.0 | X130: 9.4 | Y130: 31.6 | Z130: 0.8 | AA130: 0.0 | AB130: 1.0 | AC130: 0.2 | AD130: 0.3 | AE130: 0.0 | AF130: 0.0 | AG130: 0.1 | AH130: 0.4 | AI130: 0.0 | AJ130: 0 | AK130: 64.4 | AL130: 49.6 | AM130: 85.4 | AN130: 44.6 | AO130: 18.6 | AP130: 39.6 | AQ130: 16 | AR130: 74.2 | AS130: 59.4 | AT130: 58.2 | AU130: 92.8 | AV130: 24.8 | AW130: 62 | AX130: 311.8 | AY130: 0 | AZ130: 105.2 | BA130: 58.2 | BB130: 36 | BC130: 26 | BD130: 0 | BE130: 0 | BF130: 0 | BG130: 0 | BH130: 0 | BI130: 0 | BJ130: 0 | BK130: 0.03 | BL130: 0 | BM130: 0 | BN130: 0 | BO130: 0 | BP130: 0 | BQ130: 0 | BR130: 0 | BS130: 0.02 | BT130: 0 | BU130: 0 | BV130: 0.1 | BW130: 0.02 | BX130: 0 | BY130: 0 | BZ130: 0 | CA130: 0 | CB130: 9.4 | CE130: 0.17 | CG130: 2 | CH130: 2 | CI130: 2 | CJ130: 380 | CK130: 146.4 | CL130: 263.2 | CM130: 3.8 | CN130: 3.16 | CO130: 3.48 | CP130: 0 | CQ130: 0
A131: ="27/10" -> 27/10 | B131: Чай полусладкий | C131: 150 | D131: 0.2 | E131: 0.0 | F131: 0.0 | G131: 0.0 | H131: 3.8 | I131: 15 | J131: 0.0 | K131: 0.0 | L131: 0.0 | M131: 0.0 | N131: 3.7 | O131: 0.0 | P131: 0.1 | Q131: 0.0 | R131: 0.0 | S131: 0.0 | T131: 0.1 | U131: 0.0 | V131: 0.1 | W131: 0.1 | X131: 0.0 | Y131: 0.0 | Z131: 0.0 | AA131: 0.0 | AB131: 0.0 | AC131: 0.0 | AD131: 0.0 | AE131: 0.0 | AF131: 0.0 | AG131: 0.0 | AH131: 0.0 | AI131: 0.0 | AJ131: 0 | AK131: 0 | AL131: 0 | AM131: 0 | AN131: 0 | AO131: 0 | AP131: 0 | AQ131: 0 | AR131: 0 | AS131: 0 | AT131: 0 | AU131: 0 | AV131: 0 | AW131: 0 | AX131: 0 | AY131: 0 | AZ131: 0 | BA131: 0 | BB131: 0 | BC131: 0 | BD131: 0 | BE131: 0 | BF131: 0 | BG131: 0 | BH131: 0 | BI131: 0 | BJ131: 0 | BK131: 0 | BL131: 0 | BM131: 0 | BN131: 0 | BO131: 0 | BP131: 0 | BQ131: 0 | BR131: 0 | BS131: 0 | BT131: 0 | BU131: 0 | BV131: 0 | BW131: 0 | BX131: 0 | BY131: 0 | BZ131: 0 | CA131: 0 | CB131: 150.07 | CE131: 0 | CG131: 3.69 | CH131: 3.69 | CI131: 3.69 | CJ131: 398.25 | CK131: 156.6 | CL131: 277.43 | CM131: 39.61 | CN131: 23.41 | CO131: 31.51 | CP131: 3.75 | CQ131: 0
A132: ="10/150" -> 10/150 | B132: Сырники из творога со сметаной | C132: 100 | D132: 20.8 | E132: 19.3 | F132: 5.5 | G132: 4.0 | H132: 16.4 | I132: 200 | J132: 1.4 | K132: 2.6 | L132: 0.0 | M132: 0.0 | N132: 6.9 | O132: 9.0 | P132: 0.5 | Q132: 0.0 | R132: 0.0 | S132: 1.1 | T132: 1.5 | U132: 125.9 | V132: 119.5 | W132: 105.5 | X132: 22.3 | Y132: 163.6 | Z132: 0.5 | AA132: 13.3 | AB132: 3.6 | AC132: 14.7 | AD132: 2.0 | AE132: 0.1 | AF132: 0.2 | AG132: 0.5 | AH132: 4.2 | AI132: 0.2 | AJ132: 0 | AK132: 938.43 | AL132: 934.88 | AM132: 1730.03 | AN132: 1307.31 | AO132: 446.86 | AP132: 748.54 | AQ132: 174.95 | AR132: 886.43 | AS132: 447.07 | AT132: 775.66 | AU132: 946.92 | AV132: 518.32 | AW132: 284.66 | AX132: 3298.51 | AY132: 0.53 | AZ132: 1896.81 | BA132: 802.86 | BB132: 846.49 | BC132: 123.23 | BD132: 0 | BE132: 0 | BF132: 0 | BG132: 0 | BH132: 0 | BI132: 0 | BJ132: 0 | BK132: 0.25 | BL132: 0 | BM132: 0.16 | BN132: 0.01 | BO132: 0.03 | BP132: 0 | BQ132: 0 | BR132: 0 | BS132: 0.91 | BT132: 0 | BU132: 0 | BV132: 2.31 | BW132: 0 | BX132: 0 | BY132: 0 | BZ132: 0 | CA132: 0 | CB132: 72.56 | CE132: 13.9 | CG132: 16.49 | CH132: 9.08 | CI132: 12.78 | CJ132: 912.6 | CK132: 639.6 | CL132: 776.1 | CM132: 21.38 | CN132: 15.6 | CO132: 18.7 | CP132: 4 | CQ132: 0.24
A133: ="-" -> - | C133: 10 | D133: 0.2 | E133: 0.0 | F133: 1.3 | G133: 0.0 | H133: 0.3 | I133: 14 | J133: 0.9 | K133: 0.0 | L133: 0.0 | M133: 0.0 | N133: 0.3 | O133: 0.0 | P133: 0.0 | Q133: 0.0 | R133: 0.0 | S133: 0.1 | T133: 0.1 | U133: 4.0 | V133: 10.2 | W133: 7.7 | X133: 0.8 | Y133: 5.3 | Z133: 0.0 | AA133: 6.0 | AB133: 3.2 | AC133: 10.7 | AD133: 0.0 | AE133: 0.0 | AF133: 0.0 | AG133: 0.0 | AH133: 0.1 | AI133: 0.0 | AJ133: 0 | AK133: 97.29 | AL133: 73.51 | AM133: 155.76 | AN133: 157.17 | AO133: 48.41 | AP133: 80.75 | AQ133: 21.43 | AR133: 75.48 | AS133: 108.38 | AT133: 101.8 | AU133: 178.98 | AV133: 67.49 | AW133: 92.68 | AX133: 311.14 | AY133: 0 | AZ133: 80.75 | BA133: 82.91 | BB133: 65.71 | BC133: 27.82 | BD133: 0 | BE133: 0 | BF133: 0 | BG133: 0 | BH133: 0 | BI133: 0 | BJ133: 0 | BK133: 0 | BL133: 0 | BM133: 0 | BN133: 0 | BO133: 0 | BP133: 0 | BQ133: 0 | BR133: 0 | BS133: 0 | BT133: 0 | BU133: 0 | BV133: 0 | BW133: 0.01 | BX133: 0 | BY133: 0 | BZ133: 0 | CA133: 0 | CB133: 7.75 | CE133: 6.53 | CG133: 10.5 | CH133: 10.5 | CI133: 10.5 | CJ133: 300 | CK133: 123 | CL133: 211.5 | CM133: 0.45 | CN133: 0.45 | CO133: 0.45 | CP133: 0 | CQ133: 0
B134: Итого за 'Уплотненный полдник' | C134: =SUM(C130:C133) -> 280 | D134: =SUM(D130:D133) -> 22.4 | E134: 19.3 | F134: 7.1 | G134: 4.3 | H134: 28.9 | I134: 268 | J134: 2.3 | K134: 2.6 | L134: 0.0 | M134: 0.0 | N134: 11.2 | O134: 15.5 | P134: 2.2 | Q134: 0.0 | R134: 0.0 | S134: 1.4 | T134: 2.1 | U134: 252.0 | V134: 178.8 | W134: 120.4 | X134: 32.4 | Y134: 200.6 | Z134: 1.3 | AA134: 19.3 | AB134: 7.8 | AC134: 25.6 | AD134: 2.3 | AE134: 0.1 | AF134: 0.2 | AG134: 0.6 | AH134: 4.7 | AI134: 0.3 | AJ134: 0 | AK134: 1100.12 | AL134: 1057.98 | AM134: 1971.18 | AN134: 1509.08 | AO134: 513.87 | AP134: 868.89 | AQ134: 212.38 | AR134: 1036.11 | AS134: 614.85 | AT134: 935.66 | AU134: 1218.7 | AV134: 610.61 | AW134: 439.34 | AX134: 3921.45 | AY134: 0.53 | AZ134: 2082.75 | BA134: 943.97 | BB134: 948.19 | BC134: 177.06 | BD134: 0 | BE134: 0 | BF134: 0 | BG134: 0 | BH134: 0 | BI134: 0 | BJ134: 0 | BK134: 0.28 | BL134: 0 | BM134: 0.16 | BN134: 0.02 | BO134: 0.03 | BP134: 0 | BQ134: 0 | BR134: 0 | BS134: 0.94 | BT134: 0 | BU134: 0 | BV134: 2.4 | BW134: 0.03 | BX134: 0 | BY134: 0 | BZ134: 0 | CA134: 0 | CB134: 239.78 | CD134: =$I$134/#REF!*100 ->  | CE134: 20.6 | CG134: 32.68 | CH134: 25.26 | CI134: 28.97 | CJ134: 1990.85 | CK134: 1065.6 | CL134: 1528.22 | CM134: 65.24 | CN134: 42.62 | CO134: 54.14 | CP134: 7.75 | CQ134: 0.24
B135: Итого за день | C135: =C117+C120+C128+C134 -> 1225 | D135: 47.4 | E135: 34.2 | F135: 33.2 | G135: 10.9 | H135: 154.4 | I135: 1081 | J135: 13.3 | K135: 5.7 | L135: 0.0 | M135: 0.0 | N135: 62.0 | O135: 78.3 | P135: 14.1 | Q135: 0.0 | R135: 0.0 | S135: 2.9 | T135: 9.6 | U135: 1357.8 | V135: 1380.0 | W135: 353.0 | X135: 172.2 | Y135: 622.6 | Z135: 6.3 | AA135: 89.0 | AB135: 1254.2 | AC135: 363.1 | AD135: 7.3 | AE135: 0.5 | AF135: 0.7 | AG135: 6.4 | AH135: 16.3 | AI135: 16.7 | AJ135: 0 | AK135: 1926.12 | AL135: 1798.21 | AM135: 3276.13 | AN135: 2411.37 | AO135: 862.91 | AP135: 1499.64 | AQ135: 452.46 | AR135: 1870.39 | AS135: 1515.21 | AT135: 1899.41 | AU135: 2458.77 | AV135: 1013.71 | AW135: 1334.84 | AX135: 7575.82 | AY135: 53.61 | AZ135: 3422.91 | BA135: 1729.6 | BB135: 1509.22 | BC135: 472.82 | BD135: 0.28 | BE135: 0.13 | BF135: 0.07 | BG135: 0.16 | BH135: 0.18 | BI135: 0.82 | BJ135: 0 | BK135: 2.97 | BL135: 0 | BM135: 1.06 | BN135: 0.03 | BO135: 0.05 | BP135: 0 | BQ135: 0.16 | BR135: 0.25 | BS135: 4.11 | BT135: 0 | BU135: 0 | BV135: 5.35 | BW135: 0.06 | BX135: 0 | BY135: 0 | BZ135: 0 | CA135: 0 | CB135: 1097.51 | CE135: 297.99 | CG135: 164.42 | CH135: 92.99 | CI135: 128.71 | CJ135: 10800.18 | CK135: 5103.72 | CL135: 7951.95 | CM135: 251.99 | CN135: 153.95 | CO135: 203.18 | CP135: 30.07 | CQ135: 2.07
B137: 6 ДЕНЬ
B138: Завтрак
A139: ="-" -> - | B139: Хлеб пшеничный | C139: 20 | D139: 1.2 | E139: 0.0 | F139: 0.1 | G139: 0.1 | H139: 7.4 | I139: 36 | J139: 0.0 | K139: 0.0 | L139: 0.0 | M139: 0.0 | N139: 0.2 | O139: 7.1 | P139: 0.0 | Q139: 0.0 | R139: 0.0 | S139: 0.0 | T139: 0.4 | U139: 0.0 | V139: 0.0 | W139: 0.0 | X139: 0.0 | Y139: 0.0 | Z139: 0.0 | AA139: 0.0 | AB139: 0.0 | AC139: 0.0 | AD139: 0.0 | AE139: 0.0 | AF139: 0.0 | AG139: 0.0 | AH139: 0.0 | AI139: 0.0 | AJ139: 0 | AK139: 63.86 | AL139: 66.47 | AM139: 101.79 | AN139: 33.76 | AO139: 20.01 | AP139: 40.02 | AQ139: 15.14 | AR139: 72.38 | AS139: 44.89 | AT139: 62.64 | AU139: 51.68 | AV139: 27.14 | AW139: 48.02 | AX139: 401.59 | AY139: 0 | AZ139: 130.85 | BA139: 56.9 | BB139: 37.76 | BC139: 29.93 | BD139: 0 | BE139: 0 | BF139: 0 | BG139: 0 | BH139: 0 | BI139: 0 | BJ139: 0 | BK139: 0.02 | BL139: 0 | BM139: 0 | BN139: 0 | BO139: 0 | BP139: 0 | BQ139: 0 | BR139: 0 | BS139: 0.01 | BT139: 0 | BU139: 0 | BV139: 0.06 | BW139: 0 | BX139: 0 | BY139: 0 | BZ139: 0 | CA139: 0 | CB139: 7.82 | CE139: 0 | CG139: 0 | CH139: 0 | CI139: 0 | CJ139: 570 | CK139: 219.6 | CL139: 394.8 | CM139: 4.56 | CN139: 4.56 | CO139: 4.56 | CP139: 0 | CQ139: 0
A140: ="1/6" -> 1/6 | B140: Яйцо отварное | C140: 60 | D140: 7.6 | E140: 7.6 | F140: 6.9 | G140: 0.0 | H140: 0.4 | I140: 94 | J140: 1.8 | K140: 0.0 | L140: 0.0 | M140: 0.0 | N140: 0.4 | O140: 0.0 | P140: 0.0 | Q140: 0.0 | R140: 0.0 | S140: 0.0 | T140: 0.6 | U140: 80.4 | V140: 84.0 | W140: 33.0 | X140: 7.2 | Y140: 115.2 | Z140: 1.5 | AA140: 150.0 | AB140: 36.0 | AC140: 156.0 | AD140: 0.4 | AE140: 0.0 | AF140: 0.3 | AG140: 0.1 | AH140: 2.2 | AI140: 0.0 | AJ140: 0 | AK140: 463.2 | AL140: 358.2 | AM140: 648.6 | AN140: 541.8 | AO140: 254.4 | AP140: 366 | AQ140: 122.4 | AR140: 391.2 | AS140: 426 | AT140: 472.2 | AU140: 737.4 | AV140: 204 | AW140: 249.6 | AX140: 1063.8 | AY140: 8.4 | AZ140: 237.6 | BA140: 556.8 | BB140: 285.6 | BC140: 175.8 | BD140: 0 | BE140: 0 | BF140: 0 | BG140: 0 | BH140: 0 | BI140: 0 | BJ140: 0 | BK140: 0 | BL140: 0 | BM140: 0 | BN140: 0 | BO140: 0 | BP140: 0 | BQ140: 0 | BR140: 0 | BS140: 0 | BT140: 0 | BU140: 0 | BV140: 0 | BW140: 0 | BX140: 0 | BY140: 0 | BZ140: 0 | CA140: 0 | CB140: 44.46 | CE140: 156 | CG140: 13.56 | CH140: 11.4 | CI140: 12.48 | CJ140: 0 | CK140: 0 | CL140: 0 | CM140: 6 | CN140: 4.2 | CO140: 5.1 | CP140: 0 | CQ140: 0
A141: ="31/10" -> 31/10 | B141: Чай с молоком (вариант 3) | C141: 150 | D141: 1.2 | E141: 1.1 | F141: 1.0 | G141: 0.0 | H141: 5.5 | I141: 34 | J141: 0.6 | K141: 0.0 | L141: 0.0 | M141: 0.0 | N141: 5.5 | O141: 0.0 | P141: 0.1 | Q141: 0.0 | R141: 0.0 | S141: 0.0 | T141: 0.3 | U141: 18.6 | V141: 54.3 | W141: 43.8 | X141: 5.0 | Y141: 31.4 | Z141: 0.1 | AA141: 7.5 | AB141: 3.4 | AC141: 8.3 | AD141: 0.0 | AE141: 0.0 | AF141: 0.1 | AG141: 0.0 | AH141: 0.3 | AI141: 0.2 | AJ141: 0 | AK141: 0 | AL141: 0 | AM141: 0 | AN141: 0 | AO141: 0 | AP141: 0 | AQ141: 0 | AR141: 0 | AS141: 0 | AT141: 0 | AU141: 0 | AV141: 0 | AW141: 0 | AX141: 0 | AY141: 0 | AZ141: 0 | BA141: 0 | BB141: 0 | BC141: 0 | BD141: 0 | BE141: 0 | BF141: 0 | BG141: 0 | BH141: 0 | BI141: 0 | BJ141: 0 | BK141: 0 | BL141: 0 | BM141: 0 | BN141: 0 | BO141: 0 | BP141: 0 | BQ141: 0 | BR141: 0 | BS141: 0 | BT141: 0 | BU141: 0 | BV141: 0 | BW141: 0 | BX141: 0 | BY141: 0 | BZ141: 0 | CA141: 0 | CB141: 145.94 | CE141: 8.06 | CG141: 6.84 | CH141: 3.69 | CI141: 5.26 | CJ141: 567 | CK141: 214.2 | CL141: 390.6 | CM141: 35.65 | CN141: 19 | CO141: 27.32 | CP141: 3.75 | CQ141: 0
A142: ="6/4" -> 6/4 | B142: Каша овсяная молочная с маслом сливочным | C142: 150 | D142: 5.8 | E142: 2.2 | F142: 6.3 | G142: 1.8 | H142: 25.7 | I142: 180 | J142: 3.5 | K142: 0.1 | L142: 0.0 | M142: 0.0 | N142: 6.9 | O142: 17.1 | P142: 1.7 | Q142: 0.0 | R142: 0.0 | S142: 0.1 | T142: 1.5 | U142: 187.4 | V142: 207.7 | W142: 104.7 | X142: 46.8 | Y142: 155.6 | Z142: 1.2 | AA142: 30.0 | AB142: 16.9 | AC142: 33.4 | AD142: 0.5 | AE142: 0.1 | AF142: 0.1 | AG142: 0.3 | AH142: 2.0 | AI142: 0.4 | AJ142: 0 | AK142: 166.18 | AL142: 118.52 | AM142: 189.48 | AN142: 125.13 | AO142: 36.49 | AP142: 113.45 | AQ142: 58.91 | AR142: 159.42 | AS142: 144.21 | AT142: 217.34 | AU142: 271.4 | AV142: 73.02 | AW142: 300.47 | AX142: 577.93 | AY142: 0 | AZ142: 190.22 | BA142: 153.1 | BB142: 131.79 | BC142: 83.28 | BD142: 0.1 | BE142: 0.05 | BF142: 0.02 | BG142: 0.06 | BH142: 0.06 | BI142: 0.3 | BJ142: 0 | BK142: 1.2 | BL142: 0 | BM142: 0.27 | BN142: 0 | BO142: 0 | BP142: 0 | BQ142: 0.06 | BR142: 0.09 | BS142: 1.29 | BT142: 0 | BU142: 0 | BV142: 0.7 | BW142: 0.02 | BX142: 0 | BY142: 0 | BZ142: 0 | CA142: 0 | CB142: 122.29 | CE142: 32.81 | CG142: 31.89 | CH142: 12.86 | CI142: 22.37 | CJ142: 1980.6 | CK142: 899.57 | CL142: 1440.09 | CM142: 32.08 | CN142: 15.9 | CO142: 23.99 | CP142: 3 | CQ142: 0.38
B143: Итого за 'Завтрак' | C143: =SUM(C139:C142) -> 380 | D143: =SUM(D139:D142) -> 15.8 | E143: 10.9 | F143: 14.3 | G143: 2.0 | H143: 39.0 | I143: 345 | J143: 5.9 | K143: 0.1 | L143: 0.0 | M143: 0.0 | N143: 13.0 | O143: 24.3 | P143: 1.8 | Q143: 0.0 | R143: 0.0 | S143: 0.1 | T143: 2.7 | U143: 286.4 | V143: 346.0 | W143: 181.5 | X143: 59.0 | Y143: 302.2 | Z143: 2.7 | AA143: 187.5 | AB143: 56.3 | AC143: 197.6 | AD143: 0.9 | AE143: 0.2 | AF143: 0.4 | AG143: 0.5 | AH143: 4.5 | AI143: 0.6 | AJ143: 0 | AK143: 693.24 | AL143: 543.19 | AM143: 939.87 | AN143: 700.69 | AO143: 310.9 | AP143: 519.47 | AQ143: 196.45 | AR143: 623.01 | AS143: 615.1 | AT143: 752.18 | AU143: 1060.48 | AV143: 304.17 | AW143: 598.09 | AX143: 2043.32 | AY143: 8.4 | AZ143: 558.67 | BA143: 766.8 | BB143: 455.14 | BC143: 289 | BD143: 0.1 | BE143: 0.05 | BF143: 0.02 | BG143: 0.06 | BH143: 0.06 | BI143: 0.3 | BJ143: 0 | BK143: 1.21 | BL143: 0 | BM143: 0.27 | BN143: 0 | BO143: 0 | BP143: 0 | BQ143: 0.06 | BR143: 0.09 | BS143: 1.3 | BT143: 0 | BU143: 0 | BV143: 0.76 | BW143: 0.02 | BX143: 0 | BY143: 0 | BZ143: 0 | CA143: 0 | CB143: 320.51 | CD143: =$I$143/#REF!*100 ->  | CE143: 196.88 | CG143: 52.29 | CH143: 27.94 | CI143: 40.12 | CJ143: 3117.6 | CK143: 1333.37 | CL143: 2225.49 | CM143: 78.29 | CN143: 43.66 | CO143: 60.98 | CP143: 6.75 | CQ143: 0.38
B144: Второй завтрак
A145: ="1" -> 1 | B145: Кисель из концентрата | C145: 100 | D145: 0.5 | E145: 0.0 | F145: 0.1 | G145: 0.0 | H145: 7.1 | I145: 32 | J145: 0.0 | K145: 0.0 | L145: 0.0 | M145: 0.0 | N145: 0.0 | O145: 7.1 | P145: 0.0 | Q145: 0.0 | R145: 0.0 | S145: 0.0 | T145: 0.0 | U145: 0.0 | V145: 0.0 | W145: 0.0 | X145: 0.0 | Y145: 0.0 | Z145: 0.0 | AA145: 0.0 | AB145: 0.0 | AC145: 0.0 | AD145: 0.0 | AE145: 0.0 | AF145: 0.0 | AG145: 0.0 | AH145: 0.0 | AI145: 0.0 | AJ145: 0 | AK145: 0 | AL145: 0 | AM145: 0 | AN145: 0 | AO145: 0 | AP145: 0 | AQ145: 0 | AR145: 0 | AS145: 0 | AT145: 0 | AU145: 0 | AV145: 0 | AW145: 0 | AX145: 0 | AY145: 0 | AZ145: 0 | BA145: 0 | BB145: 0 | BC145: 0 | BD145: 0 | BE145: 0 | BF145: 0 | BG145: 0 | BH145: 0 | BI145: 0 | BJ145: 0 | BK145: 0 | BL145: 0 | BM145: 0 | BN145: 0 | BO145: 0 | BP145: 0 | BQ145: 0 | BR145: 0 | BS145: 0 | BT145: 0 | BU145: 0 | BV145: 0 | BW145: 0 | BX145: 0 | BY145: 0 | BZ145: 0 | CA145: 0 | CB145: 95.11 | CE145: 0 | CG145: 0 | CH145: 0 | CI145: 0 | CJ145: 0 | CK145: 0 | CL145: 0 | CM145: 0 | CN145: 0 | CO145: 0 | CP145: 0 | CQ145: 0
A146: ="-" -> - | B146: Печенье | C146: 20 | D146: 0.4 | E146: 0.0 | F146: 2.6 | G146: 0.0 | H146: 11.5 | I146: 70 | J146: 0.4 | K146: 0.0 | L146: 0.0 | M146: 0.0 | N146: 5.0 | O146: 6.0 | P146: 0.5 | Q146: 0.0 | R146: 0.0 | S146: 0.1 | T146: 0.2 | U146: 66.0 | V146: 22.0 | W146: 5.8 | X146: 4.0 | Y146: 18.0 | Z146: 0.4 | AA146: 2.0 | AB146: 1.6 | AC146: 2.2 | AD146: 0.7 | AE146: 0.0 | AF146: 0.0 | AG146: 0.1 | AH146: 0.4 | AI146: 0.0 | AJ146: 0 | AK146: 0 | AL146: 0 | AM146: 0 | AN146: 0 | AO146: 0 | AP146: 0 | AQ146: 0 | AR146: 0 | AS146: 0 | AT146: 0 | AU146: 0 | AV146: 0 | AW146: 0 | AX146: 0 | AY146: 0 | AZ146: 0 | BA146: 0 | BB146: 0 | BC146: 0 | BD146: 0 | BE146: 0 | BF146: 0 | BG146: 0 | BH146: 0 | BI146: 0 | BJ146: 0 | BK146: 0 | BL146: 0 | BM146: 0 | BN146: 0 | BO146: 0 | BP146: 0 | BQ146: 0 | BR146: 0 | BS146: 0 | BT146: 0 | BU146: 0 | BV146: 0 | BW146: 0 | BX146: 0 | BY146: 0 | BZ146: 0 | CA146: 0 | CB146: 0.9 | CE146: 2.27 | CG146: 0 | CH146: 0 | CI146: 0 | CJ146: 0 | CK146: 0 | CL146: 0 | CM146: 0 | CN146: 0 | CO146: 0 | CP146: 0 | CQ146: 0
B147: Итого за 'Второй завтрак' | C147: =SUM(C145:C146) -> 120 | D147: =SUM(D145:D146) -> 0.9 | E147: 0.0 | F147: 2.7 | G147: 0.0 | H147: 18.5 | I147: 102 | J147: 0.4 | K147: 0.0 | L147: 0.0 | M147: 0.0 | N147: 5.0 | O147: 13.1 | P147: 0.5 | Q147: 0.0 | R147: 0.0 | S147: 0.1 | T147: 0.2 | U147: 66.0 | V147: 22.0 | W147: 5.8 | X147: 4.0 | Y147: 18.0 | Z147: 0.4 | AA147: 2.0 | AB147: 1.6 | AC147: 2.2 | AD147: 0.7 | AE147: 0.0 | AF147: 0.0 | AG147: 0.1 | AH147: 0.4 | AI147: 0.0 | AJ147: 0 | AK147: 0 | AL147: 0 | AM147: 0 | AN147: 0 | AO147: 0 | AP147: 0 | AQ147: 0 | AR147: 0 | AS147: 0 | AT147: 0 | AU147: 0 | AV147: 0 | AW147: 0 | AX147: 0 | AY147: 0 | AZ147: 0 | BA147: 0 | BB147: 0 | BC147: 0 | BD147: 0 | BE147: 0 | BF147: 0 | BG147: 0 | BH147: 0 | BI147: 0 | BJ147: 0 | BK147: 0 | BL147: 0 | BM147: 0 | BN147: 0 | BO147: 0 | BP147: 0 | BQ147: 0 | BR147: 0 | BS147: 0 | BT147: 0 | BU147: 0 | BV147: 0 | BW147: 0 | BX147: 0 | BY147: 0 | BZ147: 0 | CA147: 0 | CB147: 96.01 | CD147: =$I$147/#REF!*100 ->  | CE147: 2.27 | CG147: 0 | CH147: 0 | CI147: 0 | CJ147: 0 | CK147: 0 | CL147: 0 | CM147: 0 | CN147: 0 | CO147: 0 | CP147: 0 | CQ147: 0
B148: Обед
A149: ="-" -> - | B149: Хлеб пшеничный | C149: 20 | D149: 1.2 | E149: 0.0 | F149: 0.1 | G149: 0.1 | H149: 7.4 | I149: 36 | J149: 0.0 | K149: 0.0 | L149: 0.0 | M149: 0.0 | N149: 0.2 | O149: 7.1 | P149: 0.0 | Q149: 0.0 | R149: 0.0 | S149: 0.0 | T149: 0.4 | U149: 0.0 | V149: 0.0 | W149: 0.0 | X149: 0.0 | Y149: 0.0 | Z149: 0.0 | AA149: 0.0 | AB149: 0.0 | AC149: 0.0 | AD149: 0.0 | AE149: 0.0 | AF149: 0.0 | AG149: 0.0 | AH149: 0.0 | AI149: 0.0 | AJ149: 0 | AK149: 63.86 | AL149: 66.47 | AM149: 101.79 | AN149: 33.76 | AO149: 20.01 | AP149: 40.02 | AQ149: 15.14 | AR149: 72.38 | AS149: 44.89 | AT149: 62.64 | AU149: 51.68 | AV149: 27.14 | AW149: 48.02 | AX149: 401.59 | AY149: 0 | AZ149: 130.85 | BA149: 56.9 | BB149: 37.76 | BC149: 29.93 | BD149: 0 | BE149: 0 | BF149: 0 | BG149: 0 | BH149: 0 | BI149: 0 | BJ149: 0 | BK149: 0.02 | BL149: 0 | BM149: 0 | BN149: 0 | BO149: 0 | BP149: 0 | BQ149: 0 | BR149: 0 | BS149: 0.01 | BT149: 0 | BU149: 0 | BV149: 0.06 | BW149: 0 | BX149: 0 | BY149: 0 | BZ149: 0 | CA149: 0 | CB149: 7.82 | CE149: 0 | CG149: 0 | CH149: 0 | CI149: 0 | CJ149: 380 | CK149: 146.4 | CL149: 263.2 | CM149: 3.04 | CN149: 3.04 | CO149: 3.04 | CP149: 0 | CQ149: 0
A150: ="-" -> - | B150: Хлеб ржаной | C150: 20 | D150: 1.2 | E150: 0.0 | F150: 0.2 | G150: 0.2 | H150: 8.3 | I150: 38 | J150: 0.0 | K150: 0.0 | L150: 0.0 | M150: 0.0 | N150: 0.2 | O150: 6.4 | P150: 1.7 | Q150: 0.0 | R150: 0.0 | S150: 0.2 | T150: 0.5 | U150: 122.0 | V150: 49.0 | W150: 7.0 | X150: 9.4 | Y150: 31.6 | Z150: 0.8 | AA150: 0.0 | AB150: 1.0 | AC150: 0.2 | AD150: 0.3 | AE150: 0.0 | AF150: 0.0 | AG150: 0.1 | AH150: 0.4 | AI150: 0.0 | AJ150: 0 | AK150: 64.4 | AL150: 49.6 | AM150: 85.4 | AN150: 44.6 | AO150: 18.6 | AP150: 39.6 | AQ150: 16 | AR150: 74.2 | AS150: 59.4 | AT150: 58.2 | AU150: 92.8 | AV150: 24.8 | AW150: 62 | AX150: 311.8 | AY150: 0 | AZ150: 105.2 | BA150: 58.2 | BB150: 36 | BC150: 26 | BD150: 0 | BE150: 0 | BF150: 0 | BG150: 0 | BH150: 0 | BI150: 0 | BJ150: 0 | BK150: 0.03 | BL150: 0 | BM150: 0 | BN150: 0 | BO150: 0 | BP150: 0 | BQ150: 0 | BR150: 0 | BS150: 0.02 | BT150: 0 | BU150: 0 | BV150: 0.1 | BW150: 0.02 | BX150: 0 | BY150: 0 | BZ150: 0 | CA150: 0 | CB150: 9.4 | CE150: 0.17 | CG150: 4 | CH150: 4 | CI150: 4 | CJ150: 760 | CK150: 292.8 | CL150: 526.4 | CM150: 7.6 | CN150: 6.32 | CO150: 6.96 | CP150: 0 | CQ150: 0
A151: ="3/10" -> 3/10 | B151: Компот из яблок | C151: 150 | D151: 0.1 | E151: 0.0 | F151: 0.1 | G151: 0.1 | H151: 14.4 | I151: 56 | J151: 0.0 | K151: 0.0 | L151: 0.0 | M151: 0.0 | N151: 13.7 | O151: 0.2 | P151: 0.5 | Q151: 0.0 | R151: 0.0 | S151: 0.2 | T151: 0.2 | U151: 7.8 | V151: 82.9 | W151: 5.0 | X151: 2.6 | Y151: 3.1 | Z151: 0.7 | AA151: 0.0 | AB151: 8.1 | AC151: 1.5 | AD151: 0.1 | AE151: 0.0 | AF151: 0.0 | AG151: 0.1 | AH151: 0.1 | AI151: 1.2 | AJ151: 0 | AK151: 3.53 | AL151: 3.82 | AM151: 5.59 | AN151: 5.29 | AO151: 0.88 | AP151: 3.23 | AQ151: 0.88 | AR151: 2.65 | AS151: 5 | AT151: 2.94 | AU151: 22.93 | AV151: 2.06 | AW151: 4.12 | AX151: 12.35 | AY151: 0 | AZ151: 3.82 | BA151: 4.7 | BB151: 1.76 | BC151: 1.47 | BD151: 0 | BE151: 0 | BF151: 0 | BG151: 0 | BH151: 0 | BI151: 0 | BJ151: 0 | BK151: 0 | BL151: 0 | BM151: 0 | BN151: 0 | BO151: 0 | BP151: 0 | BQ151: 0 | BR151: 0 | BS151: 0 | BT151: 0 | BU151: 0 | BV151: 0 | BW151: 0 | BX151: 0 | BY151: 0 | BZ151: 0 | CA151: 0 | CB151: 183.4 | CE151: 1.35 | CG151: 4.5 | CH151: 4.5 | CI151: 4.5 | CJ151: 432 | CK151: 208.98 | CL151: 320.49 | CM151: 41.2 | CN151: 24.19 | CO151: 32.7 | CP151: 11.25 | CQ151: 0
A152: ="7/2" -> 7/2 | B152: Щи из свежей капусты и картофеля на говяжьем бульоне | C152: 150 | D152: 1.8 | E152: 4.9 | F152: 4.9 | G152: 1.6 | H152: 5.9 | I152: 73 | J152: 1.3 | K152: 1.0 | L152: 0.0 | M152: 0.0 | N152: 2.6 | O152: 2.1 | P152: 1.2 | Q152: 0.0 | R152: 0.0 | S152: 0.2 | T152: 1.5 | U152: 355.8 | V152: 195.9 | W152: 23.4 | X152: 11.6 | Y152: 24.7 | Z152: 0.4 | AA152: 0.0 | AB152: 728.4 | AC152: 151.6 | AD152: 0.8 | AE152: 0.0 | AF152: 0.1 | AG152: 0.4 | AH152: 0.7 | AI152: 8.3 | AJ152: 0 | AK152: 27 | AL152: 25.73 | AM152: 32.71 | AN152: 32.64 | AO152: 9.8 | AP152: 23.76 | AQ152: 6.91 | AR152: 27.71 | AS152: 36.59 | AT152: 55.42 | AU152: 80.02 | AV152: 12.84 | AW152: 24.4 | AX152: 144.53 | AY152: 0 | AZ152: 27.14 | BA152: 26.93 | BB152: 23.13 | BC152: 9.73 | BD152: 0 | BE152: 0 | BF152: 0 | BG152: 0 | BH152: 0 | BI152: 0 | BJ152: 0 | BK152: 0.09 | BL152: 0 | BM152: 0.06 | BN152: 0 | BO152: 0.01 | BP152: 0 | BQ152: 0 | BR152: 0 | BS152: 0.34 | BT152: 0 | BU152: 0 | BV152: 0.9 | BW152: 0 | BX152: 0 | BY152: 0 | BZ152: 0 | CA152: 0 | CB152: 177.14 | CE152: 121.4 | CG152: 42.75 | CH152: 22.46 | CI152: 32.61 | CJ152: 730.44 | CK152: 257.91 | CL152: 494.17 | CM152: 35.62 | CN152: 22.05 | CO152: 28.84 | CP152: 0 | CQ152: 0.9
A153: ="3/3" -> 3/3 | B153: Картофельное пюре с маслом сливочным | C153: 120 | D153: 2.5 | E153: 0.4 | F153: 2.8 | G153: 0.4 | H153: 17.7 | I153: 105 | J153: 1.8 | K153: 0.1 | L153: 0.0 | M153: 0.0 | N153: 1.7 | O153: 14.6 | P153: 1.4 | Q153: 0.0 | R153: 0.0 | S153: 0.2 | T153: 1.5 | U153: 62.3 | V153: 509.0 | W153: 27.2 | X153: 24.3 | Y153: 69.5 | Z153: 0.9 | AA153: 15.0 | AB153: 27.3 | AC153: 20.0 | AD153: 0.1 | AE153: 0.1 | AF153: 0.1 | AG153: 1.1 | AH153: 2.1 | AI153: 4.4 | AJ153: 0 | AK153: 26.85 | AL153: 42.21 | AM153: 53.47 | AN153: 62.84 | AO153: 10.74 | AP153: 42.38 | AQ153: 21.75 | AR153: 43.26 | AS153: 60.53 | AT153: 164.9 | AU153: 73.44 | AV153: 15.36 | AW153: 42.75 | AX153: 229.77 | AY153: 0 | AZ153: 32.15 | BA153: 29.24 | BB153: 31.98 | BC153: 13.62 | BD153: 0.08 | BE153: 0.04 | BF153: 0.02 | BG153: 0.04 | BH153: 0.05 | BI153: 0.23 | BJ153: 0 | BK153: 0.7 | BL153: 0 | BM153: 0.21 | BN153: 0 | BO153: 0 | BP153: 0 | BQ153: 0.04 | BR153: 0.07 | BS153: 0.68 | BT153: 0 | BU153: 0 | BV153: 0.11 | BW153: 0 | BX153: 0 | BY153: 0 | BZ153: 0 | CA153: 0 | CB153: 98.99 | CE153: 19.55 | CG153: 14.07 | CH153: 9.33 | CI153: 11.7 | CJ153: 481.65 | CK153: 423.36 | CL153: 452.5 | CM153: 19.53 | CN153: 2.87 | CO153: 11.2 | CP153: 0 | CQ153: 0.36
A154: ="12/7" -> 12/7 | B154: Биточки (котлеты) из рыбы минтай | C154: 50 | D154: 6.1 | E154: 5.0 | F154: 3.2 | G154: 2.9 | H154: 7.0 | I154: 81 | J154: 0.5 | K154: 2.0 | L154: 0.0 | M154: 0.0 | N154: 0.2 | O154: 6.4 | P154: 0.4 | Q154: 0.0 | R154: 0.0 | S154: 0.1 | T154: 1.0 | U154: 125.4 | V154: 113.9 | W154: 16.1 | X154: 21.6 | Y154: 89.9 | Z154: 0.6 | AA154: 3.3 | AB154: 0.2 | AC154: 3.3 | AD154: 1.6 | AE154: 0.0 | AF154: 0.0 | AG154: 0.6 | AH154: 1.8 | AI154: 0.2 | AJ154: 0 | AK154: 31.38 | AL154: 32.66 | AM154: 50.02 | AN154: 16.59 | AO154: 9.83 | AP154: 19.67 | AQ154: 7.44 | AR154: 35.57 | AS154: 22.06 | AT154: 30.78 | AU154: 25.39 | AV154: 13.34 | AW154: 23.6 | AX154: 197.33 | AY154: 0 | AZ154: 64.3 | BA154: 27.96 | BB154: 18.55 | BC154: 14.71 | BD154: 0 | BE154: 0 | BF154: 0 | BG154: 0 | BH154: 0 | BI154: 0 | BJ154: 0 | BK154: 0.18 | BL154: 0 | BM154: 0.11 | BN154: 0.01 | BO154: 0.02 | BP154: 0 | BQ154: 0 | BR154: 0 | BS154: 0.66 | BT154: 0 | BU154: 0 | BV154: 1.66 | BW154: 0 | BX154: 0 | BY154: 0 | BZ154: 0 | CA154: 0 | CB154: 42.99 | CE154: 3.33 | CG154: 86.1 | CH154: 17.64 | CI154: 51.87 | CJ154: 864.5 | CK154: 301.53 | CL154: 583.01 | CM154: 20.63 | CN154: 20.63 | CO154: 20.63 | CP154: 0 | CQ154: 0.3
B155: Итого за 'Обед' | C155: =SUM(C149:C154) -> 510 | D155: 13.0 | E155: 10.3 | F155: 11.4 | G155: 5.4 | H155: 60.7 | I155: 389 | J155: 3.6 | K155: 3.0 | L155: 0.0 | M155: 0.0 | N155: 18.7 | O155: 36.9 | P155: 5.2 | Q155: 0.0 | R155: 0.0 | S155: 0.9 | T155: 5.0 | U155: 673.3 | V155: 950.7 | W155: 78.6 | X155: 69.4 | Y155: 218.8 | Z155: 3.4 | AA155: 18.3 | AB155: 765.0 | AC155: 176.7 | AD155: 2.8 | AE155: 0.2 | AF155: 0.2 | AG155: 2.4 | AH155: 5.2 | AI155: 14.1 | AJ155: 0 | AK155: 373.91 | AL155: 346.27 | AM155: 590.22 | AN155: 231.18 | AO155: 119.05 | AP155: 248.03 | AQ155: 86.32 | AR155: 407.75 | AS155: 297.05 | AT155: 365.66 | AU155: 406.36 | AV155: 158.64 | AW155: 298.58 | AX155: 2265.89 | AY155: 0 | AZ155: 708.9 | BA155: 370.28 | BB155: 215.42 | BC155: 159.59 | BD155: 0.07 | BE155: 0.03 | BF155: 0.02 | BG155: 0.04 | BH155: 0.05 | BI155: 0.21 | BJ155: 0 | BK155: 0.96 | BL155: 0 | BM155: 0.36 | BN155: 0.02 | BO155: 0.03 | BP155: 0 | BQ155: 0.04 | BR155: 0.07 | BS155: 1.51 | BT155: 0 | BU155: 0 | BV155: 2.91 | BW155: 0.03 | BX155: 0 | BY155: 0 | BZ155: 0 | CA155: 0 | CB155: 671.61 | CD155: =$I$155/#REF!*100 ->  | CE155: 134.65 | CG155: 153.27 | CH155: 56.9 | CI155: 105.09 | CJ155: 3536.76 | CK155: 1573.02 | CL155: 2554.89 | CM155: 117.46 | CN155: 80.99 | CO155: 99.22 | CP155: 11.25 | CQ155: 1.56
B156: Уплотненный полдник
A157: ="-" -> - | B157: Хлеб ржаной | C157: 20 | D157: 1.2 | E157: 0.0 | F157: 0.2 | G157: 0.2 | H157: 8.3 | I157: 38 | J157: 0.0 | K157: 0.0 | L157: 0.0 | M157: 0.0 | N157: 0.2 | O157: 6.4 | P157: 1.7 | Q157: 0.0 | R157: 0.0 | S157: 0.2 | T157: 0.5 | U157: 122.0 | V157: 49.0 | W157: 7.0 | X157: 9.4 | Y157: 31.6 | Z157: 0.8 | AA157: 0.0 | AB157: 1.0 | AC157: 0.2 | AD157: 0.3 | AE157: 0.0 | AF157: 0.0 | AG157: 0.1 | AH157: 0.4 | AI157: 0.0 | AJ157: 0 | AK157: 64.4 | AL157: 49.6 | AM157: 85.4 | AN157: 44.6 | AO157: 18.6 | AP157: 39.6 | AQ157: 16 | AR157: 74.2 | AS157: 59.4 | AT157: 58.2 | AU157: 92.8 | AV157: 24.8 | AW157: 62 | AX157: 311.8 | AY157: 0 | AZ157: 105.2 | BA157: 58.2 | BB157: 36 | BC157: 26 | BD157: 0 | BE157: 0 | BF157: 0 | BG157: 0 | BH157: 0 | BI157: 0 | BJ157: 0 | BK157: 0.03 | BL157: 0 | BM157: 0 | BN157: 0 | BO157: 0 | BP157: 0 | BQ157: 0 | BR157: 0 | BS157: 0.02 | BT157: 0 | BU157: 0 | BV157: 0.1 | BW157: 0.02 | BX157: 0 | BY157: 0 | BZ157: 0 | CA157: 0 | CB157: 9.4 | CE157: 0.17 | CG157: 2 | CH157: 2 | CI157: 2 | CJ157: 380 | CK157: 146.4 | CL157: 263.2 | CM157: 3.8 | CN157: 3.16 | CO157: 3.48 | CP157: 0 | CQ157: 0
A158: ="-" -> - | B158: Сок в ассортименте | C158: 150 | D158: 0.8 | E158: 0.0 | F158: 0.2 | G158: 0.0 | H158: 15.5 | I158: 65 | J158: 0.0 | K158: 0.0 | L158: 0.0 | M158: 0.0 | N158: 14.9 | O158: 0.3 | P158: 0.3 | Q158: 0.0 | R158: 0.0 | S158: 0.8 | T158: 0.5 | U158: 9.0 | V158: 180.0 | W158: 10.5 | X158: 6.0 | Y158: 10.5 | Z158: 2.1 | AA158: 0.0 | AB158: 0.0 | AC158: 0.0 | AD158: 0.2 | AE158: 0.0 | AF158: 0.0 | AG158: 0.2 | AH158: 0.3 | AI158: 3.0 | AJ158: 0.3 | AK158: 12 | AL158: 15 | AM158: 21 | AN158: 21 | AO158: 3 | AP158: 12 | AQ158: 3 | AR158: 10.5 | AS158: 19.5 | AT158: 12 | AU158: 87 | AV158: 7.5 | AW158: 16.5 | AX158: 48 | AY158: 0 | AZ158: 15 | BA158: 18 | BB158: 7.5 | BC158: 6 | BD158: 0 | BE158: 0 | BF158: 0 | BG158: 0 | BH158: 0 | BI158: 0 | BJ158: 0 | BK158: 0 | BL158: 0 | BM158: 0 | BN158: 0 | BO158: 0 | BP158: 0 | BQ158: 0 | BR158: 0 | BS158: 0 | BT158: 0 | BU158: 0 | BV158: 0 | BW158: 0 | BX158: 0 | BY158: 0 | BZ158: 0 | CA158: 0 | CB158: 132.15 | CE158: 0 | CG158: 3.6 | CH158: 3.6 | CI158: 3.6 | CJ158: 360 | CK158: 163.8 | CL158: 261.9 | CM158: 0.54 | CN158: 0.54 | CO158: 0.54 | CP158: 0 | CQ158: 0
A159: ="9/4" -> 9/4 | B159: Каша рисовая молочная вязкая с маслом сливочным | C159: 150 | D159: 3.9 | E159: 1.6 | F159: 4.4 | G159: 0.3 | H159: 30.4 | I159: 176 | J159: 2.8 | K159: 0.1 | L159: 0.0 | M159: 0.0 | N159: 6.6 | O159: 22.9 | P159: 0.9 | Q159: 0.0 | R159: 0.0 | S159: 0.1 | T159: 1.1 | U159: 176.1 | V159: 115.2 | W159: 70.4 | X159: 23.2 | Y159: 94.4 | Z159: 0.4 | AA159: 26.3 | AB159: 15.2 | AC159: 29.3 | AD159: 0.2 | AE159: 0.0 | AF159: 0.1 | AG159: 0.5 | AH159: 1.6 | AI159: 0.3 | AJ159: 0 | AK159: 137.37 | AL159: 108.23 | AM159: 203.3 | AN159: 85.74 | AO159: 52.37 | AP159: 79.34 | AQ159: 33.92 | AR159: 121.2 | AS159: 127.45 | AT159: 165.89 | AU159: 176.73 | AV159: 56.26 | AW159: 104.37 | AX159: 393.3 | AY159: 0 | AZ159: 108.49 | BA159: 108.71 | BB159: 95.33 | BC159: 44.67 | BD159: 0.1 | BE159: 0.05 | BF159: 0.02 | BG159: 0.06 | BH159: 0.06 | BI159: 0.3 | BJ159: 0 | BK159: 0.87 | BL159: 0 | BM159: 0.26 | BN159: 0 | BO159: 0 | BP159: 0 | BQ159: 0.06 | BR159: 0.09 | BS159: 0.77 | BT159: 0 | BU159: 0 | BV159: 0.09 | BW159: 0 | BX159: 0 | BY159: 0 | BZ159: 0 | CA159: 0 | CB159: 111.87 | CE159: 28.78 | CG159: 26.6 | CH159: 12.74 | CI159: 19.67 | CJ159: 2001.43 | CK159: 924.09 | CL159: 1462.76 | CM159: 28.03 | CN159: 12.22 | CO159: 20.13 | CP159: 3.75 | CQ159: 0.38
B160: Итого за 'Уплотненный полдник' | C160: =SUM(C157:C159) -> 320 | D160: 5.8 | E160: 1.6 | F160: 4.8 | G160: 0.6 | H160: 54.2 | I160: 279 | J160: 2.9 | K160: 0.1 | L160: 0.0 | M160: 0.0 | N160: 21.7 | O160: 29.6 | P160: 2.9 | Q160: 0.0 | R160: 0.0 | S160: 1.0 | T160: 2.0 | U160: 307.1 | V160: 344.2 | W160: 87.9 | X160: 38.6 | Y160: 136.5 | Z160: 3.3 | AA160: 26.3 | AB160: 16.2 | AC160: 29.5 | AD160: 0.6 | AE160: 0.1 | AF160: 0.1 | AG160: 0.8 | AH160: 2.3 | AI160: 3.3 | AJ160: 0.3 | AK160: 132.76 | AL160: 116.12 | AM160: 202.93 | AN160: 95.76 | AO160: 39.99 | AP160: 88.97 | AQ160: 31.27 | AR160: 144.59 | AS160: 118.5 | AT160: 117.95 | AU160: 220.78 | AV160: 56.38 | AW160: 120.35 | AX160: 727.31 | AY160: 0 | AZ160: 236.01 | BA160: 136.21 | BB160: 73.64 | BC160: 55.84 | BD160: 0.05 | BE160: 0.01 | BF160: 0.01 | BG160: 0.03 | BH160: 0.04 | BI160: 0.12 | BJ160: 0 | BK160: 0.41 | BL160: 0 | BM160: 0.11 | BN160: 0 | BO160: 0 | BP160: 0 | BQ160: 0.01 | BR160: 0.05 | BS160: 0.36 | BT160: 0 | BU160: 0 | BV160: 0.16 | BW160: 0.02 | BX160: 0 | BY160: 0 | BZ160: 0 | CA160: 0 | CB160: 267.1 | CD160: =$I$160/#REF!*100 ->  | CE160: 32.45 | CG160: 7.04 | CH160: 6.15 | CI160: 6.6 | CJ160: 786.49 | CK160: 330.75 | CL160: 558.62 | CM160: 5.25 | CN160: 3.91 | CO160: 4.58 | CP160: 0.9 | CQ160: 0.3
B161: Итого за день | C161: =C143+C147+C155+C160 -> 1330 | D161: 35.5 | E161: 22.8 | F161: 33.2 | G161: 8.0 | H161: 172.5 | I161: 1115 | J161: 12.8 | K161: 3.2 | L161: 0.0 | M161: 0.0 | N161: 58.3 | O161: 103.8 | P161: 10.4 | Q161: 0.0 | R161: 0.0 | S161: 2.1 | T161: 9.9 | U161: 1332.8 | V161: 1662.9 | W161: 353.8 | X161: 171.1 | Y161: 675.5 | Z161: 9.8 | AA161: 234.1 | AB161: 839.0 | AC161: 405.9 | AD161: 5.0 | AE161: 0.5 | AF161: 0.8 | AG161: 3.8 | AH161: 12.2 | AI161: 17.9 | AJ161: 0.3 | AK161: 1199.91 | AL161: 1005.58 | AM161: 1733.03 | AN161: 1027.63 | AO161: 469.94 | AP161: 856.46 | AQ161: 314.04 | AR161: 1175.34 | AS161: 1030.65 | AT161: 1235.78 | AU161: 1687.62 | AV161: 519.18 | AW161: 1017.02 | AX161: 5036.53 | AY161: 8.4 | AZ161: 1503.57 | BA161: 1273.28 | BB161: 744.19 | BC161: 504.43 | BD161: 0.22 | BE161: 0.09 | BF161: 0.05 | BG161: 0.12 | BH161: 0.14 | BI161: 0.62 | BJ161: 0 | BK161: 2.59 | BL161: 0 | BM161: 0.74 | BN161: 0.02 | BO161: 0.03 | BP161: 0 | BQ161: 0.11 | BR161: 0.2 | BS161: 3.17 | BT161: 0 | BU161: 0 | BV161: 3.82 | BW161: 0.06 | BX161: 0 | BY161: 0 | BZ161: 0 | CA161: 0 | CB161: 1355.24 | CE161: 366.24 | CG161: 212.6 | CH161: 91 | CI161: 151.8 | CJ161: 7440.85 | CK161: 3237.14 | CL161: 5339 | CM161: 201 | CN161: 128.57 | CO161: 164.78 | CP161: 18.9 | CQ161: 2.24
B163: 2 НЕДЕЛЯ
B164: 7 ДЕНЬ
B165: Завтрак
A166: ="-" -> - | B166: Хлеб пшеничный | C166: 25 | D166: 1.5 | E166: 0.0 | F166: 0.2 | G166: 0.2 | H166: 9.2 | I166: 45 | J166: 0.0 | K166: 0.0 | L166: 0.0 | M166: 0.0 | N166: 0.3 | O166: 8.9 | P166: 0.1 | Q166: 0.0 | R166: 0.0 | S166: 0.0 | T166: 0.5 | U166: 0.0 | V166: 0.0 | W166: 0.0 | X166: 0.0 | Y166: 0.0 | Z166: 0.0 | AA166: 0.0 | AB166: 0.0 | AC166: 0.0 | AD166: 0.0 | AE166: 0.0 | AF166: 0.0 | AG166: 0.0 | AH166: 0.0 | AI166: 0.0 | AJ166: 0 | AK166: 79.82 | AL166: 83.09 | AM166: 127.24 | AN166: 42.2 | AO166: 25.01 | AP166: 50.03 | AQ166: 18.92 | AR166: 90.48 | AS166: 56.12 | AT166: 78.3 | AU166: 64.6 | AV166: 33.93 | AW166: 60.03 | AX166: 501.99 | AY166: 0 | AZ166: 163.56 | BA166: 71.12 | BB166: 47.2 | BC166: 37.41 | BD166: 0 | BE166: 0 | BF166: 0 | BG166: 0 | BH166: 0 | BI166: 0 | BJ166: 0 | BK166: 0.02 | BL166: 0 | BM166: 0 | BN166: 0 | BO166: 0 | BP166: 0 | BQ166: 0 | BR166: 0 | BS166: 0.02 | BT166: 0 | BU166: 0 | BV166: 0.07 | BW166: 0 | BX166: 0 | BY166: 0 | BZ166: 0 | CA166: 0 | CB166: 9.78 | CE166: 0 | CG166: 0 | CH166: 0 | CI166: 0 | CJ166: 570 | CK166: 219.6 | CL166: 394.8 | CM166: 4.56 | CN166: 4.56 | CO166: 4.56 | CP166: 0 | CQ166: 0
A167: ="4/13" -> 4/13 | B167: Сыр (порциями) | C167: 10 | D167: 1.5 | E167: 2.6 | F167: 2.7 | G167: 0.0 | H167: 0.0 | I167: 31 | J167: 1.5 | K167: 0.0 | L167: 0.0 | M167: 0.0 | N167: 0.0 | O167: 0.0 | P167: 0.0 | Q167: 0.0 | R167: 0.0 | S167: 0.2 | T167: 0.4 | U167: 110.0 | V167: 10.0 | W167: 100.0 | X167: 5.5 | Y167: 60.0 | Z167: 0.1 | AA167: 21.0 | AB167: 17.0 | AC167: 23.8 | AD167: 0.0 | AE167: 0.0 | AF167: 0.0 | AG167: 0.0 | AH167: 0.7 | AI167: 0.1 | AJ167: 0 | AK167: 157 | AL167: 117 | AM167: 230 | AN167: 158 | AO167: 56 | AP167: 95 | AQ167: 70 | AR167: 134 | AS167: 76 | AT167: 87 | AU167: 156 | AV167: 70 | AW167: 51 | AX167: 517 | AY167: 0 | AZ167: 273 | BA167: 129 | BB167: 139 | BC167: 21.5 | BD167: 0 | BE167: 0.01 | BF167: 0.04 | BG167: 0.11 | BH167: 0.13 | BI167: 0.33 | BJ167: 0.04 | BK167: 0.7 | BL167: 0.01 | BM167: 0.16 | BN167: 0.01 | BO167: 0 | BP167: 0 | BQ167: 0.05 | BR167: 0.07 | BS167: 0.52 | BT167: 0 | BU167: 0 | BV167: 0.07 | BW167: 0 | BX167: 0 | BY167: 0 | BZ167: 0 | CA167: 0 | CB167: 4.08 | CE167: 23.83 | CG167: 0 | CH167: 0 | CI167: 0 | CJ167: 250 | CK167: 185 | CL167: 217.5 | CM167: 0.77 | CN167: 0.49 | CO167: 0.63 | CP167: 0 | CQ167: 0
A168: ="36/10" -> 36/10 | B168: Какао с молоком (вариант 2) | C168: 150 | D168: 2.8 | E168: 2.2 | F168: 2.0 | G168: 0.5 | H168: 11.3 | I168: 71 | J168: 1.6 | K168: 0.0 | L168: 0.0 | M168: 0.0 | N168: 10.1 | O168: 0.2 | P168: 1.0 | Q168: 0.0 | R168: 0.0 | S168: 0.2 | T168: 0.7 | U168: 38.0 | V168: 137.1 | W168: 82.8 | X168: 20.4 | Y168: 76.1 | Z168: 0.7 | AA168: 9.0 | AB168: 6.5 | AC168: 16.6 | AD168: 0.0 | AE168: 0.0 | AF168: 0.1 | AG168: 0.1 | AH168: 0.8 | AI168: 0.4 | AJ168: 0 | AK168: 0 | AL168: 0 | AM168: 0 | AN168: 0 | AO168: 0 | AP168: 0 | AQ168: 0 | AR168: 0 | AS168: 0 | AT168: 0 | AU168: 0 | AV168: 0 | AW168: 0 | AX168: 0 | AY168: 0 | AZ168: 0 | BA168: 0 | BB168: 0 | BC168: 0 | BD168: 0 | BE168: 0 | BF168: 0 | BG168: 0 | BH168: 0 | BI168: 0 | BJ168: 0 | BK168: 0 | BL168: 0 | BM168: 0 | BN168: 0 | BO168: 0 | BP168: 0 | BQ168: 0 | BR168: 0 | BS168: 0 | BT168: 0 | BU168: 0 | BV168: 0 | BW168: 0 | BX168: 0 | BY168: 0 | BZ168: 0 | CA168: 0 | CB168: 149.41 | CE168: 10.08 | CG168: 10.25 | CH168: 3.95 | CI168: 7.1 | CJ168: 792 | CK168: 288.18 | CL168: 540.09 | CM168: 34.53 | CN168: 16.62 | CO168: 25.58 | CP168: 7.5 | CQ168: 0
A169: ="5/4" -> 5/4 | B169: Каша манная молочная с маслом сливочным | C169: 150 | D169: 4.0 | E169: 1.8 | F169: 3.5 | G169: 0.2 | H169: 22.2 | I169: 134 | J169: 2.5 | K169: 0.1 | L169: 0.0 | M169: 0.0 | N169: 6.4 | O169: 15.0 | P169: 0.8 | Q169: 0.0 | R169: 0.0 | S169: 0.1 | T169: 1.0 | U169: 176.4 | V169: 105.5 | W169: 69.5 | X169: 11.1 | Y169: 65.8 | Z169: 0.3 | AA169: 14.4 | AB169: 12.0 | AC169: 26.7 | AD169: 0.4 | AE169: 0.0 | AF169: 0.1 | AG169: 0.3 | AH169: 1.2 | AI169: 0.3 | AJ169: 0 | AK169: 111.73 | AL169: 102.68 | AM169: 184.88 | AN169: 58.8 | AO169: 35.45 | AP169: 72.39 | AQ169: 26.03 | AR169: 123.01 | AS169: 77.72 | AT169: 106.77 | AU169: 87.34 | AV169: 48.36 | AW169: 83.02 | AX169: 725.92 | AY169: 0 | AZ169: 235.98 | BA169: 121.09 | BB169: 62.1 | BC169: 49.91 | BD169: 0.07 | BE169: 0.03 | BF169: 0.02 | BG169: 0.04 | BH169: 0.05 | BI169: 0.21 | BJ169: 0 | BK169: 0.58 | BL169: 0 | BM169: 0.18 | BN169: 0 | BO169: 0 | BP169: 0 | BQ169: 0.04 | BR169: 0.06 | BS169: 0.48 | BT169: 0 | BU169: 0 | BV169: 0.03 | BW169: 0 | BX169: 0 | BY169: 0 | BZ169: 0 | CA169: 0 | CB169: 135.51 | CE169: 16.4 | CG169: 33.38 | CH169: 14.46 | CI169: 23.92 | CJ169: 1875.37 | CK169: 844.23 | CL169: 1359.8 | CM169: 43.77 | CN169: 22.87 | CO169: 33.32 | CP169: 3.75 | CQ169: 0.38
B170: Итого за 'Завтрак' | C170: =SUM(C166:C169) -> 335 | D170: =SUM(D166:D169) -> 9.8 | E170: 6.6 | F170: 8.2 | G170: 0.9 | H170: 42.7 | I170: 281 | J170: 5.6 | K170: 0.1 | L170: 0.0 | M170: 0.0 | N170: 16.8 | O170: 24.1 | P170: 1.8 | Q170: 0.0 | R170: 0.0 | S170: 0.5 | T170: 2.6 | U170: 324.3 | V170: 252.6 | W170: 252.4 | X170: 37.1 | Y170: 201.9 | Z170: 1.0 | AA170: 44.4 | AB170: 35.5 | AC170: 67.1 | AD170: 0.4 | AE170: 0.1 | AF170: 0.2 | AG170: 0.4 | AH170: 2.7 | AI170: 0.8 | AJ170: 0 | AK170: 348.55 | AL170: 302.76 | AM170: 542.12 | AN170: 258.99 | AO170: 116.46 | AP170: 217.41 | AQ170: 114.95 | AR170: 347.49 | AS170: 209.83 | AT170: 272.07 | AU170: 307.93 | AV170: 152.29 | AW170: 194.05 | AX170: 1744.91 | AY170: 0 | AZ170: 672.54 | BA170: 321.21 | BB170: 248.29 | BC170: 108.82 | BD170: 0.07 | BE170: 0.04 | BF170: 0.06 | BG170: 0.15 | BH170: 0.17 | BI170: 0.54 | BJ170: 0.04 | BK170: 1.3 | BL170: 0.01 | BM170: 0.34 | BN170: 0.01 | BO170: 0 | BP170: 0 | BQ170: 0.09 | BR170: 0.13 | BS170: 1.01 | BT170: 0 | BU170: 0 | BV170: 0.17 | BW170: 0.01 | BX170: 0 | BY170: 0 | BZ170: 0 | CA170: 0 | CB170: 298.78 | CD170: =$I$170/#REF!*100 ->  | CE170: 50.31 | CG170: 43.63 | CH170: 18.41 | CI170: 31.02 | CJ170: 3487.37 | CK170: 1537.01 | CL170: 2512.19 | CM170: 83.63 | CN170: 44.54 | CO170: 64.08 | CP170: 11.25 | CQ170: 0.38
B171: Второй завтрак
A172: ="-" -> - | B172: Яблоки | C172: 100 | D172: 0.4 | E172: 0.0 | F172: 0.4 | G172: 0.4 | H172: 11.6 | I172: 50 | J172: 0.1 | K172: 0.0 | L172: 0.0 | M172: 0.0 | N172: 10.0 | O172: 0.8 | P172: 0.8 | Q172: 0.0 | R172: 0.0 | S172: 0.8 | T172: 0.5 | U172: 26.0 | V172: 278.0 | W172: 16.0 | X172: 9.0 | Y172: 11.0 | Z172: 2.2 | AA172: 0.0 | AB172: 30.0 | AC172: 5.0 | AD172: 0.2 | AE172: 0.0 | AF172: 0.0 | AG172: 0.3 | AH172: 0.4 | AI172: 10.0 | AJ172: 0 | AK172: 12 | AL172: 13 | AM172: 19 | AN172: 18 | AO172: 3 | AP172: 11 | AQ172: 3 | AR172: 9 | AS172: 17 | AT172: 10 | AU172: 78 | AV172: 7 | AW172: 14 | AX172: 42 | AY172: 0 | AZ172: 13 | BA172: 16 | BB172: 6 | BC172: 5 | BD172: 0 | BE172: 0 | BF172: 0 | BG172: 0 | BH172: 0 | BI172: 0 | BJ172: 0 | BK172: 0 | BL172: 0 | BM172: 0 | BN172: 0 | BO172: 0 | BP172: 0 | BQ172: 0 | BR172: 0 | BS172: 0 | BT172: 0 | BU172: 0 | BV172: 0 | BW172: 0 | BX172: 0 | BY172: 0 | BZ172: 0 | CA172: 0 | CB172: 86.3 | CE172: 5 | CG172: 2 | CH172: 2 | CI172: 2 | CJ172: 150 | CK172: 150 | CL172: 150 | CM172: 0 | CN172: 0 | CO172: 0 | CP172: 0 | CQ172: 0
B173: Итого за 'Второй завтрак' | C173: =SUM(C172) -> 100 | D173: =SUM(D172) -> 0.4 | E173: 0.0 | F173: 0.4 | G173: 0.4 | H173: 11.6 | I173: 50 | J173: 0.1 | K173: 0.0 | L173: 0.0 | M173: 0.0 | N173: 10.0 | O173: 0.8 | P173: 0.8 | Q173: 0.0 | R173: 0.0 | S173: 0.8 | T173: 0.5 | U173: 26.0 | V173: 278.0 | W173: 16.0 | X173: 9.0 | Y173: 11.0 | Z173: 2.2 | AA173: 0.0 | AB173: 30.0 | AC173: 5.0 | AD173: 0.2 | AE173: 0.0 | AF173: 0.0 | AG173: 0.3 | AH173: 0.4 | AI173: 10.0 | AJ173: 0 | AK173: 12 | AL173: 13 | AM173: 19 | AN173: 18 | AO173: 3 | AP173: 11 | AQ173: 3 | AR173: 9 | AS173: 17 | AT173: 10 | AU173: 78 | AV173: 7 | AW173: 14 | AX173: 42 | AY173: 0 | AZ173: 13 | BA173: 16 | BB173: 6 | BC173: 5 | BD173: 0 | BE173: 0 | BF173: 0 | BG173: 0 | BH173: 0 | BI173: 0 | BJ173: 0 | BK173: 0 | BL173: 0 | BM173: 0 | BN173: 0 | BO173: 0 | BP173: 0 | BQ173: 0 | BR173: 0 | BS173: 0 | BT173: 0 | BU173: 0 | BV173: 0 | BW173: 0 | BX173: 0 | BY173: 0 | BZ173: 0 | CA173: 0 | CB173: 86.3 | CD173: =$I$173/#REF!*100 ->  | CE173: 5 | CG173: 2 | CH173: 2 | CI173: 2 | CJ173: 150 | CK173: 150 | CL173: 150 | CM173: 0 | CN173: 0 | CO173: 0 | CP173: 0 | CQ173: 0
B174: Обед
A175: ="-" -> - | B175: Хлеб пшеничный | C175: 20 | D175: 1.2 | E175: 0.0 | F175: 0.1 | G175: 0.1 | H175: 7.4 | I175: 36 | J175: 0.0 | K175: 0.0 | L175: 0.0 | M175: 0.0 | N175: 0.2 | O175: 7.1 | P175: 0.0 | Q175: 0.0 | R175: 0.0 | S175: 0.0 | T175: 0.4 | U175: 0.0 | V175: 0.0 | W175: 0.0 | X175: 0.0 | Y175: 0.0 | Z175: 0.0 | AA175: 0.0 | AB175: 0.0 | AC175: 0.0 | AD175: 0.0 | AE175: 0.0 | AF175: 0.0 | AG175: 0.0 | AH175: 0.0 | AI175: 0.0 | AJ175: 0 | AK175: 63.86 | AL175: 66.47 | AM175: 101.79 | AN175: 33.76 | AO175: 20.01 | AP175: 40.02 | AQ175: 15.14 | AR175: 72.38 | AS175: 44.89 | AT175: 62.64 | AU175: 51.68 | AV175: 27.14 | AW175: 48.02 | AX175: 401.59 | AY175: 0 | AZ175: 130.85 | BA175: 56.9 | BB175: 37.76 | BC175: 29.93 | BD175: 0 | BE175: 0 | BF175: 0 | BG175: 0 | BH175: 0 | BI175: 0 | BJ175: 0 | BK175: 0.02 | BL175: 0 | BM175: 0 | BN175: 0 | BO175: 0 | BP175: 0 | BQ175: 0 | BR175: 0 | BS175: 0.01 | BT175: 0 | BU175: 0 | BV175: 0.06 | BW175: 0 | BX175: 0 | BY175: 0 | BZ175: 0 | CA175: 0 | CB175: 7.82 | CE175: 0 | CG175: 0 | CH175: 0 | CI175: 0 | CJ175: 380 | CK175: 146.4 | CL175: 263.2 | CM175: 3.04 | CN175: 3.04 | CO175: 3.04 | CP175: 0 | CQ175: 0
A176: ="-" -> - | B176: Хлеб ржаной | C176: 20 | D176: 1.2 | E176: 0.0 | F176: 0.2 | G176: 0.2 | H176: 8.3 | I176: 38 | J176: 0.0 | K176: 0.0 | L176: 0.0 | M176: 0.0 | N176: 0.2 | O176: 6.4 | P176: 1.7 | Q176: 0.0 | R176: 0.0 | S176: 0.2 | T176: 0.5 | U176: 122.0 | V176: 49.0 | W176: 7.0 | X176: 9.4 | Y176: 31.6 | Z176: 0.8 | AA176: 0.0 | AB176: 1.0 | AC176: 0.2 | AD176: 0.3 | AE176: 0.0 | AF176: 0.0 | AG176: 0.1 | AH176: 0.4 | AI176: 0.0 | AJ176: 0 | AK176: 64.4 | AL176: 49.6 | AM176: 85.4 | AN176: 44.6 | AO176: 18.6 | AP176: 39.6 | AQ176: 16 | AR176: 74.2 | AS176: 59.4 | AT176: 58.2 | AU176: 92.8 | AV176: 24.8 | AW176: 62 | AX176: 311.8 | AY176: 0 | AZ176: 105.2 | BA176: 58.2 | BB176: 36 | BC176: 26 | BD176: 0 | BE176: 0 | BF176: 0 | BG176: 0 | BH176: 0 | BI176: 0 | BJ176: 0 | BK176: 0.03 | BL176: 0 | BM176: 0 | BN176: 0 | BO176: 0 | BP176: 0 | BQ176: 0 | BR176: 0 | BS176: 0.02 | BT176: 0 | BU176: 0 | BV176: 0.1 | BW176: 0.02 | BX176: 0 | BY176: 0 | BZ176: 0 | CA176: 0 | CB176: 9.4 | CE176: 0.17 | CG176: 4 | CH176: 4 | CI176: 4 | CJ176: 760 | CK176: 292.8 | CL176: 526.4 | CM176: 7.6 | CN176: 6.32 | CO176: 6.96 | CP176: 0 | CQ176: 0
A177: ="6/10" -> 6/10 | B177: Компот из сухофруктов | C177: 150 | D177: 0.8 | E177: 0.0 | F177: 0.0 | G177: 0.0 | H177: 17.4 | I177: 66 | J177: 0.0 | K177: 0.0 | L177: 0.0 | M177: 0.0 | N177: 14.4 | O177: 0.4 | P177: 2.6 | Q177: 0.0 | R177: 0.0 | S177: 0.2 | T177: 0.6 | U177: 2.6 | V177: 255.2 | W177: 23.5 | X177: 15.0 | Y177: 20.4 | Z177: 0.5 | AA177: 0.0 | AB177: 472.5 | AC177: 87.5 | AD177: 0.8 | AE177: 0.0 | AF177: 0.0 | AG177: 0.4 | AH177: 0.6 | AI177: 0.4 | AJ177: 0 | AK177: 0.01 | AL177: 0.01 | AM177: 0.01 | AN177: 0.01 | AO177: 0 | AP177: 0.01 | AQ177: 0 | AR177: 0.01 | AS177: 0.01 | AT177: 0.01 | AU177: 0.04 | AV177: 0 | AW177: 0.01 | AX177: 0.02 | AY177: 0 | AZ177: 0.01 | BA177: 0.01 | BB177: 0 | BC177: 0 | BD177: 0 | BE177: 0 | BF177: 0 | BG177: 0 | BH177: 0 | BI177: 0 | BJ177: 0 | BK177: 0 | BL177: 0 | BM177: 0 | BN177: 0 | BO177: 0 | BP177: 0 | BQ177: 0 | BR177: 0 | BS177: 0.01 | BT177: 0 | BU177: 0 | BV177: 0 | BW177: 0 | BX177: 0 | BY177: 0 | BZ177: 0 | CA177: 0 | CB177: 160.51 | CE177: 78.75 | CG177: 3.95 | CH177: 3.95 | CI177: 3.95 | CJ177: 454.5 | CK177: 172.98 | CL177: 313.74 | CM177: 41.94 | CN177: 24.93 | CO177: 33.44 | CP177: 7.5 | CQ177: 0
A178: ="6/1" -> 6/1 | B178: Салат из белокочанной капусты с морковью и растительным маслом | C178: 30 | D178: 0.5 | E178: 0.0 | F178: 1.8 | G178: 1.8 | H178: 2.8 | I178: 28 | J178: 0.2 | K178: 1.2 | L178: 0.0 | M178: 0.0 | N178: 2.2 | O178: 0.0 | P178: 0.6 | Q178: 0.0 | R178: 0.0 | S178: 0.1 | T178: 0.4 | U178: 60.8 | V178: 75.6 | W178: 12.4 | X178: 5.4 | Y178: 9.6 | Z178: 0.2 | AA178: 0.0 | AB178: 568.9 | AC178: 96.7 | AD178: 0.8 | AE178: 0.0 | AF178: 0.0 | AG178: 0.2 | AH178: 0.3 | AI178: 10.2 | AJ178: 0 | AK178: 14.81 | AL178: 12.67 | AM178: 16.18 | AN178: 15.24 | AO178: 5.27 | AP178: 11.43 | AQ178: 2.58 | AR178: 13.81 | AS178: 17.91 | AT178: 20.67 | AU178: 44.28 | AV178: 6.83 | AW178: 11.73 | AX178: 71.69 | AY178: 0 | AZ178: 14.42 | BA178: 14.56 | BB178: 11.87 | BC178: 4.97 | BD178: 0 | BE178: 0 | BF178: 0 | BG178: 0 | BH178: 0 | BI178: 0 | BJ178: 0 | BK178: 0.11 | BL178: 0 | BM178: 0.07 | BN178: 0.01 | BO178: 0.01 | BP178: 0 | BQ178: 0 | BR178: 0 | BS178: 0.42 | BT178: 0 | BU178: 0 | BV178: 1.04 | BW178: 0 | BX178: 0 | BY178: 0 | BZ178: 0 | CA178: 0 | CB178: 24.57 | CE178: 94.82 | CG178: 5.42 | CH178: 2.48 | CI178: 3.95 | CJ178: 162.53 | CK178: 38.92 | CL178: 100.73 | CM178: 2.61 | CN178: 2.46 | CO178: 2.54 | CP178: 0.9 | CQ178: 0.15
A179: ="14/2" -> 14/2 | B179: Суп картофельный с пшенной крупой на говяжьем бульоне | C179: 150 | D179: 2.0 | E179: 4.9 | F179: 6.4 | G179: 3.3 | H179: 10.1 | I179: 105 | J179: 1.6 | K179: 2.0 | L179: 0.0 | M179: 0.0 | N179: 1.3 | O179: 7.9 | P179: 0.9 | Q179: 0.0 | R179: 0.0 | S179: 0.1 | T179: 1.5 | U179: 352.4 | V179: 248.1 | W179: 10.2 | X179: 13.9 | Y179: 34.6 | Z179: 0.5 | AA179: 0.0 | AB179: 583.7 | AC179: 121.4 | AD179: 1.4 | AE179: 0.1 | AF179: 0.1 | AG179: 0.6 | AH179: 1.0 | AI179: 3.9 | AJ179: 0 | AK179: 26.26 | AL179: 31.02 | AM179: 66.89 | AN179: 35.65 | AO179: 13.09 | AP179: 30.01 | AQ179: 13.99 | AR179: 35.45 | AS179: 57.56 | AT179: 81.98 | AU179: 55.56 | AV179: 14.05 | AW179: 27.44 | AX179: 168.93 | AY179: 0 | AZ179: 37.23 | BA179: 33.02 | BB179: 25.27 | BC179: 11.25 | BD179: 0 | BE179: 0 | BF179: 0 | BG179: 0 | BH179: 0 | BI179: 0 | BJ179: 0 | BK179: 0.2 | BL179: 0 | BM179: 0.12 | BN179: 0.01 | BO179: 0.02 | BP179: 0 | BQ179: 0 | BR179: 0 | BS179: 0.7 | BT179: 0 | BU179: 0 | BV179: 1.86 | BW179: 0 | BX179: 0 | BY179: 0 | BZ179: 0 | CA179: 0 | CB179: 149.94 | CE179: 97.28 | CG179: 49.25 | CH179: 27.54 | CI179: 38.39 | CJ179: 694.26 | CK179: 394.27 | CL179: 544.26 | CM179: 38.31 | CN179: 18.54 | CO179: 28.42 | CP179: 0 | CQ179: 0.9
A180: ="46/3" -> 46/3 | B180: Макаронные изделия отварные с маслом сливочным | C180: 120 | D180: 4.2 | E180: 0.0 | F180: 2.4 | G180: 0.5 | H180: 27.3 | I180: 147 | J180: 1.5 | K180: 0.1 | L180: 0.0 | M180: 0.0 | N180: 0.8 | O180: 25.1 | P180: 1.4 | Q180: 0.0 | R180: 0.0 | S180: 0.0 | T180: 0.6 | U180: 117.8 | V180: 45.0 | W180: 8.4 | X180: 5.7 | Y180: 31.9 | Z180: 0.6 | AA180: 7.2 | AB180: 7.2 | AC180: 13.5 | AD180: 0.6 | AE180: 0.1 | AF180: 0.0 | AG180: 0.4 | AH180: 1.2 | AI180: 0.0 | AJ180: 0 | AK180: 183.74 | AL180: 167.99 | AM180: 314.71 | AN180: 98.3 | AO180: 59.93 | AP180: 121.75 | AQ180: 39.95 | AR180: 195.25 | AS180: 129.11 | AT180: 155.68 | AU180: 133.54 | AV180: 78.46 | AW180: 136.44 | AX180: 1198.29 | AY180: 0 | AZ180: 377.59 | BA180: 195.58 | BB180: 98.21 | BC180: 77.75 | BD180: 0.07 | BE180: 0.03 | BF180: 0.02 | BG180: 0.04 | BH180: 0.05 | BI180: 0.21 | BJ180: 0 | BK180: 0.65 | BL180: 0 | BM180: 0.18 | BN180: 0 | BO180: 0 | BP180: 0 | BQ180: 0.04 | BR180: 0.06 | BS180: 0.48 | BT180: 0 | BU180: 0 | BV180: 0.19 | BW180: 0.01 | BX180: 0 | BY180: 0 | BZ180: 0 | CA180: 0 | CB180: 250.85 | CE180: 8.4 | CG180: 15.92 | CH180: 8.3 | CI180: 12.11 | CJ180: 369.83 | CK180: 365.4 | CL180: 367.62 | CM180: 9.36 | CN180: 4.76 | CO180: 7.06 | CP180: 0 | CQ180: 0.36
A181: ="1/27" -> 1/27 | B181: Котлеты "Крестьянские" из мясо говядины и птиц | C181: 50 | D181: 8.0 | E181: 7.4 | F181: 9.2 | G181: 3.1 | H181: 6.9 | I181: 141 | J181: 3.1 | K181: 17.5 | L181: 0.0 | M181: 0.0 | N181: 0.5 | O181: 5.6 | P181: 0.8 | Q181: 0.0 | R181: 0.0 | S181: 0.1 | T181: 0.9 | U181: 145.1 | V181: 117.3 | W181: 9.0 | X181: 11.9 | Y181: 81.3 | Z181: 1.1 | AA181: 17.9 | AB181: 2.5 | AC181: 18.4 | AD181: 1.7 | AE181: 0.0 | AF181: 0.1 | AG181: 2.5 | AH181: 4.8 | AI181: 0.3 | AJ181: 0 | AK181: 405.15 | AL181: 321.92 | AM181: 623.23 | AN181: 803.57 | AO181: 194.31 | AP181: 353.67 | AQ181: 111.94 | AR181: 339.3 | AS181: 473.58 | AT181: 492.79 | AU181: 699.89 | AV181: 241.54 | AW181: 507.33 | AX181: 1292.73 | AY181: 81.79 | AZ181: 382.17 | BA181: 358.78 | BB181: 277.15 | BC181: 108.81 | BD181: 0 | BE181: 0 | BF181: 0 | BG181: 0 | BH181: 0 | BI181: 0 | BJ181: 0 | BK181: 0.19 | BL181: 0 | BM181: 0.12 | BN181: 0.01 | BO181: 0.02 | BP181: 0 | BQ181: 0 | BR181: 0 | BS181: 0.7 | BT181: 0 | BU181: 0 | BV181: 1.77 | BW181: 0 | BX181: 0 | BY181: 0 | BZ181: 0 | CA181: 0 | CB181: 40.11 | CE181: 18.26 | CG181: 13.04 | CH181: 6.89 | CI181: 9.97 | CJ181: 1506.73 | CK181: 914.09 | CL181: 1210.41 | CM181: 10.44 | CN181: 7.36 | CO181: 8.9 | CP181: 0 | CQ181: 0.25
B182: Итого за 'Обед' | C182: =SUM(C175:C181) -> 540 | D182: =SUM(D175:D181) -> 17.9 | E182: 12.3 | F182: 20.2 | G182: 9.1 | H182: 80.2 | I182: 561 | J182: 6.4 | K182: 20.6 | L182: 0.0 | M182: 0.0 | N182: 19.6 | O182: 52.7 | P182: 7.9 | Q182: 0.0 | R182: 0.0 | S182: 0.7 | T182: 4.8 | U182: 800.7 | V182: 790.1 | W182: 70.6 | X182: 61.3 | Y182: 209.3 | Z182: 3.7 | AA182: 25.1 | AB182: 1635.8 | AC182: 337.7 | AD182: 5.7 | AE182: 0.2 | AF182: 0.2 | AG182: 4.2 | AH182: 8.3 | AI182: 14.7 | AJ182: 0 | AK182: 615.83 | AL182: 536.87 | AM182: 950.73 | AN182: 1001.98 | AO182: 262.63 | AP182: 523.92 | AQ182: 182.03 | AR182: 591.18 | AS182: 702.83 | AT182: 891.24 | AU182: 1020.29 | AV182: 334.08 | AW182: 711.16 | AX182: 2594.19 | AY182: 81.79 | AZ182: 735.8 | BA182: 560.3 | BB182: 422.96 | BC182: 201.17 | BD182: 0.08 | BE182: 0.04 | BF182: 0.02 | BG182: 0.04 | BH182: 0.05 | BI182: 0.23 | BJ182: 0 | BK182: 1.16 | BL182: 0 | BM182: 0.46 | BN182: 0.02 | BO182: 0.04 | BP182: 0 | BQ182: 0.04 | BR182: 0.08 | BS182: 2.19 | BT182: 0 | BU182: 0 | BV182: 3.83 | BW182: 0.02 | BX182: 0 | BY182: 0 | BZ182: 0 | CA182: 0 | CB182: 497.64 | CD182: =$I$182/#REF!*100 ->  | CE182: 342.4 | CG182: 89.65 | CH182: 54.18 | CI182: 71.92 | CJ182: 4370.59 | CK182: 2363.8 | CL182: 3367.19 | CM182: 123.94 | CN182: 66.01 | CO182: 94.97 | CP182: 8.4 | CQ182: 1.66
B183: Уплотненный полдник
A184: ="-" -> - | B184: Хлеб ржаной | C184: 10 | D184: 0.6 | E184: 0.0 | F184: 0.1 | G184: 0.2 | H184: 4.2 | I184: 19 | J184: 0.0 | K184: 0.0 | L184: 0.0 | M184: 0.0 | N184: 0.2 | O184: 6.4 | P184: 1.7 | Q184: 0.0 | R184: 0.0 | S184: 0.2 | T184: 0.5 | U184: 122.0 | V184: 49.0 | W184: 3.5 | X184: 4.7 | Y184: 15.8 | Z184: 0.4 | AA184: 0.0 | AB184: 1.0 | AC184: 0.2 | AD184: 0.3 | AE184: 0.0 | AF184: 0.0 | AG184: 0.1 | AH184: 0.4 | AI184: 0.0 | AJ184: 0 | AK184: 64.4 | AL184: 49.6 | AM184: 85.4 | AN184: 44.6 | AO184: 18.6 | AP184: 39.6 | AQ184: 16 | AR184: 74.2 | AS184: 59.4 | AT184: 58.2 | AU184: 92.8 | AV184: 24.8 | AW184: 62 | AX184: 311.8 | AY184: 0 | AZ184: 105.2 | BA184: 58.2 | BB184: 36 | BC184: 26 | BD184: 0 | BE184: 0 | BF184: 0 | BG184: 0 | BH184: 0 | BI184: 0 | BJ184: 0 | BK184: 0.03 | BL184: 0 | BM184: 0 | BN184: 0 | BO184: 0 | BP184: 0 | BQ184: 0 | BR184: 0 | BS184: 0.02 | BT184: 0 | BU184: 0 | BV184: 0.1 | BW184: 0.02 | BX184: 0 | BY184: 0 | BZ184: 0 | CA184: 0 | CB184: 9.4 | CE184: 0.17 | CG184: 3 | CH184: 3 | CI184: 3 | CJ184: 570 | CK184: 219.6 | CL184: 394.8 | CM184: 5.7 | CN184: 4.74 | CO184: 5.22 | CP184: 0 | CQ184: 0
A185: ="27/12" -> 27/12 | B185: Оладьи | C185: 70 | D185: 3.8 | E185: 0.4 | F185: 4.3 | G185: 4.6 | H185: 23.3 | I185: 147 | J185: 0.7 | K185: 2.7 | L185: 0.0 | M185: 0.0 | N185: 1.4 | O185: 20.8 | P185: 1.1 | Q185: 0.0 | R185: 0.0 | S185: 0.0 | T185: 0.8 | U185: 247.8 | V185: 41.2 | W185: 8.4 | X185: 5.2 | Y185: 30.2 | Z185: 0.4 | AA185: 2.7 | AB185: 0.8 | AC185: 4.7 | AD185: 2.4 | AE185: 0.0 | AF185: 0.0 | AG185: 0.4 | AH185: 1.2 | AI185: 0.0 | AJ185: 0 | AK185: 172.68 | AL185: 154.06 | AM185: 287.43 | AN185: 108.79 | AO185: 59.86 | AP185: 115.98 | AQ185: 36.97 | AR185: 175.94 | AS185: 126.28 | AT185: 149 | AU185: 144.56 | AV185: 75.28 | AW185: 126.43 | AX185: 1033.3 | AY185: 3.45 | AZ185: 321.17 | BA185: 181.03 | BB185: 93.08 | BC185: 70.65 | BD185: 0 | BE185: 0 | BF185: 0 | BG185: 0 | BH185: 0 | BI185: 0 | BJ185: 0 | BK185: 0.27 | BL185: 0 | BM185: 0.15 | BN185: 0.01 | BO185: 0.03 | BP185: 0 | BQ185: 0 | BR185: 0 | BS185: 0.91 | BT185: 0 | BU185: 0 | BV185: 2.64 | BW185: 0.01 | BX185: 0 | BY185: 0 | BZ185: 0 | CA185: 0 | CB185: 40.34 | CE185: 2.83 | CG185: 26.12 | CH185: 13.46 | CI185: 19.79 | CJ185: 687.55 | CK185: 249.84 | CL185: 468.7 | CM185: 3.8 | CN185: 2.14 | CO185: 3.31 | CP185: 1.19 | CQ185: 0.63
A186: ="27/10" -> 27/10 | B186: Чай полусладкий | C186: 150 | D186: 0.2 | E186: 0.0 | F186: 0.0 | G186: 0.0 | H186: 3.8 | I186: 15 | J186: 0.0 | K186: 0.0 | L186: 0.0 | M186: 0.0 | N186: 3.7 | O186: 0.0 | P186: 0.1 | Q186: 0.0 | R186: 0.0 | S186: 0.0 | T186: 0.1 | U186: 0.0 | V186: 0.1 | W186: 0.1 | X186: 0.0 | Y186: 0.0 | Z186: 0.0 | AA186: 0.0 | AB186: 0.0 | AC186: 0.0 | AD186: 0.0 | AE186: 0.0 | AF186: 0.0 | AG186: 0.0 | AH186: 0.0 | AI186: 0.0 | AJ186: 0 | AK186: 0 | AL186: 0 | AM186: 0 | AN186: 0 | AO186: 0 | AP186: 0 | AQ186: 0 | AR186: 0 | AS186: 0 | AT186: 0 | AU186: 0 | AV186: 0 | AW186: 0 | AX186: 0 | AY186: 0 | AZ186: 0 | BA186: 0 | BB186: 0 | BC186: 0 | BD186: 0 | BE186: 0 | BF186: 0 | BG186: 0 | BH186: 0 | BI186: 0 | BJ186: 0 | BK186: 0 | BL186: 0 | BM186: 0 | BN186: 0 | BO186: 0 | BP186: 0 | BQ186: 0 | BR186: 0 | BS186: 0 | BT186: 0 | BU186: 0 | BV186: 0 | BW186: 0 | BX186: 0 | BY186: 0 | BZ186: 0 | CA186: 0 | CB186: 150.07 | CE186: 0 | CG186: 3.69 | CH186: 3.69 | CI186: 3.69 | CJ186: 398.25 | CK186: 156.6 | CL186: 277.43 | CM186: 39.61 | CN186: 23.41 | CO186: 31.51 | CP186: 3.75 | CQ186: 0
A187: ="2/6" -> 2/6 | B187: Омлет запеченный или паровой | C187: 120 | D187: 12.6 | E187: 13.3 | F187: 17.1 | G187: 0.0 | H187: 2.3 | I187: 213 | J187: 8.4 | K187: 0.2 | L187: 0.0 | M187: 0.0 | N187: 2.3 | O187: 0.0 | P187: 0.0 | Q187: 0.0 | R187: 0.0 | S187: 0.0 | T187: 2.0 | U187: 380.5 | V187: 167.3 | W187: 88.6 | X187: 14.5 | Y187: 191.6 | Z187: 2.2 | AA187: 173.1 | AB187: 73.7 | AC187: 304.0 | AD187: 0.7 | AE187: 0.1 | AF187: 0.4 | AG187: 0.2 | AH187: 3.8 | AI187: 0.2 | AJ187: 0 | AK187: 700.73 | AL187: 542.71 | AM187: 982.87 | AN187: 819.23 | AO187: 384.27 | AP187: 555.02 | AQ187: 188.26 | AR187: 592.44 | AS187: 644.2 | AT187: 712.71 | AU187: 1114.58 | AV187: 310.21 | AW187: 377.73 | AX187: 1613.73 | AY187: 12.63 | AZ187: 362.01 | BA187: 842.67 | BB187: 433.62 | BC187: 265.37 | BD187: 0.24 | BE187: 0.11 | BF187: 0.06 | BG187: 0.14 | BH187: 0.16 | BI187: 0.72 | BJ187: 0 | BK187: 2.01 | BL187: 0 | BM187: 0.62 | BN187: 0 | BO187: 0 | BP187: 0 | BQ187: 0.14 | BR187: 0.21 | BS187: 1.64 | BT187: 0 | BU187: 0 | BV187: 0.09 | BW187: 0.01 | BX187: 0 | BY187: 0 | BZ187: 0 | CA187: 0 | CB187: 105.76 | CE187: 185.38 | CG187: 48.94 | CH187: 30.96 | CI187: 39.95 | CJ187: 209 | CK187: 77.6 | CL187: 143.3 | CM187: 14.28 | CN187: 7.8 | CO187: 11.04 | CP187: 0 | CQ187: 0.6
B188: Итого за 'Уплотненный полдник' | C188: =SUM(C184:C187) -> 350 | D188: 17.1 | E188: 13.7 | F188: 21.5 | G188: 4.9 | H188: 33.5 | I188: 394 | J188: 9.0 | K188: 3.0 | L188: 0.0 | M188: 0.0 | N188: 7.6 | O188: 27.2 | P188: 2.8 | Q188: 0.0 | R188: 0.0 | S188: 0.2 | T188: 3.3 | U188: 750.3 | V188: 257.6 | W188: 100.6 | X188: 24.5 | Y188: 237.6 | Z188: 3.0 | AA188: 175.8 | AB188: 75.5 | AC188: 308.8 | AD188: 3.3 | AE188: 0.1 | AF188: 0.4 | AG188: 0.7 | AH188: 5.3 | AI188: 0.2 | AJ188: 0 | AK188: 310.05 | AL188: 262.29 | AM188: 490.73 | AN188: 194.52 | AO188: 112.23 | AP188: 195.32 | AQ188: 70.89 | AR188: 297.14 | AS188: 253.73 | AT188: 314.89 | AU188: 321.29 | AV188: 131.55 | AW188: 230.8 | AX188: 1426.6 | AY188: 3.45 | AZ188: 429.66 | BA188: 289.74 | BB188: 188.41 | BC188: 115.33 | BD188: 0.1 | BE188: 0.05 | BF188: 0.02 | BG188: 0.06 | BH188: 0.06 | BI188: 0.3 | BJ188: 0 | BK188: 1.14 | BL188: 0 | BM188: 0.42 | BN188: 0.01 | BO188: 0.03 | BP188: 0 | BQ188: 0.06 | BR188: 0.09 | BS188: 1.67 | BT188: 0 | BU188: 0 | BV188: 2.73 | BW188: 0.01 | BX188: 0 | BY188: 0 | BZ188: 0 | CA188: 0 | CB188: 302.28 | CD188: =$I$188/#REF!*100 ->  | CE188: 31.61 | CG188: 47.54 | CH188: 25.64 | CI188: 36.59 | CJ188: 2420.09 | CK188: 1022.5 | CL188: 1721.3 | CM188: 62.1 | CN188: 33.69 | CO188: 48.23 | CP188: 8.69 | CQ188: 1.01
B189: Итого за день | C189: =C170+C173+C182+C188 -> 1325 | D189: 45.2 | E189: 32.6 | F189: 50.3 | G189: 15.3 | H189: 168.0 | I189: 1286 | J189: 21.1 | K189: 23.7 | L189: 0.0 | M189: 0.0 | N189: 54.0 | O189: 104.8 | P189: 13.3 | Q189: 0.0 | R189: 0.0 | S189: 2.2 | T189: 11.2 | U189: 1901.3 | V189: 1578.3 | W189: 439.5 | X189: 131.8 | Y189: 659.8 | Z189: 9.9 | AA189: 245.2 | AB189: 1776.8 | AC189: 718.6 | AD189: 9.6 | AE189: 0.5 | AF189: 0.9 | AG189: 5.5 | AH189: 16.7 | AI189: 25.7 | AJ189: 0 | AK189: 1286.43 | AL189: 1114.92 | AM189: 2002.58 | AN189: 1473.5 | AO189: 494.32 | AP189: 947.66 | AQ189: 370.87 | AR189: 1244.82 | AS189: 1183.39 | AT189: 1488.2 | AU189: 1727.51 | AV189: 624.92 | AW189: 1150.01 | AX189: 5807.7 | AY189: 85.23 | AZ189: 1850.99 | BA189: 1187.25 | BB189: 865.66 | BC189: 430.32 | BD189: 0.25 | BE189: 0.12 | BF189: 0.1 | BG189: 0.25 | BH189: 0.29 | BI189: 1.07 | BJ189: 0.04 | BK189: 3.6 | BL189: 0.01 | BM189: 1.22 | BN189: 0.04 | BO189: 0.07 | BP189: 0 | BQ189: 0.19 | BR189: 0.3 | BS189: 4.87 | BT189: 0 | BU189: 0 | BV189: 6.73 | BW189: 0.04 | BX189: 0 | BY189: 0 | BZ189: 0 | CA189: 0 | CB189: 1185 | CE189: 429.33 | CG189: 182.82 | CH189: 100.23 | CI189: 141.53 | CJ189: 10428.04 | CK189: 5073.31 | CL189: 7750.68 | CM189: 269.67 | CN189: 144.24 | CO189: 207.29 | CP189: 28.34 | CQ189: 3.04
B191: 8 ДЕНЬ
B192: Завтрак
A193: ="-" -> - | B193: Батон | C193: 30 | D193: 2.3 | E193: 0.0 | F193: 1.5 | G193: 0.9 | H193: 11.2 | I193: 66 | J193: 0.2 | K193: 0.0 | L193: 0.0 | M193: 0.0 | N193: 1.0 | O193: 9.2 | P193: 1.0 | Q193: 0.0 | R193: 0.0 | S193: 0.1 | T193: 0.5 | U193: 128.7 | V193: 39.3 | W193: 6.6 | X193: 9.9 | Y193: 25.5 | Z193: 0.6 | AA193: 0.0 | AB193: 0.0 | AC193: 0.0 | AD193: 0.5 | AE193: 0.1 | AF193: 0.0 | AG193: 0.5 | AH193: 0.9 | AI193: 0.0 | AJ193: 0 | AK193: 111.6 | AL193: 115.8 | AM193: 177.3 | AN193: 59.7 | AO193: 35.1 | AP193: 70.2 | AQ193: 26.4 | AR193: 126 | AS193: 78.3 | AT193: 108.9 | AU193: 90.3 | AV193: 48.3 | AW193: 84 | AX193: 697.5 | AY193: 0 | AZ193: 227.1 | BA193: 99.3 | BB193: 66.6 | BC193: 51.9 | BD193: 0 | BE193: 0 | BF193: 0 | BG193: 0 | BH193: 0 | BI193: 0.01 | BJ193: 0 | BK193: 0.1 | BL193: 0 | BM193: 0.05 | BN193: 0 | BO193: 0 | BP193: 0 | BQ193: 0 | BR193: 0 | BS193: 0.35 | BT193: 0 | BU193: 0 | BV193: 0.26 | BW193: 0.01 | BX193: 0 | BY193: 0 | BZ193: 0 | CA193: 0 | CB193: 10.23 | CE193: 0 | CG193: 0 | CH193: 0 | CI193: 0 | CJ193: 570 | CK193: 219.6 | CL193: 394.8 | CM193: 4.56 | CN193: 4.56 | CO193: 4.56 | CP193: 0 | CQ193: 0
A194: ="-" -> - | B194: Масло сливочное | C194: 5 | D194: 0.0 | E194: 0.0 | F194: 3.6 | G194: 0.0 | H194: 0.1 | I194: 33 | J194: 2.4 | K194: 0.1 | L194: 0.0 | M194: 0.0 | N194: 0.1 | O194: 0.0 | P194: 0.0 | Q194: 0.0 | R194: 0.0 | S194: 0.0 | T194: 0.1 | U194: 0.8 | V194: 1.5 | W194: 1.2 | X194: 0.0 | Y194: 1.5 | Z194: 0.0 | AA194: 20.0 | AB194: 15.0 | AC194: 22.5 | AD194: 0.1 | AE194: 0.0 | AF194: 0.0 | AG194: 0.0 | AH194: 0.0 | AI194: 0.0 | AJ194: 0 | AK194: 2.1 | AL194: 2.05 | AM194: 3.8 | AN194: 2.25 | AO194: 0.85 | AP194: 2.35 | AQ194: 2.15 | AR194: 2.1 | AS194: 1.8 | AT194: 1.3 | AU194: 2.85 | AV194: 1.75 | AW194: 1.2 | AX194: 7.1 | AY194: 0 | AZ194: 2.4 | BA194: 2.7 | BB194: 2.1 | BC194: 0.5 | BD194: 0.13 | BE194: 0.06 | BF194: 0.03 | BG194: 0.08 | BH194: 0.09 | BI194: 0.4 | BJ194: 0 | BK194: 1.1 | BL194: 0 | BM194: 0.34 | BN194: 0 | BO194: 0 | BP194: 0 | BQ194: 0.08 | BR194: 0.12 | BS194: 0.9 | BT194: 0 | BU194: 0 | BV194: 0.05 | BW194: 0 | BX194: 0 | BY194: 0 | BZ194: 0 | CA194: 0 | CB194: 1.25 | CE194: 22.5 | CG194: 0.2 | CH194: 0.05 | CI194: 0.13 | CJ194: 10 | CK194: 4.1 | CL194: 7.05 | CM194: 0.86 | CN194: 0.44 | CO194: 0.65 | CP194: 0 | CQ194: 0
A195: ="29/10" -> 29/10 | B195: Чай с лимоном | C195: 150 | D195: 0.2 | E195: 0.0 | F195: 0.0 | G195: 0.0 | H195: 7.4 | I195: 30 | J195: 0.0 | K195: 0.0 | L195: 0.0 | M195: 0.0 | N195: 7.3 | O195: 0.0 | P195: 0.2 | Q195: 0.0 | R195: 0.0 | S195: 0.2 | T195: 0.1 | U195: 0.5 | V195: 6.1 | W195: 1.6 | X195: 0.4 | Y195: 0.8 | Z195: 0.0 | AA195: 0.0 | AB195: 0.3 | AC195: 0.1 | AD195: 0.0 | AE195: 0.0 | AF195: 0.0 | AG195: 0.0 | AH195: 0.0 | AI195: 0.6 | AJ195: 0 | AK195: 0.5 | AL195: 0.57 | AM195: 0.47 | AN195: 0.86 | AO195: 0.22 | AP195: 0.9 | AQ195: 0 | AR195: 1.15 | AS195: 0 | AT195: 0 | AU195: 0 | AV195: 0.65 | AW195: 0 | AX195: 0 | AY195: 0 | AZ195: 0 | BA195: 0 | BB195: 0 | BC195: 0 | BD195: 0 | BE195: 0 | BF195: 0 | BG195: 0 | BH195: 0 | BI195: 0 | BJ195: 0 | BK195: 0 | BL195: 0 | BM195: 0 | BN195: 0 | BO195: 0 | BP195: 0 | BQ195: 0 | BR195: 0 | BS195: 0 | BT195: 0 | BU195: 0 | BV195: 0 | BW195: 0 | BX195: 0 | BY195: 0 | BZ195: 0 | CA195: 0 | CB195: 149.62 | CE195: 0.05 | CG195: 3.85 | CH195: 3.72 | CI195: 3.79 | CJ195: 434.63 | CK195: 165.16 | CL195: 299.9 | CM195: 39.92 | CN195: 23.87 | CO195: 31.9 | CP195: 7.32 | CQ195: 0
A196: ="17/4" -> 17/4 | B196: Каша молочная ассорти (рис, пшено) с маслом сливочным | C196: 150 | D196: 4.4 | E196: 2.3 | F196: 4.6 | G196: 0.6 | H196: 23.7 | I196: 153 | J196: 3.1 | K196: 0.1 | L196: 0.0 | M196: 0.0 | N196: 7.1 | O196: 15.8 | P196: 0.8 | Q196: 0.0 | R196: 0.0 | S196: 0.1 | T196: 1.2 | U196: 186.8 | V196: 135.8 | W196: 87.1 | X196: 24.6 | Y196: 104.7 | Z196: 0.5 | AA196: 18.2 | AB196: 17.4 | AC196: 34.1 | AD196: 0.1 | AE196: 0.1 | AF196: 0.1 | AG196: 0.4 | AH196: 1.7 | AI196: 0.4 | AJ196: 0 | AK196: 108.85 | AL196: 93.94 | AM196: 273.72 | AN196: 67.66 | AO196: 57.17 | AP196: 80.62 | AQ196: 36.2 | AR196: 118.3 | AS196: 186.51 | AT196: 111.78 | AU196: 146.18 | AV196: 54.04 | AW196: 74.87 | AX196: 429.27 | AY196: 0 | AZ196: 145.09 | BA196: 130.57 | BB196: 87.07 | BC196: 38.95 | BD196: 0.09 | BE196: 0.04 | BF196: 0.02 | BG196: 0.05 | BH196: 0.06 | BI196: 0.26 | BJ196: 0 | BK196: 0.78 | BL196: 0 | BM196: 0.24 | BN196: 0 | BO196: 0 | BP196: 0 | BQ196: 0.05 | BR196: 0.08 | BS196: 0.69 | BT196: 0 | BU196: 0 | BV196: 0.32 | BW196: 0.01 | BX196: 0 | BY196: 0 | BZ196: 0 | CA196: 0 | CB196: 125.1 | CE196: 21.08 | CG196: 32.08 | CH196: 14.79 | CI196: 23.43 | CJ196: 2008.07 | CK196: 899.37 | CL196: 1453.72 | CM196: 33.91 | CN196: 15.31 | CO196: 24.61 | CP196: 3.75 | CQ196: 0.38
B197: Итого за 'Завтрак' | C197: =SUM(C193:C196) -> 335 | D197: =SUM(D193:D196) -> 6.9 | E197: 2.3 | F197: 9.8 | G197: 1.5 | H197: 42.4 | I197: 282 | J197: 5.7 | K197: 0.2 | L197: 0.0 | M197: 0.0 | N197: 15.4 | O197: 25.1 | P197: 1.9 | Q197: 0.0 | R197: 0.0 | S197: 0.4 | T197: 1.8 | U197: 316.7 | V197: 182.7 | W197: 96.5 | X197: 34.9 | Y197: 132.4 | Z197: 1.2 | AA197: 38.2 | AB197: 32.7 | AC197: 56.7 | AD197: 0.7 | AE197: 0.1 | AF197: 0.1 | AG197: 0.9 | AH197: 2.6 | AI197: 1.0 | AJ197: 0 | AK197: 223.05 | AL197: 212.36 | AM197: 455.29 | AN197: 130.47 | AO197: 93.33 | AP197: 154.06 | AQ197: 64.75 | AR197: 247.55 | AS197: 266.61 | AT197: 221.98 | AU197: 239.33 | AV197: 104.73 | AW197: 160.07 | AX197: 1133.87 | AY197: 0 | AZ197: 374.59 | BA197: 232.57 | BB197: 155.77 | BC197: 91.35 | BD197: 0.22 | BE197: 0.1 | BF197: 0.05 | BG197: 0.13 | BH197: 0.15 | BI197: 0.67 | BJ197: 0 | BK197: 1.98 | BL197: 0 | BM197: 0.62 | BN197: 0.01 | BO197: 0 | BP197: 0 | BQ197: 0.13 | BR197: 0.2 | BS197: 1.94 | BT197: 0 | BU197: 0 | BV197: 0.63 | BW197: 0.02 | BX197: 0 | BY197: 0 | BZ197: 0 | CA197: 0 | CB197: 286.2 | CD197: =$I$197/#REF!*100 ->  | CE197: 43.63 | CG197: 36.13 | CH197: 18.56 | CI197: 27.34 | CJ197: 3022.7 | CK197: 1288.23 | CL197: 2155.46 | CM197: 79.24 | CN197: 44.18 | CO197: 61.71 | CP197: 11.07 | CQ197: 0.38
B198: Второй завтрак
A199: ="-" -> - | B199: Ряженка | C199: 100 | D199: 3.0 | E199: 0.0 | F199: 2.5 | G199: 0.3 | H199: 4.2 | I199: 51 | J199: 0.1 | K199: 0.0 | L199: 0.0 | M199: 0.0 | N199: 4.2 | O199: 0.0 | P199: 0.0 | Q199: 0.0 | R199: 0.0 | S199: 0.1 | T199: 0.4 | U199: 2.0 | V199: 238.0 | W199: 15.0 | X199: 9.0 | Y199: 12.0 | Z199: 0.4 | AA199: 0.0 | AB199: 30.0 | AC199: 5.0 | AD199: 0.1 | AE199: 0.0 | AF199: 0.0 | AG199: 0.6 | AH199: 0.7 | AI199: 15.0 | AJ199: 0 | AK199: 0 | AL199: 0 | AM199: 450 | AN199: 387 | AO199: 115 | AP199: 216 | AQ199: 72 | AR199: 225 | AS199: 160 | AT199: 174 | AU199: 344 | AV199: 156 | AW199: 93 | AX199: 897 | AY199: 0 | AZ199: 518 | BA199: 278 | BB199: 242 | BC199: 50 | BD199: 0.1 | BE199: 0.07 | BF199: 0.04 | BG199: 0.08 | BH199: 0.09 | BI199: 0.45 | BJ199: 0.03 | BK199: 0.56 | BL199: 0.02 | BM199: 0.31 | BN199: 0.04 | BO199: 0 | BP199: 0 | BQ199: 0.04 | BR199: 0.08 | BS199: 0.69 | BT199: 0.01 | BU199: 0 | BV199: 0.02 | BW199: 0.03 | BX199: 0.08 | BY199: 0 | BZ199: 0 | CA199: 0 | CB199: 93 | CE199: 5 | CG199: 0 | CH199: 0 | CI199: 0 | CJ199: 0 | CK199: 0 | CL199: 0 | CM199: 0 | CN199: 0 | CO199: 0 | CP199: 0 | CQ199: 0
A200: ="-" -> - | B200: Печенье | C200: 20 | D200: 0.4 | E200: 0.0 | F200: 2.6 | G200: 0.0 | H200: 11.5 | I200: 70 | J200: 0.4 | K200: 0.0 | L200: 0.0 | M200: 0.0 | N200: 5.0 | O200: 6.0 | P200: 0.5 | Q200: 0.0 | R200: 0.0 | S200: 0.1 | T200: 0.2 | U200: 66.0 | V200: 22.0 | W200: 5.8 | X200: 4.0 | Y200: 18.0 | Z200: 0.4 | AA200: 2.0 | AB200: 1.6 | AC200: 2.2 | AD200: 0.7 | AE200: 0.0 | AF200: 0.0 | AG200: 0.1 | AH200: 0.4 | AI200: 0.0 | AJ200: 0 | AK200: 0 | AL200: 0 | AM200: 0 | AN200: 0 | AO200: 0 | AP200: 0 | AQ200: 0 | AR200: 0 | AS200: 0 | AT200: 0 | AU200: 0 | AV200: 0 | AW200: 0 | AX200: 0 | AY200: 0 | AZ200: 0 | BA200: 0 | BB200: 0 | BC200: 0 | BD200: 0 | BE200: 0 | BF200: 0 | BG200: 0 | BH200: 0 | BI200: 0 | BJ200: 0 | BK200: 0 | BL200: 0 | BM200: 0 | BN200: 0 | BO200: 0 | BP200: 0 | BQ200: 0 | BR200: 0 | BS200: 0 | BT200: 0 | BU200: 0 | BV200: 0 | BW200: 0 | BX200: 0 | BY200: 0 | BZ200: 0 | CA200: 0 | CB200: 0.9 | CE200: 2.27 | CG200: 0 | CH200: 0 | CI200: 0 | CJ200: 0 | CK200: 0 | CL200: 0 | CM200: 0 | CN200: 0 | CO200: 0 | CP200: 0 | CQ200: 0
B201: Итого за 'Второй завтрак' | C201: =SUM(C199:C200) -> 120 | D201: =SUM(D199:D200) -> 3.4 | E201: 0.0 | F201: 5.1 | G201: 0.3 | H201: 15.7 | I201: 121 | J201: 0.5 | K201: 0.0 | L201: 0.0 | M201: 0.0 | N201: 9.2 | O201: 6.0 | P201: 0.5 | Q201: 0.0 | R201: 0.0 | S201: 0.2 | T201: 0.6 | U201: 68.0 | V201: 260.0 | W201: 20.8 | X201: 13.0 | Y201: 30.0 | Z201: 0.8 | AA201: 2.0 | AB201: 31.6 | AC201: 7.2 | AD201: 0.8 | AE201: 0.1 | AF201: 0.0 | AG201: 0.7 | AH201: 1.1 | AI201: 15.0 | AJ201: 0 | AK201: 0 | AL201: 0 | AM201: 450 | AN201: 387 | AO201: 115 | AP201: 216 | AQ201: 72 | AR201: 225 | AS201: 160 | AT201: 174 | AU201: 344 | AV201: 156 | AW201: 93 | AX201: 897 | AY201: 0 | AZ201: 518 | BA201: 278 | BB201: 242 | BC201: 50 | BD201: 0.1 | BE201: 0.07 | BF201: 0.04 | BG201: 0.08 | BH201: 0.09 | BI201: 0.45 | BJ201: 0.03 | BK201: 0.56 | BL201: 0.02 | BM201: 0.31 | BN201: 0.04 | BO201: 0 | BP201: 0 | BQ201: 0.04 | BR201: 0.08 | BS201: 0.69 | BT201: 0.01 | BU201: 0 | BV201: 0.02 | BW201: 0.03 | BX201: 0.08 | BY201: 0 | BZ201: 0 | CA201: 0 | CB201: 93.9 | CD201: =$I$201/#REF!*100 ->  | CE201: 7.27 | CG201: 0 | CH201: 0 | CI201: 0 | CJ201: 0 | CK201: 0 | CL201: 0 | CM201: 0 | CN201: 0 | CO201: 0 | CP201: 0 | CQ201: 0
B202: Обед
A203: ="-" -> - | B203: Хлеб пшеничный | C203: 20 | D203: 1.2 | E203: 0.0 | F203: 0.1 | G203: 0.1 | H203: 7.4 | I203: 36 | J203: 0.0 | K203: 0.0 | L203: 0.0 | M203: 0.0 | N203: 0.2 | O203: 7.1 | P203: 0.0 | Q203: 0.0 | R203: 0.0 | S203: 0.0 | T203: 0.4 | U203: 0.0 | V203: 0.0 | W203: 0.0 | X203: 0.0 | Y203: 0.0 | Z203: 0.0 | AA203: 0.0 | AB203: 0.0 | AC203: 0.0 | AD203: 0.0 | AE203: 0.0 | AF203: 0.0 | AG203: 0.0 | AH203: 0.0 | AI203: 0.0 | AJ203: 0 | AK203: 63.86 | AL203: 66.47 | AM203: 101.79 | AN203: 33.76 | AO203: 20.01 | AP203: 40.02 | AQ203: 15.14 | AR203: 72.38 | AS203: 44.89 | AT203: 62.64 | AU203: 51.68 | AV203: 27.14 | AW203: 48.02 | AX203: 401.59 | AY203: 0 | AZ203: 130.85 | BA203: 56.9 | BB203: 37.76 | BC203: 29.93 | BD203: 0 | BE203: 0 | BF203: 0 | BG203: 0 | BH203: 0 | BI203: 0 | BJ203: 0 | BK203: 0.02 | BL203: 0 | BM203: 0 | BN203: 0 | BO203: 0 | BP203: 0 | BQ203: 0 | BR203: 0 | BS203: 0.01 | BT203: 0 | BU203: 0 | BV203: 0.06 | BW203: 0 | BX203: 0 | BY203: 0 | BZ203: 0 | CA203: 0 | CB203: 7.82 | CE203: 0 | CG203: 0 | CH203: 0 | CI203: 0 | CJ203: 380 | CK203: 146.4 | CL203: 263.2 | CM203: 3.04 | CN203: 3.04 | CO203: 3.04 | CP203: 0 | CQ203: 0
A204: ="-" -> - | B204: Хлеб ржаной | C204: 20 | D204: 1.2 | E204: 0.0 | F204: 0.2 | G204: 0.2 | H204: 8.3 | I204: 38 | J204: 0.0 | K204: 0.0 | L204: 0.0 | M204: 0.0 | N204: 0.2 | O204: 6.4 | P204: 1.7 | Q204: 0.0 | R204: 0.0 | S204: 0.2 | T204: 0.5 | U204: 122.0 | V204: 49.0 | W204: 7.0 | X204: 9.4 | Y204: 31.6 | Z204: 0.8 | AA204: 0.0 | AB204: 1.0 | AC204: 0.2 | AD204: 0.3 | AE204: 0.0 | AF204: 0.0 | AG204: 0.1 | AH204: 0.4 | AI204: 0.0 | AJ204: 0 | AK204: 64.4 | AL204: 49.6 | AM204: 85.4 | AN204: 44.6 | AO204: 18.6 | AP204: 39.6 | AQ204: 16 | AR204: 74.2 | AS204: 59.4 | AT204: 58.2 | AU204: 92.8 | AV204: 24.8 | AW204: 62 | AX204: 311.8 | AY204: 0 | AZ204: 105.2 | BA204: 58.2 | BB204: 36 | BC204: 26 | BD204: 0 | BE204: 0 | BF204: 0 | BG204: 0 | BH204: 0 | BI204: 0 | BJ204: 0 | BK204: 0.03 | BL204: 0 | BM204: 0 | BN204: 0 | BO204: 0 | BP204: 0 | BQ204: 0 | BR204: 0 | BS204: 0.02 | BT204: 0 | BU204: 0 | BV204: 0.1 | BW204: 0.02 | BX204: 0 | BY204: 0 | BZ204: 0 | CA204: 0 | CB204: 9.4 | CE204: 0.17 | CG204: 4 | CH204: 4 | CI204: 4 | CJ204: 760 | CK204: 292.8 | CL204: 526.4 | CM204: 7.6 | CN204: 6.32 | CO204: 6.96 | CP204: 0 | CQ204: 0
A205: ="3/10" -> 3/10 | B205: Компот из яблок | C205: 150 | D205: 0.1 | E205: 0.0 | F205: 0.1 | G205: 0.1 | H205: 14.4 | I205: 56 | J205: 0.0 | K205: 0.0 | L205: 0.0 | M205: 0.0 | N205: 13.7 | O205: 0.2 | P205: 0.5 | Q205: 0.0 | R205: 0.0 | S205: 0.2 | T205: 0.2 | U205: 7.8 | V205: 82.9 | W205: 5.0 | X205: 2.6 | Y205: 3.1 | Z205: 0.7 | AA205: 0.0 | AB205: 8.1 | AC205: 1.5 | AD205: 0.1 | AE205: 0.0 | AF205: 0.0 | AG205: 0.1 | AH205: 0.1 | AI205: 1.2 | AJ205: 0 | AK205: 3.53 | AL205: 3.82 | AM205: 5.59 | AN205: 5.29 | AO205: 0.88 | AP205: 3.23 | AQ205: 0.88 | AR205: 2.65 | AS205: 5 | AT205: 2.94 | AU205: 22.93 | AV205: 2.06 | AW205: 4.12 | AX205: 12.35 | AY205: 0 | AZ205: 3.82 | BA205: 4.7 | BB205: 1.76 | BC205: 1.47 | BD205: 0 | BE205: 0 | BF205: 0 | BG205: 0 | BH205: 0 | BI205: 0 | BJ205: 0 | BK205: 0 | BL205: 0 | BM205: 0 | BN205: 0 | BO205: 0 | BP205: 0 | BQ205: 0 | BR205: 0 | BS205: 0 | BT205: 0 | BU205: 0 | BV205: 0 | BW205: 0 | BX205: 0 | BY205: 0 | BZ205: 0 | CA205: 0 | CB205: 183.4 | CE205: 1.35 | CG205: 4.5 | CH205: 4.5 | CI205: 4.5 | CJ205: 432 | CK205: 208.98 | CL205: 320.49 | CM205: 41.2 | CN205: 24.19 | CO205: 32.7 | CP205: 11.25 | CQ205: 0
A206: ="6/40" -> 6/40 | B206: Салат картофельный с морковью и зеленым горошком | C206: 30 | D206: 0.6 | E206: 0.0 | F206: 1.8 | G206: 1.8 | H206: 3.7 | I206: 36 | J206: 0.2 | K206: 1.2 | L206: 0.0 | M206: 0.0 | N206: 0.8 | O206: 2.2 | P206: 0.6 | Q206: 0.0 | R206: 0.0 | S206: 0.1 | T206: 0.5 | U206: 77.0 | V206: 87.4 | W206: 5.2 | X206: 7.5 | Y206: 15.8 | Z206: 0.2 | AA206: 0.0 | AB206: 1016.1 | AC206: 202.8 | AD206: 0.9 | AE206: 0.0 | AF206: 0.0 | AG206: 0.3 | AH206: 0.5 | AI206: 1.2 | AJ206: 0 | AK206: 15.49 | AL206: 15.84 | AM206: 22.57 | AN206: 23.41 | AO206: 3.73 | AP206: 16.06 | AQ206: 5.34 | AR206: 15.11 | AS206: 19.56 | AT206: 43.3 | AU206: 45.82 | AV206: 6.46 | AW206: 16.42 | AX206: 70.07 | AY206: 0 | AZ206: 14.63 | BA206: 14.99 | BB206: 10.86 | BC206: 4.38 | BD206: 0 | BE206: 0 | BF206: 0 | BG206: 0 | BH206: 0 | BI206: 0 | BJ206: 0 | BK206: 0.12 | BL206: 0 | BM206: 0.07 | BN206: 0.01 | BO206: 0.01 | BP206: 0 | BQ206: 0 | BR206: 0 | BS206: 0.44 | BT206: 0 | BU206: 0 | BV206: 1.05 | BW206: 0 | BX206: 0 | BY206: 0 | BZ206: 0 | CA206: 0 | CB206: 24.86 | CE206: 169.35 | CG206: 36.61 | CH206: 21.34 | CI206: 28.97 | CJ206: 715.07 | CK206: 379.78 | CL206: 547.43 | CM206: 15.04 | CN206: 3.23 | CO206: 9.14 | CP206: 0 | CQ206: 0.15
A207: ="4/2" -> 4/2 | B207: Борщ с картофелем на говяжьем бульоне | C207: 150 | D207: 1.7 | E207: 4.9 | F207: 5.1 | G207: 1.9 | H207: 7.9 | I207: 82 | J207: 1.4 | K207: 1.2 | L207: 0.0 | M207: 0.0 | N207: 5.0 | O207: 1.7 | P207: 1.2 | Q207: 0.0 | R207: 0.0 | S207: 0.2 | T207: 1.5 | U207: 363.4 | V207: 186.3 | W207: 20.3 | X207: 12.3 | Y207: 25.9 | Z207: 0.6 | AA207: 0.0 | AB207: 607.7 | AC207: 126.6 | AD207: 0.9 | AE207: 0.0 | AF207: 0.1 | AG207: 0.3 | AH207: 0.6 | AI207: 4.8 | AJ207: 0 | AK207: 23.75 | AL207: 25.66 | AM207: 30.46 | AN207: 36.55 | AO207: 8.63 | AP207: 23.35 | AQ207: 6.77 | AR207: 22.84 | AS207: 26.28 | AT207: 46.43 | AU207: 108.91 | AV207: 8.7 | AW207: 20.14 | AX207: 130.91 | AY207: 0 | AZ207: 22.34 | BA207: 25.78 | BB207: 21.32 | BC207: 7.78 | BD207: 0 | BE207: 0 | BF207: 0 | BG207: 0 | BH207: 0 | BI207: 0 | BJ207: 0 | BK207: 0.11 | BL207: 0 | BM207: 0.07 | BN207: 0 | BO207: 0.01 | BP207: 0 | BQ207: 0 | BR207: 0 | BS207: 0.39 | BT207: 0 | BU207: 0 | BV207: 1.08 | BW207: 0 | BX207: 0 | BY207: 0 | BZ207: 0 | CA207: 0 | CB207: 172.63 | CE207: 101.28 | CG207: 47.66 | CH207: 25.2 | CI207: 36.43 | CJ207: 545.04 | CK207: 170.64 | CL207: 357.84 | CM207: 6.8 | CN207: 3.82 | CO207: 5.31 | CP207: 1.5 | CQ207: 0.9
A208: ="3/8" -> 3/8 | B208: Мясо говядины тушеное с овощами | C208: 150 | D208: 9.9 | E208: 11.2 | F208: 9.0 | G208: 4.9 | H208: 17.4 | I208: 186 | J208: 6.7 | K208: 62.9 | L208: 0.0 | M208: 0.0 | N208: 2.1 | O208: 12.8 | P208: 2.5 | Q208: 0.0 | R208: 0.0 | S208: 0.2 | T208: 2.1 | U208: 189.4 | V208: 639.7 | W208: 17.1 | X208: 30.4 | Y208: 139.4 | Z208: 2.1 | AA208: 0.0 | AB208: 15.0 | AC208: 2.8 | AD208: 2.3 | AE208: 0.1 | AF208: 0.1 | AG208: 2.8 | AH208: 6.7 | AI208: 8.0 | AJ208: 0 | AK208: 570.75 | AL208: 449.84 | AM208: 827.64 | AN208: 1425.47 | AO208: 244.73 | AP208: 460.97 | AQ208: 128.96 | AR208: 457.61 | AS208: 626.87 | AT208: 693.98 | AU208: 1000.61 | AV208: 388.77 | AW208: 532.9 | AX208: 1823.08 | AY208: 153.75 | AZ208: 389.6 | BA208: 437.32 | BB208: 375.29 | BC208: 148.77 | BD208: 0 | BE208: 0 | BF208: 0 | BG208: 0 | BH208: 0 | BI208: 0 | BJ208: 0 | BK208: 0.31 | BL208: 0 | BM208: 0.17 | BN208: 0.01 | BO208: 0.03 | BP208: 0 | BQ208: 0 | BR208: 0 | BS208: 1.07 | BT208: 0 | BU208: 0 | BV208: 2.74 | BW208: 0 | BX208: 0 | BY208: 0 | BZ208: 0 | CA208: 0 | CB208: 160.86 | CE208: 2.5 | CG208: 30.38 | CH208: 21.22 | CI208: 25.8 | CJ208: 2970.15 | CK208: 1968.83 | CL208: 2469.49 | CM208: 46.82 | CN208: 19.03 | CO208: 32.92 | CP208: 0 | CQ208: 0.75
... 106 more rows

Sheet БЖУ
B1: Согласовано Начальник МКУ "Управление образования" Муслюмовского района РТ ________________ /Л.Я. Хабибуллина/ | H1: Согласовано Директор ОУ ____________________________________________________________________________ | AA1: Утверждаю Индивидуальный предприниматель Ибрагимова Э.И. ______________ /Э.И. Ибрагимова/ | CD1: =IF(B5<>"",B5,"") -> 
A2: ЦИКЛИЧНОЕ ДВУХНЕДЕЛЬНОЕ МЕНЮ ДЛЯ ОРГАНИЗАЦИИ ПИТАНИЯ ОБУЧАЮЩИХСЯ В ОБЩЕОБРАЗОВАТЕЛЬНЫХ ОРГАНИЗАЦИЯ ОБРАЗОВАТЕЛЬНЫХ УЧРЕЖДЕНИЙ МУСЛЮМОВСКОГО МУНИЦИПАЛЬНОГО РАЙОНА НА 2026 г.
A3: ОБУЧАЮЩИХСЯ В _______________ КЛАССОВ
A6: =IF(#REF!<>"",#REF!,"") ->  | AI6: =IF(Дата_Сост<>"",Дата_Сост,"") -> 
A8: Но-мер рец. | B8: Прием пищи, наименование изделий (блюд) | C8: Вы-ход, г | D8: Белки, г | F8: Жиры, г | H8: Угле-воды, г | I8: ЭЦ, ккал | J8: НЖК | K8: ПНЖК | L8: МЖК | M8: Холестерин | N8: МД | O8: Крахмал | P8: ПВ | Q8: РПВ | R8: НПВ | S8: Органические кислоты | T8: Зола | U8: Na | V8: K | W8: Минеральные элементы, мг | AA8: Витамины, мг | AI8: Вита-мин С, мг | AJ8: Алкоголь, г | AK8: Валин | AL8: изолейцин | AM8: лейцин | AN8: лизин | AO8: метионин | AP8: треонин | AQ8: триптофан | AR8: фенилаланин | AS8: аланин | AT8: аргинин | AU8: аспарагиновая | AV8: гистидин | AW8: глицин | AX8: глутаминовая | AY8: оксипролин | AZ8: пролин | BA8: серин | BB8: тирозин | BC8: цистин | BD8: масляная | BE8: капроновая | BF8: каприловая | BG8: каприновая | BH8: лауриновая | BI8: миристиновая | BJ8: пентадекановая | BK8: пальмитиновая | BL8: маргариновая | BM8: стеариновая | BN8: арахиновая | BO8: бегеновая | BP8: лигноцериновая | BQ8: миристолеиновая | BR8: пальмитолеиновая | BS8: олеиновая | BT8: гадолеиновая | BU8: эруковая | BV8: линолевая | BW8: линоленовая | BX8: арахидоновая | BY8: Аденин | BZ8: Гуанин | CA8: Ph | CC8: Цена, руб | CD8: Доля, % | CG8: I (макс.), мкг | CH8: I (мин.), мкг | CI8: I (сред.), мкг | CJ8: Zn (макс.), мкг | CK8: Zn (мин.), мкг | CL8: Zn (сред.), мкг | CM8: Se (макс.), мкг | CN8: Se (мин.), мкг | CO8: Se (сред.), мкг | CP8: Вложен-ный сахар, г | CQ8: Вложен-ная соль, г
D9: всего | E9: в т.ч. жив. | F9: всего | G9: в т.ч. раст. | W9: Ca | X9: Mg | Y9: P | Z9: Fe | AA9: А | AB9: B | AC9: РЭ,мкг | AD9: ТЭ,мг | AE9: В1 | AF9: В2 | AG9: РР | AH9: НЭ
B10: 1 НЕДЕЛЯ
B11: 1 ДЕНЬ
B12: Завтрак
A13: ="-" -> - | B13: Батон | C13: 30 | D13: 2.3 | E13: 0.0 | F13: 1.5 | G13: 0.9 | H13: 11.2 | I13: 66 | J13: 0.2 | K13: 0.0 | L13: 0.0 | M13: 0.0 | N13: 1.0 | O13: 9.2 | P13: 1.0 | Q13: 0.0 | R13: 0.0 | S13: 0.1 | T13: 0.5 | U13: 128.7 | V13: 39.3 | W13: 6.6 | X13: 9.9 | Y13: 25.5 | Z13: 0.6 | AA13: 0.0 | AB13: 0.0 | AC13: 0.0 | AD13: 0.5 | AE13: 0.1 | AF13: 0.0 | AG13: 0.5 | AH13: 0.9 | AI13: 0.0 | AJ13: 0 | AK13: 111.6 | AL13: 115.8 | AM13: 177.3 | AN13: 59.7 | AO13: 35.1 | AP13: 70.2 | AQ13: 26.4 | AR13: 126 | AS13: 78.3 | AT13: 108.9 | AU13: 90.3 | AV13: 48.3 | AW13: 84 | AX13: 697.5 | AY13: 0 | AZ13: 227.1 | BA13: 99.3 | BB13: 66.6 | BC13: 51.9 | BD13: 0 | BE13: 0 | BF13: 0 | BG13: 0 | BH13: 0 | BI13: 0.01 | BJ13: 0 | BK13: 0.1 | BL13: 0 | BM13: 0.05 | BN13: 0 | BO13: 0 | BP13: 0 | BQ13: 0 | BR13: 0 | BS13: 0.35 | BT13: 0 | BU13: 0 | BV13: 0.26 | BW13: 0.01 | BX13: 0 | BY13: 0 | BZ13: 0 | CA13: 0 | CB13: 10.23 | CE13: 0 | CG13: 0 | CH13: 0 | CI13: 0 | CJ13: 570 | CK13: 219.6 | CL13: 394.8 | CM13: 4.56 | CN13: 4.56 | CO13: 4.56 | CP13: 0 | CQ13: 0
A14: ="4/13" -> 4/13 | B14: Сыр (порциями) | C14: 10 | D14: 1.5 | E14: 2.6 | F14: 2.7 | G14: 0.0 | H14: 0.0 | I14: 31 | J14: 1.5 | K14: 0.0 | L14: 0.0 | M14: 0.0 | N14: 0.0 | O14: 0.0 | P14: 0.0 | Q14: 0.0 | R14: 0.0 | S14: 0.2 | T14: 0.4 | U14: 110.0 | V14: 10.0 | W14: 100.0 | X14: 5.5 | Y14: 60.0 | Z14: 0.1 | AA14: 21.0 | AB14: 17.0 | AC14: 23.8 | AD14: 0.0 | AE14: 0.0 | AF14: 0.0 | AG14: 0.0 | AH14: 0.7 | AI14: 0.1 | AJ14: 0 | AK14: 157 | AL14: 117 | AM14: 230 | AN14: 158 | AO14: 56 | AP14: 95 | AQ14: 70 | AR14: 134 | AS14: 76 | AT14: 87 | AU14: 156 | AV14: 70 | AW14: 51 | AX14: 517 | AY14: 0 | AZ14: 273 | BA14: 129 | BB14: 139 | BC14: 21.5 | BD14: 0 | BE14: 0.01 | BF14: 0.04 | BG14: 0.11 | BH14: 0.13 | BI14: 0.33 | BJ14: 0.04 | BK14: 0.7 | BL14: 0.01 | BM14: 0.16 | BN14: 0.01 | BO14: 0 | BP14: 0 | BQ14: 0.05 | BR14: 0.07 | BS14: 0.52 | BT14: 0 | BU14: 0 | BV14: 0.07 | BW14: 0 | BX14: 0 | BY14: 0 | BZ14: 0 | CA14: 0 | CB14: 4.08 | CE14: 23.83 | CG14: 0 | CH14: 0 | CI14: 0 | CJ14: 500 | CK14: 370 | CL14: 435 | CM14: 1.53 | CN14: 0.97 | CO14: 1.25 | CP14: 0 | CQ14: 0
A15: ="31/10" -> 31/10 | B15: Чай с молоком (вариант 3) | C15: 150 | D15: 1.2 | E15: 1.1 | F15: 1.0 | G15: 0.0 | H15: 5.5 | I15: 34 | J15: 0.6 | K15: 0.0 | L15: 0.0 | M15: 0.0 | N15: 5.5 | O15: 0.0 | P15: 0.1 | Q15: 0.0 | R15: 0.0 | S15: 0.0 | T15: 0.3 | U15: 18.6 | V15: 54.3 | W15: 43.8 | X15: 5.0 | Y15: 31.4 | Z15: 0.1 | AA15: 7.5 | AB15: 3.4 | AC15: 8.3 | AD15: 0.0 | AE15: 0.0 | AF15: 0.1 | AG15: 0.0 | AH15: 0.3 | AI15: 0.2 | AJ15: 0 | AK15: 0 | AL15: 0 | AM15: 0 | AN15: 0 | AO15: 0 | AP15: 0 | AQ15: 0 | AR15: 0 | AS15: 0 | AT15: 0 | AU15: 0 | AV15: 0 | AW15: 0 | AX15: 0 | AY15: 0 | AZ15: 0 | BA15: 0 | BB15: 0 | BC15: 0 | BD15: 0 | BE15: 0 | BF15: 0 | BG15: 0 | BH15: 0 | BI15: 0 | BJ15: 0 | BK15: 0 | BL15: 0 | BM15: 0 | BN15: 0 | BO15: 0 | BP15: 0 | BQ15: 0 | BR15: 0 | BS15: 0 | BT15: 0 | BU15: 0 | BV15: 0 | BW15: 0 | BX15: 0 | BY15: 0 | BZ15: 0 | CA15: 0 | CB15: 145.94 | CE15: 8.06 | CG15: 6.84 | CH15: 3.69 | CI15: 5.26 | CJ15: 567 | CK15: 214.2 | CL15: 390.6 | CM15: 35.65 | CN15: 19 | CO15: 27.32 | CP15: 3.75 | CQ15: 0
A16: ="15/4" -> 15/4 | B16: Каша ячневая молочная с маслом сливочным | C16: 150 | D16: 4.5 | E16: 1.8 | F16: 3.6 | G16: 0.4 | H16: 25.3 | I16: 148 | J16: 2.6 | K16: 0.1 | L16: 0.0 | M16: 0.0 | N16: 5.7 | O16: 17.4 | P16: 2.2 | Q16: 0.0 | R16: 0.0 | S16: 0.1 | T16: 1.2 | U16: 180.1 | V16: 132.1 | W16: 86.4 | X16: 20.4 | Y16: 137.5 | Z16: 0.5 | AA16: 14.4 | AB16: 12.0 | AC16: 26.7 | AD16: 0.5 | AE16: 0.1 | AF16: 0.1 | AG16: 0.7 | AH16: 1.9 | AI16: 0.3 | AJ16: 0 | AK16: 136.54 | AL16: 132.29 | AM16: 145.96 | AN16: 99.97 | AO16: 45.6 | AP16: 71.83 | AQ16: 35.05 | AR16: 147.82 | AS16: 115.23 | AT16: 138.91 | AU16: 180.68 | AV16: 65.85 | AW16: 116.3 | AX16: 679.39 | AY16: 0 | AZ16: 370.77 | BA16: 111.5 | BB16: 85.78 | BC16: 56.68 | BD16: 0.07 | BE16: 0.03 | BF16: 0.02 | BG16: 0.04 | BH16: 0.05 | BI16: 0.21 | BJ16: 0 | BK16: 0.58 | BL16: 0 | BM16: 0.18 | BN16: 0 | BO16: 0 | BP16: 0 | BQ16: 0.04 | BR16: 0.06 | BS16: 0.48 | BT16: 0 | BU16: 0 | BV16: 0.03 | BW16: 0 | BX16: 0 | BY16: 0 | BZ16: 0 | CA16: 0 | CB16: 133.35 | CE16: 16.4 | CG16: 34.24 | CH16: 14.52 | CI16: 24.38 | CJ16: 2147.67 | CK16: 982.95 | CL16: 1565.31 | CM16: 45.21 | CN16: 23.88 | CO16: 34.54 | CP16: 3 | CQ16: 0.38
B17: Итого за 'Завтрак' | C17: =SUM(C13:C16) -> 340 | D17: =SUM(D13:D16) -> 9.4 | E17: 5.5 | F17: 8.7 | G17: 1.3 | H17: 42.0 | I17: 279 | J17: 4.9 | K17: 0.1 | L17: 0.0 | M17: 0.0 | N17: 12.1 | O17: 26.7 | P17: 3.3 | Q17: 0.0 | R17: 0.0 | S17: 0.4 | T17: 2.4 | U17: 437.4 | V17: 235.7 | W17: 236.8 | X17: 40.8 | Y17: 254.4 | Z17: 1.3 | AA17: 42.9 | AB17: 32.4 | AC17: 58.8 | AD17: 1.0 | AE17: 0.1 | AF17: 0.2 | AG17: 1.2 | AH17: 3.8 | AI17: 0.6 | AJ17: 0 | AK17: 405.14 | AL17: 365.09 | AM17: 553.26 | AN17: 317.67 | AO17: 136.7 | AP17: 237.03 | AQ17: 131.45 | AR17: 407.82 | AS17: 269.53 | AT17: 334.81 | AU17: 426.98 | AV17: 184.15 | AW17: 251.3 | AX17: 1893.89 | AY17: 0 | AZ17: 870.87 | BA17: 339.8 | BB17: 291.38 | BC17: 130.08 | BD17: 0.07 | BE17: 0.04 | BF17: 0.06 | BG17: 0.15 | BH17: 0.18 | BI17: 0.55 | BJ17: 0.04 | BK17: 1.38 | BL17: 0.01 | BM17: 0.38 | BN17: 0.01 | BO17: 0 | BP17: 0 | BQ17: 0.09 | BR17: 0.13 | BS17: 1.35 | BT17: 0 | BU17: 0 | BV17: 0.36 | BW17: 0.01 | BX17: 0 | BY17: 0 | BZ17: 0 | CA17: 0 | CB17: 293.61 | CD17: =$I$17/#REF!*100 ->  | CE17: 48.3 | CG17: 41.07 | CH17: 18.2 | CI17: 29.64 | CJ17: 3784.67 | CK17: 1786.75 | CL17: 2785.71 | CM17: 86.95 | CN17: 48.41 | CO17: 67.68 | CP17: 6.75 | CQ17: 0.38
B18: 10:00
A19: ="-" -> - | B19: Фрукты | C19: 100 | D19: 0.4 | E19: 0.0 | F19: 0.4 | G19: 0.4 | H19: 11.6 | I19: 50 | J19: 0.1 | K19: 0.0 | L19: 0.0 | M19: 0.0 | N19: 10.0 | O19: 0.8 | P19: 0.8 | Q19: 0.0 | R19: 0.0 | S19: 0.8 | T19: 0.5 | U19: 26.0 | V19: 278.0 | W19: 16.0 | X19: 9.0 | Y19: 11.0 | Z19: 2.2 | AA19: 0.0 | AB19: 30.0 | AC19: 5.0 | AD19: 0.2 | AE19: 0.0 | AF19: 0.0 | AG19: 0.3 | AH19: 0.4 | AI19: 10.0 | AJ19: 0 | AK19: 12 | AL19: 13 | AM19: 19 | AN19: 18 | AO19: 3 | AP19: 11 | AQ19: 3 | AR19: 9 | AS19: 17 | AT19: 10 | AU19: 78 | AV19: 7 | AW19: 14 | AX19: 42 | AY19: 0 | AZ19: 13 | BA19: 16 | BB19: 6 | BC19: 5 | BD19: 0 | BE19: 0 | BF19: 0 | BG19: 0 | BH19: 0 | BI19: 0 | BJ19: 0 | BK19: 0 | BL19: 0 | BM19: 0 | BN19: 0 | BO19: 0 | BP19: 0 | BQ19: 0 | BR19: 0 | BS19: 0 | BT19: 0 | BU19: 0 | BV19: 0 | BW19: 0 | BX19: 0 | BY19: 0 | BZ19: 0 | CA19: 0 | CB19: 86.3 | CE19: 5 | CG19: 2 | CH19: 2 | CI19: 2 | CJ19: 150 | CK19: 150 | CL19: 150 | CM19: 0 | CN19: 0 | CO19: 0 | CP19: 0 | CQ19: 0
B20: Итого за '10:00' | C20: =SUM(C19) -> 100 | D20: =SUM(D19) -> 0.4 | E20: 0.0 | F20: 0.4 | G20: 0.4 | H20: 11.6 | I20: 50 | J20: 0.1 | K20: 0.0 | L20: 0.0 | M20: 0.0 | N20: 10.0 | O20: 0.8 | P20: 0.8 | Q20: 0.0 | R20: 0.0 | S20: 0.8 | T20: 0.5 | U20: 26.0 | V20: 278.0 | W20: 16.0 | X20: 9.0 | Y20: 11.0 | Z20: 2.2 | AA20: 0.0 | AB20: 30.0 | AC20: 5.0 | AD20: 0.2 | AE20: 0.0 | AF20: 0.0 | AG20: 0.3 | AH20: 0.4 | AI20: 10.0 | AJ20: 0 | AK20: 12 | AL20: 13 | AM20: 19 | AN20: 18 | AO20: 3 | AP20: 11 | AQ20: 3 | AR20: 9 | AS20: 17 | AT20: 10 | AU20: 78 | AV20: 7 | AW20: 14 | AX20: 42 | AY20: 0 | AZ20: 13 | BA20: 16 | BB20: 6 | BC20: 5 | BD20: 0 | BE20: 0 | BF20: 0 | BG20: 0 | BH20: 0 | BI20: 0 | BJ20: 0 | BK20: 0 | BL20: 0 | BM20: 0 | BN20: 0 | BO20: 0 | BP20: 0 | BQ20: 0 | BR20: 0 | BS20: 0 | BT20: 0 | BU20: 0 | BV20: 0 | BW20: 0 | BX20: 0 | BY20: 0 | BZ20: 0 | CA20: 0 | CB20: 86.3 | CD20: =$I$20/#REF!*100 ->  | CE20: 5 | CG20: 2 | CH20: 2 | CI20: 2 | CJ20: 150 | CK20: 150 | CL20: 150 | CM20: 0 | CN20: 0 | CO20: 0 | CP20: 0 | CQ20: 0
B21: Обед
A22: ="-" -> - | B22: Хлеб пшеничный | C22: 20 | D22: 1.2 | E22: 0.0 | F22: 0.1 | G22: 0.1 | H22: 7.4 | I22: 36 | J22: 0.0 | K22: 0.0 | L22: 0.0 | M22: 0.0 | N22: 0.2 | O22: 7.1 | P22: 0.0 | Q22: 0.0 | R22: 0.0 | S22: 0.0 | T22: 0.4 | U22: 0.0 | V22: 0.0 | W22: 0.0 | X22: 0.0 | Y22: 0.0 | Z22: 0.0 | AA22: 0.0 | AB22: 0.0 | AC22: 0.0 | AD22: 0.0 | AE22: 0.0 | AF22: 0.0 | AG22: 0.0 | AH22: 0.0 | AI22: 0.0 | AJ22: 0 | AK22: 63.86 | AL22: 66.47 | AM22: 101.79 | AN22: 33.76 | AO22: 20.01 | AP22: 40.02 | AQ22: 15.14 | AR22: 72.38 | AS22: 44.89 | AT22: 62.64 | AU22: 51.68 | AV22: 27.14 | AW22: 48.02 | AX22: 401.59 | AY22: 0 | AZ22: 130.85 | BA22: 56.9 | BB22: 37.76 | BC22: 29.93 | BD22: 0 | BE22: 0 | BF22: 0 | BG22: 0 | CE22: 0 | CP22: 0 | CQ22: 0
A23: ="-" -> - | B23: Хлеб ржаной | C23: 20 | D23: 1.2 | E23: 0.0 | F23: 0.2 | G23: 0.2 | H23: 8.3 | I23: 38 | J23: 0.0 | K23: 0.0 | L23: 0.0 | M23: 0.0 | N23: 0.2 | O23: 6.4 | P23: 1.7 | Q23: 0.0 | R23: 0.0 | S23: 0.2 | T23: 0.5 | U23: 122.0 | V23: 49.0 | W23: 7.0 | X23: 9.4 | Y23: 31.6 | Z23: 0.8 | AA23: 0.0 | AB23: 1.0 | AC23: 0.2 | AD23: 0.3 | AE23: 0.0 | AF23: 0.0 | AG23: 0.1 | AH23: 0.4 | AI23: 0.0 | AJ23: 0 | AK23: 64.4 | AL23: 49.6 | AM23: 85.4 | AN23: 44.6 | AO23: 18.6 | AP23: 39.6 | AQ23: 16 | AR23: 74.2 | AS23: 59.4 | AT23: 58.2 | AU23: 92.8 | AV23: 24.8 | AW23: 62 | AX23: 311.8 | AY23: 0 | AZ23: 105.2 | BA23: 58.2 | BB23: 36 | BC23: 26 | BD23: 0 | BE23: 0 | BF23: 0 | BG23: 0 | BH23: 0 | BI23: 0 | BJ23: 0 | BK23: 0.03 | BL23: 0 | BM23: 0 | BN23: 0 | BO23: 0 | BP23: 0 | BQ23: 0 | BR23: 0 | BS23: 0.02 | BT23: 0 | BU23: 0 | BV23: 0.1 | BW23: 0.02 | BX23: 0 | BY23: 0 | BZ23: 0 | CA23: 0 | CB23: 9.4 | CE23: 0.17 | CG23: 3 | CH23: 3 | CI23: 3 | CJ23: 570 | CK23: 219.6 | CL23: 394.8 | CM23: 5.7 | CN23: 4.74 | CO23: 5.22 | CP23: 0 | CQ23: 0
A24: ="6/10" -> 6/10 | B24: Компот из сухофруктов | C24: 150 | D24: 0.8 | E24: 0.0 | F24: 0.0 | G24: 0.0 | H24: 17.4 | I24: 66 | J24: 0.0 | K24: 0.0 | L24: 0.0 | M24: 0.0 | N24: 14.4 | O24: 0.4 | P24: 2.6 | Q24: 0.0 | R24: 0.0 | S24: 0.2 | T24: 0.6 | U24: 2.6 | V24: 255.2 | W24: 23.5 | X24: 15.0 | Y24: 20.4 | Z24: 0.5 | AA24: 0.0 | AB24: 472.5 | AC24: 87.5 | AD24: 0.8 | AE24: 0.0 | AF24: 0.0 | AG24: 0.4 | AH24: 0.6 | AI24: 0.4 | AJ24: 0 | AK24: 0.01 | AL24: 0.01 | AM24: 0.01 | AN24: 0.01 | AO24: 0 | AP24: 0.01 | AQ24: 0 | AR24: 0.01 | AS24: 0.01 | AT24: 0.01 | AU24: 0.04 | AV24: 0 | AW24: 0.01 | AX24: 0.02 | AY24: 0 | AZ24: 0.01 | BA24: 0.01 | BB24: 0 | BC24: 0 | BD24: 0 | BE24: 0 | BF24: 0 | BG24: 0 | BH24: 0 | BI24: 0 | BJ24: 0 | BK24: 0 | BL24: 0 | BM24: 0 | BN24: 0 | BO24: 0 | BP24: 0 | BQ24: 0 | BR24: 0 | BS24: 0.01 | BT24: 0 | BU24: 0 | BV24: 0 | BW24: 0 | BX24: 0 | BY24: 0 | BZ24: 0 | CA24: 0 | CB24: 160.51 | CE24: 78.75 | CG24: 3.95 | CH24: 3.95 | CI24: 3.95 | CJ24: 454.5 | CK24: 172.98 | CL24: 313.74 | CM24: 41.94 | CN24: 24.93 | CO24: 33.44 | CP24: 7.5 | CQ24: 0
A25: ="6/1" -> 6/1 | B25: Салат из белокочанной капусты с морковью и растительным маслом | C25: 30 | D25: 0.5 | E25: 0.0 | F25: 1.8 | G25: 1.8 | H25: 2.8 | I25: 28 | J25: 0.2 | K25: 1.2 | L25: 0.0 | M25: 0.0 | N25: 2.2 | O25: 0.0 | P25: 0.6 | Q25: 0.0 | R25: 0.0 | S25: 0.1 | T25: 0.4 | U25: 60.8 | V25: 75.6 | W25: 12.4 | X25: 5.4 | Y25: 9.6 | Z25: 0.2 | AA25: 0.0 | AB25: 568.9 | AC25: 96.7 | AD25: 0.8 | AE25: 0.0 | AF25: 0.0 | AG25: 0.2 | AH25: 0.3 | AI25: 10.2 | AJ25: 0 | AK25: 14.81 | AL25: 12.67 | AM25: 16.18 | AN25: 15.24 | AO25: 5.27 | AP25: 11.43 | AQ25: 2.58 | AR25: 13.81 | AS25: 17.91 | AT25: 20.67 | AU25: 44.28 | AV25: 6.83 | AW25: 11.73 | AX25: 71.69 | AY25: 0 | AZ25: 14.42 | BA25: 14.56 | BB25: 11.87 | BC25: 4.97 | BD25: 0 | BE25: 0 | BF25: 0 | BG25: 0 | BH25: 0 | BI25: 0 | BJ25: 0 | BK25: 0.11 | BL25: 0 | BM25: 0.07 | BN25: 0.01 | BO25: 0.01 | BP25: 0 | BQ25: 0 | BR25: 0 | BS25: 0.42 | BT25: 0 | BU25: 0 | BV25: 1.04 | BW25: 0 | BX25: 0 | BY25: 0 | BZ25: 0 | CA25: 0 | CB25: 24.57 | CE25: 94.82 | CG25: 13.55 | CH25: 6.21 | CI25: 9.88 | CJ25: 406.33 | CK25: 97.29 | CL25: 251.81 | CM25: 6.53 | CN25: 6.16 | CO25: 6.34 | CP25: 0.9 | CQ25: 0.15
A26: ="18/2" -> 18/2 | B26: Суп картофельный с макаронными изделиями на говяжьем бульоне | C26: 150 | D26: 2.4 | E26: 4.8 | F26: 5.3 | G26: 1.4 | H26: 12.2 | I26: 105 | J26: 1.3 | K26: 0.8 | L26: 0.0 | M26: 0.0 | N26: 1.5 | O26: 9.7 | P26: 1.0 | Q26: 0.0 | R26: 0.0 | S26: 0.1 | T26: 1.5 | U26: 348.8 | V26: 265.0 | W26: 11.5 | X26: 13.4 | Y26: 33.8 | Z26: 0.6 | AA26: 0.0 | AB26: 785.2 | AC26: 145.3 | AD26: 0.7 | AE26: 0.1 | AF26: 0.1 | AG26: 0.6 | AH26: 1.0 | AI26: 3.7 | AJ26: 0 | AK26: 40.75 | AL26: 44 | AM26: 70.65 | AN26: 41.96 | AO26: 13.68 | AP26: 36.82 | AQ26: 14.62 | AR26: 48.22 | AS26: 46.51 | AT26: 92.04 | AU26: 58.16 | AV26: 18.4 | AW26: 39.32 | AX26: 286.58 | AY26: 0 | AZ26: 71 | BA26: 42.6 | BB26: 28.2 | BC26: 17.84 | BD26: 0 | BE26: 0 | BF26: 0 | BG26: 0 | BH26: 0 | BI26: 0 | BJ26: 0 | BK26: 0.11 | BL26: 0 | BM26: 0.06 | BN26: 0 | BO26: 0.01 | BP26: 0 | BQ26: 0 | BR26: 0 | BS26: 0.35 | BT26: 0 | BU26: 0 | BV26: 0.75 | BW26: 0 | BX26: 0 | BY26: 0 | BZ26: 0 | CA26: 0 | CB26: 156.24 | CE26: 130.86 | CG26: 49.17 | CH26: 27.53 | CI26: 38.35 | CJ26: 625.17 | CK26: 375.25 | CL26: 500.21 | CM26: 38.79 | CN26: 19.02 | CO26: 28.9 | CP26: 0 | CQ26: 0.9
A27: ="4/9" -> 4/9 | B27: Плов из мяса цыплят-бройлеров | C27: 150 | D27: 13.5 | E27: 11.1 | F27: 14.7 | G27: 5.3 | H27: 28.2 | I27: 298 | J27: 3.9 | K27: 4.4 | L27: 0.0 | M27: 0.0 | N27: 1.3 | O27: 25.4 | P27: 1.4 | Q27: 0.0 | R27: 0.0 | S27: 0.0 | T27: 1.2 | U27: 101.9 | V27: 107.1 | W27: 15.2 | X27: 25.3 | Y27: 121.0 | Z27: 1.2 | AA27: 23.7 | AB27: 996.8 | AC27: 213.8 | AD27: 3.5 | AE27: 0.1 | AF27: 0.1 | AG27: 4.7 | AH27: 9.8 | AI27: 0.7 | AJ27: 0 | AK27: 669.88 | AL27: 528.83 | AM27: 1059.06 | AN27: 1048.98 | AO27: 338.19 | AP27: 599.27 | AQ27: 210.7 | AR27: 572.18 | AS27: 829.88 | AT27: 910.28 | AU27: 1174.39 | AV27: 350.85 | AW27: 940.79 | AX27: 1968.23 | AY27: 92.14 | AZ27: 640.73 | BA27: 629.97 | BB27: 483.3 | BC27: 180.49 | BD27: 0 | BE27: 0 | BF27: 0 | BG27: 0 | BH27: 0 | BI27: 0 | BJ27: 0 | BK27: 0.36 | BL27: 0 | BM27: 0.22 | BN27: 0.02 | BO27: 0.04 | BP27: 0 | BQ27: 0 | BR27: 0 | BS27: 1.28 | BT27: 0 | BU27: 0 | BV27: 3.04 | BW27: 0 | BX27: 0 | BY27: 0 | BZ27: 0 | CA27: 0 | CB27: 132.39 | CE27: 189.86 | CG27: 21.96 | CH27: 11.1 | CI27: 16.53 | CJ27: 4297.8 | CK27: 2473.03 | CL27: 3385.41 | CM27: 22.31 | CN27: 14.18 | CO27: 18.24 | CP27: 0 | CQ27: 0.6
B28: Итого за 'Обед' | C28: =SUM(C22:C27) -> 520 | D28: =SUM(D22:D27) -> 19.5 | E28: 15.9 | F28: 22.2 | G28: 9.0 | H28: 76.3 | I28: 571 | J28: 5.6 | K28: 6.3 | L28: 0.0 | M28: 0.0 | N28: 19.9 | O28: 49.1 | P28: 7.3 | Q28: 0.0 | R28: 0.0 | S28: 0.7 | T28: 4.6 | U28: 636.1 | V28: 751.9 | W28: 69.7 | X28: 68.4 | Y28: 216.3 | Z28: 3.2 | AA28: 23.7 | AB28: 2824.3 | AC28: 543.4 | AD28: 6.1 | AE28: 0.2 | AF28: 0.2 | AG28: 6.0 | AH28: 12.0 | AI28: 14.9 | AJ28: 0 | AK28: 853.71 | AL28: 701.57 | AM28: 1333.09 | AN28: 1184.55 | AO28: 395.75 | AP28: 727.14 | AQ28: 259.04 | AR28: 780.8 | AS28: 998.61 | AT28: 1143.83 | AU28: 1421.35 | AV28: 428.03 | AW28: 1101.88 | AX28: 3039.91 | AY28: 92.14 | AZ28: 962.21 | BA28: 802.24 | BB28: 597.14 | BC28: 259.23 | BD28: 0 | BE28: 0 | BF28: 0 | BG28: 0 | BH28: 0 | BI28: 0 | BJ28: 0 | BK28: 0.63 | BL28: 0 | BM28: 0.35 | BN28: 0.03 | BO28: 0.06 | BP28: 0 | BQ28: 0 | BR28: 0.01 | BS28: 2.09 | BT28: 0 | BU28: 0 | BV28: 4.99 | BW28: 0.02 | BX28: 0 | BY28: 0 | BZ28: 0 | CA28: 0 | CB28: 490.92 | CD28: =$I$28/#REF!*100 ->  | CE28: 494.45 | CG28: 91.62 | CH28: 51.78 | CI28: 71.7 | CJ28: 6733.8 | CK28: 3484.56 | CL28: 5109.18 | CM28: 118.3 | CN28: 72.06 | CO28: 95.18 | CP28: 8.4 | CQ28: 1.65
B29: Ужин
A30: ="-" -> - | B30: Хлеб ржаной | C30: 10 | D30: 0.6 | E30: 0.0 | F30: 0.1 | G30: 0.2 | H30: 4.2 | I30: 19 | J30: 0.0 | K30: 0.0 | L30: 0.0 | M30: 0.0 | N30: 0.2 | O30: 6.4 | P30: 1.7 | Q30: 0.0 | R30: 0.0 | S30: 0.2 | T30: 0.5 | U30: 122.0 | V30: 49.0 | W30: 3.5 | X30: 4.7 | Y30: 15.8 | Z30: 0.4 | AA30: 0.0 | AB30: 1.0 | AC30: 0.2 | AD30: 0.3 | AE30: 0.0 | AF30: 0.0 | AG30: 0.1 | AH30: 0.4 | AI30: 0.0 | AJ30: 0 | AK30: 64.4 | AL30: 49.6 | AM30: 85.4 | AN30: 44.6 | AO30: 18.6 | AP30: 39.6 | AQ30: 16 | AR30: 74.2 | AS30: 59.4 | AT30: 58.2 | AU30: 92.8 | AV30: 24.8 | AW30: 62 | AX30: 311.8 | AY30: 0 | AZ30: 105.2 | BA30: 58.2 | BB30: 36 | BC30: 26 | BD30: 0 | BE30: 0 | BF30: 0 | BG30: 0 | BH30: 0 | BI30: 0 | BJ30: 0 | BK30: 0.03 | BL30: 0 | BM30: 0 | BN30: 0 | BO30: 0 | BP30: 0 | BQ30: 0 | BR30: 0 | BS30: 0.02 | BT30: 0 | BU30: 0 | BV30: 0.1 | BW30: 0.02 | BX30: 0 | BY30: 0 | BZ30: 0 | CA30: 0 | CB30: 9.4 | CE30: 0.17 | CG30: 3 | CH30: 3 | CI30: 3 | CJ30: 570 | CK30: 219.6 | CL30: 394.8 | CM30: 5.7 | CN30: 4.74 | CO30: 5.22 | CP30: 0 | CQ30: 0
A31: ="27/12" -> 27/12 | B31: Оладьи | C31: 70 | D31: 3.8 | E31: 0.4 | F31: 4.3 | G31: 4.6 | H31: 23.3 | I31: 147 | J31: 0.7 | K31: 2.7 | L31: 0.0 | M31: 0.0 | N31: 1.4 | O31: 20.8 | P31: 1.1 | Q31: 0.0 | R31: 0.0 | S31: 0.0 | T31: 0.8 | U31: 247.8 | V31: 41.2 | W31: 8.4 | X31: 5.2 | Y31: 30.2 | Z31: 0.4 | AA31: 2.7 | AB31: 0.8 | AC31: 4.7 | AD31: 2.4 | AE31: 0.0 | AF31: 0.0 | AG31: 0.4 | AH31: 1.2 | AI31: 0.0 | AJ31: 0 | AK31: 172.68 | AL31: 154.06 | AM31: 287.43 | AN31: 108.79 | AO31: 59.86 | AP31: 115.98 | AQ31: 36.97 | AR31: 175.94 | AS31: 126.28 | AT31: 149 | AU31: 144.56 | AV31: 75.28 | AW31: 126.43 | AX31: 1033.3 | AY31: 3.45 | AZ31: 321.17 | BA31: 181.03 | BB31: 93.08 | BC31: 70.65 | BD31: 0 | BE31: 0 | BF31: 0 | BG31: 0 | BH31: 0 | BI31: 0 | BJ31: 0 | BK31: 0.27 | BL31: 0 | BM31: 0.15 | BN31: 0.01 | BO31: 0.03 | BP31: 0 | BQ31: 0 | BR31: 0 | BS31: 0.91 | BT31: 0 | BU31: 0 | BV31: 2.64 | BW31: 0.01 | BX31: 0 | BY31: 0 | BZ31: 0 | CA31: 0 | CB31: 40.34 | CE31: 2.83 | CG31: 26.12 | CH31: 13.46 | CI31: 19.79 | CJ31: 687.55 | CK31: 249.84 | CL31: 468.7 | CM31: 3.8 | CN31: 2.14 | CO31: 3.31 | CP31: 1.19 | CQ31: 0.63
A32: ="27/10" -> 27/10 | B32: Чай полусладкий | C32: 150 | D32: 0.2 | E32: 0.0 | F32: 0.0 | G32: 0.0 | H32: 3.8 | I32: 15 | J32: 0.0 | K32: 0.0 | L32: 0.0 | M32: 0.0 | N32: 3.7 | O32: 0.0 | P32: 0.1 | Q32: 0.0 | R32: 0.0 | S32: 0.0 | T32: 0.1 | U32: 0.0 | V32: 0.1 | W32: 0.1 | X32: 0.0 | Y32: 0.0 | Z32: 0.0 | AA32: 0.0 | AB32: 0.0 | AC32: 0.0 | AD32: 0.0 | AE32: 0.0 | AF32: 0.0 | AG32: 0.0 | AH32: 0.0 | AI32: 0.0 | AJ32: 0 | AK32: 0 | AL32: 0 | AM32: 0 | AN32: 0 | AO32: 0 | AP32: 0 | AQ32: 0 | AR32: 0 | AS32: 0 | AT32: 0 | AU32: 0 | AV32: 0 | AW32: 0 | AX32: 0 | AY32: 0 | AZ32: 0 | BA32: 0 | BB32: 0 | BC32: 0 | BD32: 0 | BE32: 0 | BF32: 0 | BG32: 0 | BH32: 0 | BI32: 0 | BJ32: 0 | BK32: 0 | BL32: 0 | BM32: 0 | BN32: 0 | BO32: 0 | BP32: 0 | BQ32: 0 | BR32: 0 | BS32: 0 | BT32: 0 | BU32: 0 | BV32: 0 | BW32: 0 | BX32: 0 | BY32: 0 | BZ32: 0 | CA32: 0 | CB32: 150.07 | CE32: 0 | CG32: 3.69 | CH32: 3.69 | CI32: 3.69 | CJ32: 398.25 | CK32: 156.6 | CL32: 277.43 | CM32: 39.61 | CN32: 23.41 | CO32: 31.51 | CP32: 3.75 | CQ32: 0
A33: ="2/4" -> 2/4 | B33: Каша гречневая молочная с маслом сливочным | C33: 150 | D33: 5.9 | E33: 2.2 | F33: 5.5 | G33: 1.0 | H33: 25.9 | I33: 170 | J33: 3.2 | K33: 0.1 | L33: 0.0 | M33: 0.0 | N33: 6.9 | O33: 15.8 | P33: 3.2 | Q33: 0.0 | R33: 0.0 | S33: 0.1 | T33: 1.5 | U33: 182.3 | V33: 222.5 | W33: 95.4 | X33: 67.1 | Y33: 147.2 | Z33: 2.1 | AA33: 30.0 | AB33: 19.6 | AC33: 34.0 | AD33: 0.3 | AE33: 0.1 | AF33: 0.2 | AG33: 1.1 | AH33: 2.8 | AI33: 0.4 | AJ33: 0 | AK33: 175 | AL33: 136.75 | AM33: 221.82 | AN33: 157.47 | AO33: 94.7 | AP33: 119.33 | AQ33: 54.5 | AR33: 175.59 | AS33: 171.84 | AT33: 330.24 | AU33: 326.08 | AV33: 89.49 | AW33: 212.56 | AX33: 669.66 | AY33: 0 | AZ33: 148.76 | BA33: 180.15 | BB33: 127.96 | BC33: 97.39 | BD33: 0.1 | BE33: 0.05 | BF33: 0.02 | BG33: 0.06 | BH33: 0.06 | BI33: 0.29 | BJ33: 0 | BK33: 0.97 | BL33: 0 | BM33: 0.26 | BN33: 0 | BO33: 0 | BP33: 0 | BQ33: 0.06 | BR33: 0.09 | BS33: 0.98 | BT33: 0.01 | BU33: 0 | BV33: 0.34 | BW33: 0.03 | BX33: 0 | BY33: 0 | BZ33: 0 | CA33: 0 | CB33: 124.39 | CE33: 33.26 | CG33: 24 | CH33: 11.13 | CI33: 17.57 | CJ33: 1653.5 | CK33: 750.87 | CL33: 1202.19 | CM33: 29.4 | CN33: 15.18 | CO33: 22.29 | CP33: 3 | CQ33: 0.38
B34: Итого за 'Ужин' | C34: =SUM(C30:C33) -> 380 | D34: =SUM(D30:D33) -> 10.5 | E34: 2.6 | F34: 9.9 | G34: 5.9 | H34: 57.1 | I34: 351 | J34: 3.9 | K34: 2.8 | L34: 0.0 | M34: 0.0 | N34: 12.2 | O34: 43.0 | P34: 6.0 | Q34: 0.0 | R34: 0.0 | S34: 0.3 | T34: 2.8 | U34: 552.2 | V34: 312.8 | W34: 107.4 | X34: 77.0 | Y34: 193.2 | Z34: 2.9 | AA34: 32.7 | AB34: 21.4 | AC34: 38.8 | AD34: 2.9 | AE34: 0.2 | AF34: 0.2 | AG34: 1.6 | AH34: 4.3 | AI34: 0.4 | AJ34: 0 | AK34: 239.4 | AL34: 186.35 | AM34: 307.22 | AN34: 202.07 | AO34: 113.3 | AP34: 158.93 | AQ34: 70.5 | AR34: 249.79 | AS34: 231.24 | AT34: 388.44 | AU34: 418.88 | AV34: 114.29 | AW34: 274.56 | AX34: 981.46 | AY34: 0 | AZ34: 253.96 | BA34: 238.35 | BB34: 163.96 | BC34: 123.39 | BD34: 0.1 | BE34: 0.05 | BF34: 0.02 | BG34: 0.06 | BH34: 0.06 | BI34: 0.29 | BJ34: 0 | BK34: 1 | BL34: 0 | BM34: 0.26 | BN34: 0.01 | BO34: 0 | BP34: 0 | BQ34: 0.06 | BR34: 0.09 | BS34: 1 | BT34: 0.01 | BU34: 0 | BV34: 0.44 | BW34: 0.05 | BX34: 0 | BY34: 0 | BZ34: 0 | CA34: 0 | CB34: 283.86 | CD34: =$I$34/#REF!*100 ->  | CE34: 33.43 | CG34: 27.78 | CH34: 14.92 | CI34: 21.35 | CJ34: 2070.75 | CK34: 914.79 | CL34: 1492.77 | CM34: 69.2 | CN34: 38.75 | CO34: 53.98 | CP34: 6.75 | CQ34: 0.38
B35: Итого за день | C35: =C17+C20+C28+C34 -> 1340 | D35: 39.8 | E35: 23.9 | F35: 41.2 | G35: 16.6 | H35: 187.0 | I35: 1252 | J35: 14.4 | K35: 9.2 | L35: 0.0 | M35: 0.0 | N35: 54.2 | O35: 119.6 | P35: 17.4 | Q35: 0.0 | R35: 0.0 | S35: 2.1 | T35: 10.3 | U35: 1651.7 | V35: 1578.4 | W35: 429.9 | X35: 195.2 | Y35: 675.0 | Z35: 9.6 | AA35: 99.3 | AB35: 2908.1 | AC35: 646.0 | AD35: 10.3 | AE35: 0.6 | AF35: 0.6 | AG35: 9.2 | AH35: 20.5 | AI35: 25.9 | AJ35: 0 | AK35: 1510.26 | AL35: 1266.01 | AM35: 2212.57 | AN35: 1722.29 | AO35: 648.76 | AP35: 1134.09 | AQ35: 464 | AR35: 1447.41 | AS35: 1516.38 | AT35: 1877.08 | AU35: 2345.21 | AV35: 733.46 | AW35: 1641.73 | AX35: 5957.26 | AY35: 92.14 | AZ35: 2100.04 | BA35: 1396.39 | BB35: 1058.48 | BC35: 517.7 | BD35: 0.17 | BE35: 0.09 | BF35: 0.08 | BG35: 0.2 | BH35: 0.24 | BI35: 0.85 | BJ35: 0.04 | BK35: 3 | BL35: 0.01 | BM35: 1 | BN35: 0.05 | BO35: 0.06 | BP35: 0 | BQ35: 0.15 | BR35: 0.23 | BS35: 4.44 | BT35: 0.01 | BU35: 0 | BV35: 5.79 | BW35: 0.08 | BX35: 0 | BY35: 0 | BZ35: 0 | CA35: 0 | CB35: 1154.69 | CE35: 581.18 | CG35: 162.48 | CH35: 86.9 | CI35: 124.69 | CJ35: 12739.22 | CK35: 6336.1 | CL35: 9537.66 | CM35: 274.45 | CN35: 159.22 | CO35: 216.84 | CP35: 21.9 | CQ35: 2.4
B37: 2 ДЕНЬ
B38: Завтрак
A39: ="-" -> - | B39: Хлеб пшеничный | C39: 30 | D39: 1.8 | E39: 0.0 | F39: 0.2 | G39: 0.2 | H39: 11.1 | I39: 54 | J39: 0.0 | K39: 0.0 | L39: 0.0 | M39: 0.0 | N39: 0.3 | O39: 10.7 | P39: 0.1 | Q39: 0.0 | R39: 0.0 | S39: 0.0 | T39: 0.5 | U39: 0.0 | V39: 0.0 | W39: 0.0 | X39: 0.0 | Y39: 0.0 | Z39: 0.0 | AA39: 0.0 | AB39: 0.0 | AC39: 0.0 | AD39: 0.0 | AE39: 0.0 | AF39: 0.0 | AG39: 0.0 | AH39: 0.0 | AI39: 0.0 | AJ39: 0 | AK39: 95.79 | AL39: 99.7 | AM39: 152.69 | AN39: 50.63 | AO39: 30.02 | AP39: 60.03 | AQ39: 22.71 | AR39: 108.58 | AS39: 67.34 | AT39: 93.96 | AU39: 77.52 | AV39: 40.72 | AW39: 72.04 | AX39: 602.39 | AY39: 0 | AZ39: 196.27 | BA39: 85.35 | BB39: 56.64 | BC39: 44.89 | BD39: 0 | BE39: 0 | BF39: 0 | BG39: 0 | BH39: 0 | BI39: 0 | BJ39: 0 | BK39: 0.02 | BL39: 0 | BM39: 0 | BN39: 0 | BO39: 0 | BP39: 0 | BQ39: 0 | BR39: 0 | BS39: 0.02 | BT39: 0 | BU39: 0 | BV39: 0.08 | BW39: 0 | BX39: 0 | BY39: 0 | BZ39: 0 | CA39: 0 | CB39: 11.73 | CE39: 0 | CG39: 0 | CH39: 0 | CI39: 0 | CJ39: 570 | CK39: 219.6 | CL39: 394.8 | CM39: 4.56 | CN39: 4.56 | CO39: 4.56 | CP39: 0 | CQ39: 0
A40: ="-" -> - | B40: Масло сливочное | C40: 5 | D40: 0.0 | E40: 0.0 | F40: 3.6 | G40: 0.0 | H40: 0.1 | I40: 33 | J40: 2.4 | K40: 0.1 | L40: 0.0 | M40: 0.0 | N40: 0.1 | O40: 0.0 | P40: 0.0 | Q40: 0.0 | R40: 0.0 | S40: 0.0 | T40: 0.1 | U40: 0.8 | V40: 1.5 | W40: 1.2 | X40: 0.0 | Y40: 1.5 | Z40: 0.0 | AA40: 20.0 | AB40: 15.0 | AC40: 22.5 | AD40: 0.1 | AE40: 0.0 | AF40: 0.0 | AG40: 0.0 | AH40: 0.0 | AI40: 0.0 | AJ40: 0 | AK40: 2.1 | AL40: 2.05 | AM40: 3.8 | AN40: 2.25 | AO40: 0.85 | AP40: 2.35 | AQ40: 2.15 | AR40: 2.1 | AS40: 1.8 | AT40: 1.3 | AU40: 2.85 | AV40: 1.75 | AW40: 1.2 | AX40: 7.1 | AY40: 0 | AZ40: 2.4 | BA40: 2.7 | BB40: 2.1 | BC40: 0.5 | BD40: 0.13 | BE40: 0.06 | BF40: 0.03 | BG40: 0.08 | BH40: 0.09 | BI40: 0.4 | BJ40: 0 | BK40: 1.1 | BL40: 0 | BM40: 0.34 | BN40: 0 | BO40: 0 | BP40: 0 | BQ40: 0.08 | BR40: 0.12 | BS40: 0.9 | BT40: 0 | BU40: 0 | BV40: 0.05 | BW40: 0 | BX40: 0 | BY40: 0 | BZ40: 0 | CA40: 0 | CB40: 1.25 | CE40: 22.5 | CG40: 0.2 | CH40: 0.05 | CI40: 0.13 | CJ40: 10 | CK40: 4.1 | CL40: 7.05 | CM40: 0.86 | CN40: 0.44 | CO40: 0.65 | CP40: 0 | CQ40: 0
A41: ="29/10" -> 29/10 | B41: Чай с лимоном | C41: 150 | D41: 0.2 | E41: 0.0 | F41: 0.0 | G41: 0.0 | H41: 7.4 | I41: 30 | J41: 0.0 | K41: 0.0 | L41: 0.0 | M41: 0.0 | N41: 7.3 | O41: 0.0 | P41: 0.2 | Q41: 0.0 | R41: 0.0 | S41: 0.2 | T41: 0.1 | U41: 0.5 | V41: 6.1 | W41: 1.6 | X41: 0.4 | Y41: 0.8 | Z41: 0.0 | AA41: 0.0 | AB41: 0.3 | AC41: 0.1 | AD41: 0.0 | AE41: 0.0 | AF41: 0.0 | AG41: 0.0 | AH41: 0.0 | AI41: 0.6 | AJ41: 0 | AK41: 0.5 | AL41: 0.57 | AM41: 0.47 | AN41: 0.86 | AO41: 0.22 | AP41: 0.9 | AQ41: 0 | AR41: 1.15 | AS41: 0 | AT41: 0 | AU41: 0 | AV41: 0.65 | AW41: 0 | AX41: 0 | AY41: 0 | AZ41: 0 | BA41: 0 | BB41: 0 | BC41: 0 | BD41: 0 | BE41: 0 | BF41: 0 | BG41: 0 | BH41: 0 | BI41: 0 | BJ41: 0 | BK41: 0 | BL41: 0 | BM41: 0 | BN41: 0 | BO41: 0 | BP41: 0 | BQ41: 0 | BR41: 0 | BS41: 0 | BT41: 0 | BU41: 0 | BV41: 0 | BW41: 0 | BX41: 0 | BY41: 0 | BZ41: 0 | CA41: 0 | CB41: 149.62 | CE41: 0.05 | CG41: 3.85 | CH41: 3.72 | CI41: 3.79 | CJ41: 434.63 | CK41: 165.16 | CL41: 299.9 | CM41: 39.92 | CN41: 23.87 | CO41: 31.9 | CP41: 7.32 | CQ41: 0
A42: ="11/4" -> 11/4 | B42: Каша пшенная молочная с маслом сливочным | C42: 150 | D42: 4.9 | E42: 1.8 | F42: 4.6 | G42: 1.0 | H42: 24.5 | I42: 158 | J42: 2.9 | K42: 0.1 | L42: 0.0 | M42: 0.0 | N42: 5.9 | O42: 17.6 | P42: 1.0 | Q42: 0.0 | R42: 0.0 | S42: 0.1 | T42: 1.2 | U42: 178.8 | V42: 133.9 | W42: 72.6 | X42: 29.0 | Y42: 109.0 | Z42: 0.8 | AA42: 16.2 | AB42: 18.6 | AC42: 31.0 | AD42: 0.1 | AE42: 0.1 | AF42: 0.1 | AG42: 0.4 | AH42: 1.9 | AI42: 0.3 | AJ42: 0 | AK42: 134.02 | AL42: 122.71 | AM42: 435.27 | AN42: 82.8 | AO42: 84.07 | AP42: 114.46 | AQ42: 52.28 | AR42: 165.04 | AS42: 304.42 | AT42: 120.77 | AU42: 185.31 | AV42: 74.55 | AW42: 85.45 | AX42: 631.05 | AY42: 0 | AZ42: 230.11 | BA42: 199.3 | BB42: 117.1 | BC42: 51.11 | BD42: 0.09 | BE42: 0.04 | BF42: 0.02 | BG42: 0.05 | BH42: 0.06 | BI42: 0.26 | BJ42: 0 | BK42: 0.79 | BL42: 0 | BM42: 0.24 | BN42: 0.01 | BO42: 0 | BP42: 0 | BQ42: 0.05 | BR42: 0.08 | BS42: 0.73 | BT42: 0 | BU42: 0 | BV42: 0.58 | BW42: 0.01 | BX42: 0 | BY42: 0 | BZ42: 0 | CA42: 0 | CB42: 124.54 | CE42: 19.3 | CG42: 31.04 | CH42: 15.29 | CI42: 23.16 | CJ42: 2125.67 | CK42: 973.93 | CL42: 1549.8 | CM42: 36.73 | CN42: 18.95 | CO42: 27.84 | CP42: 3 | CQ42: 0.38
B43: Итого за 'Завтрак' | C43: =SUM(C39:C42) -> 335 | D43: =SUM(D39:D42) -> 7.0 | E43: 1.8 | F43: 8.4 | G43: 1.2 | H43: 43.1 | I43: 274 | J43: 5.2 | K43: 0.2 | L43: 0.0 | M43: 0.0 | N43: 13.5 | O43: 28.3 | P43: 1.2 | Q43: 0.0 | R43: 0.0 | S43: 0.3 | T43: 1.9 | U43: 180.0 | V43: 141.5 | W43: 75.4 | X43: 29.5 | Y43: 111.3 | Z43: 0.8 | AA43: 36.2 | AB43: 33.9 | AC43: 53.6 | AD43: 0.2 | AE43: 0.1 | AF43: 0.1 | AG43: 0.5 | AH43: 1.9 | AI43: 0.9 | AJ43: 0 | AK43: 232.41 | AL43: 225.03 | AM43: 592.22 | AN43: 136.55 | AO43: 115.15 | AP43: 177.73 | AQ43: 77.13 | AR43: 276.86 | AS43: 373.56 | AT43: 216.03 | AU43: 265.68 | AV43: 117.67 | AW43: 158.68 | AX43: 1240.53 | AY43: 0 | AZ43: 428.78 | BA43: 287.35 | BB43: 175.84 | BC43: 96.5 | BD43: 0.22 | BE43: 0.1 | BF43: 0.05 | BG43: 0.13 | BH43: 0.14 | BI43: 0.66 | BJ43: 0 | BK43: 1.92 | BL43: 0 | BM43: 0.58 | BN43: 0.01 | BO43: 0 | BP43: 0 | BQ43: 0.13 | BR43: 0.2 | BS43: 1.65 | BT43: 0 | BU43: 0 | BV43: 0.71 | BW43: 0.02 | BX43: 0 | BY43: 0 | BZ43: 0 | CA43: 0 | CB43: 287.14 | CD43: =$I$43/#REF!*100 ->  | CE43: 41.85 | CG43: 35.09 | CH43: 19.06 | CI43: 27.07 | CJ43: 3140.3 | CK43: 1362.79 | CL43: 2251.54 | CM43: 82.06 | CN43: 47.81 | CO43: 64.94 | CP43: 10.32 | CQ43: 0.38
B44: 10:00
A45: ="-" -> - | B45: Ряженка | C45: 100 | D45: 3.0 | E45: 0.0 | F45: 2.5 | G45: 0.3 | H45: 4.2 | I45: 51 | J45: 0.1 | K45: 0.0 | L45: 0.0 | M45: 0.0 | N45: 4.2 | O45: 0.0 | P45: 0.0 | Q45: 0.0 | R45: 0.0 | S45: 0.1 | T45: 0.4 | U45: 2.0 | V45: 238.0 | W45: 15.0 | X45: 9.0 | Y45: 12.0 | Z45: 0.4 | AA45: 0.0 | AB45: 30.0 | AC45: 5.0 | AD45: 0.1 | AE45: 0.0 | AF45: 0.0 | AG45: 0.6 | AH45: 0.7 | AI45: 15.0 | AJ45: 0 | AK45: 0 | AL45: 0 | AM45: 450 | AN45: 387 | AO45: 115 | AP45: 216 | AQ45: 72 | AR45: 225 | AS45: 160 | AT45: 174 | AU45: 344 | AV45: 156 | AW45: 93 | AX45: 897 | AY45: 0 | AZ45: 518 | BA45: 278 | BB45: 242 | BC45: 50 | BD45: 0.1 | BE45: 0.07 | BF45: 0.04 | BG45: 0.08 | BH45: 0.09 | BI45: 0.45 | BJ45: 0.03 | BK45: 0.56 | BL45: 0.02 | BM45: 0.31 | BN45: 0.04 | BO45: 0 | BP45: 0 | BQ45: 0.04 | BR45: 0.08 | BS45: 0.69 | BT45: 0.01 | BU45: 0 | BV45: 0.02 | BW45: 0.03 | BX45: 0.08 | BY45: 0 | BZ45: 0 | CA45: 0 | CB45: 93 | CE45: 5 | CG45: 0 | CH45: 0 | CI45: 0 | CJ45: 0 | CK45: 0 | CL45: 0 | CM45: 0 | CN45: 0 | CO45: 0 | CP45: 0 | CQ45: 0
A46: ="-" -> - | B46: Печенье | C46: 20 | D46: 0.4 | E46: 0.0 | F46: 2.6 | G46: 0.0 | H46: 11.5 | I46: 70 | J46: 0.4 | K46: 0.0 | L46: 0.0 | M46: 0.0 | N46: 5.0 | O46: 6.0 | P46: 0.5 | Q46: 0.0 | R46: 0.0 | S46: 0.1 | T46: 0.2 | U46: 66.0 | V46: 22.0 | W46: 5.8 | X46: 4.0 | Y46: 18.0 | Z46: 0.4 | AA46: 2.0 | AB46: 1.6 | AC46: 2.2 | AD46: 0.7 | AE46: 0.0 | AF46: 0.0 | AG46: 0.1 | AH46: 0.4 | AI46: 0.0 | AJ46: 0 | AK46: 0 | AL46: 0 | AM46: 0 | AN46: 0 | AO46: 0 | AP46: 0 | AQ46: 0 | AR46: 0 | AS46: 0 | AT46: 0 | AU46: 0 | AV46: 0 | AW46: 0 | AX46: 0 | AY46: 0 | AZ46: 0 | BA46: 0 | BB46: 0 | BC46: 0 | BD46: 0 | BE46: 0 | BF46: 0 | BG46: 0 | BH46: 0 | BI46: 0 | BJ46: 0 | BK46: 0 | BL46: 0 | BM46: 0 | BN46: 0 | BO46: 0 | BP46: 0 | BQ46: 0 | BR46: 0 | BS46: 0 | BT46: 0 | BU46: 0 | BV46: 0 | BW46: 0 | BX46: 0 | BY46: 0 | BZ46: 0 | CA46: 0 | CB46: 0.9 | CE46: 2.27 | CG46: 0 | CH46: 0 | CI46: 0 | CJ46: 0 | CK46: 0 | CL46: 0 | CM46: 0 | CN46: 0 | CO46: 0 | CP46: 0 | CQ46: 0
B47: Итого за '10:00' | C47: =SUM(C45:C46) -> 120 | D47: =SUM(D45:D46) -> 3.4 | E47: 0.0 | F47: 5.1 | G47: 0.3 | H47: 15.7 | I47: 121 | J47: 0.5 | K47: 0.0 | L47: 0.0 | M47: 0.0 | N47: 9.2 | O47: 6.0 | P47: 0.5 | Q47: 0.0 | R47: 0.0 | S47: 0.2 | T47: 0.6 | U47: 68.0 | V47: 260.0 | W47: 20.8 | X47: 13.0 | Y47: 30.0 | Z47: 0.8 | AA47: 2.0 | AB47: 31.6 | AC47: 7.2 | AD47: 0.8 | AE47: 0.1 | AF47: 0.0 | AG47: 0.7 | AH47: 1.1 | AI47: 15.0 | AJ47: 0 | AK47: 0 | AL47: 0 | AM47: 450 | AN47: 387 | AO47: 115 | AP47: 216 | AQ47: 72 | AR47: 225 | AS47: 160 | AT47: 174 | AU47: 344 | AV47: 156 | AW47: 93 | AX47: 897 | AY47: 0 | AZ47: 518 | BA47: 278 | BB47: 242 | BC47: 50 | BD47: 0.1 | BE47: 0.07 | BF47: 0.04 | BG47: 0.08 | BH47: 0.09 | BI47: 0.45 | BJ47: 0.03 | BK47: 0.56 | BL47: 0.02 | BM47: 0.31 | BN47: 0.04 | BO47: 0 | BP47: 0 | BQ47: 0.04 | BR47: 0.08 | BS47: 0.69 | BT47: 0.01 | BU47: 0 | BV47: 0.02 | BW47: 0.03 | BX47: 0.08 | BY47: 0 | BZ47: 0 | CA47: 0 | CB47: 93.9 | CD47: =$I$47/#REF!*100 ->  | CE47: 7.27 | CG47: 0 | CH47: 0 | CI47: 0 | CJ47: 0 | CK47: 0 | CL47: 0 | CM47: 0 | CN47: 0 | CO47: 0 | CP47: 0 | CQ47: 0
B48: Обед
A49: ="-" -> - | B49: Хлеб пшеничный | C49: 20 | D49: 1.2 | E49: 0.0 | F49: 0.1 | G49: 0.1 | H49: 7.4 | I49: 36 | J49: 0.0 | K49: 0.0 | L49: 0.0 | M49: 0.0 | N49: 0.2 | O49: 7.1 | P49: 0.0 | Q49: 0.0 | R49: 0.0 | S49: 0.0 | T49: 0.4 | U49: 0.0 | V49: 0.0 | W49: 0.0 | X49: 0.0 | Y49: 0.0 | Z49: 0.0 | AA49: 0.0 | AB49: 0.0 | AC49: 0.0 | AD49: 0.0 | AE49: 0.0 | AF49: 0.0 | AG49: 0.0 | AH49: 0.0 | AI49: 0.0 | AJ49: 0 | AK49: 63.86 | AL49: 66.47 | AM49: 101.79 | AN49: 33.76 | AO49: 20.01 | AP49: 40.02 | AQ49: 15.14 | AR49: 72.38 | AS49: 44.89 | AT49: 62.64 | AU49: 51.68 | AV49: 27.14 | AW49: 48.02 | AX49: 401.59 | AY49: 0 | AZ49: 130.85 | BA49: 56.9 | BB49: 37.76 | BC49: 29.93 | BD49: 0 | BE49: 0 | BF49: 0 | BG49: 0 | BH49: 0 | BI49: 0 | BJ49: 0 | BK49: 0.02 | BL49: 0 | BM49: 0 | BN49: 0 | BO49: 0 | BP49: 0 | BQ49: 0 | BR49: 0 | BS49: 0.01 | BT49: 0 | BU49: 0 | BV49: 0.06 | BW49: 0 | BX49: 0 | BY49: 0 | BZ49: 0 | CA49: 0 | CB49: 7.82 | CE49: 0 | CG49: 0 | CH49: 0 | CI49: 0 | CJ49: 380 | CK49: 146.4 | CL49: 263.2 | CM49: 3.04 | CN49: 3.04 | CO49: 3.04 | CP49: 0 | CQ49: 0
A50: ="-" -> - | B50: Хлеб ржаной | C50: 20 | D50: 1.2 | E50: 0.0 | F50: 0.2 | G50: 0.2 | H50: 8.3 | I50: 38 | J50: 0.0 | K50: 0.0 | L50: 0.0 | M50: 0.0 | N50: 0.2 | O50: 6.4 | P50: 1.7 | Q50: 0.0 | R50: 0.0 | S50: 0.2 | T50: 0.5 | U50: 122.0 | V50: 49.0 | W50: 7.0 | X50: 9.4 | Y50: 31.6 | Z50: 0.8 | AA50: 0.0 | AB50: 1.0 | AC50: 0.2 | AD50: 0.3 | AE50: 0.0 | AF50: 0.0 | AG50: 0.1 | AH50: 0.4 | AI50: 0.0 | AJ50: 0 | AK50: 64.4 | AL50: 49.6 | AM50: 85.4 | AN50: 44.6 | AO50: 18.6 | AP50: 39.6 | AQ50: 16 | AR50: 74.2 | AS50: 59.4 | AT50: 58.2 | AU50: 92.8 | AV50: 24.8 | AW50: 62 | AX50: 311.8 | AY50: 0 | AZ50: 105.2 | BA50: 58.2 | BB50: 36 | BC50: 26 | BD50: 0 | BE50: 0 | BF50: 0 | BG50: 0 | BH50: 0 | BI50: 0 | BJ50: 0 | BK50: 0.03 | BL50: 0 | BM50: 0 | BN50: 0 | BO50: 0 | BP50: 0 | BQ50: 0 | BR50: 0 | BS50: 0.02 | BT50: 0 | BU50: 0 | BV50: 0.1 | BW50: 0.02 | BX50: 0 | BY50: 0 | BZ50: 0 | CA50: 0 | CB50: 9.4 | CE50: 0.17 | CG50: 4 | CH50: 4 | CI50: 4 | CJ50: 760 | CK50: 292.8 | CL50: 526.4 | CM50: 7.6 | CN50: 6.32 | CO50: 6.96 | CP50: 0 | CQ50: 0
A51: ="3/10" -> 3/10 | B51: Компот из яблок | C51: 150 | D51: 0.1 | E51: 0.0 | F51: 0.1 | G51: 0.1 | H51: 14.4 | I51: 56 | J51: 0.0 | K51: 0.0 | L51: 0.0 | M51: 0.0 | N51: 13.7 | O51: 0.2 | P51: 0.5 | Q51: 0.0 | R51: 0.0 | S51: 0.2 | T51: 0.2 | U51: 7.8 | V51: 82.9 | W51: 5.0 | X51: 2.6 | Y51: 3.1 | Z51: 0.7 | AA51: 0.0 | AB51: 8.1 | AC51: 1.5 | AD51: 0.1 | AE51: 0.0 | AF51: 0.0 | AG51: 0.1 | AH51: 0.1 | AI51: 1.2 | AJ51: 0 | AK51: 3.53 | AL51: 3.82 | AM51: 5.59 | AN51: 5.29 | AO51: 0.88 | AP51: 3.23 | AQ51: 0.88 | AR51: 2.65 | AS51: 5 | AT51: 2.94 | AU51: 22.93 | AV51: 2.06 | AW51: 4.12 | AX51: 12.35 | AY51: 0 | AZ51: 3.82 | BA51: 4.7 | BB51: 1.76 | BC51: 1.47 | BD51: 0 | BE51: 0 | BF51: 0 | BG51: 0 | BH51: 0 | BI51: 0 | BJ51: 0 | BK51: 0 | BL51: 0 | BM51: 0 | BN51: 0 | BO51: 0 | BP51: 0 | BQ51: 0 | BR51: 0 | BS51: 0 | BT51: 0 | BU51: 0 | BV51: 0 | BW51: 0 | BX51: 0 | BY51: 0 | BZ51: 0 | CA51: 0 | CB51: 183.4 | CE51: 1.35 | CG51: 4.5 | CH51: 4.5 | CI51: 4.5 | CJ51: 432 | CK51: 208.98 | CL51: 320.49 | CM51: 41.2 | CN51: 24.19 | CO51: 32.7 | CP51: 11.25 | CQ51: 0
A52: ="32/1" -> 32/1 | B52: Салат из отварной свеклы с растительным маслом | C52: 30 | D52: 0.4 | E52: 0.0 | F52: 1.8 | G52: 1.8 | H52: 2.7 | I52: 27 | J52: 0.2 | K52: 1.2 | L52: 0.0 | M52: 0.0 | N52: 2.0 | O52: 0.0 | P52: 0.7 | Q52: 0.0 | R52: 0.0 | S52: 0.0 | T52: 0.4 | U52: 66.9 | V52: 67.0 | W52: 10.2 | X52: 5.8 | Y52: 11.4 | Z52: 0.4 | AA52: 0.0 | AB52: 2.5 | AC52: 0.6 | AD52: 0.8 | AE52: 0.0 | AF52: 0.0 | AG52: 0.0 | AH52: 0.1 | AI52: 0.6 | AJ52: 0 | AK52: 14.64 | AL52: 16.57 | AM52: 18.51 | AN52: 25.41 | AO52: 5.52 | AP52: 14.64 | AQ52: 3.59 | AR52: 12.43 | AS52: 11.05 | AT52: 20.16 | AU52: 90.6 | AV52: 3.87 | AW52: 10.5 | AX52: 75.69 | AY52: 0 | AZ52: 12.98 | BA52: 17.4 | BB52: 13.81 | BC52: 4.14 | BD52: 0 | BE52: 0 | BF52: 0 | BG52: 0 | BH52: 0 | BI52: 0 | BJ52: 0 | BK52: 0.11 | BL52: 0 | BM52: 0.07 | BN52: 0.01 | BO52: 0.01 | BP52: 0 | BQ52: 0 | BR52: 0 | BS52: 0.42 | BT52: 0 | BU52: 0 | BV52: 1.04 | BW52: 0 | BX52: 0 | BY52: 0 | BZ52: 0 | CA52: 0 | CB52: 25.52 | CE52: 0.41 | CG52: 8.15 | CH52: 5.09 | CI52: 6.62 | CJ52: 256.29 | CK52: 61.32 | CL52: 158.81 | CM52: 1.23 | CN52: 0.78 | CO52: 1 | CP52: 0 | CQ52: 0.15
A53: ="11/2" -> 11/2 | B53: Рассольник с крупой на говяжьем бульоне | C53: 150 | D53: 2.0 | E53: 4.9 | F53: 6.3 | G53: 3.2 | H53: 10.3 | I53: 105 | J53: 1.6 | K53: 2.0 | L53: 0.0 | M53: 0.0 | N53: 1.3 | O53: 8.0 | P53: 1.1 | Q53: 0.0 | R53: 0.0 | S53: 0.2 | T53: 1.9 | U53: 452.3 | V53: 255.9 | W53: 11.9 | X53: 13.7 | Y53: 38.0 | Z53: 0.5 | AA53: 0.0 | AB53: 585.4 | AC53: 121.8 | AD53: 1.4 | AE53: 0.1 | AF53: 0.1 | AG53: 0.6 | AH53: 1.0 | AI53: 4.0 | AJ53: 0 | AK53: 25.72 | AL53: 29.98 | AM53: 39.99 | AN53: 38.18 | AO53: 8.63 | AP53: 26.42 | AQ53: 12.15 | AR53: 33.5 | AS53: 36.27 | AT53: 77.89 | AU53: 53.86 | AV53: 10.95 | AW53: 27.16 | AX53: 196.64 | AY53: 0 | AZ53: 41.46 | BA53: 24.85 | BB53: 19.91 | BC53: 10.97 | BD53: 0 | BE53: 0 | BF53: 0 | BG53: 0 | BH53: 0 | BI53: 0 | BJ53: 0 | BK53: 0.2 | BL53: 0 | BM53: 0.12 | BN53: 0.01 | BO53: 0.02 | BP53: 0 | BQ53: 0 | BR53: 0 | BS53: 0.69 | BT53: 0 | BU53: 0 | BV53: 1.82 | BW53: 0 | BX53: 0 | BY53: 0 | BZ53: 0 | CA53: 0 | CB53: 164.43 | CE53: 97.56 | CG53: 41.64 | CH53: 23.25 | CI53: 32.45 | CJ53: 657.3 | CK53: 349.71 | CL53: 503.5 | CM53: 33.78 | CN53: 16.55 | CO53: 25.17 | CP53: 0 | CQ53: 0.9
A54: ="3/3" -> 3/3 | B54: Картофельное пюре с маслом сливочным | C54: 120 | D54: 2.5 | E54: 0.4 | F54: 2.8 | G54: 0.4 | H54: 17.7 | I54: 105 | J54: 1.8 | K54: 0.1 | L54: 0.0 | M54: 0.0 | N54: 1.7 | O54: 14.6 | P54: 1.4 | Q54: 0.0 | R54: 0.0 | S54: 0.2 | T54: 1.5 | U54: 62.3 | V54: 509.0 | W54: 27.2 | X54: 24.3 | Y54: 69.5 | Z54: 0.9 | AA54: 15.0 | AB54: 27.3 | AC54: 20.0 | AD54: 0.1 | AE54: 0.1 | AF54: 0.1 | AG54: 1.1 | AH54: 2.1 | AI54: 4.4 | AJ54: 0 | AK54: 26.85 | AL54: 42.21 | AM54: 53.47 | AN54: 62.84 | AO54: 10.74 | AP54: 42.38 | AQ54: 21.75 | AR54: 43.26 | AS54: 60.53 | AT54: 164.9 | AU54: 73.44 | AV54: 15.36 | AW54: 42.75 | AX54: 229.77 | AY54: 0 | AZ54: 32.15 | BA54: 29.24 | BB54: 31.98 | BC54: 13.62 | BD54: 0.08 | BE54: 0.04 | BF54: 0.02 | BG54: 0.04 | BH54: 0.05 | BI54: 0.23 | BJ54: 0 | BK54: 0.7 | BL54: 0 | BM54: 0.21 | BN54: 0 | BO54: 0 | BP54: 0 | BQ54: 0.04 | BR54: 0.07 | BS54: 0.68 | BT54: 0 | BU54: 0 | BV54: 0.11 | BW54: 0 | BX54: 0 | BY54: 0 | BZ54: 0 | CA54: 0 | CB54: 98.99 | CE54: 19.55 | CG54: 14.07 | CH54: 9.33 | CI54: 11.7 | CJ54: 481.65 | CK54: 423.36 | CL54: 452.5 | CM54: 19.53 | CN54: 2.87 | CO54: 11.2 | CP54: 0 | CQ54: 0.18
A55: ="48/8-1" -> 48/8-1 | B55: Голубцы с мясом говядины и рисом (ленивые) безмолочные | C55: 50 | D55: 4.7 | E55: 4.2 | F55: 3.3 | G55: 0.7 | H55: 4.0 | I55: 63 | J55: 1.9 | K55: 0.4 | L55: 0.0 | M55: 0.0 | N55: 1.3 | O55: 2.0 | P55: 0.7 | Q55: 0.0 | R55: 0.0 | S55: 0.1 | T55: 0.5 | U55: 13.8 | V55: 121.4 | W55: 16.1 | X55: 9.6 | Y55: 41.5 | Z55: 0.7 | AA55: 0.0 | AB55: 5.1 | AC55: 1.1 | AD55: 0.4 | AE55: 0.0 | AF55: 0.0 | AG55: 0.9 | AH55: 2.5 | AI55: 1.4 | AJ55: 0 | AK55: 250.42 | AL55: 191.64 | AM55: 351.88 | AN55: 575.49 | AO55: 106.09 | AP55: 191.81 | AQ55: 50.64 | AR55: 197.55 | AS55: 264.69 | AT55: 263.74 | AU55: 447.71 | AV55: 164.44 | AW55: 223.13 | AX55: 776.58 | AY55: 61.34 | AZ55: 174.14 | BA55: 194.23 | BB55: 164.26 | BC55: 65.42 | BD55: 0 | BE55: 0 | BF55: 0 | BG55: 0 | BH55: 0 | BI55: 0 | BJ55: 0 | BK55: 0.04 | BL55: 0 | BM55: 0.02 | BN55: 0 | BO55: 0 | BP55: 0 | BQ55: 0 | BR55: 0 | BS55: 0.14 | BT55: 0 | BU55: 0 | BV55: 0.37 | BW55: 0 | BX55: 0 | BY55: 0 | BZ55: 0 | CA55: 0 | CB55: 57.03 | CE55: 0.85 | CG55: 5.03 | CH55: 2.76 | CI55: 3.89 | CJ55: 1255.94 | CK55: 654.64 | CL55: 955.29 | CM55: 12.88 | CN55: 9.78 | CO55: 11.33 | CP55: 0 | CQ55: 0
B56: Итого за 'Обед' | C56: 540 | D56: 12.2 | E56: 9.5 | F56: 14.7 | G56: 6.6 | H56: 70.4 | I56: 493 | J56: 5.5 | K56: 3.6 | L56: 0.0 | M56: 0.0 | N56: 20.4 | O56: 38.4 | P56: 6.0 | Q56: 0.0 | R56: 0.0 | S56: 1.0 | T56: 5.3 | U56: 725.1 | V56: 1085.2 | W56: 77.4 | X56: 65.3 | Y56: 195.1 | Z56: 3.9 | AA56: 15.0 | AB56: 629.3 | AC56: 145.3 | AD56: 3.2 | AE56: 0.2 | AF56: 0.2 | AG56: 2.9 | AH56: 6.2 | AI56: 11.5 | AJ56: 0 | AK56: 449.41 | AL56: 400.29 | AM56: 656.62 | AN56: 785.57 | AO56: 170.48 | AP56: 358.11 | AQ56: 120.15 | AR56: 435.97 | AS56: 481.83 | AT56: 650.48 | AU56: 833.03 | AV56: 248.61 | AW56: 417.67 | AX56: 2004.41 | AY56: 61.34 | AZ56: 500.59 | BA56: 385.52 | BB56: 305.48 | BC56: 151.55 | BD56: 0.08 | BE56: 0.04 | BF56: 0.02 | BG56: 0.04 | BH56: 0.05 | BI56: 0.23 | BJ56: 0 | BK56: 1.09 | BL56: 0 | BM56: 0.42 | BN56: 0.02 | BO56: 0.03 | BP56: 0 | BQ56: 0.04 | BR56: 0.08 | BS56: 1.96 | BT56: 0 | BU56: 0 | BV56: 3.5 | BW56: 0.02 | BX56: 0 | BY56: 0 | BZ56: 0 | CA56: 0 | CB56: 546.59 | CE56: 119.89 | CG56: 77.39 | CH56: 48.93 | CI56: 63.16 | CJ56: 4223.18 | CK56: 2137.21 | CL56: 3180.19 | CM56: 119.26 | CN56: 63.54 | CO56: 91.4 | CP56: 11.25 | CQ56: 1.23
B57: Ужин
A58: ="-" -> - | B58: Батон | C58: 20 | D58: 1.5 | E58: 0.0 | F58: 1.0 | G58: 0.6 | H58: 7.5 | I58: 44 | J58: 0.1 | K58: 0.0 | L58: 0.0 | M58: 0.0 | N58: 0.7 | O58: 6.2 | P58: 0.6 | Q58: 0.0 | R58: 0.0 | S58: 0.1 | T58: 0.3 | U58: 85.8 | V58: 26.2 | W58: 4.4 | X58: 6.6 | Y58: 17.0 | Z58: 0.4 | AA58: 0.0 | AB58: 0.0 | AC58: 0.0 | AD58: 0.3 | AE58: 0.0 | AF58: 0.0 | AG58: 0.3 | AH58: 0.6 | AI58: 0.0 | AJ58: 0 | AK58: 74.4 | AL58: 77.2 | AM58: 118.2 | AN58: 39.8 | AO58: 23.4 | AP58: 46.8 | AQ58: 17.6 | AR58: 84 | AS58: 52.2 | AT58: 72.6 | AU58: 60.2 | AV58: 32.2 | AW58: 56 | AX58: 465 | AY58: 0 | AZ58: 151.4 | BA58: 66.2 | BB58: 44.4 | BC58: 34.6 | BD58: 0 | BE58: 0 | BF58: 0 | BG58: 0 | BH58: 0 | BI58: 0 | BJ58: 0 | BK58: 0.07 | BL58: 0 | BM58: 0.03 | BN58: 0 | BO58: 0 | BP58: 0 | BQ58: 0 | BR58: 0 | BS58: 0.23 | BT58: 0 | BU58: 0 | BV58: 0.18 | BW58: 0 | BX58: 0 | BY58: 0 | BZ58: 0 | CA58: 0 | CB58: 6.82 | CE58: 0 | CG58: 0 | CH58: 0 | CI58: 0 | CJ58: 1330 | CK58: 512.4 | CL58: 921.2 | CM58: 10.64 | CN58: 10.64 | CO58: 10.64 | CP58: 0 | CQ58: 0
A59: ="-" -> - | B59: Сок | C59: 150 | D59: 0.8 | E59: 0.0 | F59: 0.2 | G59: 0.0 | H59: 15.5 | I59: 65 | J59: 0.0 | K59: 0.0 | L59: 0.0 | M59: 0.0 | N59: 14.9 | O59: 0.3 | P59: 0.3 | Q59: 0.0 | R59: 0.0 | S59: 0.8 | T59: 0.5 | U59: 9.0 | V59: 180.0 | W59: 10.5 | X59: 6.0 | Y59: 10.5 | Z59: 2.1 | AA59: 0.0 | AB59: 0.0 | AC59: 0.0 | AD59: 0.2 | AE59: 0.0 | AF59: 0.0 | AG59: 0.2 | AH59: 0.3 | AI59: 3.0 | AJ59: 0.3 | AK59: 12 | AL59: 15 | AM59: 21 | AN59: 21 | AO59: 3 | AP59: 12 | AQ59: 3 | AR59: 10.5 | AS59: 19.5 | AT59: 12 | AU59: 87 | AV59: 7.5 | AW59: 16.5 | AX59: 48 | AY59: 0 | AZ59: 15 | BA59: 18 | BB59: 7.5 | BC59: 6 | BD59: 0 | BE59: 0 | BF59: 0 | BG59: 0 | BH59: 0 | BI59: 0 | BJ59: 0 | BK59: 0 | BL59: 0 | BM59: 0 | BN59: 0 | BO59: 0 | BP59: 0 | BQ59: 0 | BR59: 0 | BS59: 0 | BT59: 0 | BU59: 0 | BV59: 0 | BW59: 0 | BX59: 0 | BY59: 0 | BZ59: 0 | CA59: 0 | CB59: 132.15 | CE59: 0 | CG59: 3.6 | CH59: 3.6 | CI59: 3.6 | CJ59: 360 | CK59: 163.8 | CL59: 261.9 | CM59: 0.54 | CN59: 0.54 | CO59: 0.54 | CP59: 0 | CQ59: 0
A60: ="9/4" -> 9/4 | B60: Каша рисовая молочная вязкая с маслом сливочным | C60: 150 | D60: 3.9 | E60: 1.6 | F60: 4.4 | G60: 0.3 | H60: 30.4 | I60: 176 | J60: 2.8 | K60: 0.1 | L60: 0.0 | M60: 0.0 | N60: 6.6 | O60: 22.9 | P60: 0.9 | Q60: 0.0 | R60: 0.0 | S60: 0.1 | T60: 1.1 | U60: 176.1 | V60: 115.2 | W60: 70.4 | X60: 23.2 | Y60: 94.4 | Z60: 0.4 | AA60: 26.3 | AB60: 15.2 | AC60: 29.3 | AD60: 0.2 | AE60: 0.0 | AF60: 0.1 | AG60: 0.5 | AH60: 1.6 | AI60: 0.3 | AJ60: 0 | AK60: 137.37 | AL60: 108.23 | AM60: 203.3 | AN60: 85.74 | AO60: 52.37 | AP60: 79.34 | AQ60: 33.92 | AR60: 121.2 | AS60: 127.45 | AT60: 165.89 | AU60: 176.73 | AV60: 56.26 | AW60: 104.37 | AX60: 393.3 | AY60: 0 | AZ60: 108.49 | BA60: 108.71 | BB60: 95.33 | BC60: 44.67 | BD60: 0.1 | BE60: 0.05 | BF60: 0.02 | BG60: 0.06 | BH60: 0.06 | BI60: 0.3 | BJ60: 0 | BK60: 0.87 | BL60: 0 | BM60: 0.26 | BN60: 0 | BO60: 0 | BP60: 0 | BQ60: 0.06 | BR60: 0.09 | BS60: 0.77 | BT60: 0 | BU60: 0 | BV60: 0.09 | BW60: 0 | BX60: 0 | BY60: 0 | BZ60: 0 | CA60: 0 | CB60: 111.87 | CE60: 28.78 | CG60: 26.6 | CH60: 12.74 | CI60: 19.67 | CJ60: 2001.43 | CK60: 924.09 | CL60: 1462.76 | CM60: 28.03 | CN60: 12.22 | CO60: 20.13 | CP60: 3.75 | CQ60: 0.38
B61: Итого за 'Ужин' | C61: =SUM(C58:C60) -> 320 | D61: =SUM(D58:D60) -> 6.1 | E61: 1.6 | F61: 5.5 | G61: 0.9 | H61: 53.3 | I61: 285 | J61: 2.9 | K61: 0.1 | L61: 0.0 | M61: 0.0 | N61: 22.1 | O61: 29.3 | P61: 1.9 | Q61: 0.0 | R61: 0.0 | S61: 0.9 | T61: 1.8 | U61: 270.9 | V61: 321.4 | W61: 85.3 | X61: 35.8 | Y61: 121.9 | Z61: 2.9 | AA61: 26.3 | AB61: 15.2 | AC61: 29.3 | AD61: 0.7 | AE61: 0.1 | AF61: 0.1 | AG61: 1.0 | AH61: 2.5 | AI61: 3.3 | AJ61: 0.3 | AK61: 223.77 | AL61: 200.43 | AM61: 342.5 | AN61: 146.54 | AO61: 78.77 | AP61: 138.14 | AQ61: 54.52 | AR61: 215.7 | AS61: 199.15 | AT61: 250.49 | AU61: 323.93 | AV61: 95.96 | AW61: 176.87 | AX61: 906.3 | AY61: 0 | AZ61: 274.89 | BA61: 192.91 | BB61: 147.23 | BC61: 85.27 | BD61: 0.1 | BE61: 0.05 | BF61: 0.02 | BG61: 0.06 | BH61: 0.07 | BI61: 0.3 | BJ61: 0 | BK61: 0.94 | BL61: 0 | BM61: 0.29 | BN61: 0 | BO61: 0 | BP61: 0 | BQ61: 0.06 | BR61: 0.09 | BS61: 1 | BT61: 0 | BU61: 0 | BV61: 0.27 | BW61: 0.01 | BX61: 0 | BY61: 0 | BZ61: 0 | CA61: 0 | CB61: 250.84 | CD61: =$I$61/#REF!*100 ->  | CE61: 28.78 | CG61: 30.2 | CH61: 16.34 | CI61: 23.27 | CJ61: 3691.43 | CK61: 1600.29 | CL61: 2645.86 | CM61: 39.21 | CN61: 23.4 | CO61: 31.31 | CP61: 3.75 | CQ61: 0.38
B62: Итого за день | C62: =C43+C47+C56+C61 -> 1315 | D62: 28.7 | E62: 13.0 | F62: 33.7 | G62: 9.1 | H62: 182.4 | I62: 1172 | J62: 14.2 | K62: 3.9 | L62: 0.0 | M62: 0.0 | N62: 65.3 | O62: 102.0 | P62: 9.5 | Q62: 0.0 | R62: 0.0 | S62: 2.3 | T62: 9.6 | U62: 1244.0 | V62: 1808.1 | W62: 258.8 | X62: 143.6 | Y62: 458.3 | Z62: 8.5 | AA62: 79.5 | AB62: 710.0 | AC62: 235.3 | AD62: 4.8 | AE62: 0.5 | AF62: 0.5 | AG62: 5.0 | AH62: 11.6 | AI62: 30.7 | AJ62: 0.3 | AK62: 905.59 | AL62: 825.75 | AM62: 2041.33 | AN62: 1455.66 | AO62: 479.4 | AP62: 889.99 | AQ62: 323.81 | AR62: 1153.54 | AS62: 1214.54 | AT62: 1290.99 | AU62: 1766.64 | AV62: 618.24 | AW62: 846.22 | AX62: 5048.24 | AY62: 61.34 | AZ62: 1722.26 | BA62: 1143.78 | BB62: 870.55 | BC62: 383.33 | BD62: 0.5 | BE62: 0.25 | BF62: 0.14 | BG62: 0.3 | BH62: 0.35 | BI62: 1.64 | BJ62: 0.03 | BK62: 4.51 | BL62: 0.02 | BM62: 1.61 | BN62: 0.07 | BO62: 0.03 | BP62: 0 | BQ62: 0.27 | BR62: 0.44 | BS62: 5.3 | BT62: 0.01 | BU62: 0 | BV62: 4.5 | BW62: 0.08 | BX62: 0.08 | BY62: 0 | BZ62: 0 | CA62: 0 | CB62: 1178.48 | CE62: 197.79 | CG62: 142.68 | CH62: 84.33 | CI62: 113.51 | CJ62: 11054.91 | CK62: 5100.28 | CL62: 8077.6 | CM62: 240.53 | CN62: 134.75 | CO62: 187.64 | CP62: 25.32 | CQ62: 1.98
B64: 3 ДЕНЬ
B65: Завтрак
A66: ="-" -> - | B66: Батон | C66: 30 | D66: 2.3 | E66: 0.0 | F66: 1.5 | G66: 0.9 | H66: 11.2 | I66: 66 | J66: 0.2 | K66: 0.0 | L66: 0.0 | M66: 0.0 | N66: 1.0 | O66: 9.2 | P66: 1.0 | Q66: 0.0 | R66: 0.0 | S66: 0.1 | T66: 0.5 | U66: 128.7 | V66: 39.3 | W66: 6.6 | X66: 9.9 | Y66: 25.5 | Z66: 0.6 | AA66: 0.0 | AB66: 0.0 | AC66: 0.0 | AD66: 0.5 | AE66: 0.1 | AF66: 0.0 | AG66: 0.5 | AH66: 0.9 | AI66: 0.0 | AJ66: 0 | AK66: 111.6 | AL66: 115.8 | AM66: 177.3 | AN66: 59.7 | AO66: 35.1 | AP66: 70.2 | AQ66: 26.4 | AR66: 126 | AS66: 78.3 | AT66: 108.9 | AU66: 90.3 | AV66: 48.3 | AW66: 84 | AX66: 697.5 | AY66: 0 | AZ66: 227.1 | BA66: 99.3 | BB66: 66.6 | BC66: 51.9 | BD66: 0 | BE66: 0 | BF66: 0 | BG66: 0 | BH66: 0 | BI66: 0.01 | BJ66: 0 | BK66: 0.1 | BL66: 0 | BM66: 0.05 | BN66: 0 | BO66: 0 | BP66: 0 | BQ66: 0 | BR66: 0 | BS66: 0.35 | BT66: 0 | BU66: 0 | BV66: 0.26 | BW66: 0.01 | BX66: 0 | BY66: 0 | BZ66: 0 | CA66: 0 | CB66: 10.23 | CE66: 0 | CG66: 0 | CH66: 0 | CI66: 0 | CJ66: 570 | CK66: 219.6 | CL66: 394.8 | CM66: 4.56 | CN66: 4.56 | CO66: 4.56 | CP66: 0 | CQ66: 0
A67: ="-" -> - | B67: Масло сливочное | C67: 5 | D67: 0.0 | E67: 0.0 | F67: 3.6 | G67: 0.0 | H67: 0.1 | I67: 33 | J67: 2.4 | K67: 0.1 | L67: 0.0 | M67: 0.0 | N67: 0.1 | O67: 0.0 | P67: 0.0 | Q67: 0.0 | R67: 0.0 | S67: 0.0 | T67: 0.1 | U67: 0.8 | V67: 1.5 | W67: 1.2 | X67: 0.0 | Y67: 1.5 | Z67: 0.0 | AA67: 20.0 | AB67: 15.0 | AC67: 22.5 | AD67: 0.1 | AE67: 0.0 | AF67: 0.0 | AG67: 0.0 | AH67: 0.0 | AI67: 0.0 | AJ67: 0 | AK67: 2.1 | AL67: 2.05 | AM67: 3.8 | AN67: 2.25 | AO67: 0.85 | AP67: 2.35 | AQ67: 2.15 | AR67: 2.1 | AS67: 1.8 | AT67: 1.3 | AU67: 2.85 | AV67: 1.75 | AW67: 1.2 | AX67: 7.1 | AY67: 0 | AZ67: 2.4 | BA67: 2.7 | BB67: 2.1 | BC67: 0.5 | BD67: 0.13 | BE67: 0.06 | BF67: 0.03 | BG67: 0.08 | BH67: 0.09 | BI67: 0.4 | BJ67: 0 | BK67: 1.1 | BL67: 0 | BM67: 0.34 | BN67: 0 | BO67: 0 | BP67: 0 | BQ67: 0.08 | BR67: 0.12 | BS67: 0.9 | BT67: 0 | BU67: 0 | BV67: 0.05 | BW67: 0 | BX67: 0 | BY67: 0 | BZ67: 0 | CA67: 0 | CB67: 1.25 | CE67: 22.5 | CG67: 0.2 | CH67: 0.05 | CI67: 0.13 | CJ67: 10 | CK67: 4.1 | CL67: 7.05 | CM67: 0.86 | CN67: 0.44 | CO67: 0.65 | CP67: 0 | CQ67: 0
A68: ="31/10" -> 31/10 | B68: Чай с молоком (вариант 3) | C68: 150 | D68: 1.2 | E68: 1.1 | F68: 1.0 | G68: 0.0 | H68: 5.5 | I68: 34 | J68: 0.6 | K68: 0.0 | L68: 0.0 | M68: 0.0 | N68: 5.5 | O68: 0.0 | P68: 0.1 | Q68: 0.0 | R68: 0.0 | S68: 0.0 | T68: 0.3 | U68: 18.6 | V68: 54.3 | W68: 43.8 | X68: 5.0 | Y68: 31.4 | Z68: 0.1 | AA68: 7.5 | AB68: 3.4 | AC68: 8.3 | AD68: 0.0 | AE68: 0.0 | AF68: 0.1 | AG68: 0.0 | AH68: 0.3 | AI68: 0.2 | AJ68: 0 | AK68: 0 | AL68: 0 | AM68: 0 | AN68: 0 | AO68: 0 | AP68: 0 | AQ68: 0 | AR68: 0 | AS68: 0 | AT68: 0 | AU68: 0 | AV68: 0 | AW68: 0 | AX68: 0 | AY68: 0 | AZ68: 0 | BA68: 0 | BB68: 0 | BC68: 0 | BD68: 0 | BE68: 0 | BF68: 0 | BG68: 0 | BH68: 0 | BI68: 0 | BJ68: 0 | BK68: 0 | BL68: 0 | BM68: 0 | BN68: 0 | BO68: 0 | BP68: 0 | BQ68: 0 | BR68: 0 | BS68: 0 | BT68: 0 | BU68: 0 | BV68: 0 | BW68: 0 | BX68: 0 | BY68: 0 | BZ68: 0 | CA68: 0 | CB68: 145.94 | CE68: 8.06 | CG68: 6.84 | CH68: 3.69 | CI68: 5.26 | CJ68: 567 | CK68: 214.2 | CL68: 390.6 | CM68: 35.65 | CN68: 19 | CO68: 27.32 | CP68: 3.75 | CQ68: 0
A69: ="5/4" -> 5/4 | B69: Каша манная молочная с маслом сливочным | C69: 150 | D69: 4.0 | E69: 1.8 | F69: 3.5 | G69: 0.2 | H69: 22.2 | I69: 134 | J69: 2.5 | K69: 0.1 | L69: 0.0 | M69: 0.0 | N69: 6.4 | O69: 15.0 | P69: 0.8 | Q69: 0.0 | R69: 0.0 | S69: 0.1 | T69: 1.0 | U69: 176.4 | V69: 105.5 | W69: 69.5 | X69: 11.1 | Y69: 65.8 | Z69: 0.3 | AA69: 14.4 | AB69: 12.0 | AC69: 26.7 | AD69: 0.4 | AE69: 0.0 | AF69: 0.1 | AG69: 0.3 | AH69: 1.2 | AI69: 0.3 | AJ69: 0 | AK69: 111.73 | AL69: 102.68 | AM69: 184.88 | AN69: 58.8 | AO69: 35.45 | AP69: 72.39 | AQ69: 26.03 | AR69: 123.01 | AS69: 77.72 | AT69: 106.77 | AU69: 87.34 | AV69: 48.36 | AW69: 83.02 | AX69: 725.92 | AY69: 0 | AZ69: 235.98 | BA69: 121.09 | BB69: 62.1 | BC69: 49.91 | BD69: 0.07 | BE69: 0.03 | BF69: 0.02 | BG69: 0.04 | BH69: 0.05 | BI69: 0.21 | BJ69: 0 | BK69: 0.58 | BL69: 0 | BM69: 0.18 | BN69: 0 | BO69: 0 | BP69: 0 | BQ69: 0.04 | BR69: 0.06 | BS69: 0.48 | BT69: 0 | BU69: 0 | BV69: 0.03 | BW69: 0 | BX69: 0 | BY69: 0 | BZ69: 0 | CA69: 0 | CB69: 135.51 | CE69: 16.4 | CG69: 33.38 | CH69: 14.46 | CI69: 23.92 | CJ69: 1875.37 | CK69: 844.23 | CL69: 1359.8 | CM69: 43.77 | CN69: 22.87 | CO69: 33.32 | CP69: 3.75 | CQ69: 0.38
B70: Итого за 'Завтрак' | C70: =SUM(C66:C69) -> 335 | D70: =SUM(D66:D69) -> 7.5 | E70: 2.9 | F70: 9.5 | G70: 1.2 | H70: 39.0 | I70: 268 | J70: 5.6 | K70: 0.2 | L70: 0.0 | M70: 0.0 | N70: 12.9 | O70: 24.2 | P70: 1.8 | Q70: 0.0 | R70: 0.0 | S70: 0.2 | T70: 1.8 | U70: 324.4 | V70: 200.6 | W70: 121.1 | X70: 26.0 | Y70: 124.2 | Z70: 1.0 | AA70: 41.9 | AB70: 30.4 | AC70: 57.5 | AD70: 1.0 | AE70: 0.1 | AF70: 0.2 | AG70: 0.8 | AH70: 2.4 | AI70: 0.5 | AJ70: 0 | AK70: 225.43 | AL70: 220.53 | AM70: 365.98 | AN70: 120.75 | AO70: 71.4 | AP70: 144.94 | AQ70: 54.58 | AR70: 251.11 | AS70: 157.82 | AT70: 216.97 | AU70: 180.49 | AV70: 98.41 | AW70: 168.22 | AX70: 1430.52 | AY70: 0 | AZ70: 465.48 | BA70: 223.09 | BB70: 130.8 | BC70: 102.31 | BD70: 0.21 | BE70: 0.09 | BF70: 0.05 | BG70: 0.12 | BH70: 0.13 | BI70: 0.61 | BJ70: 0 | BK70: 1.79 | BL70: 0 | BM70: 0.57 | BN70: 0 | BO70: 0 | BP70: 0 | BQ70: 0.12 | BR70: 0.18 | BS70: 1.73 | BT70: 0 | BU70: 0 | BV70: 0.34 | BW70: 0.01 | BX70: 0 | BY70: 0 | BZ70: 0 | CA70: 0 | CB70: 292.94 | CD70: =$I$70/#REF!*100 ->  | CE70: 46.96 | CG70: 40.41 | CH70: 18.19 | CI70: 29.3 | CJ70: 3022.37 | CK70: 1282.13 | CL70: 2152.25 | CM70: 84.83 | CN70: 46.86 | CO70: 65.85 | CP70: 7.5 | CQ70: 0.38
B71: 10:00
A72: ="-" -> - | B72: Фрукты | C72: 100 | D72: 0.4 | E72: 0.0 | F72: 0.4 | G72: 0.4 | H72: 11.6 | I72: 50 | J72: 0.1 | K72: 0.0 | L72: 0.0 | M72: 0.0 | N72: 10.0 | O72: 0.8 | P72: 0.8 | Q72: 0.0 | R72: 0.0 | S72: 0.8 | T72: 0.5 | U72: 26.0 | V72: 278.0 | W72: 16.0 | X72: 9.0 | Y72: 11.0 | Z72: 2.2 | AA72: 0.0 | AB72: 30.0 | AC72: 5.0 | AD72: 0.2 | AE72: 0.0 | AF72: 0.0 | AG72: 0.3 | AH72: 0.4 | AI72: 10.0 | AJ72: 0 | AK72: 12 | AL72: 13 | AM72: 19 | AN72: 18 | AO72: 3 | AP72: 11 | AQ72: 3 | AR72: 9 | AS72: 17 | AT72: 10 | AU72: 78 | AV72: 7 | AW72: 14 | AX72: 42 | AY72: 0 | AZ72: 13 | BA72: 16 | BB72: 6 | BC72: 5 | BD72: 0 | BE72: 0 | BF72: 0 | BG72: 0 | BH72: 0 | BI72: 0 | BJ72: 0 | BK72: 0 | BL72: 0 | BM72: 0 | BN72: 0 | BO72: 0 | BP72: 0 | BQ72: 0 | BR72: 0 | BS72: 0 | BT72: 0 | BU72: 0 | BV72: 0 | BW72: 0 | BX72: 0 | BY72: 0 | BZ72: 0 | CA72: 0 | CB72: 86.3 | CE72: 5 | CG72: 2 | CH72: 2 | CI72: 2 | CJ72: 150 | CK72: 150 | CL72: 150 | CM72: 0 | CN72: 0 | CO72: 0 | CP72: 0 | CQ72: 0
B73: Итого за '10:00' | C73: =SUM(C72) -> 100 | D73: =SUM(D72) -> 0.4 | E73: 0.0 | F73: 0.4 | G73: 0.4 | H73: 11.6 | I73: 50 | J73: 0.1 | K73: 0.0 | L73: 0.0 | M73: 0.0 | N73: 10.0 | O73: 0.8 | P73: 0.8 | Q73: 0.0 | R73: 0.0 | S73: 0.8 | T73: 0.5 | U73: 26.0 | V73: 278.0 | W73: 16.0 | X73: 9.0 | Y73: 11.0 | Z73: 2.2 | AA73: 0.0 | AB73: 30.0 | AC73: 5.0 | AD73: 0.2 | AE73: 0.0 | AF73: 0.0 | AG73: 0.3 | AH73: 0.4 | AI73: 10.0 | AJ73: 0 | AK73: 12 | AL73: 13 | AM73: 19 | AN73: 18 | AO73: 3 | AP73: 11 | AQ73: 3 | AR73: 9 | AS73: 17 | AT73: 10 | AU73: 78 | AV73: 7 | AW73: 14 | AX73: 42 | AY73: 0 | AZ73: 13 | BA73: 16 | BB73: 6 | BC73: 5 | BD73: 0 | BE73: 0 | BF73: 0 | BG73: 0 | BH73: 0 | BI73: 0 | BJ73: 0 | BK73: 0 | BL73: 0 | BM73: 0 | BN73: 0 | BO73: 0 | BP73: 0 | BQ73: 0 | BR73: 0 | BS73: 0 | BT73: 0 | BU73: 0 | BV73: 0 | BW73: 0 | BX73: 0 | BY73: 0 | BZ73: 0 | CA73: 0 | CB73: 86.3 | CD73: =$I$73/#REF!*100 ->  | CE73: 5 | CG73: 2 | CH73: 2 | CI73: 2 | CJ73: 150 | CK73: 150 | CL73: 150 | CM73: 0 | CN73: 0 | CO73: 0 | CP73: 0 | CQ73: 0
B74: Обед
A75: ="-" -> - | B75: Хлеб пшеничный | C75: 20 | D75: 1.2 | E75: 0.0 | F75: 0.1 | G75: 0.1 | H75: 7.4 | I75: 36 | J75: 0.0 | K75: 0.0 | L75: 0.0 | M75: 0.0 | N75: 0.2 | O75: 7.1 | P75: 0.0 | Q75: 0.0 | R75: 0.0 | S75: 0.0 | T75: 0.4 | U75: 0.0 | V75: 0.0 | W75: 0.0 | X75: 0.0 | Y75: 0.0 | Z75: 0.0 | AA75: 0.0 | AB75: 0.0 | AC75: 0.0 | AD75: 0.0 | AE75: 0.0 | AF75: 0.0 | AG75: 0.0 | AH75: 0.0 | AI75: 0.0 | AJ75: 0 | AK75: 63.86 | AL75: 66.47 | AM75: 101.79 | AN75: 33.76 | AO75: 20.01 | AP75: 40.02 | AQ75: 15.14 | AR75: 72.38 | AS75: 44.89 | AT75: 62.64 | AU75: 51.68 | AV75: 27.14 | AW75: 48.02 | AX75: 401.59 | AY75: 0 | AZ75: 130.85 | BA75: 56.9 | BB75: 37.76 | BC75: 29.93 | BD75: 0 | BE75: 0 | BF75: 0 | BG75: 0 | BH75: 0 | BI75: 0 | BJ75: 0 | BK75: 0.02 | BL75: 0 | BM75: 0 | BN75: 0 | BO75: 0 | BP75: 0 | BQ75: 0 | BR75: 0 | BS75: 0.01 | BT75: 0 | BU75: 0 | BV75: 0.06 | BW75: 0 | BX75: 0 | BY75: 0 | BZ75: 0 | CA75: 0 | CB75: 7.82 | CE75: 0 | CG75: 0 | CH75: 0 | CI75: 0 | CJ75: 380 | CK75: 146.4 | CL75: 263.2 | CM75: 3.04 | CN75: 3.04 | CO75: 3.04 | CP75: 0 | CQ75: 0
A76: ="-" -> - | B76: Хлеб ржаной | C76: 20 | D76: 1.2 | E76: 0.0 | F76: 0.2 | G76: 0.2 | H76: 8.3 | I76: 38 | J76: 0.0 | K76: 0.0 | L76: 0.0 | M76: 0.0 | N76: 0.2 | O76: 6.4 | P76: 1.7 | Q76: 0.0 | R76: 0.0 | S76: 0.2 | T76: 0.5 | U76: 122.0 | V76: 49.0 | W76: 7.0 | X76: 9.4 | Y76: 31.6 | Z76: 0.8 | AA76: 0.0 | AB76: 1.0 | AC76: 0.2 | AD76: 0.3 | AE76: 0.0 | AF76: 0.0 | AG76: 0.1 | AH76: 0.4 | AI76: 0.0 | AJ76: 0 | AK76: 64.4 | AL76: 49.6 | AM76: 85.4 | AN76: 44.6 | AO76: 18.6 | AP76: 39.6 | AQ76: 16 | AR76: 74.2 | AS76: 59.4 | AT76: 58.2 | AU76: 92.8 | AV76: 24.8 | AW76: 62 | AX76: 311.8 | AY76: 0 | AZ76: 105.2 | BA76: 58.2 | BB76: 36 | BC76: 26 | BD76: 0 | BE76: 0 | BF76: 0 | BG76: 0 | BH76: 0 | BI76: 0 | BJ76: 0 | BK76: 0.03 | BL76: 0 | BM76: 0 | BN76: 0 | BO76: 0 | BP76: 0 | BQ76: 0 | BR76: 0 | BS76: 0.02 | BT76: 0 | BU76: 0 | BV76: 0.1 | BW76: 0.02 | BX76: 0 | BY76: 0 | BZ76: 0 | CA76: 0 | CB76: 9.4 | CE76: 0.17 | CG76: 4 | CH76: 4 | CI76: 4 | CJ76: 760 | CK76: 292.8 | CL76: 526.4 | CM76: 7.6 | CN76: 6.32 | CO76: 6.96 | CP76: 0 | CQ76: 0
A77: ="6/10" -> 6/10 | B77: Компот из сухофруктов | C77: 150 | D77: 0.8 | E77: 0.0 | F77: 0.0 | G77: 0.0 | H77: 17.4 | I77: 66 | J77: 0.0 | K77: 0.0 | L77: 0.0 | M77: 0.0 | N77: 14.4 | O77: 0.4 | P77: 2.6 | Q77: 0.0 | R77: 0.0 | S77: 0.2 | T77: 0.6 | U77: 2.6 | V77: 255.2 | W77: 23.5 | X77: 15.0 | Y77: 20.4 | Z77: 0.5 | AA77: 0.0 | AB77: 472.5 | AC77: 87.5 | AD77: 0.8 | AE77: 0.0 | AF77: 0.0 | AG77: 0.4 | AH77: 0.6 | AI77: 0.4 | AJ77: 0 | AK77: 0.01 | AL77: 0.01 | AM77: 0.01 | AN77: 0.01 | AO77: 0 | AP77: 0.01 | AQ77: 0 | AR77: 0.01 | AS77: 0.01 | AT77: 0.01 | AU77: 0.04 | AV77: 0 | AW77: 0.01 | AX77: 0.02 | AY77: 0 | AZ77: 0.01 | BA77: 0.01 | BB77: 0 | BC77: 0 | BD77: 0 | BE77: 0 | BF77: 0 | BG77: 0 | BH77: 0 | BI77: 0 | BJ77: 0 | BK77: 0 | BL77: 0 | BM77: 0 | BN77: 0 | BO77: 0 | BP77: 0 | BQ77: 0 | BR77: 0 | BS77: 0.01 | BT77: 0 | BU77: 0 | BV77: 0 | BW77: 0 | BX77: 0 | BY77: 0 | BZ77: 0 | CA77: 0 | CB77: 160.51 | CE77: 78.75 | CG77: 3.95 | CH77: 3.95 | CI77: 3.95 | CJ77: 454.5 | CK77: 172.98 | CL77: 313.74 | CM77: 41.94 | CN77: 24.93 | CO77: 33.44 | CP77: 7.5 | CQ77: 0
A78: ="16/2" -> 16/2 | B78: Суп картофельный с бобовыми на говяжьем бульоне | C78: 150 | D78: 2.7 | E78: 4.8 | F78: 5.7 | G78: 1.8 | H78: 13.8 | I78: 114 | J78: 1.4 | K78: 1.0 | L78: 0.0 | M78: 0.0 | N78: 2.4 | O78: 9.4 | P78: 2.0 | Q78: 0.0 | R78: 0.0 | S78: 0.1 | T78: 1.7 | U78: 351.8 | V78: 294.8 | W78: 22.9 | X78: 21.9 | Y78: 59.9 | Z78: 1.2 | AA78: 0.0 | AB78: 654.5 | AC78: 121.1 | AD78: 0.8 | AE78: 0.1 | AF78: 0.1 | AG78: 0.6 | AH78: 1.4 | AI78: 2.8 | AJ78: 0 | AK78: 128.66 | AL78: 142 | AM78: 211.33 | AN78: 202.16 | AO78: 27.58 | AP78: 112.43 | AQ78: 36.93 | AR78: 132.65 | AS78: 126.89 | AT78: 239.5 | AU78: 290.42 | AV78: 59.05 | AW78: 125.48 | AX78: 451.65 | AY78: 0 | AZ78: 88.2 | BA78: 108.31 | BB78: 91.02 | BC78: 33.93 | BD78: 0 | BE78: 0 | BF78: 0 | BG78: 0 | BH78: 0 | BI78: 0 | BJ78: 0 | BK78: 0.14 | BL78: 0 | BM78: 0.07 | BN78: 0.01 | BO78: 0.01 | BP78: 0 | BQ78: 0 | BR78: 0 | BS78: 0.44 | BT78: 0 | BU78: 0 | BV78: 1 | BW78: 0.01 | BX78: 0 | BY78: 0 | BZ78: 0 | CA78: 0 | CB78: 137.7 | CE78: 109.08 | CG78: 48.76 | CH78: 27.16 | CI78: 37.96 | CJ78: 500.4 | CK78: 262.36 | CL78: 381.38 | CM78: 36.16 | CN78: 19.04 | CO78: 27.6 | CP78: 0 | CQ78: 0.9
A79: ="292/17" -> 292/17 | B79: Жаркое из мясо бройлер-цыплят с овощами | C79: 150 | D79: 14.4 | E79: 12.7 | F79: 18.9 | G79: 6.1 | H79: 12.9 | I79: 277 | J79: 3.9 | K79: 3.9 | L79: 0.0 | M79: 0.0 | N79: 4.1 | O79: 7.2 | P79: 1.6 | Q79: 0.0 | R79: 0.0 | S79: 0.3 | T79: 2.1 | U79: 249.3 | V79: 528.9 | W79: 28.6 | X79: 35.6 | Y79: 158.3 | Z79: 1.9 | AA79: 49.7 | AB79: 2580.4 | AC79: 527.6 | AD79: 3.2 | AE79: 0.1 | AF79: 0.2 | AG79: 5.5 | AH79: 10.2 | AI79: 6.4 | AJ79: 0 | AK79: 632.16 | AL79: 509.68 | AM79: 1016.89 | AN79: 1138.03 | AO79: 334.65 | AP79: 621.73 | AQ79: 215.47 | AR79: 544.76 | AS79: 842.2 | AT79: 940.02 | AU79: 1199.59 | AV79: 348.2 | AW79: 982.66 | AX79: 1956.65 | AY79: 105.07 | AZ79: 631.68 | BA79: 618.36 | BB79: 464.77 | BC79: 164.94 | BD79: 0 | BE79: 0 | BF79: 0 | BG79: 0 | BH79: 0 | BI79: 0 | BJ79: 0 | BK79: 0.4 | BL79: 0 | BM79: 0.25 | BN79: 0.02 | BO79: 0.04 | BP79: 0 | BQ79: 0 | BR79: 0 | BS79: 1.47 | BT79: 0 | BU79: 0 | BV79: 3.52 | BW79: 0 | BX79: 0 | BY79: 0 | BZ79: 0 | CA79: 0 | CB79: 118.67 | CE79: 479.77 | CG79: 9.72 | CH79: 5.32 | CI79: 7.52 | CJ79: 929.36 | CK79: 574.46 | CL79: 751.91 | CM79: 8.57 | CN79: 4.48 | CO79: 6.53 | CP79: 0 | CQ79: 0.5
B80: Итого за 'Обед' | C80: 490 | D80: 20.2 | E80: 17.4 | F80: 25.0 | G80: 8.4 | H80: 73.4 | I80: 531 | J80: 5.4 | K80: 4.9 | L80: 0.0 | M80: 0.0 | N80: 21.3 | O80: 30.6 | P80: 7.9 | Q80: 0.0 | R80: 0.0 | S80: 0.8 | T80: 5.3 | U80: 725.7 | V80: 1127.9 | W80: 81.9 | X80: 81.9 | Y80: 270.2 | Z80: 4.4 | AA80: 49.7 | AB80: 3708.4 | AC80: 736.4 | AD80: 5.1 | AE80: 0.3 | AF80: 0.3 | AG80: 6.6 | AH80: 12.6 | AI80: 9.5 | AJ80: 0 | AK80: 889.08 | AL80: 767.76 | AM80: 1415.42 | AN80: 1418.56 | AO80: 400.84 | AP80: 813.78 | AQ80: 283.54 | AR80: 824 | AS80: 1073.39 | AT80: 1300.37 | AU80: 1634.53 | AV80: 459.19 | AW80: 1218.17 | AX80: 3121.72 | AY80: 105.07 | AZ80: 955.94 | BA80: 841.79 | BB80: 629.56 | BC80: 254.79 | BD80: 0 | BE80: 0 | BF80: 0 | BG80: 0 | BH80: 0 | BI80: 0 | BJ80: 0 | BK80: 0.58 | BL80: 0 | BM80: 0.32 | BN80: 0.03 | BO80: 0.05 | BP80: 0 | BQ80: 0 | BR80: 0.01 | BS80: 1.96 | BT80: 0 | BU80: 0 | BV80: 4.67 | BW80: 0.03 | BX80: 0 | BY80: 0 | BZ80: 0 | CA80: 0 | CB80: 434.1 | CE80: 667.76 | CG80: 66.43 | CH80: 40.43 | CI80: 53.43 | CJ80: 3024.25 | CK80: 1449 | CL80: 2236.63 | CM80: 97.31 | CN80: 57.81 | CO80: 77.56 | CP80: 7.5 | CQ80: 1.4
B81: Ужин
A82: ="-" -> - | B82: Хлеб ржаной | C82: 20 | D82: 1.2 | E82: 0.0 | F82: 0.2 | G82: 0.2 | H82: 8.3 | I82: 38 | J82: 0.0 | K82: 0.0 | L82: 0.0 | M82: 0.0 | N82: 0.2 | O82: 6.4 | P82: 1.7 | Q82: 0.0 | R82: 0.0 | S82: 0.2 | T82: 0.5 | U82: 122.0 | V82: 49.0 | W82: 7.0 | X82: 9.4 | Y82: 31.6 | Z82: 0.8 | AA82: 0.0 | AB82: 1.0 | AC82: 0.2 | AD82: 0.3 | AE82: 0.0 | AF82: 0.0 | AG82: 0.1 | AH82: 0.4 | AI82: 0.0 | AJ82: 0 | AK82: 64.4 | AL82: 49.6 | AM82: 85.4 | AN82: 44.6 | AO82: 18.6 | AP82: 39.6 | AQ82: 16 | AR82: 74.2 | AS82: 59.4 | AT82: 58.2 | AU82: 92.8 | AV82: 24.8 | AW82: 62 | AX82: 311.8 | AY82: 0 | AZ82: 105.2 | BA82: 58.2 | BB82: 36 | BC82: 26 | BD82: 0 | BE82: 0 | BF82: 0 | BG82: 0 | BH82: 0 | BI82: 0 | BJ82: 0 | BK82: 0.03 | BL82: 0 | BM82: 0 | BN82: 0 | BO82: 0 | BP82: 0 | BQ82: 0 | BR82: 0 | BS82: 0.02 | BT82: 0 | BU82: 0 | BV82: 0.1 | BW82: 0.02 | BX82: 0 | BY82: 0 | BZ82: 0 | CA82: 0 | CB82: 9.4 | CE82: 0.17 | CG82: 2 | CH82: 2 | CI82: 2 | CJ82: 380 | CK82: 146.4 | CL82: 263.2 | CM82: 3.8 | CN82: 3.16 | CO82: 3.48 | CP82: 0 | CQ82: 0
A83: ="27/10" -> 27/10 | B83: Чай полусладкий | C83: 150 | D83: 0.2 | E83: 0.0 | F83: 0.0 | G83: 0.0 | H83: 3.8 | I83: 15 | J83: 0.0 | K83: 0.0 | L83: 0.0 | M83: 0.0 | N83: 3.7 | O83: 0.0 | P83: 0.1 | Q83: 0.0 | R83: 0.0 | S83: 0.0 | T83: 0.1 | U83: 0.0 | V83: 0.1 | W83: 0.1 | X83: 0.0 | Y83: 0.0 | Z83: 0.0 | AA83: 0.0 | AB83: 0.0 | AC83: 0.0 | AD83: 0.0 | AE83: 0.0 | AF83: 0.0 | AG83: 0.0 | AH83: 0.0 | AI83: 0.0 | AJ83: 0 | AK83: 0 | AL83: 0 | AM83: 0 | AN83: 0 | AO83: 0 | AP83: 0 | AQ83: 0 | AR83: 0 | AS83: 0 | AT83: 0 | AU83: 0 | AV83: 0 | AW83: 0 | AX83: 0 | AY83: 0 | AZ83: 0 | BA83: 0 | BB83: 0 | BC83: 0 | BD83: 0 | BE83: 0 | BF83: 0 | BG83: 0 | BH83: 0 | BI83: 0 | BJ83: 0 | BK83: 0 | BL83: 0 | BM83: 0 | BN83: 0 | BO83: 0 | BP83: 0 | BQ83: 0 | BR83: 0 | BS83: 0 | BT83: 0 | BU83: 0 | BV83: 0 | BW83: 0 | BX83: 0 | BY83: 0 | BZ83: 0 | CA83: 0 | CB83: 150.07 | CE83: 0 | CG83: 3.69 | CH83: 3.69 | CI83: 3.69 | CJ83: 398.25 | CK83: 156.6 | CL83: 277.43 | CM83: 39.61 | CN83: 23.41 | CO83: 31.51 | CP83: 3.75 | CQ83: 0
A84: ="8/5" -> 8/5 | B84: Запеканка (сырники) из творога | C84: 110 | D84: 18.6 | E84: 17.8 | F84: 10.6 | G84: 1.1 | H84: 14.8 | I84: 230 | J84: 5.7 | K84: 0.7 | L84: 0.0 | M84: 0.0 | N84: 9.9 | O84: 4.7 | P84: 0.2 | Q84: 0.0 | R84: 0.0 | S84: 1.2 | T84: 1.1 | U84: 43.7 | V84: 118.4 | W84: 154.8 | X84: 22.8 | Y84: 202.8 | Z84: 0.6 | AA84: 60.6 | AB84: 30.5 | AC84: 69.5 | AD84: 0.8 | AE84: 0.0 | AF84: 0.3 | AG84: 0.5 | AH84: 4.3 | AI84: 0.3 | AJ84: 0 | AK84: 892.84 | AL84: 735.23 | AM84: 1367.35 | AN84: 1059.1 | AO84: 408.19 | AP84: 688.8 | AQ84: 224.58 | AR84: 813.3 | AS84: 76.87 | AT84: 87.46 | AU84: 116.98 | AV84: 473.23 | AW84: 62.79 | AX84: 360.65 | AY84: 0.59 | AZ84: 105.15 | BA84: 93.22 | BB84: 894.07 | BC84: 98.75 | BD84: 0 | BE84: 0 | BF84: 0 | BG84: 0 | BH84: 0 | BI84: 0 | BJ84: 0 | BK84: 0.07 | BL84: 0 | BM84: 0.04 | BN84: 0 | BO84: 0.01 | BP84: 0 | BQ84: 0 | BR84: 0 | BS84: 0.25 | BT84: 0 | BU84: 0 | BV84: 0.62 | BW84: 0 | BX84: 0 | BY84: 0 | BZ84: 0 | CA84: 0 | CB84: 81.19 | CE84: 65.69 | CG84: 10.63 | CH84: 9.56 | CI84: 10.1 | CJ84: 1004.09 | CK84: 721.58 | CL84: 862.84 | CM84: 22.06 | CN84: 16.19 | CO84: 19.12 | CP84: 4.4 | CQ84: 0
B85: Итого за 'Ужин' | C85: =SUM(C82:C84) -> 280 | D85: =SUM(D82:D84) -> 19.9 | E85: 17.8 | F85: 10.8 | G85: 1.4 | H85: 26.9 | I85: 284 | J85: 5.8 | K85: 0.7 | L85: 0.0 | M85: 0.0 | N85: 13.8 | O85: 11.1 | P85: 2.0 | Q85: 0.0 | R85: 0.0 | S85: 1.4 | T85: 1.7 | U85: 165.7 | V85: 167.5 | W85: 161.9 | X85: 32.2 | Y85: 234.4 | Z85: 1.3 | AA85: 60.6 | AB85: 31.5 | AC85: 69.7 | AD85: 1.1 | AE85: 0.1 | AF85: 0.3 | AG85: 0.6 | AH85: 4.7 | AI85: 0.3 | AJ85: 0 | AK85: 957.24 | AL85: 784.83 | AM85: 1452.75 | AN85: 1103.7 | AO85: 426.79 | AP85: 728.4 | AQ85: 240.58 | AR85: 887.5 | AS85: 136.27 | AT85: 145.66 | AU85: 209.78 | AV85: 498.03 | AW85: 124.79 | AX85: 672.45 | AY85: 0.59 | AZ85: 210.35 | BA85: 151.42 | BB85: 930.07 | BC85: 124.75 | BD85: 0 | BE85: 0 | BF85: 0 | BG85: 0 | BH85: 0 | BI85: 0 | BJ85: 0 | BK85: 0.09 | BL85: 0 | BM85: 0.04 | BN85: 0.01 | BO85: 0.01 | BP85: 0 | BQ85: 0 | BR85: 0 | BS85: 0.27 | BT85: 0 | BU85: 0 | BV85: 0.71 | BW85: 0.02 | BX85: 0 | BY85: 0 | BZ85: 0 | CA85: 0 | CB85: 240.66 | CD85: =$I$85/#REF!*100 ->  | CE85: 65.86 | CG85: 16.32 | CH85: 15.25 | CI85: 15.78 | CJ85: 1782.34 | CK85: 1024.58 | CL85: 1403.46 | CM85: 65.47 | CN85: 42.75 | CO85: 54.11 | CP85: 8.15 | CQ85: 0
B86: Итого за день | C86: =C70+C73+C80+C85 -> 1205 | D86: 48.0 | E86: 38.2 | F86: 45.8 | G86: 11.3 | H86: 150.9 | I86: 1133 | J86: 16.9 | K86: 5.8 | L86: 0.0 | M86: 0.0 | N86: 58.1 | O86: 66.7 | P86: 12.5 | Q86: 0.0 | R86: 0.0 | S86: 3.3 | T86: 9.2 | U86: 1241.9 | V86: 1774.0 | W86: 380.9 | X86: 149.0 | Y86: 639.7 | Z86: 8.9 | AA86: 152.2 | AB86: 3800.2 | AC86: 868.5 | AD86: 7.4 | AE86: 0.5 | AF86: 0.7 | AG86: 8.3 | AH86: 20.2 | AI86: 20.3 | AJ86: 0 | AK86: 2083.75 | AL86: 1786.12 | AM86: 3253.15 | AN86: 2661.01 | AO86: 902.03 | AP86: 1698.11 | AQ86: 581.7 | AR86: 1971.61 | AS86: 1384.48 | AT86: 1672.99 | AU86: 2102.79 | AV86: 1062.63 | AW86: 1525.18 | AX86: 5266.69 | AY86: 105.65 | AZ86: 1644.77 | BA86: 1232.3 | BB86: 1696.42 | BC86: 486.86 | BD86: 0.21 | BE86: 0.09 | BF86: 0.05 | BG86: 0.12 | BH86: 0.13 | BI86: 0.61 | BJ86: 0 | BK86: 2.46 | BL86: 0 | BM86: 0.93 | BN86: 0.04 | BO86: 0.06 | BP86: 0 | BQ86: 0.12 | BR86: 0.19 | BS86: 3.96 | BT86: 0 | BU86: 0 | BV86: 5.72 | BW86: 0.06 | BX86: 0 | BY86: 0 | BZ86: 0 | CA86: 0 | CB86: 1054 | CE86: 785.58 | CG86: 125.16 | CH86: 75.87 | CI86: 100.51 | CJ86: 7978.96 | CK86: 3905.7 | CL86: 5942.33 | CM86: 247.62 | CN86: 147.42 | CO86: 197.52 | CP86: 23.15 | CQ86: 1.78
B88: 4 ДЕНЬ
B89: Завтрак
A90: ="-" -> - | B90: Хлеб пшеничный | C90: 25 | D90: 1.5 | E90: 0.0 | F90: 0.2 | G90: 0.2 | H90: 9.2 | I90: 45 | J90: 0.0 | K90: 0.0 | L90: 0.0 | M90: 0.0 | N90: 0.3 | O90: 8.9 | P90: 0.1 | Q90: 0.0 | R90: 0.0 | S90: 0.0 | T90: 0.5 | U90: 0.0 | V90: 0.0 | W90: 0.0 | X90: 0.0 | Y90: 0.0 | Z90: 0.0 | AA90: 0.0 | AB90: 0.0 | AC90: 0.0 | AD90: 0.0 | AE90: 0.0 | AF90: 0.0 | AG90: 0.0 | AH90: 0.0 | AI90: 0.0 | AJ90: 0 | AK90: 79.82 | AL90: 83.09 | AM90: 127.24 | AN90: 42.2 | AO90: 25.01 | AP90: 50.03 | AQ90: 18.92 | AR90: 90.48 | AS90: 56.12 | AT90: 78.3 | AU90: 64.6 | AV90: 33.93 | AW90: 60.03 | AX90: 501.99 | AY90: 0 | AZ90: 163.56 | BA90: 71.12 | BB90: 47.2 | BC90: 37.41 | BD90: 0 | BE90: 0 | BF90: 0 | BG90: 0 | BH90: 0 | BI90: 0 | BJ90: 0 | BK90: 0.02 | BL90: 0 | BM90: 0 | BN90: 0 | BO90: 0 | BP90: 0 | BQ90: 0 | BR90: 0 | BS90: 0.02 | BT90: 0 | BU90: 0 | BV90: 0.07 | BW90: 0 | BX90: 0 | BY90: 0 | BZ90: 0 | CA90: 0 | CB90: 9.78 | CE90: 0 | CG90: 0 | CH90: 0 | CI90: 0 | CJ90: 570 | CK90: 219.6 | CL90: 394.8 | CM90: 4.56 | CN90: 4.56 | CO90: 4.56 | CP90: 0 | CQ90: 0
A91: ="4/13" -> 4/13 | B91: Сыр (порциями) | C91: 10 | D91: 1.5 | E91: 2.6 | F91: 2.7 | G91: 0.0 | H91: 0.0 | I91: 31 | J91: 1.5 | K91: 0.0 | L91: 0.0 | M91: 0.0 | N91: 0.0 | O91: 0.0 | P91: 0.0 | Q91: 0.0 | R91: 0.0 | S91: 0.2 | T91: 0.4 | U91: 110.0 | V91: 10.0 | W91: 100.0 | X91: 5.5 | Y91: 60.0 | Z91: 0.1 | AA91: 21.0 | AB91: 17.0 | AC91: 23.8 | AD91: 0.0 | AE91: 0.0 | AF91: 0.0 | AG91: 0.0 | AH91: 0.7 | AI91: 0.1 | AJ91: 0 | AK91: 157 | AL91: 117 | AM91: 230 | AN91: 158 | AO91: 56 | AP91: 95 | AQ91: 70 | AR91: 134 | AS91: 76 | AT91: 87 | AU91: 156 | AV91: 70 | AW91: 51 | AX91: 517 | AY91: 0 | AZ91: 273 | BA91: 129 | BB91: 139 | BC91: 21.5 | BD91: 0 | BE91: 0.01 | BF91: 0.04 | BG91: 0.11 | BH91: 0.13 | BI91: 0.33 | BJ91: 0.04 | BK91: 0.7 | BL91: 0.01 | BM91: 0.16 | BN91: 0.01 | BO91: 0 | BP91: 0 | BQ91: 0.05 | BR91: 0.07 | BS91: 0.52 | BT91: 0 | BU91: 0 | BV91: 0.07 | BW91: 0 | BX91: 0 | BY91: 0 | BZ91: 0 | CA91: 0 | CB91: 4.08 | CE91: 23.83 | CG91: 0 | CH91: 0 | CI91: 0 | CJ91: 500 | CK91: 370 | CL91: 435 | CM91: 1.53 | CN91: 0.97 | CO91: 1.25 | CP91: 0 | CQ91: 0
A92: ="32/10" -> 32/10 | B92: Кофейный напиток с молоком | C92: 150 | D92: 3.0 | E92: 2.1 | F92: 2.6 | G92: 0.1 | H92: 10.8 | I92: 76 | J92: 1.3 | K92: 0.0 | L92: 0.0 | M92: 0.0 | N92: 10.8 | O92: 0.0 | P92: 0.0 | Q92: 0.0 | R92: 0.0 | S92: 0.1 | T92: 0.5 | U92: 37.2 | V92: 108.6 | W92: 87.5 | X92: 10.0 | Y92: 62.8 | Z92: 0.1 | AA92: 15.0 | AB92: 6.8 | AC92: 16.5 | AD92: 0.0 | AE92: 0.0 | AF92: 0.1 | AG92: 0.1 | AH92: 0.6 | AI92: 0.4 | AJ92: 0 | AK92: 0 | AL92: 0 | AM92: 0 | AN92: 0 | AO92: 0 | AP92: 0 | AQ92: 0 | AR92: 0 | AS92: 0 | AT92: 0 | AU92: 0 | AV92: 0 | AW92: 0 | AX92: 0 | AY92: 0 | AZ92: 0 | BA92: 0 | BB92: 0 | BC92: 0 | BD92: 0 | BE92: 0 | BF92: 0 | BG92: 0 | BH92: 0 | BI92: 0 | BJ92: 0 | BK92: 0 | BL92: 0 | BM92: 0 | BN92: 0 | BO92: 0 | BP92: 0 | BQ92: 0 | BR92: 0 | BS92: 0 | BT92: 0 | BU92: 0 | BV92: 0 | BW92: 0 | BX92: 0 | BY92: 0 | BZ92: 0 | CA92: 0 | CB92: 149.52 | CE92: 16.13 | CG92: 10.25 | CH92: 3.95 | CI92: 7.1 | CJ92: 792 | CK92: 288.18 | CL92: 540.09 | CM92: 34.02 | CN92: 16.11 | CO92: 25.07 | CP92: 7.5 | CQ92: 0
A93: ="16/4" -> 16/4 | B93: Каша пшеничная молочная с маслом сливочным | C93: 150 | D93: 4.9 | E93: 1.8 | F93: 4.1 | G93: 1.0 | H93: 24.5 | I93: 153 | J93: 2.5 | K93: 0.1 | L93: 0.0 | M93: 0.0 | N93: 5.8 | O93: 17.6 | P93: 1.0 | Q93: 0.0 | R93: 0.0 | S93: 0.1 | T93: 1.2 | U93: 178.6 | V93: 133.7 | W93: 72.4 | X93: 29.0 | Y93: 108.8 | Z93: 0.8 | AA93: 14.4 | AB93: 16.8 | AC93: 27.6 | AD93: 0.1 | AE93: 0.1 | AF93: 0.1 | AG93: 0.4 | AH93: 1.9 | AI93: 0.3 | AJ93: 0 | AK93: 133.72 | AL93: 122.42 | AM93: 434.73 | AN93: 82.49 | AO93: 83.95 | AP93: 114.13 | AQ93: 51.97 | AR93: 164.74 | AS93: 304.17 | AT93: 120.58 | AU93: 184.91 | AV93: 74.31 | AW93: 85.28 | AX93: 630.04 | AY93: 0 | AZ93: 229.77 | BA93: 198.92 | BB93: 116.8 | BC93: 51.04 | BD93: 0.07 | BE93: 0.03 | BF93: 0.02 | BG93: 0.04 | BH93: 0.05 | BI93: 0.21 | BJ93: 0 | BK93: 0.65 | BL93: 0 | BM93: 0.19 | BN93: 0.01 | BO93: 0 | BP93: 0 | BQ93: 0.04 | BR93: 0.06 | BS93: 0.61 | BT93: 0 | BU93: 0 | BV93: 0.58 | BW93: 0.01 | BX93: 0 | BY93: 0 | BZ93: 0 | CA93: 0 | CB93: 124.35 | CE93: 17.2 | CG93: 31 | CH93: 15.28 | CI93: 23.14 | CJ93: 2123.67 | CK93: 973.11 | CL93: 1548.39 | CM93: 36.56 | CN93: 18.86 | CO93: 27.71 | CP93: 3 | CQ93: 0.38
B94: Итого за 'Завтрак' | C94: =SUM(C90:C93) -> 335 | D94: =SUM(D90:D93) -> 10.9 | E94: 6.5 | F94: 9.5 | G94: 1.3 | H94: 44.5 | I94: 305 | J94: 5.3 | K94: 0.1 | L94: 0.0 | M94: 0.0 | N94: 16.9 | O94: 26.5 | P94: 1.0 | Q94: 0.0 | R94: 0.0 | S94: 0.3 | T94: 2.6 | U94: 325.8 | V94: 252.3 | W94: 259.9 | X94: 44.5 | Y94: 231.6 | Z94: 0.9 | AA94: 50.4 | AB94: 40.6 | AC94: 67.9 | AD94: 0.2 | AE94: 0.1 | AF94: 0.2 | AG94: 0.5 | AH94: 3.2 | AI94: 0.8 | AJ94: 0 | AK94: 370.55 | AL94: 322.5 | AM94: 791.97 | AN94: 282.68 | AO94: 164.96 | AP94: 259.15 | AQ94: 140.9 | AR94: 389.22 | AS94: 436.28 | AT94: 285.88 | AU94: 405.5 | AV94: 178.24 | AW94: 196.31 | AX94: 1649.03 | AY94: 0 | AZ94: 666.33 | BA94: 399.05 | BB94: 303 | BC94: 109.95 | BD94: 0.07 | BE94: 0.04 | BF94: 0.06 | BG94: 0.15 | BH94: 0.17 | BI94: 0.55 | BJ94: 0.04 | BK94: 1.36 | BL94: 0.01 | BM94: 0.35 | BN94: 0.02 | BO94: 0 | BP94: 0 | BQ94: 0.09 | BR94: 0.13 | BS94: 1.15 | BT94: 0 | BU94: 0 | BV94: 0.71 | BW94: 0.01 | BX94: 0 | BY94: 0 | BZ94: 0 | CA94: 0 | CB94: 287.73 | CD94: =$I$94/#REF!*100 ->  | CE94: 57.16 | CG94: 41.25 | CH94: 19.23 | CI94: 30.24 | CJ94: 3985.67 | CK94: 1850.89 | CL94: 2918.28 | CM94: 76.67 | CN94: 40.5 | CO94: 58.58 | CP94: 10.5 | CQ94: 0.38
B95: 10:00
A96: ="-" -> - | B96: Йогурт | C96: 100 | D96: 4.8 | E96: 4.1 | F96: 2.5 | G96: 0.0 | H96: 11.0 | I96: 87 | J96: 0.9 | K96: 0.0 | L96: 0.0 | M96: 0.0 | N96: 11.0 | O96: 0.0 | P96: 0.0 | Q96: 0.0 | R96: 0.0 | S96: 1.1 | T96: 0.9 | U96: 50.0 | V96: 152.0 | W96: 124.0 | X96: 15.0 | Y96: 95.0 | Z96: 0.1 | AA96: 10.0 | AB96: 0.0 | AC96: 10.0 | AD96: 0.0 | AE96: 0.0 | AF96: 0.2 | AG96: 0.2 | AH96: 1.2 | AI96: 0.6 | AJ96: 0 | AK96: 323 | AL96: 300 | AM96: 450 | AN96: 387 | AO96: 115 | AP96: 216 | AQ96: 72 | AR96: 225 | AS96: 160 | AT96: 174 | AU96: 344 | AV96: 156 | AW96: 93 | AX96: 897 | AY96: 0 | AZ96: 518 | BA96: 278 | BB96: 242 | BC96: 50 | BD96: 0.1 | BE96: 0.07 | BF96: 0.04 | BG96: 0.08 | BH96: 0.09 | BI96: 0.45 | BJ96: 0.03 | BK96: 0.56 | BL96: 0.02 | BM96: 0.31 | BN96: 0.04 | BO96: 0 | BP96: 0 | BQ96: 0.04 | BR96: 0.08 | BS96: 0.69 | BT96: 0.01 | BU96: 0 | BV96: 0.02 | BW96: 0.03 | BX96: 0.08 | BY96: 0 | BZ96: 0 | CA96: 0 | CB96: 86.5 | CE96: 10 | CG96: 9 | CH96: 9 | CI96: 9 | CJ96: 0 | CK96: 0 | CL96: 0 | CM96: 2 | CN96: 2 | CO96: 2 | CP96: 0 | CQ96: 0
B97: Итого за '10:00' | C97: =SUM(C96) -> 100 | D97: =SUM(D96) -> 4.8 | E97: 4.1 | F97: 2.5 | G97: 0.0 | H97: 11.0 | I97: 87 | J97: 0.9 | K97: 0.0 | L97: 0.0 | M97: 0.0 | N97: 11.0 | O97: 0.0 | P97: 0.0 | Q97: 0.0 | R97: 0.0 | S97: 1.1 | T97: 0.9 | U97: 50.0 | V97: 152.0 | W97: 124.0 | X97: 15.0 | Y97: 95.0 | Z97: 0.1 | AA97: 10.0 | AB97: 0.0 | AC97: 10.0 | AD97: 0.0 | AE97: 0.0 | AF97: 0.2 | AG97: 0.2 | AH97: 1.2 | AI97: 0.6 | AJ97: 0 | AK97: 323 | AL97: 300 | AM97: 450 | AN97: 387 | AO97: 115 | AP97: 216 | AQ97: 72 | AR97: 225 | AS97: 160 | AT97: 174 | AU97: 344 | AV97: 156 | AW97: 93 | AX97: 897 | AY97: 0 | AZ97: 518 | BA97: 278 | BB97: 242 | BC97: 50 | BD97: 0.1 | BE97: 0.07 | BF97: 0.04 | BG97: 0.08 | BH97: 0.09 | BI97: 0.45 | BJ97: 0.03 | BK97: 0.56 | BL97: 0.02 | BM97: 0.31 | BN97: 0.04 | BO97: 0 | BP97: 0 | BQ97: 0.04 | BR97: 0.08 | BS97: 0.69 | BT97: 0.01 | BU97: 0 | BV97: 0.02 | BW97: 0.03 | BX97: 0.08 | BY97: 0 | BZ97: 0 | CA97: 0 | CB97: 86.5 | CD97: =$I$97/#REF!*100 ->  | CE97: 10 | CG97: 9 | CH97: 9 | CI97: 9 | CJ97: 0 | CK97: 0 | CL97: 0 | CM97: 2 | CN97: 2 | CO97: 2 | CP97: 0 | CQ97: 0
B98: Обед
A99: ="-" -> - | B99: Хлеб пшеничный | C99: 20 | D99: 1.2 | E99: 0.0 | F99: 0.1 | G99: 0.1 | H99: 7.4 | I99: 36 | J99: 0.0 | K99: 0.0 | L99: 0.0 | M99: 0.0 | N99: 0.2 | O99: 7.1 | P99: 0.0 | Q99: 0.0 | R99: 0.0 | S99: 0.0 | T99: 0.4 | U99: 0.0 | V99: 0.0 | W99: 0.0 | X99: 0.0 | Y99: 0.0 | Z99: 0.0 | AA99: 0.0 | AB99: 0.0 | AC99: 0.0 | AD99: 0.0 | AE99: 0.0 | AF99: 0.0 | AG99: 0.0 | AH99: 0.0 | AI99: 0.0 | AJ99: 0 | AK99: 63.86 | AL99: 66.47 | AM99: 101.79 | AN99: 33.76 | AO99: 20.01 | AP99: 40.02 | AQ99: 15.14 | AR99: 72.38 | AS99: 44.89 | AT99: 62.64 | AU99: 51.68 | AV99: 27.14 | AW99: 48.02 | AX99: 401.59 | AY99: 0 | AZ99: 130.85 | BA99: 56.9 | BB99: 37.76 | BC99: 29.93 | BD99: 0 | BE99: 0 | BF99: 0 | BG99: 0 | BH99: 0 | BI99: 0 | BJ99: 0 | BK99: 0.02 | BL99: 0 | BM99: 0 | BN99: 0 | BO99: 0 | BP99: 0 | BQ99: 0 | BR99: 0 | BS99: 0.01 | BT99: 0 | BU99: 0 | BV99: 0.06 | BW99: 0 | BX99: 0 | BY99: 0 | BZ99: 0 | CA99: 0 | CB99: 7.82 | CE99: 0 | CG99: 0 | CH99: 0 | CI99: 0 | CJ99: 380 | CK99: 146.4 | CL99: 263.2 | CM99: 3.04 | CN99: 3.04 | CO99: 3.04 | CP99: 0 | CQ99: 0
A100: ="-" -> - | B100: Хлеб ржаной | C100: 20 | D100: 1.2 | E100: 0.0 | F100: 0.2 | G100: 0.2 | H100: 8.3 | I100: 38 | J100: 0.0 | K100: 0.0 | L100: 0.0 | M100: 0.0 | N100: 0.2 | O100: 6.4 | P100: 1.7 | Q100: 0.0 | R100: 0.0 | S100: 0.2 | T100: 0.5 | U100: 122.0 | V100: 49.0 | W100: 7.0 | X100: 9.4 | Y100: 31.6 | Z100: 0.8 | AA100: 0.0 | AB100: 1.0 | AC100: 0.2 | AD100: 0.3 | AE100: 0.0 | AF100: 0.0 | AG100: 0.1 | AH100: 0.4 | AI100: 0.0 | AJ100: 0 | AK100: 64.4 | AL100: 49.6 | AM100: 85.4 | AN100: 44.6 | AO100: 18.6 | AP100: 39.6 | AQ100: 16 | AR100: 74.2 | AS100: 59.4 | AT100: 58.2 | AU100: 92.8 | AV100: 24.8 | AW100: 62 | AX100: 311.8 | AY100: 0 | AZ100: 105.2 | BA100: 58.2 | BB100: 36 | BC100: 26 | BD100: 0 | BE100: 0 | BF100: 0 | BG100: 0 | BH100: 0 | BI100: 0 | BJ100: 0 | BK100: 0.03 | BL100: 0 | BM100: 0 | BN100: 0 | BO100: 0 | BP100: 0 | BQ100: 0 | BR100: 0 | BS100: 0.02 | BT100: 0 | BU100: 0 | BV100: 0.1 | BW100: 0.02 | BX100: 0 | BY100: 0 | BZ100: 0 | CA100: 0 | CB100: 9.4 | CE100: 0.17 | CG100: 3 | CH100: 3 | CI100: 3 | CJ100: 570 | CK100: 219.6 | CL100: 394.8 | CM100: 5.7 | CN100: 4.74 | CO100: 5.22 | CP100: 0 | CQ100: 0
A101: ="3/10" -> 3/10 | B101: Компот из яблок | C101: 150 | D101: 0.1 | E101: 0.0 | F101: 0.1 | G101: 0.1 | H101: 14.4 | I101: 56 | J101: 0.0 | K101: 0.0 | L101: 0.0 | M101: 0.0 | N101: 13.7 | O101: 0.2 | P101: 0.5 | Q101: 0.0 | R101: 0.0 | S101: 0.2 | T101: 0.2 | U101: 7.8 | V101: 82.9 | W101: 5.0 | X101: 2.6 | Y101: 3.1 | Z101: 0.7 | AA101: 0.0 | AB101: 8.1 | AC101: 1.5 | AD101: 0.1 | AE101: 0.0 | AF101: 0.0 | AG101: 0.1 | AH101: 0.1 | AI101: 1.2 | AJ101: 0 | AK101: 3.53 | AL101: 3.82 | AM101: 5.59 | AN101: 5.29 | AO101: 0.88 | AP101: 3.23 | AQ101: 0.88 | AR101: 2.65 | AS101: 5 | AT101: 2.94 | AU101: 22.93 | AV101: 2.06 | AW101: 4.12 | AX101: 12.35 | AY101: 0 | AZ101: 3.82 | BA101: 4.7 | BB101: 1.76 | BC101: 1.47 | BD101: 0 | BE101: 0 | BF101: 0 | BG101: 0 | BH101: 0 | BI101: 0 | BJ101: 0 | BK101: 0 | BL101: 0 | BM101: 0 | BN101: 0 | BO101: 0 | BP101: 0 | BQ101: 0 | BR101: 0 | BS101: 0 | BT101: 0 | BU101: 0 | BV101: 0 | BW101: 0 | BX101: 0 | BY101: 0 | BZ101: 0 | CA101: 0 | CB101: 183.4 | CE101: 1.35 | CG101: 4.5 | CH101: 4.5 | CI101: 4.5 | CJ101: 432 | CK101: 208.98 | CL101: 320.49 | CM101: 41.2 | CN101: 24.19 | CO101: 32.7 | CP101: 11.25 | CQ101: 0
A102: ="49/1" -> 49/1 | B102: Салат "Винегрет" с растительным маслом | C102: 30 | D102: 0.4 | E102: 0.0 | F102: 1.8 | G102: 1.8 | H102: 3.2 | I102: 30 | J102: 0.2 | K102: 1.2 | L102: 0.0 | M102: 0.0 | N102: 1.1 | O102: 1.6 | P102: 0.5 | Q102: 0.0 | R102: 0.0 | S102: 0.1 | T102: 0.6 | U102: 105.8 | V102: 84.6 | W102: 6.4 | X102: 5.7 | Y102: 13.1 | Z102: 0.3 | AA102: 0.0 | AB102: 276.7 | AC102: 55.3 | AD102: 0.8 | AE102: 0.0 | AF102: 0.0 | AG102: 0.2 | AH102: 0.3 | AI102: 1.2 | AJ102: 0 | AK102: 8.21 | AL102: 9.87 | AM102: 12.01 | AN102: 14.32 | AO102: 2.81 | AP102: 9.37 | AQ102: 3.44 | AR102: 8.81 | AS102: 10.15 | AT102: 23.42 | AU102: 31.08 | AV102: 2.78 | AW102: 7.63 | AX102: 47.21 | AY102: 0 | AZ102: 6.97 | BA102: 7.67 | BB102: 6.84 | BC102: 2.67 | BD102: 0 | BE102: 0 | BF102: 0 | BG102: 0 | BH102: 0 | BI102: 0 | BJ102: 0 | BK102: 0.12 | BL102: 0 | BM102: 0.07 | BN102: 0.01 | BO102: 0.01 | BP102: 0 | BQ102: 0 | BR102: 0 | BS102: 0.44 | BT102: 0 | BU102: 0 | BV102: 1.05 | BW102: 0 | BX102: 0 | BY102: 0 | BZ102: 0 | CA102: 0 | CB102: 24.42 | CE102: 46.11 | CG102: 7.5 | CH102: 4.45 | CI102: 5.97 | CJ102: 192.1 | CK102: 79.41 | CL102: 135.76 | CM102: 3.13 | CN102: 0.91 | CO102: 2.02 | CP102: 0 | CQ102: 0.15
A103: ="14/2" -> 14/2 | B103: Суп картофельный с пшенной крупой на говяжьем бульоне | C103: 150 | D103: 2.0 | E103: 4.9 | F103: 6.4 | G103: 3.3 | H103: 10.1 | I103: 105 | J103: 1.6 | K103: 2.0 | L103: 0.0 | M103: 0.0 | N103: 1.3 | O103: 7.9 | P103: 0.9 | Q103: 0.0 | R103: 0.0 | S103: 0.1 | T103: 1.5 | U103: 352.4 | V103: 248.1 | W103: 10.2 | X103: 13.9 | Y103: 34.6 | Z103: 0.5 | AA103: 0.0 | AB103: 583.7 | AC103: 121.4 | AD103: 1.4 | AE103: 0.1 | AF103: 0.1 | AG103: 0.6 | AH103: 1.0 | AI103: 3.9 | AJ103: 0 | AK103: 26.26 | AL103: 31.02 | AM103: 66.89 | AN103: 35.65 | AO103: 13.09 | AP103: 30.01 | AQ103: 13.99 | AR103: 35.45 | AS103: 57.56 | AT103: 81.98 | AU103: 55.56 | AV103: 14.05 | AW103: 27.44 | AX103: 168.93 | AY103: 0 | AZ103: 37.23 | BA103: 33.02 | BB103: 25.27 | BC103: 11.25 | BD103: 0 | BE103: 0 | BF103: 0 | BG103: 0 | BH103: 0 | BI103: 0 | BJ103: 0 | BK103: 0.2 | BL103: 0 | BM103: 0.12 | BN103: 0.01 | BO103: 0.02 | BP103: 0 | BQ103: 0 | BR103: 0 | BS103: 0.7 | BT103: 0 | BU103: 0 | BV103: 1.86 | BW103: 0 | BX103: 0 | BY103: 0 | BZ103: 0 | CA103: 0 | CB103: 149.94 | CE103: 97.28 | CG103: 49.25 | CH103: 27.54 | CI103: 38.39 | CJ103: 694.26 | CK103: 394.27 | CL103: 544.26 | CM103: 38.31 | CN103: 18.54 | CO103: 28.42 | CP103: 0 | CQ103: 0.9
A104: ="3/4" -> 3/4 | B104: Каша гречневая вязкая | C104: 120 | D104: 3.7 | E104: 0.0 | F104: 3.1 | G104: 1.0 | H104: 19.1 | I104: 114 | J104: 1.6 | K104: 0.1 | L104: 0.0 | M104: 0.0 | N104: 0.4 | O104: 15.5 | P104: 3.2 | Q104: 0.0 | R104: 0.0 | S104: 0.0 | T104: 0.8 | U104: 116.3 | V104: 111.5 | W104: 7.5 | X104: 55.9 | Y104: 82.5 | Z104: 1.9 | AA104: 12.0 | AB104: 10.8 | AC104: 14.1 | AD104: 0.3 | AE104: 0.1 | AF104: 0.1 | AG104: 1.1 | AH104: 2.1 | AI104: 0.0 | AJ104: 0 | AK104: 171.23 | AL104: 133.74 | AM104: 216.88 | AN104: 154.03 | AO104: 92.7 | AP104: 116.63 | AQ104: 53.13 | AR104: 171.8 | AS104: 168.17 | AT104: 323.46 | AU104: 319.18 | AV104: 87.47 | AW104: 208.15 | AX104: 655.33 | AY104: 0 | AZ104: 145.47 | BA104: 176.19 | BB104: 125.13 | BC104: 95.37 | BD104: 0.08 | BE104: 0.04 | BF104: 0.02 | BG104: 0.04 | BH104: 0.05 | BI104: 0.24 | BJ104: 0 | BK104: 0.8 | BL104: 0 | BM104: 0.21 | BN104: 0 | BO104: 0 | BP104: 0 | BQ104: 0.05 | BR104: 0.07 | BS104: 0.84 | BT104: 0.01 | BU104: 0 | BV104: 0.33 | BW104: 0.03 | BX104: 0 | BY104: 0 | BZ104: 0 | CA104: 0 | CB104: 100.87 | CE104: 13.79 | CG104: 18.76 | CH104: 11.15 | CI104: 14.96 | CJ104: 1575.42 | CK104: 764.22 | CL104: 1169.82 | CM104: 35.77 | CN104: 22.6 | CO104: 29.18 | CP104: 0 | CQ104: 0.3
A105: ="2/9" -> 2/9 | B105: Мясо птицы отварное в соусе | C105: 50 | D105: 5.8 | E105: 5.7 | F105: 5.6 | G105: 0.0 | H105: 1.2 | I105: 78 | J105: 2.2 | K105: 0.0 | L105: 0.0 | M105: 0.0 | N105: 0.1 | O105: 1.0 | P105: 0.1 | Q105: 0.0 | R105: 0.0 | S105: 0.0 | T105: 0.6 | U105: 72.7 | V105: 39.0 | W105: 5.9 | X105: 5.0 | Y105: 41.6 | Z105: 0.5 | AA105: 15.1 | AB105: 8.0 | AC105: 31.6 | AD105: 0.2 | AE105: 0.0 | AF105: 0.0 | AG105: 2.1 | AH105: 4.4 | AI105: 0.2 | AJ105: 0 | AK105: 279.23 | AL105: 221.54 | AM105: 450.33 | AN105: 494.88 | AO105: 148.54 | AP105: 270.31 | AQ105: 92.91 | AR105: 238.33 | AS105: 363.26 | AT105: 386.11 | AU105: 511.79 | AV105: 154.08 | AW105: 431.68 | AX105: 844.9 | AY105: 46.89 | AZ105: 286.05 | BA105: 274.2 | BB105: 202.97 | BC105: 72.39 | BD105: 0.03 | BE105: 0.01 | BF105: 0.01 | BG105: 0.02 | BH105: 0.02 | BI105: 0.09 | BJ105: 0 | BK105: 0.25 | BL105: 0 | BM105: 0.08 | BN105: 0 | BO105: 0 | BP105: 0 | BQ105: 0.02 | BR105: 0.03 | BS105: 0.2 | BT105: 0 | BU105: 0 | BV105: 0.02 | BW105: 0 | BX105: 0 | BY105: 0 | BZ105: 0 | CA105: 0 | CB105: 50.54 | CE105: 16.4 | CG105: 18.41 | CH105: 9.17 | CI105: 13.79 | CJ105: 1701.19 | CK105: 1051.77 | CL105: 1376.48 | CM105: 19.31 | CN105: 12.75 | CO105: 16.05 | CP105: 0 | CQ105: 0.25
B106: Итого за 'Обед' | C106: =SUM(C99:C105) -> 540 | D106: =SUM(D99:D105) -> 14.5 | E106: 10.6 | F106: 17.3 | G106: 6.6 | H106: 63.7 | I106: 457 | J106: 5.7 | K106: 3.2 | L106: 0.0 | M106: 0.0 | N106: 17.0 | O106: 39.8 | P106: 6.9 | Q106: 0.0 | R106: 0.0 | S106: 0.6 | T106: 4.5 | U106: 777.1 | V106: 615.1 | W106: 42.0 | X106: 92.5 | Y106: 206.5 | Z106: 4.6 | AA106: 27.1 | AB106: 888.2 | AC106: 224.1 | AD106: 3.1 | AE106: 0.3 | AF106: 0.2 | AG106: 4.1 | AH106: 8.4 | AI106: 6.5 | AJ106: 0 | AK106: 616.71 | AL106: 516.05 | AM106: 938.9 | AN106: 782.53 | AO106: 296.62 | AP106: 509.17 | AQ106: 195.48 | AR106: 603.62 | AS106: 708.42 | AT106: 938.75 | AU106: 1085.02 | AV106: 312.37 | AW106: 789.04 | AX106: 2442.1 | AY106: 46.89 | AZ106: 715.59 | BA106: 610.88 | BB106: 435.73 | BC106: 239.08 | BD106: 0.11 | BE106: 0.05 | BF106: 0.03 | BG106: 0.06 | BH106: 0.07 | BI106: 0.33 | BJ106: 0 | BK106: 1.41 | BL106: 0 | BM106: 0.48 | BN106: 0.02 | BO106: 0.03 | BP106: 0 | BQ106: 0.06 | BR106: 0.11 | BS106: 2.22 | BT106: 0.01 | BU106: 0 | BV106: 3.41 | BW106: 0.05 | BX106: 0 | BY106: 0 | BZ106: 0 | CA106: 0 | CB106: 526.39 | CD106: =$I$106/#REF!*100 ->  | CE106: 175.1 | CG106: 101.41 | CH106: 59.8 | CI106: 80.61 | CJ106: 5544.97 | CK106: 2864.65 | CL106: 4204.81 | CM106: 146.47 | CN106: 86.76 | CO106: 116.63 | CP106: 11.25 | CQ106: 1.6
B107: Ужин
A108: ="14/12" -> 14/12 | B108: Булочка дорожная | C108: 70 | D108: 5.4 | E108: 0.9 | F108: 7.7 | G108: 0.6 | H108: 38.7 | I108: 244 | J108: 5.4 | K108: 0.2 | L108: 0.0 | M108: 0.0 | N108: 9.1 | O108: 28.1 | P108: 1.5 | Q108: 0.0 | R108: 0.0 | S108: 0.0 | T108: 1.0 | U108: 176.8 | V108: 81.5 | W108: 33.8 | X108: 9.2 | Y108: 55.1 | Z108: 0.6 | AA108: 27.9 | AB108: 26.9 | AC108: 52.2 | AD108: 0.8 | AE108: 0.1 | AF108: 0.1 | AG108: 0.5 | AH108: 1.6 | AI108: 0.1 | AJ108: 0 | AK108: 213.74 | AL108: 194.06 | AM108: 363.13 | AN108: 122.37 | AO108: 70.5 | AP108: 143.31 | AQ108: 48.51 | AR108: 223.28 | AS108: 152.28 | AT108: 180.77 | AU108: 163.57 | AV108: 93.72 | AW108: 158.55 | AX108: 1353.11 | AY108: 2.3 | AZ108: 425.26 | BA108: 224.98 | BB108: 115.67 | BC108: 88.47 | BD108: 0.25 | BE108: 0.11 | BF108: 0.06 | BG108: 0.14 | BH108: 0.16 | BI108: 0.73 | BJ108: 0 | BK108: 2.09 | BL108: 0 | BM108: 0.63 | BN108: 0 | BO108: 0 | BP108: 0 | BQ108: 0.14 | BR108: 0.22 | BS108: 1.7 | BT108: 0 | BU108: 0 | BV108: 0.31 | BW108: 0.02 | BX108: 0 | BY108: 0 | BZ108: 0 | CA108: 0 | CB108: 28.57 | CE108: 32.38 | CG108: 20.02 | CH108: 9.8 | CI108: 14.91 | CJ108: 1135.57 | CK108: 398.9 | CL108: 767.24 | CM108: 10.2 | CN108: 4.99 | CO108: 8.05 | CP108: 4.2 | CQ108: 0.42
A109: ="-" -> - | B109: Сок | C109: 150 | D109: 0.8 | E109: 0.0 | F109: 0.2 | G109: 0.0 | H109: 15.5 | I109: 65 | J109: 0.0 | K109: 0.0 | L109: 0.0 | M109: 0.0 | N109: 14.9 | O109: 0.3 | P109: 0.3 | Q109: 0.0 | R109: 0.0 | S109: 0.8 | T109: 0.5 | U109: 9.0 | V109: 180.0 | W109: 10.5 | X109: 6.0 | Y109: 10.5 | Z109: 2.1 | AA109: 0.0 | AB109: 0.0 | AC109: 0.0 | AD109: 0.2 | AE109: 0.0 | AF109: 0.0 | AG109: 0.2 | AH109: 0.3 | AI109: 3.0 | AJ109: 0.3 | AK109: 12 | AL109: 15 | AM109: 21 | AN109: 21 | AO109: 3 | AP109: 12 | AQ109: 3 | AR109: 10.5 | AS109: 19.5 | AT109: 12 | AU109: 87 | AV109: 7.5 | AW109: 16.5 | AX109: 48 | AY109: 0 | AZ109: 15 | BA109: 18 | BB109: 7.5 | BC109: 6 | BD109: 0 | BE109: 0 | BF109: 0 | BG109: 0 | BH109: 0 | BI109: 0 | BJ109: 0 | BK109: 0 | BL109: 0 | BM109: 0 | BN109: 0 | BO109: 0 | BP109: 0 | BQ109: 0 | BR109: 0 | BS109: 0 | BT109: 0 | BU109: 0 | BV109: 0 | BW109: 0 | BX109: 0 | BY109: 0 | BZ109: 0 | CA109: 0 | CB109: 132.15 | CE109: 0 | CG109: 3.6 | CH109: 3.6 | CI109: 3.6 | CJ109: 360 | CK109: 163.8 | CL109: 261.9 | CM109: 0.54 | CN109: 0.54 | CO109: 0.54 | CP109: 0 | CQ109: 0
A110: ="2/6" -> 2/6 | B110: Омлет запеченный или паровой | C110: 120 | D110: 12.6 | E110: 13.3 | F110: 17.1 | G110: 0.0 | H110: 2.3 | I110: 213 | J110: 8.4 | K110: 0.2 | L110: 0.0 | M110: 0.0 | N110: 2.3 | O110: 0.0 | P110: 0.0 | Q110: 0.0 | R110: 0.0 | S110: 0.0 | T110: 2.0 | U110: 380.5 | V110: 167.3 | W110: 88.6 | X110: 14.5 | Y110: 191.6 | Z110: 2.2 | AA110: 173.1 | AB110: 73.7 | AC110: 304.0 | AD110: 0.7 | AE110: 0.1 | AF110: 0.4 | AG110: 0.2 | AH110: 3.8 | AI110: 0.2 | AJ110: 0 | AK110: 700.73 | AL110: 542.71 | AM110: 982.87 | AN110: 819.23 | AO110: 384.27 | AP110: 555.02 | AQ110: 188.26 | AR110: 592.44 | AS110: 644.2 | AT110: 712.71 | AU110: 1114.58 | AV110: 310.21 | AW110: 377.73 | AX110: 1613.73 | AY110: 12.63 | AZ110: 362.01 | BA110: 842.67 | BB110: 433.62 | BC110: 265.37 | BD110: 0.24 | BE110: 0.11 | BF110: 0.06 | BG110: 0.14 | BH110: 0.16 | BI110: 0.72 | BJ110: 0 | BK110: 2.01 | BL110: 0 | BM110: 0.62 | BN110: 0 | BO110: 0 | BP110: 0 | BQ110: 0.14 | BR110: 0.21 | BS110: 1.64 | BT110: 0 | BU110: 0 | BV110: 0.09 | BW110: 0.01 | BX110: 0 | BY110: 0 | BZ110: 0 | CA110: 0 | CB110: 105.76 | CE110: 185.38 | CG110: 48.94 | CH110: 30.96 | CI110: 39.95 | CJ110: 209 | CK110: 77.6 | CL110: 143.3 | CM110: 14.28 | CN110: 7.8 | CO110: 11.04 | CP110: 0 | CQ110: 0.6
B111: Итого за 'Ужин' | C111: =SUM(C108:C110) -> 340 | D111: =SUM(D108:D110) -> 18.8 | E111: 14.2 | F111: 25.0 | G111: 0.6 | H111: 56.4 | I111: 522 | J111: 13.8 | K111: 0.5 | L111: 0.0 | M111: 0.0 | N111: 26.2 | O111: 28.4 | P111: 1.8 | Q111: 0.0 | R111: 0.0 | S111: 0.8 | T111: 3.4 | U111: 566.3 | V111: 428.8 | W111: 132.9 | X111: 29.7 | Y111: 257.2 | Z111: 4.8 | AA111: 201.0 | AB111: 100.6 | AC111: 356.1 | AD111: 1.6 | AE111: 0.1 | AF111: 0.5 | AG111: 0.8 | AH111: 5.7 | AI111: 3.3 | AJ111: 0.3 | AK111: 926.47 | AL111: 751.77 | AM111: 1367 | AN111: 962.6 | AO111: 457.77 | AP111: 710.33 | AQ111: 239.78 | AR111: 826.22 | AS111: 815.98 | AT111: 905.48 | AU111: 1365.15 | AV111: 411.43 | AW111: 552.78 | AX111: 3014.84 | AY111: 14.94 | AZ111: 802.27 | BA111: 1085.65 | BB111: 556.79 | BC111: 359.85 | BD111: 0.49 | BE111: 0.23 | BF111: 0.12 | BG111: 0.28 | BH111: 0.32 | BI111: 1.45 | BJ111: 0 | BK111: 4.1 | BL111: 0 | BM111: 1.25 | BN111: 0 | BO111: 0 | BP111: 0 | BQ111: 0.28 | BR111: 0.43 | BS111: 3.34 | BT111: 0 | BU111: 0 | BV111: 0.41 | BW111: 0.03 | BX111: 0 | BY111: 0 | BZ111: 0 | CA111: 0 | CB111: 266.48 | CD111: =$I$111/#REF!*100 ->  | CE111: 217.76 | CG111: 72.55 | CH111: 44.36 | CI111: 58.46 | CJ111: 1704.57 | CK111: 640.3 | CL111: 1172.44 | CM111: 25.02 | CN111: 13.33 | CO111: 19.63 | CP111: 4.2 | CQ111: 1.02
B112: Итого за день | C112: =C94+C97+C106+C111 -> 1315 | D112: 48.9 | E112: 35.4 | F112: 54.3 | G112: 8.5 | H112: 175.5 | I112: 1371 | J112: 25.7 | K112: 3.8 | L112: 0.0 | M112: 0.0 | N112: 71.1 | O112: 94.8 | P112: 9.7 | Q112: 0.0 | R112: 0.0 | S112: 2.9 | T112: 11.4 | U112: 1719.2 | V112: 1448.2 | W112: 558.8 | X112: 181.7 | Y112: 790.3 | Z112: 10.4 | AA112: 288.5 | AB112: 1029.3 | AC112: 658.2 | AD112: 4.9 | AE112: 0.6 | AF112: 1.0 | AG112: 5.7 | AH112: 18.4 | AI112: 11.2 | AJ112: 0.3 | AK112: 2236.73 | AL112: 1890.32 | AM112: 3547.86 | AN112: 2414.81 | AO112: 1034.36 | AP112: 1694.65 | AQ112: 648.15 | AR112: 2044.06 | AS112: 2120.68 | AT112: 2304.12 | AU112: 3199.67 | AV112: 1058.04 | AW112: 1631.13 | AX112: 8002.98 | AY112: 61.82 | AZ112: 2702.19 | BA112: 2373.58 | BB112: 1537.52 | BC112: 758.88 | BD112: 0.77 | BE112: 0.39 | BF112: 0.24 | BG112: 0.57 | BH112: 0.65 | BI112: 2.78 | BJ112: 0.07 | BK112: 7.43 | BL112: 0.03 | BM112: 2.4 | BN112: 0.08 | BO112: 0.03 | BP112: 0 | BQ112: 0.47 | BR112: 0.75 | BS112: 7.4 | BT112: 0.02 | BU112: 0 | BV112: 4.56 | BW112: 0.12 | BX112: 0.08 | BY112: 0 | BZ112: 0 | CA112: 0 | CB112: 1167.1 | CE112: 460.02 | CG112: 224.22 | CH112: 132.39 | CI112: 178.31 | CJ112: 11235.2 | CK112: 5355.83 | CL112: 8295.52 | CM112: 250.15 | CN112: 142.59 | CO112: 196.85 | CP112: 25.95 | CQ112: 3
B114: 5 ДЕНЬ
B115: Завтрак
A116: ="-" -> - | B116: Батон | C116: 30 | D116: 2.3 | E116: 0.0 | F116: 1.5 | G116: 0.9 | H116: 11.2 | I116: 66 | J116: 0.2 | K116: 0.0 | L116: 0.0 | M116: 0.0 | N116: 1.0 | O116: 9.2 | P116: 1.0 | Q116: 0.0 | R116: 0.0 | S116: 0.1 | T116: 0.5 | U116: 128.7 | V116: 39.3 | W116: 6.6 | X116: 9.9 | Y116: 25.5 | Z116: 0.6 | AA116: 0.0 | AB116: 0.0 | AC116: 0.0 | AD116: 0.5 | AE116: 0.1 | AF116: 0.0 | AG116: 0.5 | AH116: 0.9 | AI116: 0.0 | AJ116: 0 | AK116: 111.6 | AL116: 115.8 | AM116: 177.3 | AN116: 59.7 | AO116: 35.1 | AP116: 70.2 | AQ116: 26.4 | AR116: 126 | AS116: 78.3 | AT116: 108.9 | AU116: 90.3 | AV116: 48.3 | AW116: 84 | AX116: 697.5 | AY116: 0 | AZ116: 227.1 | BA116: 99.3 | BB116: 66.6 | BC116: 51.9 | BD116: 0 | BE116: 0 | BF116: 0 | BG116: 0 | BH116: 0 | BI116: 0.01 | BJ116: 0 | BK116: 0.1 | BL116: 0 | BM116: 0.05 | BN116: 0 | BO116: 0 | BP116: 0 | BQ116: 0 | BR116: 0 | BS116: 0.35 | BT116: 0 | BU116: 0 | BV116: 0.26 | BW116: 0.01 | BX116: 0 | BY116: 0 | BZ116: 0 | CA116: 0 | CB116: 10.23 | CE116: 0 | CG116: 0 | CH116: 0 | CI116: 0 | CJ116: 570 | CK116: 219.6 | CL116: 394.8 | CM116: 4.56 | CN116: 4.56 | CO116: 4.56 | CP116: 0 | CQ116: 0
A117: ="-" -> - | B117: Масло сливочное | C117: 5 | D117: 0.0 | E117: 0.0 | F117: 3.6 | G117: 0.0 | H117: 0.1 | I117: 33 | J117: 2.4 | K117: 0.1 | L117: 0.0 | M117: 0.0 | N117: 0.1 | O117: 0.0 | P117: 0.0 | Q117: 0.0 | R117: 0.0 | S117: 0.0 | T117: 0.1 | U117: 0.8 | V117: 1.5 | W117: 1.2 | X117: 0.0 | Y117: 1.5 | Z117: 0.0 | AA117: 20.0 | AB117: 15.0 | AC117: 22.5 | AD117: 0.1 | AE117: 0.0 | AF117: 0.0 | AG117: 0.0 | AH117: 0.0 | AI117: 0.0 | AJ117: 0 | AK117: 2.1 | AL117: 2.05 | AM117: 3.8 | AN117: 2.25 | AO117: 0.85 | AP117: 2.35 | AQ117: 2.15 | AR117: 2.1 | AS117: 1.8 | AT117: 1.3 | AU117: 2.85 | AV117: 1.75 | AW117: 1.2 | AX117: 7.1 | AY117: 0 | AZ117: 2.4 | BA117: 2.7 | BB117: 2.1 | BC117: 0.5 | BD117: 0.13 | BE117: 0.06 | BF117: 0.03 | BG117: 0.08 | BH117: 0.09 | BI117: 0.4 | BJ117: 0 | BK117: 1.1 | BL117: 0 | BM117: 0.34 | BN117: 0 | BO117: 0 | BP117: 0 | BQ117: 0.08 | BR117: 0.12 | BS117: 0.9 | BT117: 0 | BU117: 0 | BV117: 0.05 | BW117: 0 | BX117: 0 | BY117: 0 | BZ117: 0 | CA117: 0 | CB117: 1.25 | CE117: 22.5 | CG117: 0.2 | CH117: 0.05 | CI117: 0.13 | CJ117: 10 | CK117: 4.1 | CL117: 7.05 | CM117: 0.86 | CN117: 0.44 | CO117: 0.65 | CP117: 0 | CQ117: 0
A118: ="29/10" -> 29/10 | B118: Чай с лимоном | C118: 150 | D118: 0.2 | E118: 0.0 | F118: 0.0 | G118: 0.0 | H118: 7.4 | I118: 30 | J118: 0.0 | K118: 0.0 | L118: 0.0 | M118: 0.0 | N118: 7.3 | O118: 0.0 | P118: 0.2 | Q118: 0.0 | R118: 0.0 | S118: 0.2 | T118: 0.1 | U118: 0.5 | V118: 6.1 | W118: 1.6 | X118: 0.4 | Y118: 0.8 | Z118: 0.0 | AA118: 0.0 | AB118: 0.3 | AC118: 0.1 | AD118: 0.0 | AE118: 0.0 | AF118: 0.0 | AG118: 0.0 | AH118: 0.0 | AI118: 0.6 | AJ118: 0 | AK118: 0.5 | AL118: 0.57 | AM118: 0.47 | AN118: 0.86 | AO118: 0.22 | AP118: 0.9 | AQ118: 0 | AR118: 1.15 | AS118: 0 | AT118: 0 | AU118: 0 | AV118: 0.65 | AW118: 0 | AX118: 0 | AY118: 0 | AZ118: 0 | BA118: 0 | BB118: 0 | BC118: 0 | BD118: 0 | BE118: 0 | BF118: 0 | BG118: 0 | BH118: 0 | BI118: 0 | BJ118: 0 | BK118: 0 | BL118: 0 | BM118: 0 | BN118: 0 | BO118: 0 | BP118: 0 | BQ118: 0 | BR118: 0 | BS118: 0 | BT118: 0 | BU118: 0 | BV118: 0 | BW118: 0 | BX118: 0 | BY118: 0 | BZ118: 0 | CA118: 0 | CB118: 149.62 | CE118: 0.05 | CG118: 3.85 | CH118: 3.72 | CI118: 3.79 | CJ118: 434.63 | CK118: 165.16 | CL118: 299.9 | CM118: 39.92 | CN118: 23.87 | CO118: 31.9 | CP118: 7.32 | CQ118: 0
A119: ="15/4" -> 15/4 | B119: Каша ячневая молочная с маслом сливочным | C119: 150 | D119: 4.5 | E119: 1.8 | F119: 3.6 | G119: 0.4 | H119: 25.3 | I119: 148 | J119: 2.6 | K119: 0.1 | L119: 0.0 | M119: 0.0 | N119: 5.7 | O119: 17.4 | P119: 2.2 | Q119: 0.0 | R119: 0.0 | S119: 0.1 | T119: 1.2 | U119: 180.1 | V119: 132.1 | W119: 86.4 | X119: 20.4 | Y119: 137.5 | Z119: 0.5 | AA119: 14.4 | AB119: 12.0 | AC119: 26.7 | AD119: 0.5 | AE119: 0.1 | AF119: 0.1 | AG119: 0.7 | AH119: 1.9 | AI119: 0.3 | AJ119: 0 | AK119: 136.54 | AL119: 132.29 | AM119: 145.96 | AN119: 99.97 | AO119: 45.6 | AP119: 71.83 | AQ119: 35.05 | AR119: 147.82 | AS119: 115.23 | AT119: 138.91 | AU119: 180.68 | AV119: 65.85 | AW119: 116.3 | AX119: 679.39 | AY119: 0 | AZ119: 370.77 | BA119: 111.5 | BB119: 85.78 | BC119: 56.68 | BD119: 0.07 | BE119: 0.03 | BF119: 0.02 | BG119: 0.04 | BH119: 0.05 | BI119: 0.21 | BJ119: 0 | BK119: 0.58 | BL119: 0 | BM119: 0.18 | BN119: 0 | BO119: 0 | BP119: 0 | BQ119: 0.04 | BR119: 0.06 | BS119: 0.48 | BT119: 0 | BU119: 0 | BV119: 0.03 | BW119: 0 | BX119: 0 | BY119: 0 | BZ119: 0 | CA119: 0 | CB119: 133.35 | CE119: 16.4 | CG119: 34.24 | CH119: 14.52 | CI119: 24.38 | CJ119: 2147.67 | CK119: 982.95 | CL119: 1565.31 | CM119: 45.21 | CN119: 23.88 | CO119: 34.54 | CP119: 3 | CQ119: 0.38
B120: Итого за 'Завтрак' | C120: =SUM(C116:C119) -> 335 | D120: =SUM(D116:D119) -> 7.0 | E120: 1.8 | F120: 8.8 | G120: 1.3 | H120: 44.0 | I120: 277 | J120: 5.1 | K120: 0.2 | L120: 0.0 | M120: 0.0 | N120: 14.0 | O120: 26.7 | P120: 3.3 | Q120: 0.0 | R120: 0.0 | S120: 0.4 | T120: 1.8 | U120: 310.1 | V120: 179.0 | W120: 95.8 | X120: 30.8 | Y120: 165.3 | Z120: 1.2 | AA120: 34.4 | AB120: 27.3 | AC120: 49.3 | AD120: 1.1 | AE120: 0.1 | AF120: 0.1 | AG120: 1.2 | AH120: 2.8 | AI120: 0.9 | AJ120: 0 | AK120: 250.75 | AL120: 250.71 | AM120: 327.53 | AN120: 162.78 | AO120: 81.76 | AP120: 145.27 | AQ120: 63.6 | AR120: 277.07 | AS120: 195.33 | AT120: 249.11 | AU120: 273.83 | AV120: 116.54 | AW120: 201.5 | AX120: 1383.99 | AY120: 0 | AZ120: 600.27 | BA120: 213.5 | BB120: 154.48 | BC120: 109.08 | BD120: 0.21 | BE120: 0.09 | BF120: 0.05 | BG120: 0.12 | BH120: 0.13 | BI120: 0.61 | BJ120: 0 | BK120: 1.79 | BL120: 0 | BM120: 0.57 | BN120: 0 | BO120: 0 | BP120: 0 | BQ120: 0.12 | BR120: 0.18 | BS120: 1.73 | BT120: 0 | BU120: 0 | BV120: 0.34 | BW120: 0.01 | BX120: 0 | BY120: 0 | BZ120: 0 | CA120: 0 | CB120: 294.46 | CD120: =$I$120/#REF!*100 ->  | CE120: 38.95 | CG120: 38.29 | CH120: 18.29 | CI120: 28.29 | CJ120: 3162.3 | CK120: 1371.81 | CL120: 2267.05 | CM120: 90.55 | CN120: 52.74 | CO120: 71.64 | CP120: 10.32 | CQ120: 0.38
B121: 10:00
A122: ="-" -> - | B122: Бананы | C122: 100 | D122: 2.0 | E122: 0.0 | F122: 1.0 | G122: 0.5 | H122: 15.0 | I122: 72 | J122: 0.0 | K122: 0.0 | L122: 0.0 | M122: 0.0 | N122: 11.0 | O122: 2.0 | P122: 2.0 | Q122: 0.0 | R122: 0.0 | S122: 0.4 | T122: 0.9 | U122: 31.0 | V122: 348.0 | W122: 8.0 | X122: 42.0 | Y122: 28.0 | Z122: 0.6 | AA122: 0.0 | AB122: 120.0 | AC122: 20.0 | AD122: 0.4 | AE122: 0.0 | AF122: 0.1 | AG122: 0.6 | AH122: 0.9 | AI122: 10.0 | AJ122: 0 | AK122: 0 | AL122: 0 | AM122: 0 | AN122: 0 | AO122: 0 | AP122: 0 | AQ122: 0 | AR122: 0 | AS122: 0 | AT122: 0 | AU122: 0 | AV122: 0 | AW122: 0 | AX122: 0 | AY122: 0 | AZ122: 0 | BA122: 0 | BB122: 0 | BC122: 0 | BD122: 0 | BE122: 0 | BF122: 0 | BG122: 0 | BH122: 0 | BI122: 0 | BJ122: 0 | BK122: 0 | BL122: 0 | BM122: 0 | BN122: 0 | BO122: 0 | BP122: 0 | BQ122: 0 | BR122: 0 | BS122: 0 | BT122: 0 | BU122: 0 | BV122: 0 | BW122: 0 | BX122: 0 | BY122: 0 | BZ122: 0 | CA122: 0 | CB122: 74 | CE122: 20 | CG122: 4 | CH122: 1 | CI122: 2.5 | CJ122: 200 | CK122: 82 | CL122: 141 | CM122: 0 | CN122: 0 | CO122: 0 | CP122: 0 | CQ122: 0
B123: Итого за '10:00' | C123: =SUM(C122) -> 100 | D123: =SUM(D122) -> 2.0 | E123: 0.0 | F123: 1.0 | G123: 0.5 | H123: 15.0 | I123: 72 | J123: 0.0 | K123: 0.0 | L123: 0.0 | M123: 0.0 | N123: 11.0 | O123: 2.0 | P123: 2.0 | Q123: 0.0 | R123: 0.0 | S123: 0.4 | T123: 0.9 | U123: 31.0 | V123: 348.0 | W123: 8.0 | X123: 42.0 | Y123: 28.0 | Z123: 0.6 | AA123: 0.0 | AB123: 120.0 | AC123: 20.0 | AD123: 0.4 | AE123: 0.0 | AF123: 0.1 | AG123: 0.6 | AH123: 0.9 | AI123: 10.0 | AJ123: 0 | AK123: 0 | AL123: 0 | AM123: 0 | AN123: 0 | AO123: 0 | AP123: 0 | AQ123: 0 | AR123: 0 | AS123: 0 | AT123: 0 | AU123: 0 | AV123: 0 | AW123: 0 | AX123: 0 | AY123: 0 | AZ123: 0 | BA123: 0 | BB123: 0 | BC123: 0 | BD123: 0 | BE123: 0 | BF123: 0 | BG123: 0 | BH123: 0 | BI123: 0 | BJ123: 0 | BK123: 0 | BL123: 0 | BM123: 0 | BN123: 0 | BO123: 0 | BP123: 0 | BQ123: 0 | BR123: 0 | BS123: 0 | BT123: 0 | BU123: 0 | BV123: 0 | BW123: 0 | BX123: 0 | BY123: 0 | BZ123: 0 | CA123: 0 | CB123: 74 | CD123: =$I$123/#REF!*100 ->  | CE123: 20 | CG123: 4 | CH123: 1 | CI123: 2.5 | CJ123: 200 | CK123: 82 | CL123: 141 | CM123: 0 | CN123: 0 | CO123: 0 | CP123: 0 | CQ123: 0
B124: Обед
A125: ="-" -> - | B125: Хлеб пшеничный | C125: 20 | D125: 1.2 | E125: 0.0 | F125: 0.1 | G125: 0.1 | H125: 7.4 | I125: 36 | J125: 0.0 | K125: 0.0 | L125: 0.0 | M125: 0.0 | N125: 0.2 | O125: 7.1 | P125: 0.0 | Q125: 0.0 | R125: 0.0 | S125: 0.0 | T125: 0.4 | U125: 0.0 | V125: 0.0 | W125: 0.0 | X125: 0.0 | Y125: 0.0 | Z125: 0.0 | AA125: 0.0 | AB125: 0.0 | AC125: 0.0 | AD125: 0.0 | AE125: 0.0 | AF125: 0.0 | AG125: 0.0 | AH125: 0.0 | AI125: 0.0 | AJ125: 0 | AK125: 63.86 | AL125: 66.47 | AM125: 101.79 | AN125: 33.76 | AO125: 20.01 | AP125: 40.02 | AQ125: 15.14 | AR125: 72.38 | AS125: 44.89 | AT125: 62.64 | AU125: 51.68 | AV125: 27.14 | AW125: 48.02 | AX125: 401.59 | AY125: 0 | AZ125: 130.85 | BA125: 56.9 | BB125: 37.76 | BC125: 29.93 | BD125: 0 | BE125: 0 | BF125: 0 | BG125: 0 | BH125: 0 | BI125: 0 | BJ125: 0 | BK125: 0.02 | BL125: 0 | BM125: 0 | BN125: 0 | BO125: 0 | BP125: 0 | BQ125: 0 | BR125: 0 | BS125: 0.01 | BT125: 0 | BU125: 0 | BV125: 0.06 | BW125: 0 | BX125: 0 | BY125: 0 | BZ125: 0 | CA125: 0 | CB125: 7.82 | CE125: 0 | CG125: 0 | CH125: 0 | CI125: 0 | CJ125: 380 | CK125: 146.4 | CL125: 263.2 | CM125: 3.04 | CN125: 3.04 | CO125: 3.04 | CP125: 0 | CQ125: 0
A126: ="-" -> - | B126: Хлеб ржаной | C126: 20 | D126: 1.2 | E126: 0.0 | F126: 0.2 | G126: 0.2 | H126: 8.3 | I126: 38 | J126: 0.0 | K126: 0.0 | L126: 0.0 | M126: 0.0 | N126: 0.2 | O126: 6.4 | P126: 1.7 | Q126: 0.0 | R126: 0.0 | S126: 0.2 | T126: 0.5 | U126: 122.0 | V126: 49.0 | W126: 7.0 | X126: 9.4 | Y126: 31.6 | Z126: 0.8 | AA126: 0.0 | AB126: 1.0 | AC126: 0.2 | AD126: 0.3 | AE126: 0.0 | AF126: 0.0 | AG126: 0.1 | AH126: 0.4 | AI126: 0.0 | AJ126: 0 | AK126: 64.4 | AL126: 49.6 | AM126: 85.4 | AN126: 44.6 | AO126: 18.6 | AP126: 39.6 | AQ126: 16 | AR126: 74.2 | AS126: 59.4 | AT126: 58.2 | AU126: 92.8 | AV126: 24.8 | AW126: 62 | AX126: 311.8 | AY126: 0 | AZ126: 105.2 | BA126: 58.2 | BB126: 36 | BC126: 26 | BD126: 0 | BE126: 0 | BF126: 0 | BG126: 0 | BH126: 0 | BI126: 0 | BJ126: 0 | BK126: 0.03 | BL126: 0 | BM126: 0 | BN126: 0 | BO126: 0 | BP126: 0 | BQ126: 0 | BR126: 0 | BS126: 0.02 | BT126: 0 | BU126: 0 | BV126: 0.1 | BW126: 0.02 | BX126: 0 | BY126: 0 | BZ126: 0 | CA126: 0 | CB126: 9.4 | CE126: 0.17 | CG126: 4 | CH126: 4 | CI126: 4 | CJ126: 760 | CK126: 292.8 | CL126: 526.4 | CM126: 7.6 | CN126: 6.32 | CO126: 6.96 | CP126: 0 | CQ126: 0
A127: ="6/10" -> 6/10 | B127: Компот из сухофруктов | C127: 150 | D127: 0.8 | E127: 0.0 | F127: 0.0 | G127: 0.0 | H127: 17.4 | I127: 66 | J127: 0.0 | K127: 0.0 | L127: 0.0 | M127: 0.0 | N127: 14.4 | O127: 0.4 | P127: 2.6 | Q127: 0.0 | R127: 0.0 | S127: 0.2 | T127: 0.6 | U127: 2.6 | V127: 255.2 | W127: 23.5 | X127: 15.0 | Y127: 20.4 | Z127: 0.5 | AA127: 0.0 | AB127: 472.5 | AC127: 87.5 | AD127: 0.8 | AE127: 0.0 | AF127: 0.0 | AG127: 0.4 | AH127: 0.6 | AI127: 0.4 | AJ127: 0 | AK127: 0.01 | AL127: 0.01 | AM127: 0.01 | AN127: 0.01 | AO127: 0 | AP127: 0.01 | AQ127: 0 | AR127: 0.01 | AS127: 0.01 | AT127: 0.01 | AU127: 0.04 | AV127: 0 | AW127: 0.01 | AX127: 0.02 | AY127: 0 | AZ127: 0.01 | BA127: 0.01 | BB127: 0 | BC127: 0 | BD127: 0 | BE127: 0 | BF127: 0 | BG127: 0 | BH127: 0 | BI127: 0 | BJ127: 0 | BK127: 0 | BL127: 0 | BM127: 0 | BN127: 0 | BO127: 0 | BP127: 0 | BQ127: 0 | BR127: 0 | BS127: 0.01 | BT127: 0 | BU127: 0 | BV127: 0 | BW127: 0 | BX127: 0 | BY127: 0 | BZ127: 0 | CA127: 0 | CB127: 160.51 | CE127: 78.75 | CG127: 3.95 | CH127: 3.95 | CI127: 3.95 | CJ127: 454.5 | CK127: 172.98 | CL127: 313.74 | CM127: 41.94 | CN127: 24.93 | CO127: 33.44 | CP127: 7.5 | CQ127: 0
A128: ="4/2" -> 4/2 | B128: Борщ с картофелем на говяжьем бульоне | C128: 150 | D128: 1.7 | E128: 4.9 | F128: 5.1 | G128: 1.9 | H128: 7.9 | I128: 82 | J128: 1.4 | K128: 1.2 | L128: 0.0 | M128: 0.0 | N128: 5.0 | O128: 1.7 | P128: 1.2 | Q128: 0.0 | R128: 0.0 | S128: 0.2 | T128: 1.5 | U128: 363.4 | V128: 186.3 | W128: 20.3 | X128: 12.3 | Y128: 25.9 | Z128: 0.6 | AA128: 0.0 | AB128: 607.7 | AC128: 126.6 | AD128: 0.9 | AE128: 0.0 | AF128: 0.1 | AG128: 0.3 | AH128: 0.6 | AI128: 4.8 | AJ128: 0 | AK128: 23.75 | AL128: 25.66 | AM128: 30.46 | AN128: 36.55 | AO128: 8.63 | AP128: 23.35 | AQ128: 6.77 | AR128: 22.84 | AS128: 26.28 | AT128: 46.43 | AU128: 108.91 | AV128: 8.7 | AW128: 20.14 | AX128: 130.91 | AY128: 0 | AZ128: 22.34 | BA128: 25.78 | BB128: 21.32 | BC128: 7.78 | BD128: 0 | BE128: 0 | BF128: 0 | BG128: 0 | BH128: 0 | BI128: 0 | BJ128: 0 | BK128: 0.11 | BL128: 0 | BM128: 0.07 | BN128: 0 | BO128: 0.01 | BP128: 0 | BQ128: 0 | BR128: 0 | BS128: 0.39 | BT128: 0 | BU128: 0 | BV128: 1.08 | BW128: 0 | BX128: 0 | BY128: 0 | BZ128: 0 | CA128: 0 | CB128: 172.63 | CE128: 101.28 | CG128: 39.72 | CH128: 21 | CI128: 30.36 | CJ128: 454.2 | CK128: 142.2 | CL128: 298.2 | CM128: 5.66 | CN128: 3.18 | CO128: 4.42 | CP128: 1.5 | CQ128: 0.9
A129: ="17/4" -> 17/4 | B129: Каша молочная ассорти (рис, пшено) с маслом сливочным | C129: 120 | D129: 3.5 | E129: 1.8 | F129: 3.7 | G129: 0.5 | H129: 19.0 | I129: 122 | J129: 2.5 | K129: 0.1 | L129: 0.0 | M129: 0.0 | N129: 5.7 | O129: 12.7 | P129: 0.6 | Q129: 0.0 | R129: 0.0 | S129: 0.1 | T129: 1.0 | U129: 149.4 | V129: 108.6 | W129: 69.7 | X129: 19.7 | Y129: 83.8 | Z129: 0.4 | AA129: 14.5 | AB129: 13.9 | AC129: 27.3 | AD129: 0.1 | AE129: 0.1 | AF129: 0.1 | AG129: 0.3 | AH129: 1.3 | AI129: 0.3 | AJ129: 0 | AK129: 87.08 | AL129: 75.15 | AM129: 218.98 | AN129: 54.13 | AO129: 45.73 | AP129: 64.49 | AQ129: 28.96 | AR129: 94.64 | AS129: 149.21 | AT129: 89.42 | AU129: 116.95 | AV129: 43.23 | AW129: 59.9 | AX129: 343.42 | AY129: 0 | AZ129: 116.07 | BA129: 104.45 | BB129: 69.65 | BC129: 31.16 | BD129: 0.07 | BE129: 0.03 | BF129: 0.02 | BG129: 0.04 | BH129: 0.05 | BI129: 0.21 | BJ129: 0 | BK129: 0.62 | BL129: 0 | BM129: 0.19 | BN129: 0 | BO129: 0 | BP129: 0 | BQ129: 0.04 | BR129: 0.06 | BS129: 0.55 | BT129: 0 | BU129: 0 | BV129: 0.25 | BW129: 0 | BX129: 0 | BY129: 0 | BZ129: 0 | CA129: 0 | CB129: 100.08 | CE129: 16.86 | CG129: 24.06 | CH129: 11.09 | CI129: 17.57 | CJ129: 1506.05 | CK129: 674.52 | CL129: 1090.29 | CM129: 25.43 | CN129: 11.48 | CO129: 18.46 | CP129: 3 | CQ129: 0.3
A130: ="7" -> 7 | B130: Биточки (котлеты) из мяса бройлер-цыплят | C130: 50 | D130: 7.6 | E130: 6.4 | F130: 7.1 | G130: 2.0 | H130: 6.6 | I130: 120 | J130: 2.0 | K130: 1.6 | L130: 0.0 | M130: 0.0 | N130: 0.3 | O130: 5.8 | P130: 0.5 | Q130: 0.0 | R130: 0.0 | S130: 0.1 | T130: 0.8 | U130: 127.4 | V130: 75.1 | W130: 8.3 | X130: 10.6 | Y130: 67.2 | Z130: 1.0 | AA130: 20.7 | AB130: 4.0 | AC130: 26.7 | AD130: 1.5 | AE130: 0.0 | AF130: 0.1 | AG130: 2.8 | AH130: 5.0 | AI130: 0.1 | AJ130: 0 | AK130: 336.16 | AL130: 272.62 | AM130: 540.78 | AN130: 570.47 | AO130: 174.3 | AP130: 318.01 | AQ130: 109.6 | AR130: 293.13 | AS130: 425.24 | AT130: 457.95 | AU130: 595.87 | AV130: 182.69 | AW130: 503.94 | AX130: 1082.63 | AY130: 53.08 | AZ130: 365.42 | BA130: 326.79 | BB130: 241.8 | BC130: 91.81 | BD130: 0 | BE130: 0 | BF130: 0 | BG130: 0 | BH130: 0 | BI130: 0 | BJ130: 0 | BK130: 0.12 | BL130: 0 | BM130: 0.08 | BN130: 0.01 | BO130: 0.01 | BP130: 0 | BQ130: 0 | BR130: 0 | BS130: 0.45 | BT130: 0 | BU130: 0 | BV130: 1.13 | BW130: 0 | BX130: 0 | BY130: 0 | BZ130: 0 | CA130: 0 | CB130: 38.84 | CE130: 21.38 | CG130: 17.73 | CH130: 8.4 | CI130: 13.06 | CJ130: 1892.29 | CK130: 1155.41 | CL130: 1523.85 | CM130: 12.53 | CN130: 9.63 | CO130: 11.08 | CP130: 0 | CQ130: 0.25
B131: Итого за 'Обед' | C131: =SUM(C125:C130) -> 510 | D131: =SUM(D125:D130) -> 16.0 | E131: 13.1 | F131: 16.3 | G131: 4.8 | H131: 66.6 | I131: 464 | J131: 5.9 | K131: 2.9 | L131: 0.0 | M131: 0.0 | N131: 25.8 | O131: 34.2 | P131: 6.6 | Q131: 0.0 | R131: 0.0 | S131: 0.7 | T131: 4.8 | U131: 764.8 | V131: 674.1 | W131: 128.7 | X131: 67.0 | Y131: 228.8 | Z131: 3.2 | AA131: 35.3 | AB131: 1099.1 | AC131: 268.3 | AD131: 3.6 | AE131: 0.2 | AF131: 0.3 | AG131: 4.0 | AH131: 7.9 | AI131: 5.6 | AJ131: 0 | AK131: 575.25 | AL131: 489.51 | AM131: 977.42 | AN131: 739.51 | AO131: 267.27 | AP131: 485.48 | AQ131: 176.47 | AR131: 557.21 | AS131: 705.03 | AT131: 714.64 | AU131: 966.25 | AV131: 286.56 | AW131: 694 | AX131: 2270.38 | AY131: 53.08 | AZ131: 739.88 | BA131: 572.13 | BB131: 406.54 | BC131: 186.68 | BD131: 0.07 | BE131: 0.03 | BF131: 0.02 | BG131: 0.04 | BH131: 0.05 | BI131: 0.21 | BJ131: 0 | BK131: 0.9 | BL131: 0 | BM131: 0.34 | BN131: 0.02 | BO131: 0.02 | BP131: 0 | BQ131: 0.04 | BR131: 0.07 | BS131: 1.44 | BT131: 0 | BU131: 0 | BV131: 2.61 | BW131: 0.03 | BX131: 0 | BY131: 0 | BZ131: 0 | CA131: 0 | CB131: 489.27 | CD131: =$I$131/#REF!*100 ->  | CE131: 218.44 | CG131: 89.46 | CH131: 48.44 | CI131: 68.95 | CJ131: 5447.03 | CK131: 2584.31 | CL131: 4015.67 | CM131: 96.2 | CN131: 58.58 | CO131: 77.39 | CP131: 12 | CQ131: 1.45
B132: Ужин
A133: ="-" -> - | B133: Хлеб ржаной | C133: 20 | D133: 1.2 | E133: 0.0 | F133: 0.2 | G133: 0.2 | H133: 8.3 | I133: 38 | J133: 0.0 | K133: 0.0 | L133: 0.0 | M133: 0.0 | N133: 0.2 | O133: 6.4 | P133: 1.7 | Q133: 0.0 | R133: 0.0 | S133: 0.2 | T133: 0.5 | U133: 122.0 | V133: 49.0 | W133: 7.0 | X133: 9.4 | Y133: 31.6 | Z133: 0.8 | AA133: 0.0 | AB133: 1.0 | AC133: 0.2 | AD133: 0.3 | AE133: 0.0 | AF133: 0.0 | AG133: 0.1 | AH133: 0.4 | AI133: 0.0 | AJ133: 0 | AK133: 64.4 | AL133: 49.6 | AM133: 85.4 | AN133: 44.6 | AO133: 18.6 | AP133: 39.6 | AQ133: 16 | AR133: 74.2 | AS133: 59.4 | AT133: 58.2 | AU133: 92.8 | AV133: 24.8 | AW133: 62 | AX133: 311.8 | AY133: 0 | AZ133: 105.2 | BA133: 58.2 | BB133: 36 | BC133: 26 | BD133: 0 | BE133: 0 | BF133: 0 | BG133: 0 | BH133: 0 | BI133: 0 | BJ133: 0 | BK133: 0.03 | BL133: 0 | BM133: 0 | BN133: 0 | BO133: 0 | BP133: 0 | BQ133: 0 | BR133: 0 | BS133: 0.02 | BT133: 0 | BU133: 0 | BV133: 0.1 | BW133: 0.02 | BX133: 0 | BY133: 0 | BZ133: 0 | CA133: 0 | CB133: 9.4 | CE133: 0.17 | CG133: 2 | CH133: 2 | CI133: 2 | CJ133: 380 | CK133: 146.4 | CL133: 263.2 | CM133: 3.8 | CN133: 3.16 | CO133: 3.48 | CP133: 0 | CQ133: 0
A134: ="27/10" -> 27/10 | B134: Чай полусладкий | C134: 150 | D134: 0.2 | E134: 0.0 | F134: 0.0 | G134: 0.0 | H134: 3.8 | I134: 15 | J134: 0.0 | K134: 0.0 | L134: 0.0 | M134: 0.0 | N134: 3.7 | O134: 0.0 | P134: 0.1 | Q134: 0.0 | R134: 0.0 | S134: 0.0 | T134: 0.1 | U134: 0.0 | V134: 0.1 | W134: 0.1 | X134: 0.0 | Y134: 0.0 | Z134: 0.0 | AA134: 0.0 | AB134: 0.0 | AC134: 0.0 | AD134: 0.0 | AE134: 0.0 | AF134: 0.0 | AG134: 0.0 | AH134: 0.0 | AI134: 0.0 | AJ134: 0 | AK134: 0 | AL134: 0 | AM134: 0 | AN134: 0 | AO134: 0 | AP134: 0 | AQ134: 0 | AR134: 0 | AS134: 0 | AT134: 0 | AU134: 0 | AV134: 0 | AW134: 0 | AX134: 0 | AY134: 0 | AZ134: 0 | BA134: 0 | BB134: 0 | BC134: 0 | BD134: 0 | BE134: 0 | BF134: 0 | BG134: 0 | BH134: 0 | BI134: 0 | BJ134: 0 | BK134: 0 | BL134: 0 | BM134: 0 | BN134: 0 | BO134: 0 | BP134: 0 | BQ134: 0 | BR134: 0 | BS134: 0 | BT134: 0 | BU134: 0 | BV134: 0 | BW134: 0 | BX134: 0 | BY134: 0 | BZ134: 0 | CA134: 0 | CB134: 150.07 | CE134: 0 | CG134: 3.69 | CH134: 3.69 | CI134: 3.69 | CJ134: 398.25 | CK134: 156.6 | CL134: 277.43 | CM134: 39.61 | CN134: 23.41 | CO134: 31.51 | CP134: 3.75 | CQ134: 0
A135: ="10/150" -> 10/150 | B135: Сырники из творога | C135: 100 | D135: 20.8 | E135: 19.3 | F135: 5.5 | G135: 4.0 | H135: 16.4 | I135: 200 | J135: 1.4 | K135: 2.6 | L135: 0.0 | M135: 0.0 | N135: 6.9 | O135: 9.0 | P135: 0.5 | Q135: 0.0 | R135: 0.0 | S135: 1.1 | T135: 1.5 | U135: 125.9 | V135: 119.5 | W135: 105.5 | X135: 22.3 | Y135: 163.6 | Z135: 0.5 | AA135: 13.3 | AB135: 3.6 | AC135: 14.7 | AD135: 2.0 | AE135: 0.1 | AF135: 0.2 | AG135: 0.5 | AH135: 4.2 | AI135: 0.2 | AJ135: 0 | AK135: 938.43 | AL135: 934.88 | AM135: 1730.03 | AN135: 1307.31 | AO135: 446.86 | AP135: 748.54 | AQ135: 174.95 | AR135: 886.43 | AS135: 447.07 | AT135: 775.66 | AU135: 946.92 | AV135: 518.32 | AW135: 284.66 | AX135: 3298.51 | AY135: 0.53 | AZ135: 1896.81 | BA135: 802.86 | BB135: 846.49 | BC135: 123.23 | BD135: 0 | BE135: 0 | BF135: 0 | BG135: 0 | BH135: 0 | BI135: 0 | BJ135: 0 | BK135: 0.25 | BL135: 0 | BM135: 0.16 | BN135: 0.01 | BO135: 0.03 | BP135: 0 | BQ135: 0 | BR135: 0 | BS135: 0.91 | BT135: 0 | BU135: 0 | BV135: 2.31 | BW135: 0 | BX135: 0 | BY135: 0 | BZ135: 0 | CA135: 0 | CB135: 72.56 | CE135: 13.9 | CG135: 16.49 | CH135: 9.08 | CI135: 12.78 | CJ135: 912.6 | CK135: 639.6 | CL135: 776.1 | CM135: 21.38 | CN135: 15.6 | CO135: 18.7 | CP135: 4 | CQ135: 0.24
A136: ="-" -> - | B136: Сметана | C136: 10 | D136: 0.2 | E136: 0.0 | F136: 1.3 | G136: 0.0 | H136: 0.3 | I136: 14 | J136: 0.9 | K136: 0.0 | L136: 0.0 | M136: 0.0 | N136: 0.3 | O136: 0.0 | P136: 0.0 | Q136: 0.0 | R136: 0.0 | S136: 0.1 | T136: 0.1 | U136: 4.0 | V136: 10.2 | W136: 7.7 | X136: 0.8 | Y136: 5.3 | Z136: 0.0 | AA136: 6.0 | AB136: 3.2 | AC136: 10.7 | AD136: 0.0 | AE136: 0.0 | AF136: 0.0 | AG136: 0.0 | AH136: 0.1 | AI136: 0.0 | AJ136: 0 | AK136: 97.29 | AL136: 73.51 | AM136: 155.76 | AN136: 157.17 | AO136: 48.41 | AP136: 80.75 | AQ136: 21.43 | AR136: 75.48 | AS136: 108.38 | AT136: 101.8 | AU136: 178.98 | AV136: 67.49 | AW136: 92.68 | AX136: 311.14 | AY136: 0 | AZ136: 80.75 | BA136: 82.91 | BB136: 65.71 | BC136: 27.82 | BD136: 0 | BE136: 0 | BF136: 0 | BG136: 0 | BH136: 0 | BI136: 0 | BJ136: 0 | BK136: 0 | BL136: 0 | BM136: 0 | BN136: 0 | BO136: 0 | BP136: 0 | BQ136: 0 | BR136: 0 | BS136: 0 | BT136: 0 | BU136: 0 | BV136: 0 | BW136: 0.01 | BX136: 0 | BY136: 0 | BZ136: 0 | CA136: 0 | CB136: 7.75 | CE136: 6.53 | CG136: 10.5 | CH136: 10.5 | CI136: 10.5 | CJ136: 300 | CK136: 123 | CL136: 211.5 | CM136: 0.45 | CN136: 0.45 | CO136: 0.45 | CP136: 0 | CQ136: 0
B137: Итого за 'Ужин' | C137: =SUM(C133:C136) -> 280 | D137: =SUM(D133:D136) -> 22.4 | E137: 19.3 | F137: 7.1 | G137: 4.3 | H137: 28.9 | I137: 268 | J137: 2.3 | K137: 2.6 | L137: 0.0 | M137: 0.0 | N137: 11.2 | O137: 15.5 | P137: 2.2 | Q137: 0.0 | R137: 0.0 | S137: 1.4 | T137: 2.1 | U137: 252.0 | V137: 178.8 | W137: 120.4 | X137: 32.4 | Y137: 200.6 | Z137: 1.3 | AA137: 19.3 | AB137: 7.8 | AC137: 25.6 | AD137: 2.3 | AE137: 0.1 | AF137: 0.2 | AG137: 0.6 | AH137: 4.7 | AI137: 0.3 | AJ137: 0 | AK137: 1100.12 | AL137: 1057.98 | AM137: 1971.18 | AN137: 1509.08 | AO137: 513.87 | AP137: 868.89 | AQ137: 212.38 | AR137: 1036.11 | AS137: 614.85 | AT137: 935.66 | AU137: 1218.7 | AV137: 610.61 | AW137: 439.34 | AX137: 3921.45 | AY137: 0.53 | AZ137: 2082.75 | BA137: 943.97 | BB137: 948.19 | BC137: 177.06 | BD137: 0 | BE137: 0 | BF137: 0 | BG137: 0 | BH137: 0 | BI137: 0 | BJ137: 0 | BK137: 0.28 | BL137: 0 | BM137: 0.16 | BN137: 0.02 | BO137: 0.03 | BP137: 0 | BQ137: 0 | BR137: 0 | BS137: 0.94 | BT137: 0 | BU137: 0 | BV137: 2.4 | BW137: 0.03 | BX137: 0 | BY137: 0 | BZ137: 0 | CA137: 0 | CB137: 239.78 | CD137: =$I$137/#REF!*100 ->  | CE137: 20.6 | CG137: 32.68 | CH137: 25.26 | CI137: 28.97 | CJ137: 1990.85 | CK137: 1065.6 | CL137: 1528.22 | CM137: 65.24 | CN137: 42.62 | CO137: 54.14 | CP137: 7.75 | CQ137: 0.24
